Workbook

Sheet Uebersicht
A1: Zeiterfassungsbogen für wissenschaftliche Hilfskräfte | H1: =IF(I1="","","Jahr") ->  | I1: =IF(C7="","",YEAR(C7)) ->  | AU1: Monat | AV1: Stunden | AX1: Urlaub | BA1: bis 14. | BF1: ab 15.
AV2: bis 14. | AW2: ab 15. | BA2: Mo | BB2: Di | BC2: Mi | BD2: Do | BE2: Fr | BF2: Mo | BG2: Di | BH2: Mi | BI2: Do | BJ2: Fr | BN2: Incoming / Exchange
A3: Name | B3: Vorname | D3: Struktureinheit/en | F3: Stunden | G3: Übertrag | I3: =IF(OR(A4="",B4="",D4="",F4="",C7="",C8=""),"Bitte Felder ausfüllen zur Aktivierung!","") -> Bitte Felder ausfüllen zur Aktivierung! | R3: 1 | S3: 1.5 | T3: 2 | U3: 2.5 | V3: 3 | W3: 3.5 | X3: 4 | Y3: 4.5 | Z3: 5 | AA3: 5.5 | AB3: 6 | AC3: 6.5 | AD3: 7 | AE3: 7.5 | AF3: 8 | AG3: 8.5 | AH3: 9 | AI3: 9.5 | AJ3: 10 | AK3: 10.5 | AL3: 11 | AM3: 11.5 | AN3: 12 | AU3: 1 | AV3: =SUM(SUMIFS($AQ$5:$AQ$28,$AO$5:$AO$28,AU3),SUMIFS($AP$5:$AP$28,$AO$5:$AO$28,AU3)) -> 0 | AW3: =SUM(SUMIFS($AP$5:$AP$28,$AO$5:$AO$28,AU3+0.5),SUMIFS($AQ$5:$AQ$28,$AO$5:$AO$28,AU3+0.5)) -> 0 | AX3: =IF(AND(C7="",C8=""),"",SUM(AT4:AT22)) ->  | AY3: 1 | AZ3: =SUM(BA3:BE3) -> 0 | BA3: =IF(AV3=0,0,IF(C36="",IF(Jan!T4="",0,Jan!T4),C36)) -> 0 | BB3: =IF(AV3=0,0,IF(C37="",IF(Jan!T5="",0,Jan!T5),C37)) -> 0 | BC3: =IF(AV3=0,0,IF(C38="",IF(Jan!T6="",0,Jan!T6),C38)) -> 0 | BD3: =IF(AV3=0,0,IF(C39="",IF(Jan!T7="",0,Jan!T7),C39)) -> 0 | BE3: =IF(AV3=0,0,IF(C40="",IF(Jan!T8="",0,Jan!T8),C40)) -> 0 | BF3: =IF(AW3=0,0,IF(AV3=AW3,0,Jan!T12)) -> 0 | BG3: =IF(AW3=0,0,IF(AV3=AW3,0,Jan!T13)) -> 0 | BH3: =IF(AW3=0,0,IF(AW3=AV3,0,Jan!T14)) -> 0 | BI3: =IF(AW3=0,0,IF(AV3=AW3,0,Jan!T15)) -> 0 | BJ3: =IF(AW3=0,0,IF(AW3=AV3,0,Jan!T16)) -> 0 | BK3: 1 | BL3: =IF(AV3=AW3,AZ3,SUM(BF3:BJ3)) -> 0 | BM3: =TEXT(DATE($I$1,AU3,1),"MMM") ->  | BN3: Incoming / Degree
K4: =LOOKUP(Jul!C6,K7:K15,M7:M14) ->  | Q4: 1 | R4: 0.25 | S4: =((T4-R4)/2)+R4 -> 0.375 | T4: 0.5 | U4: =((V4-T4)/2)+T4 -> 0.75 | V4: 1 | W4: =((X4-V4)/2)+V4 -> 1.125 | X4: 1.25 | Y4: =((Z4-X4)/2)+X4 -> 1.375 | Z4: 1.5 | AA4: =((AB4-Z4)/2)+Z4 -> 1.75 | AB4: 2 | AC4: =((AD4-AB4)/2)+AB4 -> 2.125 | AD4: 2.25 | AE4: =((AF4-AD4)/2)+AD4 -> 2.375 | AF4: 2.5 | AG4: =((AH4-AF4)/2)+AF4 -> 2.75 | AH4: 3 | AI4: =((AJ4-AH4)/2)+AH4 -> 3.125 | AJ4: 3.25 | AK4: =((AL4-AJ4)/2)+AJ4 -> 3.375 | AL4: 3.5 | AM4: =((AN4-AL4)/2)+AL4 -> 3.75 | AN4: 4 | AO4: M | AP4: Stunden | AR4: 1 | AS4: =(COUNTIFS($AW$3:$AW$14,Q4)*0.5)+(COUNTIFS($AV$3:$AV$14,Q4)*0.5) -> 0 | AT4: =IF(ISNA(INDEX($R$4:$AN$22,MATCH(AR4,$Q$4:$Q$22,0),MATCH(AS4,$R$3:$AN$3,0))),"",INDEX($R$4:$AN$22,MATCH(AR4,$Q$4:$Q$22,0),MATCH(AS4,$R$3:$AN$3,0))) ->  | AU4: 2 | AV4: =SUM(SUMIFS($AQ$5:$AQ$28,$AO$5:$AO$28,AU4),SUMIFS($AP$5:$AP$28,$AO$5:$AO$28,AU4)) -> 0 | AW4: =SUM(SUMIFS($AP$5:$AP$28,$AO$5:$AO$28,AU4+0.5),SUMIFS($AQ$5:$AQ$28,$AO$5:$AO$28,AU4+0.5)) -> 0 | AY4: =IF(AND(AV4=AV3,BA4=BA3,BB4=BB3,BC4=BC3,BD4=BD3,BE4=BE3),AY3,AY3+1) ->  | AZ4: =SUM(BA4:BE4) ->  | BA4: =IF(INDIRECT("'"&$BM4&"'!"&"BK$15")>0,INDIRECT("'"&$BM4&"'!"&"BK$15"),IF($AV3=$AV4,BA$3,IF($AV4=$AW3,BF3,0))) ->  | BB4: =IF(INDIRECT("'"&$BM4&"'!"&"BK$15")>0,INDIRECT("'"&$BM4&"'!"&"BK$15"),IF($AV3=$AV4,BB$3,IF($AV4=$AW3,BG3,0))) ->  | BF4: =IF(AW4=0,0,IF(INDIRECT("'"&$BM4&"'!"&"BE$15")>0,INDIRECT("'"&$BM4&"'!"&"BE$15"),IF(AV4=AW4,0,IF(AND(SUM(BF3:BJ3)>0,AW3=AW4),BF3,IF($AW4=$AV$3,BA3,IF(AND(SUM($AV$3:$AV4)=0,AW3=0),$C$36,0)))))) -> 0 | BG4: =IF(AX4=0,0,IF(INDIRECT("'"&$BM4&"'!"&"BE$15")>0,INDIRECT("'"&$BM4&"'!"&"BE$15"),IF(AW4=AX4,0,IF(AND(SUM(BG3:BK3)>0,AX3=AX4),BG3,IF($AW4=$AV$3,BB3,IF(AND(SUM($AV$3:$AV4)=0,AX3=0),$C$36,0)))))) -> 0 | BH4: =IF(AY4=0,0,IF(INDIRECT("'"&$BM4&"'!"&"BE$15")>0,INDIRECT("'"&$BM4&"'!"&"BE$15"),IF(AX4=AY4,0,IF(AND(SUM(BH3:BL3)>0,AY3=AY4),BH3,IF($AW4=$AV$3,BC3,IF(AND(SUM($AV$3:$AV4)=0,AY3=0),$C$36,0)))))) ->  | BI4: =IF(AZ4=0,0,IF(INDIRECT("'"&$BM4&"'!"&"BE$15")>0,INDIRECT("'"&$BM4&"'!"&"BE$15"),IF(AY4=AZ4,0,IF(AND(SUM(BI3:BM3)>0,AZ3=AZ4),BI3,IF($AW4=$AV$3,BD3,IF(AND(SUM($AV$3:$AV4)=0,AZ3=0),$C$36,0)))))) ->  | BJ4: =IF(BA4=0,0,IF(INDIRECT("'"&$BM4&"'!"&"BE$15")>0,INDIRECT("'"&$BM4&"'!"&"BE$15"),IF(AZ4=BA4,0,IF(AND(SUM(BJ3:BN3)>0,BA3=BA4),BJ3,IF($AW4=$AV$3,BE3,IF(AND(SUM($AV$3:$AV4)=0,BA3=0),$C$36,0)))))) ->  | BK4: =IF(AND(AW4=AW3,OR(BF4=BF3,BG4=BG3,BH4=BH3,BI4=BI3,BJ4=BJ3),BL4=BL3),BK3,BK3+1) ->  | BL4: =IF(AV4=AW4,AZ4,SUM(BF4:BJ4)) ->  | BM4: =TEXT(DATE($I$1,AU4,1),"MMM") ->  | BN4: Welcome Center
Q5: 2 | R5: 0.5 | S5: =((T5-R5)/2)+R5 -> 0.875 | T5: 1.25 | U5: =((V5-T5)/2)+T5 -> 1.625 | V5: 2 | W5: =((X5-V5)/2)+V5 -> 2.25 | X5: 2.5 | Y5: =((Z5-X5)/2)+X5 -> 2.875 | Z5: 3.25 | AA5: =((AB5-Z5)/2)+Z5 -> 3.625 | AB5: 4 | AC5: =((AD5-AB5)/2)+AB5 -> 4.125 | AD5: 4.25 | AE5: =((AF5-AD5)/2)+AD5 -> 4.75 | AF5: 5.25 | AG5: =((AH5-AF5)/2)+AF5 -> 5.625 | AH5: 6 | AI5: =((AJ5-AH5)/2)+AH5 -> 6.25 | AJ5: 6.5 | AK5: =((AL5-AJ5)/2)+AJ5 -> 6.875 | AL5: 7.25 | AM5: =((AN5-AL5)/2)+AL5 -> 7.625 | AN5: 8 | AO5: 1 | AP5: =IF(AND($K$14<=AO5,$K$15>=AO5),$F$14,IF(AND($K$12<=AO5,$K$13>=AO5),$F$12,IF(AND($K$10<=AO5,$K$11>=AO5),$F$10,IF(AND($K$7<=AO5,$K$8>=AO5),$F$4,0)))) -> 0 | AQ5: =IF(AND($K$14<=AO5,$K$15>=AO5),$F$15,IF(AND($K$12<=AO5,$K$13>=AO5),$F$13,IF(AND($K$10<=AO5,$K$11>=AO5),$F$11,IF(AND($K$7<=AO5,$K$8>=AO5),$F$5,0)))) -> 0 | AR5: 2 | AS5: 0 | AU5: 3 | AV5: 0 | AW5: 0 | AY5: =IF(AND(AV5=AV4,BA5=BA4,BB5=BB4,BC5=BC4,BD5=BD4,BE5=BE4),AY4,AY4+1) ->  | BA5: =IF(INDIRECT("'"&$BM5&"'!"&"AZ15")>0,INDIRECT("'"&$BM5&"'!"&"AZ15"),IF(SUM($AV$3:$AV4,$AW$3:$AW4)=0,$C$36,IF($AV5=$AV4,BA4,IF(MATCH(AV5,$AV$3:$AV4,0)=1,INDEX($BA$3:$BE4,MATCH(MAX(IF($AV$3:$AV4=AV5,$AW$3:$AW4)),$AW$3:$AW4,0),1),IF(MATCH(AV5,$AW$3:$AW4,0)=1,INDEX($BF$3:$BJ4,MATCH(MAX(IF($AW$3:$AW4=$AV5,$AW$3:$AW4)),$AW$3:$AW4,0),1),0))))) ->  | BB5: =IF(INDIRECT("'"&$BM5&"'!"&"BA15")>0,INDIRECT("'"&$BM5&"'!"&"BA15"),IF(SUM($AV$3:$AV4,$AW$3:$AW4)=0,$C$37,IF($AV5=$AV4,BB4,IF(MATCH(AV5,$AV$3:$AV4,0)=1,INDEX($BA$3:$BE4,MATCH(MAX(IF($AV$3:$AV4=AV5,$AW$3:$AW4)),$AW$3:$AW4,0),2),IF(MATCH(AV5,$AW$3:$AW4,0)=1,INDEX($BF$3:$BJ4,MATCH(MAX(IF($AW$3:$AW4=AV5,$AW$3:$AW4)),$AW$3:$AW4,0),2),0))))) ->  | BC5: =IF(INDIRECT("'"&$BM5&"'!"&"BB15")>0,INDIRECT("'"&$BM5&"'!"&"BB15"),IF(SUM($AV$3:$AV4,$AW$3:$AW4)=0,$C$38,IF($AV5=$AV4,BC4,IF(MATCH(AV5,$AV$3:$AV4,0)=1,INDEX($BA$3:$BE4,MATCH(MAX(IF($AV$3:$AV4=AV5,$AW$3:$AW4)),$AW$3:$AW4,0),3),IF(MATCH(AV5,$AW$3:$AW4,0)=1,INDEX($BF$3:$BJ4,MATCH(MAX(IF($AW$3:$AW4=AV5,$AW$3:$AW4)),$AW$3:$AW4,0),3),0))))) ->  | BD5: =IF(INDIRECT("'"&$BM5&"'!"&"BC15")>0,INDIRECT("'"&$BM5&"'!"&"BC15"),IF(SUM($AV$3:$AV4,$AW$3:$AW4)=0,$C$39,IF($AV5=$AV4,BD4,IF(MATCH(AV5,$AV$3:$AV4,0)=1,INDEX($BA$3:$BE4,MATCH(MAX(IF($AV$3:$AV4=AV5,$AW$3:$AW4)),$AW$3:$AW4,0),4),IF(MATCH(AV5,$AW$3:$AW4,0)=1,INDEX($BF$3:$BJ4,MATCH(MAX(IF($AW$3:$AW4=AV5,$AW$3:$AW4)),$AW$3:$AW4,0),4),0))))) ->  | BE5: =IF(INDIRECT("'"&$BM5&"'!"&"BD15")>0,INDIRECT("'"&$BM5&"'!"&"BD15"),IF(SUM($AV$3:$AV4,$AW$3:$AW4)=0,$C$40,IF($AV5=$AV4,BE4,IF(MATCH(AV5,$AV$3:$AV4,0)=1,INDEX($BA$3:$BE4,MATCH(MAX(IF($AV$3:$AV4=AV5,$AW$3:$AW4)),$AW$3:$AW4,0),5),IF(MATCH(AV5,$AW$3:$AW4,0)=1,INDEX($BF$3:$BG4,MATCH(MAX(IF($AW$3:$AW4=AV5,$AW$3:$AW4)),$AW$3:$AW4,0),5),0))))) ->  | BF5: =IF(INDIRECT("'"&$BM5&"'!"&"BE$15")>0,INDIRECT("'"&$BM5&"'!"&"BE$15"),IF(SUM($AV$3:$AV4,$AW$3:$AW4)=0,$C$36,IF($AW5=$AV5,0,IF($AW4=$AW5,BF4,IF(MATCH($AW5,$AW$3:$AW4,0)=1,INDEX($BF$3:$BJ4,MATCH(MAX(IF($AW$3:$AW4=$AW5,$AW$3:$AW4)),$AW$3:$AW4,0),1),IF(MATCH($AW5,$AV$3:$AV3,0)=1,INDEX($BA$3:$BE4,MATCH(MAX(IF($AV$3:$AV4=$AW5,$AV$3:$AV4)),$AV$3:$AV4,0),1),0)))))) ->  | BG5: =IF(INDIRECT("'"&$BM5&"'!"&"BF$15")>0,INDIRECT("'"&$BM5&"'!"&"BF$15"),IF(SUM($AV$3:$AV4,$AW$3:$AW4)=0,$C$37,IF($AW5=$AV5,0,IF($AW4=$AW5,BG4,IF(MATCH($AW5,$AW$3:$AW4,0)=1,INDEX($BF$3:$BJ4,MATCH(MAX(IF($AW$3:$AW4=$AW5,$AW$3:$AW4)),$AW$3:$AW4,0),2),IF(MATCH($AW5,$AV$3:$AV3,0)=1,INDEX($BA$3:$BE4,MATCH(MAX(IF($AV$3:$AV4=$AW5,$AV$3:$AV4)),$AV$3:$AV4,0),2),0)))))) ->  | BH5: =IF(INDIRECT("'"&$BM5&"'!"&"BG$15")>0,INDIRECT("'"&$BM5&"'!"&"BG$15"),IF(SUM($AV$3:$AV4,$AW$3:$AW4)=0,$C$38,IF($AW5=$AV5,0,IF($AW4=$AW5,BH4,IF(MATCH($AW5,$AW$3:$AW4,0)=1,INDEX($BF$3:$BJ4,MATCH(MAX(IF($AW$3:$AW4=$AW5,$AW$3:$AW4)),$AW$3:$AW4,0),3),IF(MATCH($AW5,$AV$3:$AV3,0)=1,INDEX($BA$3:$BE4,MATCH(MAX(IF($AV$3:$AV4=$AW5,$AV$3:$AV4)),$AV$3:$AV4,0),3),0)))))) ->  | BI5: =IF(INDIRECT("'"&$BM5&"'!"&"BH$15")>0,INDIRECT("'"&$BM5&"'!"&"BH$15"),IF(SUM($AV$3:$AV4,$AW$3:$AW4)=0,$C$39,IF($AW5=$AV5,0,IF($AW4=$AW5,BI4,IF(MATCH($AW5,$AW$3:$AW4,0)=1,INDEX($BF$3:$BJ4,MATCH(MAX(IF($AW$3:$AW4=$AW5,$AW$3:$AW4)),$AW$3:$AW4,0),4),IF(MATCH($AW5,$AV$3:$AV3,0)=1,INDEX($BA$3:$BE4,MATCH(MAX(IF($AV$3:$AV4=$AW5,$AV$3:$AV4)),$AV$3:$AV4,0),4),0)))))) ->  | BJ5: =IF(INDIRECT("'"&$BM5&"'!"&"BI$15")>0,INDIRECT("'"&$BM5&"'!"&"BI$15"),IF(SUM($AV$3:$AV4,$AW$3:$AW4)=0,$C$40,IF($AW5=$AV5,0,IF($AW4=$AW5,BJ4,IF(MATCH($AW5,$AW$3:$AW4,0)=1,INDEX($BF$3:$BJ4,MATCH(MAX(IF($AW$3:$AW4=$AW5,$AW$3:$AW4)),$AW$3:$AW4,0),5),IF(MATCH($AW5,$AV$3:$AV3,0)=1,INDEX($BA$3:$BE4,MATCH(MAX(IF($AV$3:$AV4=$AW5,$AV$3:$AV4)),$AV$3:$AV4,0),5),0)))))) ->  | BK5: =IF(AND(AW5=AW4,OR(BF5=BF4,BG5=BG4,BH5=BH4,BI5=BI4,BJ5=BJ4),BL5=BL4),BK4,BK4+1) ->  | BL5: =IF(AV5=AW5,AZ5,SUM(BF5:BJ5)) ->  | BN5: Outgoing / Praktika
I6: Bitte bachten: | Q6: 3 | R6: 1 | S6: 1.5 | T6: 2 | U6: 2.5 | V6: 3 | W6: 3.5 | X6: 4 | Y6: 4.5 | Z6: 5 | AA6: 5.5 | AB6: 6 | AC6: 6.5 | AD6: 7 | AE6: 7.5 | AF6: 8 | AG6: 8.5 | AH6: 9 | AI6: 9.5 | AJ6: 10 | AK6: 10.5 | AL6: 11 | AM6: 11.5 | AN6: 12 | AO6: 1.5 | AP6: =IF(AND($K$14<=AO6,$K$15>=AO6),$F$14,IF(AND($K$12<=AO6,$K$13>=AO6),$F$12,IF(AND($K$10<=AO6,$K$11>=AO6),$F$10,IF(AND($K$7<=AO6,$K$8>=AO6),$F$4,0)))) -> 0 | AQ6: =IF(AND($K$14<=AO6,$K$15>=AO6),$F$15,IF(AND($K$12<=AO6,$K$13>=AO6),$F$13,IF(AND($K$10<=AO6,$K$11>=AO6),$F$11,IF(AND($K$7<=AO6,$K$8>=AO6),$F$5,0)))) -> 0 | AR6: 3 | AS6: 0 | AU6: 4 | AV6: 0 | AW6: 0 | AY6: =IF(AND(AV6=AV5,BA6=BA5,BB6=BB5,BC6=BC5,BD6=BD5,BE6=BE5),AY5,AY5+1) ->  | BA6: =IF(INDIRECT("'"&$BM6&"'!"&"AZ15")>0,INDIRECT("'"&$BM6&"'!"&"AZ15"),IF(SUM($AV$3:$AV5,$AW$3:$AW5)=0,$C$36,IF($AV6=$AV5,BA5,IF(MATCH(AV6,$AV$3:$AV5,0)=1,INDEX($BA$3:$BE5,MATCH(MAX(IF($AV$3:$AV5=AV6,$AW$3:$AW5)),$AW$3:$AW5,0),1),IF(MATCH(AV6,$AW$3:$AW5,0)=1,INDEX($BF$3:$BJ5,MATCH(MAX(IF($AW$3:$AW5=$AV6,$AW$3:$AW5)),$AW$3:$AW5,0),1),0))))) ->  | BB6: =IF(INDIRECT("'"&$BM6&"'!"&"BA15")>0,INDIRECT("'"&$BM6&"'!"&"BA15"),IF(SUM($AV$3:$AV5,$AW$3:$AW5)=0,$C$37,IF($AV6=$AV5,BB5,IF(MATCH(AV6,$AV$3:$AV5,0)=1,INDEX($BA$3:$BE5,MATCH(MAX(IF($AV$3:$AV5=AV6,$AW$3:$AW5)),$AW$3:$AW5,0),2),IF(MATCH(AV6,$AW$3:$AW5,0)=1,INDEX($BF$3:$BJ5,MATCH(MAX(IF($AW$3:$AW5=AV6,$AW$3:$AW5)),$AW$3:$AW5,0),2),0))))) ->  | BC6: =IF(INDIRECT("'"&$BM6&"'!"&"BB15")>0,INDIRECT("'"&$BM6&"'!"&"BB15"),IF(SUM($AV$3:$AV5,$AW$3:$AW5)=0,$C$38,IF($AV6=$AV5,BC5,IF(MATCH(AV6,$AV$3:$AV5,0)=1,INDEX($BA$3:$BE5,MATCH(MAX(IF($AV$3:$AV5=AV6,$AW$3:$AW5)),$AW$3:$AW5,0),3),IF(MATCH(AV6,$AW$3:$AW5,0)=1,INDEX($BF$3:$BJ5,MATCH(MAX(IF($AW$3:$AW5=AV6,$AW$3:$AW5)),$AW$3:$AW5,0),3),0))))) ->  | BD6: =IF(INDIRECT("'"&$BM6&"'!"&"BC15")>0,INDIRECT("'"&$BM6&"'!"&"BC15"),IF(SUM($AV$3:$AV5,$AW$3:$AW5)=0,$C$39,IF($AV6=$AV5,BD5,IF(MATCH(AV6,$AV$3:$AV5,0)=1,INDEX($BA$3:$BE5,MATCH(MAX(IF($AV$3:$AV5=AV6,$AW$3:$AW5)),$AW$3:$AW5,0),4),IF(MATCH(AV6,$AW$3:$AW5,0)=1,INDEX($BF$3:$BJ5,MATCH(MAX(IF($AW$3:$AW5=AV6,$AW$3:$AW5)),$AW$3:$AW5,0),4),0))))) ->  | BE6: =IF(INDIRECT("'"&$BM6&"'!"&"BD15")>0,INDIRECT("'"&$BM6&"'!"&"BD15"),IF(SUM($AV$3:$AV5,$AW$3:$AW5)=0,$C$40,IF($AV6=$AV5,BE5,IF(MATCH(AV6,$AV$3:$AV5,0)=1,INDEX($BA$3:$BE5,MATCH(MAX(IF($AV$3:$AV5=AV6,$AW$3:$AW5)),$AW$3:$AW5,0),5),IF(MATCH(AV6,$AW$3:$AW5,0)=1,INDEX($BF$3:$BG5,MATCH(MAX(IF($AW$3:$AW5=AV6,$AW$3:$AW5)),$AW$3:$AW5,0),5),0))))) ->  | BF6: =IF(INDIRECT("'"&$BM6&"'!"&"BE$15")>0,INDIRECT("'"&$BM6&"'!"&"BE$15"),IF(SUM($AV$3:$AV5,$AW$3:$AW5)=0,$C$36,IF($AW6=$AV6,0,IF($AW5=$AW6,BF5,IF(MATCH($AW6,$AW$3:$AW5,0)=1,INDEX($BF$3:$BJ5,MATCH(MAX(IF($AW$3:$AW5=$AW6,$AW$3:$AW5)),$AW$3:$AW5,0),1),IF(MATCH($AW6,$AV$3:$AV4,0)=1,INDEX($BA$3:$BE5,MATCH(MAX(IF($AV$3:$AV5=$AW6,$AV$3:$AV5)),$AV$3:$AV5,0),1),0)))))) ->  | BG6: =IF(INDIRECT("'"&$BM6&"'!"&"BF$15")>0,INDIRECT("'"&$BM6&"'!"&"BF$15"),IF(SUM($AV$3:$AV5,$AW$3:$AW5)=0,$C$37,IF($AW6=$AV6,0,IF($AW5=$AW6,BG5,IF(MATCH($AW6,$AW$3:$AW5,0)=1,INDEX($BF$3:$BJ5,MATCH(MAX(IF($AW$3:$AW5=$AW6,$AW$3:$AW5)),$AW$3:$AW5,0),2),IF(MATCH($AW6,$AV$3:$AV4,0)=1,INDEX($BA$3:$BE5,MATCH(MAX(IF($AV$3:$AV5=$AW6,$AV$3:$AV5)),$AV$3:$AV5,0),2),0)))))) ->  | BH6: =IF(INDIRECT("'"&$BM6&"'!"&"BG$15")>0,INDIRECT("'"&$BM6&"'!"&"BG$15"),IF(SUM($AV$3:$AV5,$AW$3:$AW5)=0,$C$38,IF($AW6=$AV6,0,IF($AW5=$AW6,BH5,IF(MATCH($AW6,$AW$3:$AW5,0)=1,INDEX($BF$3:$BJ5,MATCH(MAX(IF($AW$3:$AW5=$AW6,$AW$3:$AW5)),$AW$3:$AW5,0),3),IF(MATCH($AW6,$AV$3:$AV4,0)=1,INDEX($BA$3:$BE5,MATCH(MAX(IF($AV$3:$AV5=$AW6,$AV$3:$AV5)),$AV$3:$AV5,0),3),0)))))) ->  | BI6: =IF(INDIRECT("'"&$BM6&"'!"&"BH$15")>0,INDIRECT("'"&$BM6&"'!"&"BH$15"),IF(SUM($AV$3:$AV5,$AW$3:$AW5)=0,$C$39,IF($AW6=$AV6,0,IF($AW5=$AW6,BI5,IF(MATCH($AW6,$AW$3:$AW5,0)=1,INDEX($BF$3:$BJ5,MATCH(MAX(IF($AW$3:$AW5=$AW6,$AW$3:$AW5)),$AW$3:$AW5,0),4),IF(MATCH($AW6,$AV$3:$AV4,0)=1,INDEX($BA$3:$BE5,MATCH(MAX(IF($AV$3:$AV5=$AW6,$AV$3:$AV5)),$AV$3:$AV5,0),4),0)))))) ->  | BJ6: =IF(INDIRECT("'"&$BM6&"'!"&"BI$15")>0,INDIRECT("'"&$BM6&"'!"&"BI$15"),IF(SUM($AV$3:$AV5,$AW$3:$AW5)=0,$C$40,IF($AW6=$AV6,0,IF($AW5=$AW6,BJ5,IF(MATCH($AW6,$AW$3:$AW5,0)=1,INDEX($BF$3:$BJ5,MATCH(MAX(IF($AW$3:$AW5=$AW6,$AW$3:$AW5)),$AW$3:$AW5,0),5),IF(MATCH($AW6,$AV$3:$AV4,0)=1,INDEX($BA$3:$BE5,MATCH(MAX(IF($AV$3:$AV5=$AW6,$AV$3:$AV5)),$AV$3:$AV5,0),5),0)))))) ->  | BN6: Outgoing / HSP
A7: Vertragslaufzeit Beginn: | D7: Dauer: | E7: =IF(C7="","",IF(P7>=17,O7+1,O7+0.5)) ->  | F7: =F4 -> 0 | I7: Vertragsende zur Mitte des Monats immer zum 14. Beginn zur Mitte des Monats immer zum 15. | J7: =IF(C7="","",IF(DAY(C7)=1,1,0.5)) ->  | K7: =IF(DAY(C7)=15,MONTH(C7)+0.5,MONTH(C7)) -> 1 | L7: =D4 -> 0 | M7: =IF(D5="",D4,D5) -> 0 | N7: =C8-C7 -> 0 | O7: =DATEDIF(C7,C8,"ym") -> 0 | P7: =DATEDIF(C7,C8,"md") -> 0 | Q7: 4 | R7: 1.25 | S7: 1.875 | T7: 2.5 | U7: 3.25 | V7: 4 | W7: 4.625 | X7: 5.25 | Y7: 5.875 | Z7: 6.5 | AA7: 7.25 | AB7: 8 | AC7: 8.625 | AD7: 9.25 | AE7: 9.875 | AF7: 10.5 | AG7: 11.25 | AH7: 12 | AI7: 12.625 | AJ7: 13.25 | AK7: 13.875 | AL7: 14.5 | AM7: 15.25 | AN7: 16 | AO7: 2 | AP7: 0 | AQ7: =IF(AND($K$14<=AO7,$K$15>=AO7),$F$15,IF(AND($K$12<=AO7,$K$13>=AO7),$F$13,IF(AND($K$10<=AO7,$K$11>=AO7),$F$11,IF(AND($K$7<=AO7,$K$8>=AO7),$F$5,0)))) -> 0 | AR7: 4 | AS7: 0 | AU7: 5 | AV7: 0 | AW7: 0 | AY7: =IF(AND(AV7=AV6,BA7=BA6,BB7=BB6,BC7=BC6,BD7=BD6,BE7=BE6),AY6,AY6+1) ->  | BA7: =IF(INDIRECT("'"&$BM7&"'!"&"AZ15")>0,INDIRECT("'"&$BM7&"'!"&"AZ15"),IF(SUM($AV$3:$AV6,$AW$3:$AW6)=0,$C$36,IF($AV7=$AV6,BA6,IF(MATCH(AV7,$AV$3:$AV6,0)=1,INDEX($BA$3:$BE6,MATCH(MAX(IF($AV$3:$AV6=AV7,$AW$3:$AW6)),$AW$3:$AW6,0),1),IF(MATCH(AV7,$AW$3:$AW6,0)=1,INDEX($BF$3:$BJ6,MATCH(MAX(IF($AW$3:$AW6=$AV7,$AW$3:$AW6)),$AW$3:$AW6,0),1),0))))) ->  | BB7: =IF(INDIRECT("'"&$BM7&"'!"&"BA15")>0,INDIRECT("'"&$BM7&"'!"&"BA15"),IF(SUM($AV$3:$AV6,$AW$3:$AW6)=0,$C$37,IF($AV7=$AV6,BB6,IF(MATCH(AV7,$AV$3:$AV6,0)=1,INDEX($BA$3:$BE6,MATCH(MAX(IF($AV$3:$AV6=AV7,$AW$3:$AW6)),$AW$3:$AW6,0),2),IF(MATCH(AV7,$AW$3:$AW6,0)=1,INDEX($BF$3:$BJ6,MATCH(MAX(IF($AW$3:$AW6=AV7,$AW$3:$AW6)),$AW$3:$AW6,0),2),0))))) ->  | BC7: =IF(INDIRECT("'"&$BM7&"'!"&"BB15")>0,INDIRECT("'"&$BM7&"'!"&"BB15"),IF(SUM($AV$3:$AV6,$AW$3:$AW6)=0,$C$38,IF($AV7=$AV6,BC6,IF(MATCH(AV7,$AV$3:$AV6,0)=1,INDEX($BA$3:$BE6,MATCH(MAX(IF($AV$3:$AV6=AV7,$AW$3:$AW6)),$AW$3:$AW6,0),3),IF(MATCH(AV7,$AW$3:$AW6,0)=1,INDEX($BF$3:$BJ6,MATCH(MAX(IF($AW$3:$AW6=AV7,$AW$3:$AW6)),$AW$3:$AW6,0),3),0))))) ->  | BD7: =IF(INDIRECT("'"&$BM7&"'!"&"BC15")>0,INDIRECT("'"&$BM7&"'!"&"BC15"),IF(SUM($AV$3:$AV6,$AW$3:$AW6)=0,$C$39,IF($AV7=$AV6,BD6,IF(MATCH(AV7,$AV$3:$AV6,0)=1,INDEX($BA$3:$BE6,MATCH(MAX(IF($AV$3:$AV6=AV7,$AW$3:$AW6)),$AW$3:$AW6,0),4),IF(MATCH(AV7,$AW$3:$AW6,0)=1,INDEX($BF$3:$BJ6,MATCH(MAX(IF($AW$3:$AW6=AV7,$AW$3:$AW6)),$AW$3:$AW6,0),4),0))))) ->  | BE7: =IF(INDIRECT("'"&$BM7&"'!"&"BD15")>0,INDIRECT("'"&$BM7&"'!"&"BD15"),IF(SUM($AV$3:$AV6,$AW$3:$AW6)=0,$C$40,IF($AV7=$AV6,BE6,IF(MATCH(AV7,$AV$3:$AV6,0)=1,INDEX($BA$3:$BE6,MATCH(MAX(IF($AV$3:$AV6=AV7,$AW$3:$AW6)),$AW$3:$AW6,0),5),IF(MATCH(AV7,$AW$3:$AW6,0)=1,INDEX($BF$3:$BG6,MATCH(MAX(IF($AW$3:$AW6=AV7,$AW$3:$AW6)),$AW$3:$AW6,0),5),0))))) ->  | BF7: =IF(INDIRECT("'"&$BM7&"'!"&"BE$15")>0,INDIRECT("'"&$BM7&"'!"&"BE$15"),IF(SUM($AV$3:$AV6,$AW$3:$AW6)=0,$C$36,IF($AW7=$AV7,0,IF($AW6=$AW7,BF6,IF(MATCH($AW7,$AW$3:$AW6,0)=1,INDEX($BF$3:$BJ6,MATCH(MAX(IF($AW$3:$AW6=$AW7,$AW$3:$AW6)),$AW$3:$AW6,0),1),IF(MATCH($AW7,$AV$3:$AV5,0)=1,INDEX($BA$3:$BE6,MATCH(MAX(IF($AV$3:$AV6=$AW7,$AV$3:$AV6)),$AV$3:$AV6,0),1),0)))))) ->  | BG7: =IF(INDIRECT("'"&$BM7&"'!"&"BF$15")>0,INDIRECT("'"&$BM7&"'!"&"BF$15"),IF(SUM($AV$3:$AV6,$AW$3:$AW6)=0,$C$37,IF($AW7=$AV7,0,IF($AW6=$AW7,BG6,IF(MATCH($AW7,$AW$3:$AW6,0)=1,INDEX($BF$3:$BJ6,MATCH(MAX(IF($AW$3:$AW6=$AW7,$AW$3:$AW6)),$AW$3:$AW6,0),2),IF(MATCH($AW7,$AV$3:$AV5,0)=1,INDEX($BA$3:$BE6,MATCH(MAX(IF($AV$3:$AV6=$AW7,$AV$3:$AV6)),$AV$3:$AV6,0),2),0)))))) ->  | BH7: =IF(INDIRECT("'"&$BM7&"'!"&"BG$15")>0,INDIRECT("'"&$BM7&"'!"&"BG$15"),IF(SUM($AV$3:$AV6,$AW$3:$AW6)=0,$C$38,IF($AW7=$AV7,0,IF($AW6=$AW7,BH6,IF(MATCH($AW7,$AW$3:$AW6,0)=1,INDEX($BF$3:$BJ6,MATCH(MAX(IF($AW$3:$AW6=$AW7,$AW$3:$AW6)),$AW$3:$AW6,0),3),IF(MATCH($AW7,$AV$3:$AV5,0)=1,INDEX($BA$3:$BE6,MATCH(MAX(IF($AV$3:$AV6=$AW7,$AV$3:$AV6)),$AV$3:$AV6,0),3),0)))))) ->  | BI7: =IF(INDIRECT("'"&$BM7&"'!"&"BH$15")>0,INDIRECT("'"&$BM7&"'!"&"BH$15"),IF(SUM($AV$3:$AV6,$AW$3:$AW6)=0,$C$39,IF($AW7=$AV7,0,IF($AW6=$AW7,BI6,IF(MATCH($AW7,$AW$3:$AW6,0)=1,INDEX($BF$3:$BJ6,MATCH(MAX(IF($AW$3:$AW6=$AW7,$AW$3:$AW6)),$AW$3:$AW6,0),4),IF(MATCH($AW7,$AV$3:$AV5,0)=1,INDEX($BA$3:$BE6,MATCH(MAX(IF($AV$3:$AV6=$AW7,$AV$3:$AV6)),$AV$3:$AV6,0),4),0)))))) ->  | BJ7: =IF(INDIRECT("'"&$BM7&"'!"&"BI$15")>0,INDIRECT("'"&$BM7&"'!"&"BI$15"),IF(SUM($AV$3:$AV6,$AW$3:$AW6)=0,$C$40,IF($AW7=$AV7,0,IF($AW6=$AW7,BJ6,IF(MATCH($AW7,$AW$3:$AW6,0)=1,INDEX($BF$3:$BJ6,MATCH(MAX(IF($AW$3:$AW6=$AW7,$AW$3:$AW6)),$AW$3:$AW6,0),5),IF(MATCH($AW7,$AV$3:$AV5,0)=1,INDEX($BA$3:$BE6,MATCH(MAX(IF($AV$3:$AV6=$AW7,$AV$3:$AV6)),$AV$3:$AV6,0),5),0)))))) ->  | BL7: =IF(AV7=AW7,AZ7,SUM(BF7:BJ7)) ->  | BN7: Outgoing / Programm
A8: Vertragslaufzeit Ende: | D8: Urlaub: | E8: =IF(AND(C7="",C8=""),"",AX3) ->  | F8: =F5 -> 0 | J8: =IF(C8="","",IF(DAY(C8)=1,1,0.5)) ->  | K8: =IF(C8="",0,IF(DAY(C8)=14,MONTH(C8),MONTH(C8)+0.5)) -> 0 | L8: =L7 -> 0 | M8: =M7 -> 0 | Q8: 5 | R8: 1.5 | S8: 2.375 | T8: 3.25 | U8: 4.125 | V8: 5 | W8: 5.75 | X8: 6.5 | Y8: 7.375 | Z8: 8.25 | AA8: 9.125 | AB8: 10 | AC8: 10.75 | AD8: 11.5 | AE8: 12.375 | AF8: 13.25 | AG8: 14.125 | AH8: 15 | AI8: 15.75 | AJ8: 16.5 | AK8: 17.375 | AL8: 18.25 | AM8: 19.125 | AN8: 20 | AO8: 2.5 | AP8: =IF(AND($K$14<=AO8,$K$15>=AO8),$F$14,IF(AND($K$12<=AO8,$K$13>=AO8),$F$12,IF(AND($K$10<=AO8,$K$11>=AO8),$F$10,IF(AND($K$7<=AO8,$K$8>=AO8),$F$4,0)))) -> 0 | AQ8: 0 | AR8: 5 | AS8: 0 | AU8: 6 | AV8: 0 | AW8: 0 | AY8: =IF(AND(AV8=AV7,BA8=BA7,BB8=BB7,BC8=BC7,BD8=BD7,BE8=BE7),AY7,IF(AND(AV8=AV6,SUM(BA8:BE8)=0,SUM(BA6:BE6)>0),AY6,IF(AND(AV8=AV5,SUM(BA8:BE8)=0,SUM(BA5:BE5)>0),AY5,IF(AND(AV8=AV4,SUM(BA8:BE8)=0,SUM(BA4:BE4)>0),AY4,IF(AND(AV8=AV3,SUM(BA8:BE8)=0,SUM(BA3:BE3)>0),AY3,AY7+1))))) ->  | BA8: =IF(INDIRECT("'"&$BM8&"'!"&"AZ15")>0,INDIRECT("'"&$BM8&"'!"&"AZ15"),IF(SUM($AV$3:$AV7,$AW$3:$AW7)=0,$C$36,IF($AV8=$AV7,BA7,IF(MATCH(AV8,$AV$3:$AV7,0)=1,INDEX($BA$3:$BE7,MATCH(MAX(IF($AV$3:$AV7=AV8,$AW$3:$AW7)),$AW$3:$AW7,0),1),IF(MATCH(AV8,$AW$3:$AW7,0)=1,INDEX($BF$3:$BJ7,MATCH(MAX(IF($AW$3:$AW7=$AV8,$AW$3:$AW7)),$AW$3:$AW7,0),1),0))))) ->  | BB8: =IF(INDIRECT("'"&$BM8&"'!"&"BA15")>0,INDIRECT("'"&$BM8&"'!"&"BA15"),IF(SUM($AV$3:$AV7,$AW$3:$AW7)=0,$C$37,IF($AV8=$AV7,BB7,IF(MATCH(AV8,$AV$3:$AV7,0)=1,INDEX($BA$3:$BE7,MATCH(MAX(IF($AV$3:$AV7=AV8,$AW$3:$AW7)),$AW$3:$AW7,0),2),IF(MATCH(AV8,$AW$3:$AW7,0)=1,INDEX($BF$3:$BJ7,MATCH(MAX(IF($AW$3:$AW7=AV8,$AW$3:$AW7)),$AW$3:$AW7,0),2),0))))) ->  | BC8: =IF(INDIRECT("'"&$BM8&"'!"&"BB15")>0,INDIRECT("'"&$BM8&"'!"&"BB15"),IF(SUM($AV$3:$AV7,$AW$3:$AW7)=0,$C$38,IF($AV8=$AV7,BC7,IF(MATCH(AV8,$AV$3:$AV7,0)=1,INDEX($BA$3:$BE7,MATCH(MAX(IF($AV$3:$AV7=AV8,$AW$3:$AW7)),$AW$3:$AW7,0),3),IF(MATCH(AV8,$AW$3:$AW7,0)=1,INDEX($BF$3:$BJ7,MATCH(MAX(IF($AW$3:$AW7=AV8,$AW$3:$AW7)),$AW$3:$AW7,0),3),0))))) ->  | BD8: =IF(INDIRECT("'"&$BM8&"'!"&"BC15")>0,INDIRECT("'"&$BM8&"'!"&"BC15"),IF(SUM($AV$3:$AV7,$AW$3:$AW7)=0,$C$39,IF($AV8=$AV7,BD7,IF(MATCH(AV8,$AV$3:$AV7,0)=1,INDEX($BA$3:$BE7,MATCH(MAX(IF($AV$3:$AV7=AV8,$AW$3:$AW7)),$AW$3:$AW7,0),4),IF(MATCH(AV8,$AW$3:$AW7,0)=1,INDEX($BF$3:$BJ7,MATCH(MAX(IF($AW$3:$AW7=AV8,$AW$3:$AW7)),$AW$3:$AW7,0),4),0))))) ->  | BE8: =IF(INDIRECT("'"&$BM8&"'!"&"BD15")>0,INDIRECT("'"&$BM8&"'!"&"BD15"),IF(SUM($AV$3:$AV7,$AW$3:$AW7)=0,$C$40,IF($AV8=$AV7,BE7,IF(MATCH(AV8,$AV$3:$AV7,0)=1,INDEX($BA$3:$BE7,MATCH(MAX(IF($AV$3:$AV7=AV8,$AW$3:$AW7)),$AW$3:$AW7,0),5),IF(MATCH(AV8,$AW$3:$AW7,0)=1,INDEX($BF$3:$BG7,MATCH(MAX(IF($AW$3:$AW7=AV8,$AW$3:$AW7)),$AW$3:$AW7,0),5),0))))) ->  | BF8: =IF(INDIRECT("'"&$BM8&"'!"&"BE$15")>0,INDIRECT("'"&$BM8&"'!"&"BE$15"),IF(SUM($AV$3:$AV7,$AW$3:$AW7)=0,$C$36,IF($AW8=$AV8,0,IF($AW7=$AW8,BF7,IF(MATCH($AW8,$AW$3:$AW7,0)=1,INDEX($BF$3:$BJ7,MATCH(MAX(IF($AW$3:$AW7=$AW8,$AW$3:$AW7)),$AW$3:$AW7,0),1),IF(MATCH($AW8,$AV$3:$AV6,0)=1,INDEX($BA$3:$BE7,MATCH(MAX(IF($AV$3:$AV7=$AW8,$AV$3:$AV7)),$AV$3:$AV7,0),1),0)))))) ->  | BG8: =IF(INDIRECT("'"&$BM8&"'!"&"BF$15")>0,INDIRECT("'"&$BM8&"'!"&"BF$15"),IF(SUM($AV$3:$AV7,$AW$3:$AW7)=0,$C$37,IF($AW8=$AV8,0,IF($AW7=$AW8,BG7,IF(MATCH($AW8,$AW$3:$AW7,0)=1,INDEX($BF$3:$BJ7,MATCH(MAX(IF($AW$3:$AW7=$AW8,$AW$3:$AW7)),$AW$3:$AW7,0),2),IF(MATCH($AW8,$AV$3:$AV6,0)=1,INDEX($BA$3:$BE7,MATCH(MAX(IF($AV$3:$AV7=$AW8,$AV$3:$AV7)),$AV$3:$AV7,0),2),0)))))) ->  | BH8: =IF(INDIRECT("'"&$BM8&"'!"&"BG$15")>0,INDIRECT("'"&$BM8&"'!"&"BG$15"),IF(SUM($AV$3:$AV7,$AW$3:$AW7)=0,$C$38,IF($AW8=$AV8,0,IF($AW7=$AW8,BH7,IF(MATCH($AW8,$AW$3:$AW7,0)=1,INDEX($BF$3:$BJ7,MATCH(MAX(IF($AW$3:$AW7=$AW8,$AW$3:$AW7)),$AW$3:$AW7,0),3),IF(MATCH($AW8,$AV$3:$AV6,0)=1,INDEX($BA$3:$BE7,MATCH(MAX(IF($AV$3:$AV7=$AW8,$AV$3:$AV7)),$AV$3:$AV7,0),3),0)))))) ->  | BI8: =IF(INDIRECT("'"&$BM8&"'!"&"BH$15")>0,INDIRECT("'"&$BM8&"'!"&"BH$15"),IF(SUM($AV$3:$AV7,$AW$3:$AW7)=0,$C$39,IF($AW8=$AV8,0,IF($AW7=$AW8,BI7,IF(MATCH($AW8,$AW$3:$AW7,0)=1,INDEX($BF$3:$BJ7,MATCH(MAX(IF($AW$3:$AW7=$AW8,$AW$3:$AW7)),$AW$3:$AW7,0),4),IF(MATCH($AW8,$AV$3:$AV6,0)=1,INDEX($BA$3:$BE7,MATCH(MAX(IF($AV$3:$AV7=$AW8,$AV$3:$AV7)),$AV$3:$AV7,0),4),0)))))) ->  | BJ8: =IF(INDIRECT("'"&$BM8&"'!"&"BI$15")>0,INDIRECT("'"&$BM8&"'!"&"BI$15"),IF(SUM($AV$3:$AV7,$AW$3:$AW7)=0,$C$40,IF($AW8=$AV8,0,IF($AW7=$AW8,BJ7,IF(MATCH($AW8,$AW$3:$AW7,0)=1,INDEX($BF$3:$BJ7,MATCH(MAX(IF($AW$3:$AW7=$AW8,$AW$3:$AW7)),$AW$3:$AW7,0),5),IF(MATCH($AW8,$AV$3:$AV6,0)=1,INDEX($BA$3:$BE7,MATCH(MAX(IF($AV$3:$AV7=$AW8,$AV$3:$AV7)),$AV$3:$AV7,0),5),0)))))) ->  | BN8: Refugees
A9: Änderungen | D9: Struktureinheit | F9: Stunden | G9: Monate | Q9: 6 | R9: 2 | S9: 3 | T9: 4 | U9: 5 | V9: 6 | W9: 7 | X9: 8 | Y9: 9 | Z9: 10 | AA9: 11 | AB9: 12 | AC9: 13 | AD9: 14 | AE9: 15 | AF9: 16 | AG9: 17 | AH9: 18 | AI9: 19 | AJ9: 20 | AK9: 21 | AL9: 22 | AM9: 23 | AN9: 24 | AO9: 3 | AP9: =IF(AND($K$14<=AO9,$K$15>=AO9),$F$14,IF(AND($K$12<=AO9,$K$13>=AO9),$F$12,IF(AND($K$10<=AO9,$K$11>=AO9),$F$10,IF(AND($K$7<=AO9,$K$8>=AO9),$F$4,0)))) -> 0 | AQ9: 0 | AR9: 6 | AS9: 0 | AU9: 7 | AV9: 0 | AW9: 0 | AY9: =IF(AND(AV9=AV8,BA9=BA8,BB9=BB8,BC9=BC8,BD9=BD8,BE9=BE8),AY8,IF(AND(AV9=AV7,SUM(BA9:BE9)=0,SUM(BA7:BE7)>0),AY7,IF(AND(AV9=AV6,SUM(BA9:BE9)=0,SUM(BA6:BE6)>0),AY6,IF(AND(AV9=AV5,SUM(BA9:BE9)=0,SUM(BA5:BE5)>0),AY5,IF(AND(AV9=AV4,SUM(BA9:BE9)=0,SUM(BA4:BE4)>0),AY4,IF(AND(AV9=AV3,SUM(BA9:BE9)=0,SUM(BA3:BE3)>0),AY3,AY8+1)))))) ->  | BA9: =IF(INDIRECT("'"&$BM9&"'!"&"AZ15")>0,INDIRECT("'"&$BM9&"'!"&"AZ15"),IF(SUM($AV$3:$AV8,$AW$3:$AW8)=0,$C$36,IF($AV9=$AV8,BA8,IF(MATCH(AV9,$AV$3:$AV8,0)=1,INDEX($BA$3:$BE8,MATCH(MAX(IF($AV$3:$AV8=AV9,$AW$3:$AW8)),$AW$3:$AW8,0),1),IF(MATCH(AV9,$AW$3:$AW8,0)=1,INDEX($BF$3:$BJ8,MATCH(MAX(IF($AW$3:$AW8=$AV9,$AW$3:$AW8)),$AW$3:$AW8,0),1),0))))) ->  | BB9: =IF(INDIRECT("'"&$BM9&"'!"&"BA15")>0,INDIRECT("'"&$BM9&"'!"&"BA15"),IF(SUM($AV$3:$AV8,$AW$3:$AW8)=0,$C$37,IF($AV9=$AV8,BB8,IF(MATCH(AV9,$AV$3:$AV8,0)=1,INDEX($BA$3:$BE8,MATCH(MAX(IF($AV$3:$AV8=AV9,$AW$3:$AW8)),$AW$3:$AW8,0),2),IF(MATCH(AV9,$AW$3:$AW8,0)=1,INDEX($BF$3:$BJ8,MATCH(MAX(IF($AW$3:$AW8=AV9,$AW$3:$AW8)),$AW$3:$AW8,0),2),0))))) ->  | BC9: =IF(INDIRECT("'"&$BM9&"'!"&"BB15")>0,INDIRECT("'"&$BM9&"'!"&"BB15"),IF(SUM($AV$3:$AV8,$AW$3:$AW8)=0,$C$38,IF($AV9=$AV8,BC8,IF(MATCH(AV9,$AV$3:$AV8,0)=1,INDEX($BA$3:$BE8,MATCH(MAX(IF($AV$3:$AV8=AV9,$AW$3:$AW8)),$AW$3:$AW8,0),3),IF(MATCH(AV9,$AW$3:$AW8,0)=1,INDEX($BF$3:$BJ8,MATCH(MAX(IF($AW$3:$AW8=AV9,$AW$3:$AW8)),$AW$3:$AW8,0),3),0))))) ->  | BD9: =IF(INDIRECT("'"&$BM9&"'!"&"BC15")>0,INDIRECT("'"&$BM9&"'!"&"BC15"),IF(SUM($AV$3:$AV8,$AW$3:$AW8)=0,$C$39,IF($AV9=$AV8,BD8,IF(MATCH(AV9,$AV$3:$AV8,0)=1,INDEX($BA$3:$BE8,MATCH(MAX(IF($AV$3:$AV8=AV9,$AW$3:$AW8)),$AW$3:$AW8,0),4),IF(MATCH(AV9,$AW$3:$AW8,0)=1,INDEX($BF$3:$BJ8,MATCH(MAX(IF($AW$3:$AW8=AV9,$AW$3:$AW8)),$AW$3:$AW8,0),4),0))))) ->  | BE9: =IF(INDIRECT("'"&$BM9&"'!"&"BD15")>0,INDIRECT("'"&$BM9&"'!"&"BD15"),IF(SUM($AV$3:$AV8,$AW$3:$AW8)=0,$C$40,IF($AV9=$AV8,BE8,IF(MATCH(AV9,$AV$3:$AV8,0)=1,INDEX($BA$3:$BE8,MATCH(MAX(IF($AV$3:$AV8=AV9,$AW$3:$AW8)),$AW$3:$AW8,0),5),IF(MATCH(AV9,$AW$3:$AW8,0)=1,INDEX($BF$3:$BG8,MATCH(MAX(IF($AW$3:$AW8=AV9,$AW$3:$AW8)),$AW$3:$AW8,0),5),0))))) ->  | BF9: =IF(INDIRECT("'"&$BM9&"'!"&"BE$15")>0,INDIRECT("'"&$BM9&"'!"&"BE$15"),IF(SUM($AV$3:$AV8,$AW$3:$AW8)=0,$C$36,IF($AW9=$AV9,0,IF($AW8=$AW9,BF8,IF(MATCH($AW9,$AW$3:$AW8,0)=1,INDEX($BF$3:$BJ8,MATCH(MAX(IF($AW$3:$AW8=$AW9,$AW$3:$AW8)),$AW$3:$AW8,0),1),IF(MATCH($AW9,$AV$3:$AV7,0)=1,INDEX($BA$3:$BE8,MATCH(MAX(IF($AV$3:$AV8=$AW9,$AV$3:$AV8)),$AV$3:$AV8,0),1),0)))))) ->  | BG9: =IF(INDIRECT("'"&$BM9&"'!"&"BF$15")>0,INDIRECT("'"&$BM9&"'!"&"BF$15"),IF(SUM($AV$3:$AV8,$AW$3:$AW8)=0,$C$37,IF($AW9=$AV9,0,IF($AW8=$AW9,BG8,IF(MATCH($AW9,$AW$3:$AW8,0)=1,INDEX($BF$3:$BJ8,MATCH(MAX(IF($AW$3:$AW8=$AW9,$AW$3:$AW8)),$AW$3:$AW8,0),2),IF(MATCH($AW9,$AV$3:$AV7,0)=1,INDEX($BA$3:$BE8,MATCH(MAX(IF($AV$3:$AV8=$AW9,$AV$3:$AV8)),$AV$3:$AV8,0),2),0)))))) ->  | BH9: =IF(INDIRECT("'"&$BM9&"'!"&"BG$15")>0,INDIRECT("'"&$BM9&"'!"&"BG$15"),IF(SUM($AV$3:$AV8,$AW$3:$AW8)=0,$C$38,IF($AW9=$AV9,0,IF($AW8=$AW9,BH8,IF(MATCH($AW9,$AW$3:$AW8,0)=1,INDEX($BF$3:$BJ8,MATCH(MAX(IF($AW$3:$AW8=$AW9,$AW$3:$AW8)),$AW$3:$AW8,0),3),IF(MATCH($AW9,$AV$3:$AV7,0)=1,INDEX($BA$3:$BE8,MATCH(MAX(IF($AV$3:$AV8=$AW9,$AV$3:$AV8)),$AV$3:$AV8,0),3),0)))))) ->  | BI9: =IF(INDIRECT("'"&$BM9&"'!"&"BH$15")>0,INDIRECT("'"&$BM9&"'!"&"BH$15"),IF(SUM($AV$3:$AV8,$AW$3:$AW8)=0,$C$39,IF($AW9=$AV9,0,IF($AW8=$AW9,BI8,IF(MATCH($AW9,$AW$3:$AW8,0)=1,INDEX($BF$3:$BJ8,MATCH(MAX(IF($AW$3:$AW8=$AW9,$AW$3:$AW8)),$AW$3:$AW8,0),4),IF(MATCH($AW9,$AV$3:$AV7,0)=1,INDEX($BA$3:$BE8,MATCH(MAX(IF($AV$3:$AV8=$AW9,$AV$3:$AV8)),$AV$3:$AV8,0),4),0)))))) ->  | BJ9: =IF(INDIRECT("'"&$BM9&"'!"&"BI$15")>0,INDIRECT("'"&$BM9&"'!"&"BI$15"),IF(SUM($AV$3:$AV8,$AW$3:$AW8)=0,$C$40,IF($AW9=$AV9,0,IF($AW8=$AW9,BJ8,IF(MATCH($AW9,$AW$3:$AW8,0)=1,INDEX($BF$3:$BJ8,MATCH(MAX(IF($AW$3:$AW8=$AW9,$AW$3:$AW8)),$AW$3:$AW8,0),5),IF(MATCH($AW9,$AV$3:$AV7,0)=1,INDEX($BA$3:$BE8,MATCH(MAX(IF($AV$3:$AV8=$AW9,$AV$3:$AV8)),$AV$3:$AV8,0),5),0)))))) ->  | BN9: Kursbüro
A10: Beginn: | G10: =IF(C10="","",IF(P10>=17,O10+1,O10+0.5)) ->  | J10: =IF(C10="",0,IF(DAY(C10)>15,1,0.5)) -> 0 | K10: =IF(C10=0,0,IF(DAY(C10)=15,MONTH(C10)+0.5,MONTH(C10))) -> 0 | L10: =IF(J10=0,"",IF(D10="",D4,D10)) ->  | M10: =IF(OR(F11="",J10=""),"",IF(AND(D11="",D5=""),IF(D10="",D4,D10),IF(AND(D5="",D11>0),D11,D5))) ->  | N10: =C11-C10 -> 0 | O10: =DATEDIF(C10,C11,"ym") -> 0 | P10: =DATEDIF(C10,C11,"md") -> 0 | Q10: 7 | R10: 2 | S10: 3.25 | T10: 4.5 | U10: 5.75 | V10: 7 | W10: 8.125 | X10: 9.25 | Y10: 10.375 | Z10: 11.5 | AA10: 12.75 | AB10: 14 | AC10: 15.125 | AD10: 16.25 | AE10: 17.375 | AF10: 18.5 | AG10: 19.75 | AH10: 21 | AI10: 22.125 | AJ10: 23.25 | AK10: 24.375 | AL10: 25.5 | AM10: 26.75 | AN10: 28 | AO10: 3.5 | AP10: 0 | AQ10: 0 | AR10: 7 | AS10: 0 | AU10: 8 | AV10: 0 | AW10: 0 | AY10: =IF(AND(AV10=AV9,BA10=BA9,BB10=BB9,BC10=BC9,BD10=BD9,BE10=BE9),AY9,IF(AND(AV10=AV8,SUM(BA10:BE10)=0,SUM(BA8:BE8)>0),AY8,IF(AND(AV10=AV7,SUM(BA10:BE10)=0,SUM(BA7:BE7)>0),AY7,IF(AND(AV10=AV6,SUM(BA10:BE10)=0,SUM(BA6:BE6)>0),AY6,IF(AND(AV10=AV5,SUM(BA10:BE10)=0,SUM(BA5:BE5)>0),AY5,IF(AND(AV10=AV4,SUM(BA10:BE10)=0,SUM(BA4:BE4)>0),AY4,IF(AND(AV10=AV3,SUM(BA10:BE10)=0,SUM(BA3:BE3)>0),AY3,AY9+1))))))) ->  | BA10: =IF(INDIRECT("'"&$BM10&"'!"&"AZ15")>0,INDIRECT("'"&$BM10&"'!"&"AZ15"),IF(SUM($AV$3:$AV9,$AW$3:$AW9)=0,$C$36,IF($AV10=$AV9,BA9,IF(MATCH(AV10,$AV$3:$AV9,0)=1,INDEX($BA$3:$BE9,MATCH(MAX(IF($AV$3:$AV9=AV10,$AW$3:$AW9)),$AW$3:$AW9,0),1),IF(MATCH(AV10,$AW$3:$AW9,0)=1,INDEX($BF$3:$BJ9,MATCH(MAX(IF($AW$3:$AW9=$AV10,$AW$3:$AW9)),$AW$3:$AW9,0),1),0))))) ->  | BB10: =IF(INDIRECT("'"&$BM10&"'!"&"BA15")>0,INDIRECT("'"&$BM10&"'!"&"BA15"),IF(SUM($AV$3:$AV9,$AW$3:$AW9)=0,$C$37,IF($AV10=$AV9,BB9,IF(MATCH(AV10,$AV$3:$AV9,0)=1,INDEX($BA$3:$BE9,MATCH(MAX(IF($AV$3:$AV9=AV10,$AW$3:$AW9)),$AW$3:$AW9,0),2),IF(MATCH(AV10,$AW$3:$AW9,0)=1,INDEX($BF$3:$BJ9,MATCH(MAX(IF($AW$3:$AW9=AV10,$AW$3:$AW9)),$AW$3:$AW9,0),2),0))))) ->  | BC10: =IF(INDIRECT("'"&$BM10&"'!"&"BB15")>0,INDIRECT("'"&$BM10&"'!"&"BB15"),IF(SUM($AV$3:$AV9,$AW$3:$AW9)=0,$C$38,IF($AV10=$AV9,BC9,IF(MATCH(AV10,$AV$3:$AV9,0)=1,INDEX($BA$3:$BE9,MATCH(MAX(IF($AV$3:$AV9=AV10,$AW$3:$AW9)),$AW$3:$AW9,0),3),IF(MATCH(AV10,$AW$3:$AW9,0)=1,INDEX($BF$3:$BJ9,MATCH(MAX(IF($AW$3:$AW9=AV10,$AW$3:$AW9)),$AW$3:$AW9,0),3),0))))) ->  | BD10: =IF(INDIRECT("'"&$BM10&"'!"&"BC15")>0,INDIRECT("'"&$BM10&"'!"&"BC15"),IF(SUM($AV$3:$AV9,$AW$3:$AW9)=0,$C$39,IF($AV10=$AV9,BD9,IF(MATCH(AV10,$AV$3:$AV9,0)=1,INDEX($BA$3:$BE9,MATCH(MAX(IF($AV$3:$AV9=AV10,$AW$3:$AW9)),$AW$3:$AW9,0),4),IF(MATCH(AV10,$AW$3:$AW9,0)=1,INDEX($BF$3:$BJ9,MATCH(MAX(IF($AW$3:$AW9=AV10,$AW$3:$AW9)),$AW$3:$AW9,0),4),0))))) ->  | BE10: =IF(INDIRECT("'"&$BM10&"'!"&"BD15")>0,INDIRECT("'"&$BM10&"'!"&"BD15"),IF(SUM($AV$3:$AV9,$AW$3:$AW9)=0,$C$40,IF($AV10=$AV9,BE9,IF(MATCH(AV10,$AV$3:$AV9,0)=1,INDEX($BA$3:$BE9,MATCH(MAX(IF($AV$3:$AV9=AV10,$AW$3:$AW9)),$AW$3:$AW9,0),5),IF(MATCH(AV10,$AW$3:$AW9,0)=1,INDEX($BF$3:$BG9,MATCH(MAX(IF($AW$3:$AW9=AV10,$AW$3:$AW9)),$AW$3:$AW9,0),5),0))))) ->  | BF10: =IF(INDIRECT("'"&$BM10&"'!"&"BE$15")>0,INDIRECT("'"&$BM10&"'!"&"BE$15"),IF(SUM($AV$3:$AV9,$AW$3:$AW9)=0,$C$36,IF($AW10=$AV10,0,IF($AW9=$AW10,BF9,IF(MATCH($AW10,$AW$3:$AW9,0)=1,INDEX($BF$3:$BJ9,MATCH(MAX(IF($AW$3:$AW9=$AW10,$AW$3:$AW9)),$AW$3:$AW9,0),1),IF(MATCH($AW10,$AV$3:$AV8,0)=1,INDEX($BA$3:$BE9,MATCH(MAX(IF($AV$3:$AV9=$AW10,$AV$3:$AV9)),$AV$3:$AV9,0),1),0)))))) ->  | BG10: =IF(INDIRECT("'"&$BM10&"'!"&"BF$15")>0,INDIRECT("'"&$BM10&"'!"&"BF$15"),IF(SUM($AV$3:$AV9,$AW$3:$AW9)=0,$C$37,IF($AW10=$AV10,0,IF($AW9=$AW10,BG9,IF(MATCH($AW10,$AW$3:$AW9,0)=1,INDEX($BF$3:$BJ9,MATCH(MAX(IF($AW$3:$AW9=$AW10,$AW$3:$AW9)),$AW$3:$AW9,0),2),IF(MATCH($AW10,$AV$3:$AV8,0)=1,INDEX($BA$3:$BE9,MATCH(MAX(IF($AV$3:$AV9=$AW10,$AV$3:$AV9)),$AV$3:$AV9,0),2),0)))))) ->  | BH10: =IF(INDIRECT("'"&$BM10&"'!"&"BG$15")>0,INDIRECT("'"&$BM10&"'!"&"BG$15"),IF(SUM($AV$3:$AV9,$AW$3:$AW9)=0,$C$38,IF($AW10=$AV10,0,IF($AW9=$AW10,BH9,IF(MATCH($AW10,$AW$3:$AW9,0)=1,INDEX($BF$3:$BJ9,MATCH(MAX(IF($AW$3:$AW9=$AW10,$AW$3:$AW9)),$AW$3:$AW9,0),3),IF(MATCH($AW10,$AV$3:$AV8,0)=1,INDEX($BA$3:$BE9,MATCH(MAX(IF($AV$3:$AV9=$AW10,$AV$3:$AV9)),$AV$3:$AV9,0),3),0)))))) ->  | BI10: =IF(INDIRECT("'"&$BM10&"'!"&"BH$15")>0,INDIRECT("'"&$BM10&"'!"&"BH$15"),IF(SUM($AV$3:$AV9,$AW$3:$AW9)=0,$C$39,IF($AW10=$AV10,0,IF($AW9=$AW10,BI9,IF(MATCH($AW10,$AW$3:$AW9,0)=1,INDEX($BF$3:$BJ9,MATCH(MAX(IF($AW$3:$AW9=$AW10,$AW$3:$AW9)),$AW$3:$AW9,0),4),IF(MATCH($AW10,$AV$3:$AV8,0)=1,INDEX($BA$3:$BE9,MATCH(MAX(IF($AV$3:$AV9=$AW10,$AV$3:$AV9)),$AV$3:$AV9,0),4),0)))))) ->  | BJ10: =IF(INDIRECT("'"&$BM10&"'!"&"BI$15")>0,INDIRECT("'"&$BM10&"'!"&"BI$15"),IF(SUM($AV$3:$AV9,$AW$3:$AW9)=0,$C$40,IF($AW10=$AV10,0,IF($AW9=$AW10,BJ9,IF(MATCH($AW10,$AW$3:$AW9,0)=1,INDEX($BF$3:$BJ9,MATCH(MAX(IF($AW$3:$AW9=$AW10,$AW$3:$AW9)),$AW$3:$AW9,0),5),IF(MATCH($AW10,$AV$3:$AV8,0)=1,INDEX($BA$3:$BE9,MATCH(MAX(IF($AV$3:$AV9=$AW10,$AV$3:$AV9)),$AV$3:$AV9,0),5),0)))))) -> 
A11: Ende: | J11: 0 | K11: =IF(C11=0,0,IF(DAY(C11)=14,MONTH(C11),MONTH(C11)+0.5)) -> 0 | L11: =IF(J11=0,"",L10) ->  | M11: =M10 ->  | Q11: 8 | R11: 2.5 | S11: 3.875 | T11: 5.25 | U11: 6.625 | V11: 8 | W11: 9.25 | X11: 10.5 | Y11: 11.875 | Z11: 13.25 | AA11: 14.625 | AB11: 16 | AC11: 17.25 | AD11: 18.5 | AE11: 19.875 | AF11: 21.25 | AG11: 22.625 | AH11: 24 | AI11: 25.25 | AJ11: 26.5 | AK11: 27.875 | AL11: 29.25 | AM11: 30.625 | AN11: 32 | AO11: 4 | AP11: 0 | AQ11: 0 | AR11: 8 | AS11: 0 | AU11: 9 | AV11: 0 | AW11: 0 | AY11: =IF(AND(AV11=AV10,BA11=BA10,BB11=BB10,BC11=BC10,BD11=BD10,BE11=BE10),AY10,IF(AND(AV11=AV9,SUM(BA11:BE11)=0,SUM(BA9:BE9)>0),AY9,IF(AND(AV11=AV8,SUM(BA11:BE11)=0,SUM(BA8:BE8)>0),AY8,IF(AND(AV11=AV7,SUM(BA11:BE11)=0,SUM(BA7:BE7)>0),AY7,IF(AND(AV11=AV6,SUM(BA11:BE11)=0,SUM(BA6:BE6)>0),AY6,IF(AND(AV11=AV5,SUM(BA11:BE11)=0,SUM(BA5:BE5)>0),AY5,IF(AND(AV11=AV4,SUM(BA11:BE11)=0,SUM(BA4:BE4)>0),AY4,IF(AND(AV11=AV3,SUM(BA11:BE11)=0,SUM(BA3:BE3)>0),AY3,AY10+1)))))))) ->  | BA11: =IF(INDIRECT("'"&$BM11&"'!"&"AZ15")>0,INDIRECT("'"&$BM11&"'!"&"AZ15"),IF(SUM($AV$3:$AV10,$AW$3:$AW10)=0,$C$36,IF($AV11=$AV10,BA10,IF(MATCH(AV11,$AV$3:$AV10,0)=1,INDEX($BA$3:$BE10,MATCH(MAX(IF($AV$3:$AV10=AV11,$AW$3:$AW10)),$AW$3:$AW10,0),1),IF(MATCH(AV11,$AW$3:$AW10,0)=1,INDEX($BF$3:$BJ10,MATCH(MAX(IF($AW$3:$AW10=$AV11,$AW$3:$AW10)),$AW$3:$AW10,0),1),0))))) ->  | BB11: =IF(INDIRECT("'"&$BM11&"'!"&"BA15")>0,INDIRECT("'"&$BM11&"'!"&"BA15"),IF(SUM($AV$3:$AV10,$AW$3:$AW10)=0,$C$37,IF($AV11=$AV10,BB10,IF(MATCH(AV11,$AV$3:$AV10,0)=1,INDEX($BA$3:$BE10,MATCH(MAX(IF($AV$3:$AV10=AV11,$AW$3:$AW10)),$AW$3:$AW10,0),2),IF(MATCH(AV11,$AW$3:$AW10,0)=1,INDEX($BF$3:$BJ10,MATCH(MAX(IF($AW$3:$AW10=AV11,$AW$3:$AW10)),$AW$3:$AW10,0),2),0))))) ->  | BC11: =IF(INDIRECT("'"&$BM11&"'!"&"BB15")>0,INDIRECT("'"&$BM11&"'!"&"BB15"),IF(SUM($AV$3:$AV10,$AW$3:$AW10)=0,$C$38,IF($AV11=$AV10,BC10,IF(MATCH(AV11,$AV$3:$AV10,0)=1,INDEX($BA$3:$BE10,MATCH(MAX(IF($AV$3:$AV10=AV11,$AW$3:$AW10)),$AW$3:$AW10,0),3),IF(MATCH(AV11,$AW$3:$AW10,0)=1,INDEX($BF$3:$BJ10,MATCH(MAX(IF($AW$3:$AW10=AV11,$AW$3:$AW10)),$AW$3:$AW10,0),3),0))))) ->  | BD11: =IF(INDIRECT("'"&$BM11&"'!"&"BC15")>0,INDIRECT("'"&$BM11&"'!"&"BC15"),IF(SUM($AV$3:$AV10,$AW$3:$AW10)=0,$C$39,IF($AV11=$AV10,BD10,IF(MATCH(AV11,$AV$3:$AV10,0)=1,INDEX($BA$3:$BE10,MATCH(MAX(IF($AV$3:$AV10=AV11,$AW$3:$AW10)),$AW$3:$AW10,0),4),IF(MATCH(AV11,$AW$3:$AW10,0)=1,INDEX($BF$3:$BJ10,MATCH(MAX(IF($AW$3:$AW10=AV11,$AW$3:$AW10)),$AW$3:$AW10,0),4),0))))) ->  | BE11: =IF(INDIRECT("'"&$BM11&"'!"&"BD15")>0,INDIRECT("'"&$BM11&"'!"&"BD15"),IF(SUM($AV$3:$AV10,$AW$3:$AW10)=0,$C$40,IF($AV11=$AV10,BE10,IF(MATCH(AV11,$AV$3:$AV10,0)=1,INDEX($BA$3:$BE10,MATCH(MAX(IF($AV$3:$AV10=AV11,$AW$3:$AW10)),$AW$3:$AW10,0),5),IF(MATCH(AV11,$AW$3:$AW10,0)=1,INDEX($BF$3:$BG10,MATCH(MAX(IF($AW$3:$AW10=AV11,$AW$3:$AW10)),$AW$3:$AW10,0),5),0))))) ->  | BF11: =IF(INDIRECT("'"&$BM11&"'!"&"BE$15")>0,INDIRECT("'"&$BM11&"'!"&"BE$15"),IF(SUM($AV$3:$AV10,$AW$3:$AW10)=0,$C$36,IF($AW11=$AV11,0,IF($AW10=$AW11,BF10,IF(MATCH($AW11,$AW$3:$AW10,0)=1,INDEX($BF$3:$BJ10,MATCH(MAX(IF($AW$3:$AW10=$AW11,$AW$3:$AW10)),$AW$3:$AW10,0),1),IF(MATCH($AW11,$AV$3:$AV9,0)=1,INDEX($BA$3:$BE10,MATCH(MAX(IF($AV$3:$AV10=$AW11,$AV$3:$AV10)),$AV$3:$AV10,0),1),0)))))) ->  | BG11: =IF(INDIRECT("'"&$BM11&"'!"&"BF$15")>0,INDIRECT("'"&$BM11&"'!"&"BF$15"),IF(SUM($AV$3:$AV10,$AW$3:$AW10)=0,$C$37,IF($AW11=$AV11,0,IF($AW10=$AW11,BG10,IF(MATCH($AW11,$AW$3:$AW10,0)=1,INDEX($BF$3:$BJ10,MATCH(MAX(IF($AW$3:$AW10=$AW11,$AW$3:$AW10)),$AW$3:$AW10,0),2),IF(MATCH($AW11,$AV$3:$AV9,0)=1,INDEX($BA$3:$BE10,MATCH(MAX(IF($AV$3:$AV10=$AW11,$AV$3:$AV10)),$AV$3:$AV10,0),2),0)))))) ->  | BH11: =IF(INDIRECT("'"&$BM11&"'!"&"BG$15")>0,INDIRECT("'"&$BM11&"'!"&"BG$15"),IF(SUM($AV$3:$AV10,$AW$3:$AW10)=0,$C$38,IF($AW11=$AV11,0,IF($AW10=$AW11,BH10,IF(MATCH($AW11,$AW$3:$AW10,0)=1,INDEX($BF$3:$BJ10,MATCH(MAX(IF($AW$3:$AW10=$AW11,$AW$3:$AW10)),$AW$3:$AW10,0),3),IF(MATCH($AW11,$AV$3:$AV9,0)=1,INDEX($BA$3:$BE10,MATCH(MAX(IF($AV$3:$AV10=$AW11,$AV$3:$AV10)),$AV$3:$AV10,0),3),0)))))) ->  | BI11: =IF(INDIRECT("'"&$BM11&"'!"&"BH$15")>0,INDIRECT("'"&$BM11&"'!"&"BH$15"),IF(SUM($AV$3:$AV10,$AW$3:$AW10)=0,$C$39,IF($AW11=$AV11,0,IF($AW10=$AW11,BI10,IF(MATCH($AW11,$AW$3:$AW10,0)=1,INDEX($BF$3:$BJ10,MATCH(MAX(IF($AW$3:$AW10=$AW11,$AW$3:$AW10)),$AW$3:$AW10,0),4),IF(MATCH($AW11,$AV$3:$AV9,0)=1,INDEX($BA$3:$BE10,MATCH(MAX(IF($AV$3:$AV10=$AW11,$AV$3:$AV10)),$AV$3:$AV10,0),4),0)))))) ->  | BJ11: =IF(INDIRECT("'"&$BM11&"'!"&"BI$15")>0,INDIRECT("'"&$BM11&"'!"&"BI$15"),IF(SUM($AV$3:$AV10,$AW$3:$AW10)=0,$C$40,IF($AW11=$AV11,0,IF($AW10=$AW11,BJ10,IF(MATCH($AW11,$AW$3:$AW10,0)=1,INDEX($BF$3:$BJ10,MATCH(MAX(IF($AW$3:$AW10=$AW11,$AW$3:$AW10)),$AW$3:$AW10,0),5),IF(MATCH($AW11,$AV$3:$AV9,0)=1,INDEX($BA$3:$BE10,MATCH(MAX(IF($AV$3:$AV10=$AW11,$AV$3:$AV10)),$AV$3:$AV10,0),5),0)))))) -> 
A12: Beginn: | J12: 0 | K12: =IF(C12=0,0,IF(DAY(C12)=15,MONTH(C12)+0.5,MONTH(C12))) -> 0 | L12: =IF(J12=0,"",IF(AND(D12="",D10=""),D4,IF(AND(D12="",D10>0),D10,D12))) ->  | M12: =IF(OR(F13="",J12=""),"",IF(AND(D13="",D11="",D5=""),D4,IF(AND(D13="",D11="",D5>0),D5,IF(AND(D5="",D11>0,D13=""),D11,D13)))) ->  | N12: =C13-C12 -> 0 | O12: =DATEDIF(C12,C13,"ym") -> 0 | P12: =DATEDIF(C12,C13,"md") -> 0 | Q12: 9 | R12: 3 | S12: 4.5 | T12: 6 | U12: 7.5 | V12: 9 | W12: 10.5 | X12: 12 | Y12: 13.5 | Z12: 15 | AA12: 16.5 | AB12: 18 | AC12: 19.5 | AD12: 21 | AE12: 22.5 | AF12: 24 | AG12: 25.5 | AH12: 27 | AI12: 28.5 | AJ12: 30 | AK12: 31.5 | AL12: 33 | AM12: 34.5 | AN12: 36 | AO12: 4.5 | AP12: 0 | AQ12: 0 | AR12: 9 | AS12: 0 | AU12: 10 | AV12: 0 | AW12: 0 | AY12: =IF(AND(AV12=AV11,BA12=BA11,BB12=BB11,BC12=BC11,BD12=BD11,BE12=BE11),AY11,IF(AND(AV12=AV10,SUM(BA12:BE12)=0,SUM(BA10:BE10)>0),AY10,IF(AND(AV12=AV9,SUM(BA12:BE12)=0,SUM(BA9:BE9)>0),AY9,IF(AND(AV12=AV8,SUM(BA12:BE12)=0,SUM(BA8:BE8)>0),AY8,IF(AND(AV12=AV7,SUM(BA12:BE12)=0,SUM(BA7:BE7)>0),AY7,IF(AND(AV12=AV6,SUM(BA12:BE12)=0,SUM(BA6:BE6)>0),AY6,IF(AND(AV12=AV5,SUM(BA12:BE12)=0,SUM(BA5:BE5)>0),AY5,IF(AND(AV12=AV4,SUM(BA12:BE12)=0,SUM(BA4:BE4)>0),AY4,IF(AND(AV12=AV3,SUM(BA12:BE12)=0,SUM(BA3:BE3)>0),AY3,AY11+1))))))))) ->  | BA12: =IF(INDIRECT("'"&$BM12&"'!"&"AZ15")>0,INDIRECT("'"&$BM12&"'!"&"AZ15"),IF(SUM($AV$3:$AV11,$AW$3:$AW11)=0,$C$36,IF($AV12=$AV11,BA11,IF(MATCH(AV12,$AV$3:$AV11,0)=1,INDEX($BA$3:$BE11,MATCH(MAX(IF($AV$3:$AV11=AV12,$AW$3:$AW11)),$AW$3:$AW11,0),1),IF(MATCH(AV12,$AW$3:$AW11,0)=1,INDEX($BF$3:$BJ11,MATCH(MAX(IF($AW$3:$AW11=$AV12,$AW$3:$AW11)),$AW$3:$AW11,0),1),0))))) ->  | BB12: =IF(INDIRECT("'"&$BM12&"'!"&"BA15")>0,INDIRECT("'"&$BM12&"'!"&"BA15"),IF(SUM($AV$3:$AV11,$AW$3:$AW11)=0,$C$37,IF($AV12=$AV11,BB11,IF(MATCH(AV12,$AV$3:$AV11,0)=1,INDEX($BA$3:$BE11,MATCH(MAX(IF($AV$3:$AV11=AV12,$AW$3:$AW11)),$AW$3:$AW11,0),2),IF(MATCH(AV12,$AW$3:$AW11,0)=1,INDEX($BF$3:$BJ11,MATCH(MAX(IF($AW$3:$AW11=AV12,$AW$3:$AW11)),$AW$3:$AW11,0),2),0))))) ->  | BC12: =IF(INDIRECT("'"&$BM12&"'!"&"BB15")>0,INDIRECT("'"&$BM12&"'!"&"BB15"),IF(SUM($AV$3:$AV11,$AW$3:$AW11)=0,$C$38,IF($AV12=$AV11,BC11,IF(MATCH(AV12,$AV$3:$AV11,0)=1,INDEX($BA$3:$BE11,MATCH(MAX(IF($AV$3:$AV11=AV12,$AW$3:$AW11)),$AW$3:$AW11,0),3),IF(MATCH(AV12,$AW$3:$AW11,0)=1,INDEX($BF$3:$BJ11,MATCH(MAX(IF($AW$3:$AW11=AV12,$AW$3:$AW11)),$AW$3:$AW11,0),3),0))))) ->  | BD12: =IF(INDIRECT("'"&$BM12&"'!"&"BC15")>0,INDIRECT("'"&$BM12&"'!"&"BC15"),IF(SUM($AV$3:$AV11,$AW$3:$AW11)=0,$C$39,IF($AV12=$AV11,BD11,IF(MATCH(AV12,$AV$3:$AV11,0)=1,INDEX($BA$3:$BE11,MATCH(MAX(IF($AV$3:$AV11=AV12,$AW$3:$AW11)),$AW$3:$AW11,0),4),IF(MATCH(AV12,$AW$3:$AW11,0)=1,INDEX($BF$3:$BJ11,MATCH(MAX(IF($AW$3:$AW11=AV12,$AW$3:$AW11)),$AW$3:$AW11,0),4),0))))) ->  | BE12: =IF(INDIRECT("'"&$BM12&"'!"&"BD15")>0,INDIRECT("'"&$BM12&"'!"&"BD15"),IF(SUM($AV$3:$AV11,$AW$3:$AW11)=0,$C$40,IF($AV12=$AV11,BE11,IF(MATCH(AV12,$AV$3:$AV11,0)=1,INDEX($BA$3:$BE11,MATCH(MAX(IF($AV$3:$AV11=AV12,$AW$3:$AW11)),$AW$3:$AW11,0),5),IF(MATCH(AV12,$AW$3:$AW11,0)=1,INDEX($BF$3:$BG11,MATCH(MAX(IF($AW$3:$AW11=AV12,$AW$3:$AW11)),$AW$3:$AW11,0),5),0))))) ->  | BF12: =IF(INDIRECT("'"&$BM12&"'!"&"BE$15")>0,INDIRECT("'"&$BM12&"'!"&"BE$15"),IF(SUM($AV$3:$AV11,$AW$3:$AW11)=0,$C$36,IF($AW12=$AV12,0,IF($AW11=$AW12,BF11,IF(MATCH($AW12,$AW$3:$AW11,0)=1,INDEX($BF$3:$BJ11,MATCH(MAX(IF($AW$3:$AW11=$AW12,$AW$3:$AW11)),$AW$3:$AW11,0),1),IF(MATCH($AW12,$AV$3:$AV10,0)=1,INDEX($BA$3:$BE11,MATCH(MAX(IF($AV$3:$AV11=$AW12,$AV$3:$AV11)),$AV$3:$AV11,0),1),0)))))) ->  | BG12: =IF(INDIRECT("'"&$BM12&"'!"&"BF$15")>0,INDIRECT("'"&$BM12&"'!"&"BF$15"),IF(SUM($AV$3:$AV11,$AW$3:$AW11)=0,$C$37,IF($AW12=$AV12,0,IF($AW11=$AW12,BG11,IF(MATCH($AW12,$AW$3:$AW11,0)=1,INDEX($BF$3:$BJ11,MATCH(MAX(IF($AW$3:$AW11=$AW12,$AW$3:$AW11)),$AW$3:$AW11,0),2),IF(MATCH($AW12,$AV$3:$AV10,0)=1,INDEX($BA$3:$BE11,MATCH(MAX(IF($AV$3:$AV11=$AW12,$AV$3:$AV11)),$AV$3:$AV11,0),2),0)))))) ->  | BH12: =IF(INDIRECT("'"&$BM12&"'!"&"BG$15")>0,INDIRECT("'"&$BM12&"'!"&"BG$15"),IF(SUM($AV$3:$AV11,$AW$3:$AW11)=0,$C$38,IF($AW12=$AV12,0,IF($AW11=$AW12,BH11,IF(MATCH($AW12,$AW$3:$AW11,0)=1,INDEX($BF$3:$BJ11,MATCH(MAX(IF($AW$3:$AW11=$AW12,$AW$3:$AW11)),$AW$3:$AW11,0),3),IF(MATCH($AW12,$AV$3:$AV10,0)=1,INDEX($BA$3:$BE11,MATCH(MAX(IF($AV$3:$AV11=$AW12,$AV$3:$AV11)),$AV$3:$AV11,0),3),0)))))) ->  | BI12: =IF(INDIRECT("'"&$BM12&"'!"&"BH$15")>0,INDIRECT("'"&$BM12&"'!"&"BH$15"),IF(SUM($AV$3:$AV11,$AW$3:$AW11)=0,$C$39,IF($AW12=$AV12,0,IF($AW11=$AW12,BI11,IF(MATCH($AW12,$AW$3:$AW11,0)=1,INDEX($BF$3:$BJ11,MATCH(MAX(IF($AW$3:$AW11=$AW12,$AW$3:$AW11)),$AW$3:$AW11,0),4),IF(MATCH($AW12,$AV$3:$AV10,0)=1,INDEX($BA$3:$BE11,MATCH(MAX(IF($AV$3:$AV11=$AW12,$AV$3:$AV11)),$AV$3:$AV11,0),4),0)))))) ->  | BJ12: =IF(INDIRECT("'"&$BM12&"'!"&"BI$15")>0,INDIRECT("'"&$BM12&"'!"&"BI$15"),IF(SUM($AV$3:$AV11,$AW$3:$AW11)=0,$C$40,IF($AW12=$AV12,0,IF($AW11=$AW12,BJ11,IF(MATCH($AW12,$AW$3:$AW11,0)=1,INDEX($BF$3:$BJ11,MATCH(MAX(IF($AW$3:$AW11=$AW12,$AW$3:$AW11)),$AW$3:$AW11,0),5),IF(MATCH($AW12,$AV$3:$AV10,0)=1,INDEX($BA$3:$BE11,MATCH(MAX(IF($AV$3:$AV11=$AW12,$AV$3:$AV11)),$AV$3:$AV11,0),5),0)))))) -> 
A13: Ende: | J13: =IF(C13="",0,IF(DAY(C13)>15,1,0.5)) -> 0 | K13: =IF(C13=0,0,IF(DAY(C13)=14,MONTH(C13),MONTH(C13)+0.5)) -> 0 | L13: =IF(J13=0,"",L12) ->  | M13: =M12 ->  | Q13: 10 | R13: 3.25 | S13: 4.875 | T13: 6.5 | U13: 8.25 | V13: 10 | W13: 11.625 | X13: 13.25 | Y13: 14.875 | Z13: 16.5 | AA13: 18.25 | AB13: 20 | AC13: 21.625 | AD13: 23.25 | AE13: 24.875 | AF13: 26.5 | AG13: 28.25 | AH13: 30 | AI13: 31.625 | AJ13: 33.25 | AK13: 34.875 | AL13: 36.5 | AM13: 38.25 | AN13: 40 | AO13: 5 | AP13: 0 | AQ13: 0 | AR13: 10 | AS13: 0 | AU13: 11 | AV13: 0 | AW13: 0 | AY13: =IF(AND(AV13=AV12,BA13=BA12,BB13=BB12,BC13=BC12,BD13=BD12,BE13=BE12),AY12,IF(AND(AV13=AV11,SUM(BA13:BE13)=0,SUM(BA11:BE11)>0),AY11,IF(AND(AV13=AV10,SUM(BA13:BE13)=0,SUM(BA10:BE10)>0),AY10,IF(AND(AV13=AV9,SUM(BA13:BE13)=0,SUM(BA9:BE9)>0),AY9,IF(AND(AV13=AV8,SUM(BA13:BE13)=0,SUM(BA8:BE8)>0),AY8,IF(AND(AV13=AV7,SUM(BA13:BE13)=0,SUM(BA7:BE7)>0),AY7,IF(AND(AV13=AV6,SUM(BA13:BE13)=0,SUM(BA6:BE6)>0),AY6,IF(AND(AV13=AV5,SUM(BA13:BE13)=0,SUM(BA5:BE5)>0),AY5,IF(AND(AV13=AV4,SUM(BA13:BE13)=0,SUM(BA4:BE4)>0),AY4,IF(AND(AV13=AV3,SUM(BA13:BE13)=0,SUM(BA3:BE3)>0),AY3,AY12+1)))))))))) ->  | BA13: =IF(INDIRECT("'"&$BM13&"'!"&"AZ15")>0,INDIRECT("'"&$BM13&"'!"&"AZ15"),IF(SUM($AV$3:$AV12,$AW$3:$AW12)=0,$C$36,IF($AV13=$AV12,BA12,IF(MATCH(AV13,$AV$3:$AV12,0)=1,INDEX($BA$3:$BE12,MATCH(MAX(IF($AV$3:$AV12=AV13,$AW$3:$AW12)),$AW$3:$AW12,0),1),IF(MATCH(AV13,$AW$3:$AW12,0)=1,INDEX($BF$3:$BJ12,MATCH(MAX(IF($AW$3:$AW12=$AV13,$AW$3:$AW12)),$AW$3:$AW12,0),1),0))))) ->  | BB13: =IF(INDIRECT("'"&$BM13&"'!"&"BA15")>0,INDIRECT("'"&$BM13&"'!"&"BA15"),IF(SUM($AV$3:$AV12,$AW$3:$AW12)=0,$C$37,IF($AV13=$AV12,BB12,IF(MATCH(AV13,$AV$3:$AV12,0)=1,INDEX($BA$3:$BE12,MATCH(MAX(IF($AV$3:$AV12=AV13,$AW$3:$AW12)),$AW$3:$AW12,0),2),IF(MATCH(AV13,$AW$3:$AW12,0)=1,INDEX($BF$3:$BJ12,MATCH(MAX(IF($AW$3:$AW12=AV13,$AW$3:$AW12)),$AW$3:$AW12,0),2),0))))) ->  | BC13: =IF(INDIRECT("'"&$BM13&"'!"&"BB15")>0,INDIRECT("'"&$BM13&"'!"&"BB15"),IF(SUM($AV$3:$AV12,$AW$3:$AW12)=0,$C$38,IF($AV13=$AV12,BC12,IF(MATCH(AV13,$AV$3:$AV12,0)=1,INDEX($BA$3:$BE12,MATCH(MAX(IF($AV$3:$AV12=AV13,$AW$3:$AW12)),$AW$3:$AW12,0),3),IF(MATCH(AV13,$AW$3:$AW12,0)=1,INDEX($BF$3:$BJ12,MATCH(MAX(IF($AW$3:$AW12=AV13,$AW$3:$AW12)),$AW$3:$AW12,0),3),0))))) ->  | BD13: =IF(INDIRECT("'"&$BM13&"'!"&"BC15")>0,INDIRECT("'"&$BM13&"'!"&"BC15"),IF(SUM($AV$3:$AV12,$AW$3:$AW12)=0,$C$39,IF($AV13=$AV12,BD12,IF(MATCH(AV13,$AV$3:$AV12,0)=1,INDEX($BA$3:$BE12,MATCH(MAX(IF($AV$3:$AV12=AV13,$AW$3:$AW12)),$AW$3:$AW12,0),4),IF(MATCH(AV13,$AW$3:$AW12,0)=1,INDEX($BF$3:$BJ12,MATCH(MAX(IF($AW$3:$AW12=AV13,$AW$3:$AW12)),$AW$3:$AW12,0),4),0))))) ->  | BE13: =IF(INDIRECT("'"&$BM13&"'!"&"BD15")>0,INDIRECT("'"&$BM13&"'!"&"BD15"),IF(SUM($AV$3:$AV12,$AW$3:$AW12)=0,$C$40,IF($AV13=$AV12,BE12,IF(MATCH(AV13,$AV$3:$AV12,0)=1,INDEX($BA$3:$BE12,MATCH(MAX(IF($AV$3:$AV12=AV13,$AW$3:$AW12)),$AW$3:$AW12,0),5),IF(MATCH(AV13,$AW$3:$AW12,0)=1,INDEX($BF$3:$BG12,MATCH(MAX(IF($AW$3:$AW12=AV13,$AW$3:$AW12)),$AW$3:$AW12,0),5),0))))) ->  | BF13: =IF(INDIRECT("'"&$BM13&"'!"&"BE$15")>0,INDIRECT("'"&$BM13&"'!"&"BE$15"),IF(SUM($AV$3:$AV12,$AW$3:$AW12)=0,$C$36,IF($AW13=$AV13,0,IF($AW12=$AW13,BF12,IF(MATCH($AW13,$AW$3:$AW12,0)=1,INDEX($BF$3:$BJ12,MATCH(MAX(IF($AW$3:$AW12=$AW13,$AW$3:$AW12)),$AW$3:$AW12,0),1),IF(MATCH($AW13,$AV$3:$AV11,0)=1,INDEX($BA$3:$BE12,MATCH(MAX(IF($AV$3:$AV12=$AW13,$AV$3:$AV12)),$AV$3:$AV12,0),1),0)))))) ->  | BG13: =IF(INDIRECT("'"&$BM13&"'!"&"BF$15")>0,INDIRECT("'"&$BM13&"'!"&"BF$15"),IF(SUM($AV$3:$AV12,$AW$3:$AW12)=0,$C$37,IF($AW13=$AV13,0,IF($AW12=$AW13,BG12,IF(MATCH($AW13,$AW$3:$AW12,0)=1,INDEX($BF$3:$BJ12,MATCH(MAX(IF($AW$3:$AW12=$AW13,$AW$3:$AW12)),$AW$3:$AW12,0),2),IF(MATCH($AW13,$AV$3:$AV11,0)=1,INDEX($BA$3:$BE12,MATCH(MAX(IF($AV$3:$AV12=$AW13,$AV$3:$AV12)),$AV$3:$AV12,0),2),0)))))) ->  | BH13: =IF(INDIRECT("'"&$BM13&"'!"&"BG$15")>0,INDIRECT("'"&$BM13&"'!"&"BG$15"),IF(SUM($AV$3:$AV12,$AW$3:$AW12)=0,$C$38,IF($AW13=$AV13,0,IF($AW12=$AW13,BH12,IF(MATCH($AW13,$AW$3:$AW12,0)=1,INDEX($BF$3:$BJ12,MATCH(MAX(IF($AW$3:$AW12=$AW13,$AW$3:$AW12)),$AW$3:$AW12,0),3),IF(MATCH($AW13,$AV$3:$AV11,0)=1,INDEX($BA$3:$BE12,MATCH(MAX(IF($AV$3:$AV12=$AW13,$AV$3:$AV12)),$AV$3:$AV12,0),3),0)))))) ->  | BI13: =IF(INDIRECT("'"&$BM13&"'!"&"BH$15")>0,INDIRECT("'"&$BM13&"'!"&"BH$15"),IF(SUM($AV$3:$AV12,$AW$3:$AW12)=0,$C$39,IF($AW13=$AV13,0,IF($AW12=$AW13,BI12,IF(MATCH($AW13,$AW$3:$AW12,0)=1,INDEX($BF$3:$BJ12,MATCH(MAX(IF($AW$3:$AW12=$AW13,$AW$3:$AW12)),$AW$3:$AW12,0),4),IF(MATCH($AW13,$AV$3:$AV11,0)=1,INDEX($BA$3:$BE12,MATCH(MAX(IF($AV$3:$AV12=$AW13,$AV$3:$AV12)),$AV$3:$AV12,0),4),0)))))) ->  | BJ13: =IF(INDIRECT("'"&$BM13&"'!"&"BI$15")>0,INDIRECT("'"&$BM13&"'!"&"BI$15"),IF(SUM($AV$3:$AV12,$AW$3:$AW12)=0,$C$40,IF($AW13=$AV13,0,IF($AW12=$AW13,BJ12,IF(MATCH($AW13,$AW$3:$AW12,0)=1,INDEX($BF$3:$BJ12,MATCH(MAX(IF($AW$3:$AW12=$AW13,$AW$3:$AW12)),$AW$3:$AW12,0),5),IF(MATCH($AW13,$AV$3:$AV11,0)=1,INDEX($BA$3:$BE12,MATCH(MAX(IF($AV$3:$AV12=$AW13,$AV$3:$AV12)),$AV$3:$AV12,0),5),0)))))) -> 
A14: Beginn: | J14: =IF(C14="",0,IF(DAY(C14)>15,1,0.5)) -> 0 | K14: =IF(C14=0,0,IF(DAY(C14)=15,MONTH(C14)+0.5,MONTH(C14))) -> 0 | L14: =IF(J14=0,"",IF(AND(D14="",D12="",D10=""),D4,IF(AND(D14="",D12="",D10>1),D10,IF(AND(D14="",D12>1),D12,D14)))) ->  | M14: =IF(OR(F13="",J14=""),"",IF(AND(D15="",D13="",D11="",D5=""),D4,IF(AND(D15="",D13="",D11>1),D11,IF(AND(D15="",D13>1),D13,D15)))) ->  | N14: =C15-C14 -> 0 | O14: =DATEDIF(C14,C15,"ym") -> 0 | P14: =DATEDIF(C14,C15,"md") -> 0 | Q14: 11 | R14: 3.5 | S14: 5.375 | T14: 7.25 | U14: 9.125 | V14: 11 | W14: 12.75 | X14: 14.5 | Y14: 16.375 | Z14: 18.25 | AA14: 20.125 | AB14: 22 | AC14: 23.75 | AD14: 25.5 | AE14: 27.375 | AF14: 29.25 | AG14: 31.125 | AH14: 33 | AI14: 34.75 | AJ14: 36.5 | AK14: 38.375 | AL14: 40.25 | AM14: 42.125 | AN14: 44 | AO14: 5.5 | AP14: 0 | AQ14: 0 | AR14: 11 | AS14: 0 | AU14: 12 | AV14: 0 | AW14: 0 | AY14: =IF(AND(AV14=AV13,BA14=BA13,BB14=BB13,BC14=BC13,BD14=BD13,BE14=BE13),AY13,IF(AND(AV14=AV12,SUM(BA14:BE14)=0,SUM(BA12:BE12)>0),AY12,IF(AND(AV14=AV11,SUM(BA14:BE14)=0,SUM(BA11:BE11)>0),AY11,IF(AND(AV14=AV10,SUM(BA14:BE14)=0,SUM(BA10:BE10)>0),AY10,IF(AND(AV14=AV9,SUM(BA14:BE14)=0,SUM(BA9:BE9)>0),AY9,IF(AND(AV14=AV8,SUM(BA14:BE14)=0,SUM(BA8:BE8)>0),AY8,IF(AND(AV14=AV7,SUM(BA14:BE14)=0,SUM(BA7:BE7)>0),AY7,IF(AND(AV14=AV6,SUM(BA14:BE14)=0,SUM(BA6:BE6)>0),AY6,IF(AND(AV14=AV5,SUM(BA14:BE14)=0,SUM(BA5:BE5)>0),AY5,IF(AND(AV14=AV4,SUM(BA14:BE14)=0,SUM(BA4:BE4)>0),AY4,IF(AND(AV14=AV3,SUM(BA14:BE14)=0,SUM(BA3:BE3)>0),AY3,AY13+1))))))))))) ->  | BA14: =IF(INDIRECT("'"&$BM14&"'!"&"AZ15")>0,INDIRECT("'"&$BM14&"'!"&"AZ15"),IF(SUM($AV$3:$AV13,$AW$3:$AW13)=0,$C$36,IF($AV14=$AV13,BA13,IF(MATCH(AV14,$AV$3:$AV13,0)=1,INDEX($BA$3:$BE13,MATCH(MAX(IF($AV$3:$AV13=AV14,$AW$3:$AW13)),$AW$3:$AW13,0),1),IF(MATCH(AV14,$AW$3:$AW13,0)=1,INDEX($BF$3:$BJ13,MATCH(MAX(IF($AW$3:$AW13=$AV14,$AW$3:$AW13)),$AW$3:$AW13,0),1),0))))) ->  | BB14: =IF(INDIRECT("'"&$BM14&"'!"&"BA15")>0,INDIRECT("'"&$BM14&"'!"&"BA15"),IF(SUM($AV$3:$AV13,$AW$3:$AW13)=0,$C$37,IF($AV14=$AV13,BB13,IF(MATCH(AV14,$AV$3:$AV13,0)=1,INDEX($BA$3:$BE13,MATCH(MAX(IF($AV$3:$AV13=AV14,$AW$3:$AW13)),$AW$3:$AW13,0),2),IF(MATCH(AV14,$AW$3:$AW13,0)=1,INDEX($BF$3:$BJ13,MATCH(MAX(IF($AW$3:$AW13=AV14,$AW$3:$AW13)),$AW$3:$AW13,0),2),0))))) ->  | BC14: =IF(INDIRECT("'"&$BM14&"'!"&"BB15")>0,INDIRECT("'"&$BM14&"'!"&"BB15"),IF(SUM($AV$3:$AV13,$AW$3:$AW13)=0,$C$38,IF($AV14=$AV13,BC13,IF(MATCH(AV14,$AV$3:$AV13,0)=1,INDEX($BA$3:$BE13,MATCH(MAX(IF($AV$3:$AV13=AV14,$AW$3:$AW13)),$AW$3:$AW13,0),3),IF(MATCH(AV14,$AW$3:$AW13,0)=1,INDEX($BF$3:$BJ13,MATCH(MAX(IF($AW$3:$AW13=AV14,$AW$3:$AW13)),$AW$3:$AW13,0),3),0))))) ->  | BD14: =IF(INDIRECT("'"&$BM14&"'!"&"BC15")>0,INDIRECT("'"&$BM14&"'!"&"BC15"),IF(SUM($AV$3:$AV13,$AW$3:$AW13)=0,$C$39,IF($AV14=$AV13,BD13,IF(MATCH(AV14,$AV$3:$AV13,0)=1,INDEX($BA$3:$BE13,MATCH(MAX(IF($AV$3:$AV13=AV14,$AW$3:$AW13)),$AW$3:$AW13,0),4),IF(MATCH(AV14,$AW$3:$AW13,0)=1,INDEX($BF$3:$BJ13,MATCH(MAX(IF($AW$3:$AW13=AV14,$AW$3:$AW13)),$AW$3:$AW13,0),4),0))))) ->  | BE14: =IF(INDIRECT("'"&$BM14&"'!"&"BD15")>0,INDIRECT("'"&$BM14&"'!"&"BD15"),IF(SUM($AV$3:$AV13,$AW$3:$AW13)=0,$C$40,IF($AV14=$AV13,BE13,IF(MATCH(AV14,$AV$3:$AV13,0)=1,INDEX($BA$3:$BE13,MATCH(MAX(IF($AV$3:$AV13=AV14,$AW$3:$AW13)),$AW$3:$AW13,0),5),IF(MATCH(AV14,$AW$3:$AW13,0)=1,INDEX($BF$3:$BG13,MATCH(MAX(IF($AW$3:$AW13=AV14,$AW$3:$AW13)),$AW$3:$AW13,0),5),0))))) ->  | BF14: =IF(INDIRECT("'"&$BM14&"'!"&"BE$15")>0,INDIRECT("'"&$BM14&"'!"&"BE$15"),IF(SUM($AV$3:$AV13,$AW$3:$AW13)=0,$C$36,IF($AW14=$AV14,0,IF($AW13=$AW14,BF13,IF(MATCH($AW14,$AW$3:$AW13,0)=1,INDEX($BF$3:$BJ13,MATCH(MAX(IF($AW$3:$AW13=$AW14,$AW$3:$AW13)),$AW$3:$AW13,0),1),IF(MATCH($AW14,$AV$3:$AV12,0)=1,INDEX($BA$3:$BE13,MATCH(MAX(IF($AV$3:$AV13=$AW14,$AV$3:$AV13)),$AV$3:$AV13,0),1),0)))))) ->  | BG14: =IF(INDIRECT("'"&$BM14&"'!"&"BF$15")>0,INDIRECT("'"&$BM14&"'!"&"BF$15"),IF(SUM($AV$3:$AV13,$AW$3:$AW13)=0,$C$37,IF($AW14=$AV14,0,IF($AW13=$AW14,BG13,IF(MATCH($AW14,$AW$3:$AW13,0)=1,INDEX($BF$3:$BJ13,MATCH(MAX(IF($AW$3:$AW13=$AW14,$AW$3:$AW13)),$AW$3:$AW13,0),2),IF(MATCH($AW14,$AV$3:$AV12,0)=1,INDEX($BA$3:$BE13,MATCH(MAX(IF($AV$3:$AV13=$AW14,$AV$3:$AV13)),$AV$3:$AV13,0),2),0)))))) ->  | BH14: =IF(INDIRECT("'"&$BM14&"'!"&"BG$15")>0,INDIRECT("'"&$BM14&"'!"&"BG$15"),IF(SUM($AV$3:$AV13,$AW$3:$AW13)=0,$C$38,IF($AW14=$AV14,0,IF($AW13=$AW14,BH13,IF(MATCH($AW14,$AW$3:$AW13,0)=1,INDEX($BF$3:$BJ13,MATCH(MAX(IF($AW$3:$AW13=$AW14,$AW$3:$AW13)),$AW$3:$AW13,0),3),IF(MATCH($AW14,$AV$3:$AV12,0)=1,INDEX($BA$3:$BE13,MATCH(MAX(IF($AV$3:$AV13=$AW14,$AV$3:$AV13)),$AV$3:$AV13,0),3),0)))))) ->  | BI14: =IF(INDIRECT("'"&$BM14&"'!"&"BH$15")>0,INDIRECT("'"&$BM14&"'!"&"BH$15"),IF(SUM($AV$3:$AV13,$AW$3:$AW13)=0,$C$39,IF($AW14=$AV14,0,IF($AW13=$AW14,BI13,IF(MATCH($AW14,$AW$3:$AW13,0)=1,INDEX($BF$3:$BJ13,MATCH(MAX(IF($AW$3:$AW13=$AW14,$AW$3:$AW13)),$AW$3:$AW13,0),4),IF(MATCH($AW14,$AV$3:$AV12,0)=1,INDEX($BA$3:$BE13,MATCH(MAX(IF($AV$3:$AV13=$AW14,$AV$3:$AV13)),$AV$3:$AV13,0),4),0)))))) ->  | BJ14: =IF(INDIRECT("'"&$BM14&"'!"&"BI$15")>0,INDIRECT("'"&$BM14&"'!"&"BI$15"),IF(SUM($AV$3:$AV13,$AW$3:$AW13)=0,$C$40,IF($AW14=$AV14,0,IF($AW13=$AW14,BJ13,IF(MATCH($AW14,$AW$3:$AW13,0)=1,INDEX($BF$3:$BJ13,MATCH(MAX(IF($AW$3:$AW13=$AW14,$AW$3:$AW13)),$AW$3:$AW13,0),5),IF(MATCH($AW14,$AV$3:$AV12,0)=1,INDEX($BA$3:$BE13,MATCH(MAX(IF($AV$3:$AV13=$AW14,$AV$3:$AV13)),$AV$3:$AV13,0),5),0)))))) -> 
A15: Ende: | J15: 0 | K15: =IF(C15=0,0,IF(DAY(C15)=14,MONTH(C15),MONTH(C15)+0.5)) -> 0 | L15: =L14 ->  | M15: =M14 ->  | Q15: 12 | R15: 4 | S15: 6 | T15: 8 | U15: 10 | V15: 12 | W15: 14 | X15: 16 | Y15: 18 | Z15: 20 | AA15: 22 | AB15: 24 | AC15: 26 | AD15: 28 | AE15: 30 | AF15: 32 | AG15: 34 | AH15: 36 | AI15: 38 | AJ15: 40 | AK15: 42 | AL15: 44 | AM15: 46 | AN15: 48 | AO15: 6 | AP15: 0 | AQ15: 0 | AR15: 12 | AS15: 0 | BA15: T4 | BB15: T5 | BC15: T6 | BD15: T7 | BE15: T8 | BF15: T12 | BG15: T13 | BH15: T14 | BI15: T15 | BJ15: T16
Q16: 13 | R16: 4.25 | S16: 6.375 | T16: 8.5 | U16: 10.75 | V16: 13 | W16: 15.125 | X16: 17.25 | Y16: 19.375 | Z16: 21.5 | AA16: 23.75 | AB16: 26 | AC16: 28.125 | AD16: 30.25 | AE16: 32.375 | AF16: 34.5 | AG16: 36.75 | AH16: 39 | AI16: 41.125 | AJ16: 43.25 | AK16: 45.375 | AL16: 47.5 | AM16: 49.75 | AN16: 52 | AO16: 6.5 | AP16: 0 | AQ16: 0 | AR16: 13 | AS16: 0
A17: Zusammenfassung | Q17: 14 | R17: 4.5 | S17: 6.875 | T17: 9.25 | U17: 11.625 | V17: 14 | W17: 16.25 | X17: 18.5 | Y17: 20.875 | Z17: 23.25 | AA17: 25.625 | AB17: 28 | AC17: 30.25 | AD17: 32.5 | AE17: 34.875 | AF17: 37.25 | AG17: 39.625 | AH17: 42 | AI17: 44.25 | AJ17: 46.5 | AK17: 48.875 | AL17: 51.25 | AM17: 53.625 | AN17: 56 | AO17: 7 | AP17: 0 | AQ17: 0 | AR17: 14 | AS17: 0 | BA17: =INDIRECT("'"&BM3&"'!"&"BK15") -> 
A18: Monat | C18: Soll | D18: IST | E18: +/- | G18: Urlaub | Q18: 15 | R18: 5 | S18: 7.5 | T18: 10 | U18: 12.5 | V18: 15 | W18: 17.5 | X18: 20 | Y18: 22.5 | Z18: 25 | AA18: 27.5 | AB18: 30 | AC18: 32.5 | AD18: 35 | AE18: 37.5 | AF18: 40 | AG18: 42.5 | AH18: 45 | AI18: 47.5 | AJ18: 50 | AK18: 52.5 | AL18: 55 | AM18: 57.5 | AN18: 60 | AO18: 7.5 | AP18: 0 | AQ18: 0 | AR18: 15 | AS18: 0
A19: Januar | C19: =IF(I1="","",IF(INDIRECT("'"&BM3&"'!"&"L43")<1,"",TEXT((INDIRECT("'"&BM3&"'!"&"L43")/60)/24,"[h]:mm"))) ->  | D19: =IF(C19="","",TEXT((INDIRECT("'"&BM3&"'!"&"G42")/60)/24,"[h]:mm")) ->  | E19: =IF(F19="","",INDIRECT("'"&BM3&"'!"&"H43")) ->  | F19: =IF(C19="","",IF(AND(YEAR(TODAY())=$I$1,MONTH(TODAY())>=M19),IF(INDIRECT("'"&BM3&"'!"&"K44")<0,TEXT(-(INDIRECT("'"&BM3&"'!"&"K44")/60)/24,"-[h]:mm"),TEXT((INDIRECT("'"&BM3&"'!"&"K44")/60)/24,"[h]:mm")),"")) ->  | G19: =IF(C19="","",TEXT((IF(INDIRECT("'"&BM3&"'!"&"M41")>0,INDIRECT("'"&BM3&"'!"&"M10")-INDIRECT("'"&BM3&"'!"&"M41"),0)/60)/24,"[h]:mm")) ->  | M19: 1 | Q19: 16 | R19: 5.25 | S19: 7.875 | T19: 10.5 | U19: 13.25 | V19: 16 | W19: 18.625 | X19: 21.25 | Y19: 23.875 | Z19: 26.5 | AA19: 29.25 | AB19: 32 | AC19: 34.625 | AD19: 37.25 | AE19: 39.875 | AF19: 42.5 | AG19: 45.25 | AH19: 48 | AI19: 50.625 | AJ19: 53.25 | AK19: 55.875 | AL19: 58.5 | AM19: 61.25 | AN19: 64 | AO19: 8 | AP19: 0 | AQ19: 0 | AR19: 16 | AS19: 0
A20: Februar | C20: =IF(I1="","",IF(INDIRECT("'"&BM4&"'!"&"L43")<1,"",TEXT((INDIRECT("'"&BM4&"'!"&"L43")/60)/24,"[h]:mm"))) ->  | D20: =IF(C20="","",TEXT((INDIRECT("'"&BM4&"'!"&"G42")/60)/24,"[h]:mm")) ->  | E20: =IF(F20="","",INDIRECT("'"&BM4&"'!"&"H43")) ->  | M20: 2 | Q20: 17 | R20: 5.5 | S20: 8.375 | T20: 11.25 | U20: 14.125 | V20: 17 | W20: 19.75 | X20: 22.5 | Y20: 25.375 | Z20: 28.25 | AA20: 31.125 | AB20: 34 | AC20: 36.75 | AD20: 39.5 | AE20: 42.375 | AF20: 45.25 | AG20: 48.125 | AH20: 51 | AI20: 53.75 | AJ20: 56.5 | AK20: 59.375 | AL20: 62.25 | AM20: 65.125 | AN20: 68 | AO20: 8.5 | AP20: 0 | AQ20: 0 | AR20: 17 | AS20: 0
A21: März | C21: =IF(I1="","",IF(INDIRECT("'"&BM5&"'!"&"L43")<1,"",TEXT((INDIRECT("'"&BM5&"'!"&"L43")/60)/24,"[h]:mm"))) ->  | D21: =IF(C21="","",TEXT((INDIRECT("'"&BM5&"'!"&"G42")/60)/24,"[h]:mm")) ->  | M21: 3 | Q21: 18 | R21: 6 | S21: 9 | T21: 12 | U21: 15 | V21: 18 | W21: 21 | X21: 24 | Y21: 27 | Z21: 30 | AA21: 33 | AB21: 36 | AC21: 39 | AD21: 42 | AE21: 45 | AF21: 48 | AG21: 51 | AH21: 54 | AI21: 57 | AJ21: 60 | AK21: 63 | AL21: 66 | AM21: 69 | AN21: 72 | AO21: 9 | AP21: 0 | AQ21: 0 | AR21: 18 | AS21: 0
A22: April | C22: =IF(I1="","",IF(INDIRECT("'"&BM6&"'!"&"L43")<1,"",TEXT((INDIRECT("'"&BM6&"'!"&"L43")/60)/24,"[h]:mm"))) ->  | M22: 4 | Q22: 19 | R22: 6.25 | S22: 9.375 | T22: 12.5 | U22: 15.75 | V22: 19 | W22: 22.125 | X22: 25.25 | Y22: 28.375 | Z22: 31.5 | AA22: 34.75 | AB22: 38 | AC22: 41.125 | AD22: 44.25 | AE22: 47.375 | AF22: 50.5 | AG22: 53.75 | AH22: 57 | AI22: 60.125 | AJ22: 63.25 | AK22: 66.375 | AL22: 69.5 | AM22: 72.75 | AN22: 76 | AO22: 9.5 | AP22: 0 | AQ22: 0 | AR22: 19 | AS22: 0
A23: Mai | C23: =IF(I1="","",IF(INDIRECT("'"&BM7&"'!"&"L43")<1,"",TEXT((INDIRECT("'"&BM7&"'!"&"L43")/60)/24,"[h]:mm"))) ->  | M23: 5 | AO23: 10 | AP23: 0 | AQ23: 0
A24: Juni | C24: =IF(I1="","",IF(INDIRECT("'"&BM8&"'!"&"L43")<1,"",TEXT((INDIRECT("'"&BM8&"'!"&"L43")/60)/24,"[h]:mm"))) ->  | M24: 6 | AO24: 10.5 | AP24: 0 | AQ24: 0
A25: Juli | C25: =IF(I1="","",IF(INDIRECT("'"&BM9&"'!"&"L43")<1,"",TEXT((INDIRECT("'"&BM9&"'!"&"L43")/60)/24,"[h]:mm"))) ->  | M25: 7 | AO25: 11 | AP25: 0 | AQ25: 0
A26: August | C26: =IF(I1="","",IF(INDIRECT("'"&BM10&"'!"&"L43")<1,"",TEXT((INDIRECT("'"&BM10&"'!"&"L43")/60)/24,"[h]:mm"))) ->  | M26: 8 | AO26: 11.5 | AP26: 0 | AQ26: 0
A27: September | C27: =IF(I1="","",IF(INDIRECT("'"&BM11&"'!"&"L43")<1,"",TEXT((INDIRECT("'"&BM11&"'!"&"L43")/60)/24,"[h]:mm"))) ->  | M27: 9 | AO27: 12 | AP27: 0 | AQ27: 0
A28: Oktober | C28: =IF(I1="","",IF(INDIRECT("'"&BM12&"'!"&"L43")<1,"",TEXT((INDIRECT("'"&BM12&"'!"&"L43")/60)/24,"[h]:mm"))) ->  | M28: 10 | AO28: 12.5 | AP28: 0 | AQ28: 0
A29: November | C29: =IF(I1="","",IF(INDIRECT("'"&BM13&"'!"&"L43")<1,"",TEXT((INDIRECT("'"&BM13&"'!"&"L43")/60)/24,"[h]:mm"))) ->  | M29: 11
A30: Dezember | C30: =IF(I1="","",IF(INDIRECT("'"&BM14&"'!"&"L43")<1,"",TEXT((INDIRECT("'"&BM14&"'!"&"L43")/60)/24,"[h]:mm"))) ->  | M30: 12
A31: Gesamt: | C31: =IF(I1="","",TEXT((SUM(Jan!$L$43,Feb!L42,Mrz!$L$42,Apr!$L$42,Mai!$L$42,Jun!$L$42,Jul!$L$42,Aug!$L$42,Sep!$L$42,Okt!$L$42,Nov!L42,Dez!L42)/60)/24,"[h]:mm")) ->  | D31: =IF(I1="","",TEXT((SUM(Jan!F42,Feb!F41,Mrz!F41,Apr!F41,Mai!F41,Jun!F41,Jul!F41,Aug!F41,Sep!F41,Okt!F41,Nov!F41,Dez!F41)/60)/24,"[h]:mm")) ->  | F31: =IF(I1="","",IF(Dez!K44/60<0,TEXT(-(Dez!K44/60)/24,"-[h]:mm"),TEXT((Dez!K44/60)/24,"[h]:mm"))) ->  | G31: =IF(I1="","",TEXT((Dez!M41/60)/24,"[h]:mm")) ->  | AO31: 1 | AP31: =IF(AND($K$14<AO32,AO31<$K$15),$L$14,IF(AND($K$12<AO32,AO31<$K$13),$L$12,IF(AND($K$10<AO32,AO31<$K$11),$L$10,IF(AND($K$7<AO32,AO31<$K$8),$L$7,0)))) -> 0 | AQ31: =INDEX($K$7:$M$15,MATCH(IF(AND($K$14>0,$K$15>0,$K$14<=AO31,$K$15>=AO31),$K$14,IF(AND($K$12>0,$K$13>0,$K$12<=AO31,$K$13>=AO31),$K$12,IF(AND($K$10>0,$K$11>0,$K$10<=AO31,$K$11>=AO31),$K$10,IF(AND($K$7>0,$K$8>0,$K$7<=AO31,$K$8>=AO31),$K$7,0)))),$K$7:$K$15,0),3) -> 0
AO32: 2 | AP32: 0 | AQ32: =INDEX($K$7:$M$15,MATCH(IF(AND($K$14>0,$K$15>0,$K$14<=AO32,$K$15>=AO32),$K$14,IF(AND($K$12>0,$K$13>0,$K$12<=AO32,$K$13>=AO32),$K$12,IF(AND($K$10>0,$K$11>0,$K$10<=AO32,$K$11>=AO32),$K$10,IF(AND($K$7>0,$K$8>0,$K$7<=AO32,$K$8>=AO32),$K$7,0)))),$K$7:$K$15,0),3) -> 0
A33: Wöchentliche Stunden & Arbeitstage | AO33: 3 | AP33: 0 | AQ33: 0
A34: Bei fester Vereinbarung der Arbeitstage und Stunden, diese bitte hier eintragen. Bei Veränderungen dann bitte im jeweiligen Monat diese Angaben ändern. Wenn keine festen Tage vereinbart sind, bitte offen lassen. | AO34: 4 | AP34: 0 | AQ34: 0
A35: Wöchentliche Arbeitszeit | C35: Stunden | AO35: 5 | AP35: 0 | AQ35: 0
A36: Montag | D36: Es werden automatisch 30 Minuten Pause bei einer täglichen Arbeitszeit ab 6 Stunden berechnet. | AO36: 6 | AP36: 0 | AQ36: 0
A37: Dienstag | AO37: 7 | AP37: 0 | AQ37: 0
A38: Mittwoch | AO38: 8 | AP38: 0 | AQ38: 0
A39: Donnerstag | AO39: 9 | AP39: 0 | AQ39: 0
A40: Freitag | AO40: 10 | AP40: 0 | AQ40: 0
C41: =SUM(C36:C40) -> 0 | D41: =IF(I1="","",IF(C41<SUM(F4:F5),"zu wenig",IF(C41>SUM(F4:F5),"zu viel",""))) ->  | AO41: 11 | AP41: 0 | AQ41: 0
AO42: 12 | AP42: =IF(AND($K$14<AO43,AO42<$K$15),$L$14,IF(AND($K$12<AO43,AO42<$K$13),$L$12,IF(AND($K$10<AO43,AO42<$K$11),$L$10,IF(AND($K$7<AO43,AO42<$K$8),$L$7,0)))) -> 0 | AQ42: 0
AO43: 13 | AQ43: =INDEX($K$7:$M$15,MATCH(IF(AND($K$14>0,$K$15>0,$K$14<=AO44,$K$15>=AO43),$K$14,IF(AND($K$12>0,$K$13>0,$K$12<=AO44,$K$13>=AO43),$K$12,IF(AND($K$10>0,$K$11>0,$K$10<=AO44,$K$11>=AO43),$K$10,IF(AND($K$7>0,$K$8>0,$K$7<=AO44,$K$8>=AO43),$K$7,0)))),$K$7:$K$15,0),3) -> 0

Sheet Jan
A1: Zeiterfassungsbogen für studentische Hilfskräfte | International Office | V1: "nein" auswählen, wenn keine festen Tage mehr gelten sollen!
A2: =IF(Uebersicht!A4="","",CONCATENATE(Uebersicht!B4," ",Uebersicht!A4)) -> 
N3: =INDEX(Uebersicht!AO5:AQ28,MATCH(C4,Uebersicht!AO5:AO28,0),3) -> 0 | O3: =INDEX(Uebersicht!AO5:AQ28,MATCH(C4+0.5,Uebersicht!AO5:AO28,0),3) -> 0 | S3: Tag | T3: h
A4: =IF(D4="","",TEXT(DATE(D4,C4,1),"MMM")) ->  | C4: 1 | D4: =Uebersicht!I1 ->  | G4: =IF(INDEX(Uebersicht!AO31:AQ42,MATCH(C4,Uebersicht!AO31:AO43,0),2)=0,"",INDEX(Uebersicht!AO31:AQ42,MATCH(C4,Uebersicht!AO31:AO43,0),2)) ->  | N4: =INDEX(Uebersicht!AO31:AQ42,MATCH(C4,Uebersicht!AO31:AO43,0),3) -> 0 | R4: =IF(OR($K$9=2,$K$9=0),1,IF(AND(OR($K$9=1,$K$9=3),OR(SUM($U$4:$U$8)=0,$U$1="nein")),3,IF(AND($U$1="",SUM($U$4:$U$8)>0,U4>=1,OR($K$9=3,$K$9=1)),4,1))) -> 1 | S4: Mo | U4: =IF(OR($K$9=0,$U$1="nein"),0,IF(T4>0,T4,INDEX(Uebersicht!$BA$3:$BE$14,$C$4,MATCH(S4,Uebersicht!$BA$2:$BE$2,0)))) -> 0
R5: =IF(OR($K$9=2,$K$9=0),1,IF(AND(OR($K$9=1,$K$9=3),OR(SUM($U$4:$U$8)=0,$U$1="nein")),3,IF(AND($U$1="",SUM($U$4:$U$8)>0,U5>=1,OR($K$9=3,$K$9=1)),4,1))) -> 1 | S5: Di | U5: =IF(OR($K$9=0,$U$1="nein"),0,IF(T5>0,T5,INDEX(Uebersicht!$BA$3:$BE$14,$C$4,MATCH(S5,Uebersicht!$BA$2:$BE$2,0)))) -> 0
C6: =DAY(DATE(D4,C4+1,1)-1) ->  | H6: =IF(N4=0,"","Arbeitsgebiet 1") ->  | I6: =IF(C4-1=0,Uebersicht!G4,INDIRECT("'"&TEXT(DATE(D4,C4-1,1),"MMM")&"'!K43")) -> 0 | K6: nein | N6: =IF(N4="","","Arbeitsgebiet 2") -> Arbeitsgebiet 2 | R6: =IF(OR($K$9=2,$K$9=0),1,IF(AND(OR($K$9=1,$K$9=3),OR(SUM($U$4:$U$8)=0,$U$1="nein")),3,IF(AND($U$1="",SUM($U$4:$U$8)>0,U6>=1,OR($K$9=3,$K$9=1)),4,1))) -> 1 | S6: Mi | U6: =IF(OR($K$9=0,$U$1="nein"),0,IF(T6>0,T6,INDEX(Uebersicht!$BA$3:$BE$14,$C$4,MATCH(S6,Uebersicht!$BA$2:$BE$2,0)))) -> 0
A7: =IF(AND(H9>0,I9=0),CONCATENATE(H9," Wochenarbeitszeit (h)"),IF(AND(H9=0,I9>0),CONCATENATE(I9," Wochenarbeitszeit (h)"),IF(AND(H9>0,I9>0,H9<>I9),CONCATENATE(H9," h, ab 15. ",TEXT(DATE(D4,C4,1),"MMMM")," ",I9,"h"),""))) ->  | F7: =IF(G4="","",IF(M42/60>0,TEXT((M42/60)/24,"[h]:mm"),0)) ->  | G7: =IF(F7="","","Urlaubsrest") ->  | I7: =IF(AND(YEAR(TODAY())=D4,MONTH(TODAY())>=C4,K9>0),IF(OR(I6=0,I6=""),0,IF(I6<0,TEXT(-(I6/60)/24,"-[h]:mm"),TEXT((I6/60)/24,"[h]:mm"))),"") ->  | J7: =IF(I7="","",CONCATENATE("h Übertrag aus ",IF(C6=1,"Vorjahr","Vormonat"))) ->  | K7: Urlaub | N7: =IF(AND(N3>0,O3=0),CONCATENATE(N3," Stunden - Anteil pro Woche"),IF(AND(N3=0,O3>0),CONCATENATE(O3," Stunden - Anteil pro Woche"),IF(AND(N3>0,O3>0,O3<>N3),CONCATENATE(N3," h, ab 15. ",TEXT(DATE(D4,C4,1),"MMMM")," ",O3,"h"),IF(N3=O3,CONCATENATE(N3," Stunden - Anteil pro Woche"),"")))) -> 0 Stunden - Anteil pro Woche | R7: =IF(OR($K$9=2,$K$9=0),1,IF(AND(OR($K$9=1,$K$9=3),OR(SUM($U$4:$U$8)=0,$U$1="nein")),3,IF(AND($U$1="",SUM($U$4:$U$8)>0,U7>=1,OR($K$9=3,$K$9=1)),4,1))) -> 1 | S7: Do | U7: =IF(OR($K$9=0,$U$1="nein"),0,IF(T7>0,T7,INDEX(Uebersicht!$BA$3:$BE$14,$C$4,MATCH(S7,Uebersicht!$BA$2:$BE$2,0)))) -> 0
K8: Krank | R8: =IF(OR($K$9=2,$K$9=0),1,IF(AND(OR($K$9=1,$K$9=3),OR(SUM($U$4:$U$8)=0,$U$1="nein")),3,IF(AND($U$1="",SUM($U$4:$U$8)>0,U8>=1,OR($K$9=3,$K$9=1)),4,1))) -> 1 | S8: Fr | U8: =IF(OR($K$9=0,$U$1="nein"),0,IF(T8>0,T8,INDEX(Uebersicht!$BA$3:$BE$14,$C$4,MATCH(S8,Uebersicht!$BA$2:$BE$2,0)))) -> 0
H9: =INDEX(Uebersicht!AU3:AW14,C4,2) -> 0 | I9: =IF(INDEX(Uebersicht!AU3:AW14,C4,3)=H9,0,INDEX(Uebersicht!AU3:AW14,C4,3)) -> 0 | K9: =IF(AND(H9>0,I9=0),1,IF(AND(H9=0,I9>0),2,IF(AND(H9=0,I9=0),0,IF(H9<>I9,3,"")))) -> 0 | O9: =IF(OR(N3>0,O3>0),IF(OR(K9=1,K9=2),(IF(K9=1,N3,IF(K9=2,O2,0))/5)*NETWORKDAYS(IF(K9=1,DATE(D4,C4,1),IF(K9=2,DATE(D4,C4,15),0)),IF(OR(K9=1,K9=2),DATE(D4,C4,MAX(A11:A41)),0),COUNTIFS(C11:C41,"<>"&2)),IF(K9=3,SUM(IF(N3>0,(N3/5)*NETWORKDAYS(DATE(D4,C4,1),DATE(D4,C4,14),2),0),IF(O3>0,(O3/5)*NETWORKDAYS(DATE(D4,C4,15),DATE(D4,C4,MAX(A11:A41)),2),0)),0)),"") ->  | S9: =IF(SUM(U4:U8)=0,"",IF(SUM(U4:U8)>H9,"zu viel!",IF(SUM(U4:U8)<H9,"zu wenig!",""))) ->  | U9: =IF(OR(U1="nein",SUM(U4:U8)=0),"ja",IF(OR(SUM(Uebersicht!C36:C40)>0,SUM(T4:T8)>0,SUM(U4:U8)>0),"nein","ja")) -> ja
A10: Tag | D10: Beginn | E10: Ende | F10: Urlaub Krank | G10: Stunden | H10: Mehr/ Minder | I10: Saldo summiert | J10: Bemerkungen | K10: Differenz | L10: Soll | M10: =IF(C4-1=0,IF(Uebersicht!E8="",0,Uebersicht!E8*60),INDIRECT("'"&TEXT(DATE(D4,C4-1,1),"MMM")&"'!M42")) -> 0 | N10: Stunden | O10: Rest | P10: Bemerkungen | Q10: Gesamt | S10: Änderung im laufenden Monat
A11: 1 | B11: =IF($D$4="","",TEXT(DATE($D$4,$C$4,A11),"ttt")) ->  | C11: =IF(OR($K$9=0,AND($K$9=2,A11<=14)),1,IF(IF(ISNA(INDEX(X!$W$7:$W$20,MATCH(DATE($D$4,$C$4,A11),X!$AC$7:$AC$20,0))),1,2)=2,2,IF(OR(B11="Sa",B11="So"),2,IF($K$9=1,SUMIFS($R$4:$R$8,$S$4:$S$8,B11),IF(AND($K$9=2,A11<15),SUMIFS($R$4:$R$8,$S$4:$S$8,B11),IF(AND($K$9=2,A11>14),SUMIFS($R$12:$R$16,$S$12:$S$16,B11),IF(AND($K$9=3,A11>14),SUMIFS($R$12:$R$16,$S$12:$S$16,B11),IF(AND($K$9=3,A11<15),SUMIFS($R$4:$R$8,$S$4:$S$8,B11),1)))))))) -> 1 | G11: =IF(AND(D11="",E11=""),"",IF(N11="",IF(((HOUR(E11)*60+MINUTE(E11))-(HOUR(D11)*60+MINUTE(D11)))>360,TEXT(((((HOUR(E11)*60+MINUTE(E11))-(HOUR(D11)*60+MINUTE(D11)))-30)/60)/24,"[h]:mm"),TEXT((((HOUR(E11)*60+MINUTE(E11))-(HOUR(D11)*60+MINUTE(D11)))/60)/24,"[h]:mm")),IF((((HOUR(E11)*60+MINUTE(E11))-(HOUR(D11)*60+MINUTE(D11)))-N11)>360,TEXT(((((((HOUR(E11)*60+MINUTE(E11))-(HOUR(D11)*60+MINUTE(D11)))-30))/60)-N11)/24,"[h]:mm"),TEXT(((((HOUR(E11)*60+MINUTE(E11))-(HOUR(D11)*60+MINUTE(D11)))/60)-N11)/24,"[h]:mm")))) ->  | H11: =IF(K11="","",IF(TODAY()<=DATE($D$4,$C$4,A11),0,IF(K11>0,TEXT((K11/60)/24,"[h]:mm"),TEXT(-(K11/60)/24,"-[h]:mm")))) ->  | I11: =IF($K$9>0,IF(SUM($K$11:$K11,I6)<0,TEXT(-(SUM($K$11:K11,I6)/60)/24,"-[h]:mm"),TEXT((SUM($K$11:K11,I6)/60)/24,"[h]:mm")),"") ->  | K11: =IF(F11="",IF(L11<0,L11+IF(G11=" ",0,IF(((HOUR(E11)*60+MINUTE(E11))-(HOUR(D11)*60+MINUTE(D11)))>360,(HOUR(E11)*60+MINUTE(E11))-(HOUR(D11)*60+MINUTE(D11))-30,(HOUR(E11)*60+MINUTE(E11))-(HOUR(D11)*60+MINUTE(D11)))),IF(Q11="","",(Q11*60)*24)),"") ->  | L11: =IF(OR(F11="krank",F11="Urlaub",C11=1,C11=2),0,IF($K$9=1,IF(SUM($U$4:$U$8)=0,$H$9/5,INDEX($S$4:$U$8,MATCH(B11,$S$4:$S$8,0),3)),IF($K$9=2,IF(AND(A11>14,SUM($U$12:$U$16)=0),$I$9/5,INDEX($S$12:$U$16,MATCH(B11,$S$12:$S$16,0),3)),IF($K$9=3,IF(A11<15,IF(SUM($U$4:$U$8)=0,$H$9/5,INDEX($S$4:$U$8,MATCH(B11,$S$4:$S$8,0),3))),IF(A11>14,IF(SUM($U$12:$U$16)=0,$I$9/5,INDEX($S$12:$U$16,MATCH(B11,$S$12:$S$16,0),3))))))*-60) -> 0 | M11: =M10-(IF(OR(C11=1,C11=2),0,IF(C11=3,IF(AND($K$9=1,F11="Urlaub"),$H$9/5,IF($K$9=2,IF(AND(A11<15,F11="Urlaub"),$I$9/5,IF(AND($K$9=3,A11<15,F11="Urlaub"),$H$9/5,IF(AND($K$9=3,A11>14,F11="Urlaub"),$I$9/5))))),IF(C11=4,IF(AND(F11="Urlaub",$K$9=1),SUMIFS($U$4:$U$8,$S$4:$S$8,B11),IF(AND(F11="Urlaub",$K$9=2,A11>14),SUMIFS($U$12:$U$16,$S$12:$S$16,B11),IF(AND(F11="Urlaub",$K$9=3,A11<15),SUMIFS($U$4:$U$8,$S$4:$S$8,B11),IF(AND(F11="Urlaub",$K$9=3,A11>14),SUMIFS($U$12:$U$16,$S$12:$S$16,B11),0)))))))*60) -> 0 | O11: =IF(OR($O$3="",$N11=""),"",IF($O$9-SUM($N10:N$11)-N11<0,TEXT(-(($O$9-SUM($N10:N$11)-N11)/24),"-[hh]:mm"),TEXT(($O$9-SUM($N10:N$11)-N11)/24,"[hh]:mm"))) ->  | Q11: =IF(AND(D11="",E11=""),"",IF(((HOUR(E11)*60+MINUTE(E11))-(HOUR(D11)*60+MINUTE(D11)))>360,TEXT(((((HOUR(E11)*60+MINUTE(E11))-(HOUR(D11)*60+MINUTE(D11)))-30)/60)/24,"[h]:mm"),TEXT((((HOUR(E11)*60+MINUTE(E11))-(HOUR(D11)*60+MINUTE(D11)))/60)/24,"[h]:mm"))) -> 
A12: =IF(OR(A11="",$D$4=""),"",IF(A11+1<=$C$6,A11+1,"")) ->  | B12: =IF(OR(A11="",$D$4=""),"",TEXT(DATE($D$4,$C$4,A12),"ttt")) ->  | C12: =IF(OR($K$9=0,AND($K$9=2,A12<=14)),1,IF(IF(ISNA(INDEX(X!$W$7:$W$20,MATCH(DATE($D$4,$C$4,A12),X!$AC$7:$AC$20,0))),1,2)=2,2,IF(OR(B12="Sa",B12="So"),2,IF($K$9=1,SUMIFS($R$4:$R$8,$S$4:$S$8,B12),IF(AND($K$9=2,A12<15),SUMIFS($R$4:$R$8,$S$4:$S$8,B12),IF(AND($K$9=2,A12>14),SUMIFS($R$12:$R$16,$S$12:$S$16,B12),IF(AND($K$9=3,A12>14),SUMIFS($R$12:$R$16,$S$12:$S$16,B12),IF(AND($K$9=3,A12<15),SUMIFS($R$4:$R$8,$S$4:$S$8,B12),1)))))))) -> 1 | I12: =IF($K$9>0,IF(SUM($K$11:$K12,$I$6)<0,TEXT(-(SUM($K$11:K12,$I$6)/60)/24,"-[h]:mm"),TEXT((SUM($K$11:K12,$I$6)/60)/24,"[h]:mm")),"") ->  | K12: =IF(F12="",IF(L12<0,L12+IF(G12=" ",0,IF(((HOUR(E12)*60+MINUTE(E12))-(HOUR(D12)*60+MINUTE(D12)))>360,(HOUR(E12)*60+MINUTE(E12))-(HOUR(D12)*60+MINUTE(D12))-30,(HOUR(E12)*60+MINUTE(E12))-(HOUR(D12)*60+MINUTE(D12)))),IF(Q12="","",(Q12*60)*24)),"") ->  | L12: =IF(OR(F12="krank",F12="Urlaub",C12=1,C12=2),0,IF($K$9=1,IF(SUM($U$4:$U$8)=0,$H$9/5,INDEX($S$4:$U$8,MATCH(B12,$S$4:$S$8,0),3)),IF($K$9=2,IF(AND(A12>14,SUM($U$12:$U$16)=0),$I$9/5,INDEX($S$12:$U$16,MATCH(B12,$S$12:$S$16,0),3)),IF($K$9=3,IF(A12<15,IF(SUM($U$4:$U$8)=0,$H$9/5,INDEX($S$4:$U$8,MATCH(B12,$S$4:$S$8,0),3)),IF(SUM($U$12:$U$16)=0,$I$9/5,INDEX($S$12:$U$16,MATCH(B12,$S$12:$S$16,0),3)))))))*-60 -> 0 | M12: 0 | O12: =IF(OR($O$3="",$N12=""),"",IF($O$9-SUM($N$11:N11)-N12<0,TEXT(-(($O$9-SUM($N$11:N11)-N12)/24),"-[hh]:mm"),TEXT(($O$9-SUM($N$11:N11)-N12)/24,"[hh]:mm"))) ->  | R12: =IF($K$9=0,1,IF($K$9=1,R4,IF(AND($K$9=3,OR(SUM($U$12:$U$16)=0,$U$1="nein")),3,IF(AND($U$1="",SUM($U$12:$U$16)>0,U12>=1,OR($K$9=3,$K$9=2)),4,1)))) -> 1 | S12: Mo | U12: =IF(OR($K$9=0,$U$1="nein"),0,IF(T12>0,T12,INDEX(Uebersicht!$BF$3:$BJ$14,$C$4,MATCH(S12,Uebersicht!$BF$2:$BJ$2,0)))) -> 0
A13: =IF(OR(A12="",$D$4=""),"",IF(A12+1<=$C$6,A12+1,"")) ->  | C13: =IF(OR($K$9=0,AND($K$9=2,A13<=14)),1,IF(IF(ISNA(INDEX(X!$W$7:$W$20,MATCH(DATE($D$4,$C$4,A13),X!$AC$7:$AC$20,0))),1,2)=2,2,IF(OR(B13="Sa",B13="So"),2,IF($K$9=1,SUMIFS($R$4:$R$8,$S$4:$S$8,B13),IF(AND($K$9=2,A13<15),SUMIFS($R$4:$R$8,$S$4:$S$8,B13),IF(AND($K$9=2,A13>14),SUMIFS($R$12:$R$16,$S$12:$S$16,B13),IF(AND($K$9=3,A13>14),SUMIFS($R$12:$R$16,$S$12:$S$16,B13),IF(AND($K$9=3,A13<15),SUMIFS($R$4:$R$8,$S$4:$S$8,B13),1)))))))) -> 1 | I13: =IF($K$9>0,IF(SUM($K$11:$K13,$I$6)<0,TEXT(-(SUM($K$11:K13,$I$6)/60)/24,"-[h]:mm"),TEXT((SUM($K$11:K13,$I$6)/60)/24,"[h]:mm")),"") ->  | K13: =IF(F13="",IF(L13<0,L13+IF(G13=" ",0,IF(((HOUR(E13)*60+MINUTE(E13))-(HOUR(D13)*60+MINUTE(D13)))>360,(HOUR(E13)*60+MINUTE(E13))-(HOUR(D13)*60+MINUTE(D13))-30,(HOUR(E13)*60+MINUTE(E13))-(HOUR(D13)*60+MINUTE(D13)))),IF(Q13="","",(Q13*60)*24)),"") ->  | L13: 0 | M13: 0 | O13: =IF(OR($O$3="",$N13=""),"",IF($O$9-SUM($N$11:N12)-N13<0,TEXT(-(($O$9-SUM($N$11:N12)-N13)/24),"-[hh]:mm"),TEXT(($O$9-SUM($N$11:N12)-N13)/24,"[hh]:mm"))) ->  | R13: =IF($K$9=0,1,IF($K$9=1,R5,IF(AND($K$9=3,OR(SUM($U$12:$U$16)=0,$U$1="nein")),3,IF(AND($U$1="",SUM($U$12:$U$16)>0,U13>=1,OR($K$9=3,$K$9=2)),4,1)))) -> 1 | S13: Di | U13: =IF(OR($K$9=0,$U$1="nein"),0,IF(T13>0,T13,INDEX(Uebersicht!$BF$3:$BJ$14,$C$4,MATCH(S13,Uebersicht!$BF$2:$BJ$2,0)))) -> 0
C14: =IF(OR($K$9=0,AND($K$9=2,A14<=14)),1,IF(IF(ISNA(INDEX(X!$W$7:$W$20,MATCH(DATE($D$4,$C$4,A14),X!$AC$7:$AC$20,0))),1,2)=2,2,IF(OR(B14="Sa",B14="So"),2,IF($K$9=1,SUMIFS($R$4:$R$8,$S$4:$S$8,B14),IF(AND($K$9=2,A14<15),SUMIFS($R$4:$R$8,$S$4:$S$8,B14),IF(AND($K$9=2,A14>14),SUMIFS($R$12:$R$16,$S$12:$S$16,B14),IF(AND($K$9=3,A14>14),SUMIFS($R$12:$R$16,$S$12:$S$16,B14),IF(AND($K$9=3,A14<15),SUMIFS($R$4:$R$8,$S$4:$S$8,B14),1)))))))) -> 1 | I14: =IF($K$9>0,IF(SUM($K$11:$K14,$I$6)<0,TEXT(-(SUM($K$11:K14,$I$6)/60)/24,"-[h]:mm"),TEXT((SUM($K$11:K14,$I$6)/60)/24,"[h]:mm")),"") ->  | L14: 0 | M14: 0 | O14: =IF(OR($O$3="",$N14=""),"",IF($O$9-SUM($N$11:N13)-N14<0,TEXT(-(($O$9-SUM($N$11:N13)-N14)/24),"-[hh]:mm"),TEXT(($O$9-SUM($N$11:N13)-N14)/24,"[hh]:mm"))) ->  | R14: =IF($K$9=0,1,IF($K$9=1,R6,IF(AND($K$9=3,OR(SUM($U$12:$U$16)=0,$U$1="nein")),3,IF(AND($U$1="",SUM($U$12:$U$16)>0,U14>=1,OR($K$9=3,$K$9=2)),4,1)))) -> 1 | S14: Mi | U14: =IF(OR($K$9=0,$U$1="nein"),0,IF(T14>0,T14,INDEX(Uebersicht!$BF$3:$BJ$14,$C$4,MATCH(S14,Uebersicht!$BF$2:$BJ$2,0)))) -> 0
C15: =IF(OR($K$9=0,AND($K$9=2,A15<=14)),1,IF(IF(ISNA(INDEX(X!$W$7:$W$20,MATCH(DATE($D$4,$C$4,A15),X!$AC$7:$AC$20,0))),1,2)=2,2,IF(OR(B15="Sa",B15="So"),2,IF($K$9=1,SUMIFS($R$4:$R$8,$S$4:$S$8,B15),IF(AND($K$9=2,A15<15),SUMIFS($R$4:$R$8,$S$4:$S$8,B15),IF(AND($K$9=2,A15>14),SUMIFS($R$12:$R$16,$S$12:$S$16,B15),IF(AND($K$9=3,A15>14),SUMIFS($R$12:$R$16,$S$12:$S$16,B15),IF(AND($K$9=3,A15<15),SUMIFS($R$4:$R$8,$S$4:$S$8,B15),1)))))))) -> 1 | I15: =IF($K$9>0,IF(SUM($K$11:$K15,$I$6)<0,TEXT(-(SUM($K$11:K15,$I$6)/60)/24,"-[h]:mm"),TEXT((SUM($K$11:K15,$I$6)/60)/24,"[h]:mm")),"") ->  | L15: 0 | M15: 0 | O15: =IF(OR($O$3="",$N15=""),"",IF($O$9-SUM($N$11:N14)-N15<0,TEXT(-(($O$9-SUM($N$11:N14)-N15)/24),"-[hh]:mm"),TEXT(($O$9-SUM($N$11:N14)-N15)/24,"[hh]:mm"))) ->  | R15: =IF($K$9=0,1,IF($K$9=1,R7,IF(AND($K$9=3,OR(SUM($U$12:$U$16)=0,$U$1="nein")),3,IF(AND($U$1="",SUM($U$12:$U$16)>0,U15>=1,OR($K$9=3,$K$9=2)),4,1)))) -> 1 | S15: Do | U15: =IF(OR($K$9=0,$U$1="nein"),0,IF(T15>0,T15,INDEX(Uebersicht!$BF$3:$BJ$14,$C$4,MATCH(S15,Uebersicht!$BF$2:$BJ$2,0)))) -> 0
C16: =IF(OR($K$9=0,AND($K$9=2,A16<=14)),1,IF(IF(ISNA(INDEX(X!$W$7:$W$20,MATCH(DATE($D$4,$C$4,A16),X!$AC$7:$AC$20,0))),1,2)=2,2,IF(OR(B16="Sa",B16="So"),2,IF($K$9=1,SUMIFS($R$4:$R$8,$S$4:$S$8,B16),IF(AND($K$9=2,A16<15),SUMIFS($R$4:$R$8,$S$4:$S$8,B16),IF(AND($K$9=2,A16>14),SUMIFS($R$12:$R$16,$S$12:$S$16,B16),IF(AND($K$9=3,A16>14),SUMIFS($R$12:$R$16,$S$12:$S$16,B16),IF(AND($K$9=3,A16<15),SUMIFS($R$4:$R$8,$S$4:$S$8,B16),1)))))))) -> 1 | I16: =IF($K$9>0,IF(SUM($K$11:$K16,$I$6)<0,TEXT(-(SUM($K$11:K16,$I$6)/60)/24,"-[h]:mm"),TEXT((SUM($K$11:K16,$I$6)/60)/24,"[h]:mm")),"") ->  | L16: 0 | M16: 0 | O16: =IF(OR($O$3="",$N16=""),"",IF($O$9-SUM($N$11:N15)-N16<0,TEXT(-(($O$9-SUM($N$11:N15)-N16)/24),"-[hh]:mm"),TEXT(($O$9-SUM($N$11:N15)-N16)/24,"[hh]:mm"))) ->  | R16: =IF($K$9=0,1,IF($K$9=1,R8,IF(AND($K$9=3,OR(SUM($U$12:$U$16)=0,$U$1="nein")),3,IF(AND($U$1="",SUM($U$12:$U$16)>0,U16>=1,OR($K$9=3,$K$9=2)),4,1)))) -> 1 | S16: Fr | U16: =IF(OR($K$9=0,$U$1="nein"),0,IF(T16>0,T16,INDEX(Uebersicht!$BF$3:$BJ$14,$C$4,MATCH(S16,Uebersicht!$BF$2:$BJ$2,0)))) -> 0
C17: =IF(OR($K$9=0,AND($K$9=2,A17<=14)),1,IF(IF(ISNA(INDEX(X!$W$7:$W$20,MATCH(DATE($D$4,$C$4,A17),X!$AC$7:$AC$20,0))),1,2)=2,2,IF(OR(B17="Sa",B17="So"),2,IF($K$9=1,SUMIFS($R$4:$R$8,$S$4:$S$8,B17),IF(AND($K$9=2,A17<15),SUMIFS($R$4:$R$8,$S$4:$S$8,B17),IF(AND($K$9=2,A17>14),SUMIFS($R$12:$R$16,$S$12:$S$16,B17),IF(AND($K$9=3,A17>14),SUMIFS($R$12:$R$16,$S$12:$S$16,B17),IF(AND($K$9=3,A17<15),SUMIFS($R$4:$R$8,$S$4:$S$8,B17),1)))))))) -> 1 | I17: =IF($K$9>0,IF(SUM($K$11:$K17,$I$6)<0,TEXT(-(SUM($K$11:K17,$I$6)/60)/24,"-[h]:mm"),TEXT((SUM($K$11:K17,$I$6)/60)/24,"[h]:mm")),"") ->  | L17: 0 | M17: 0 | O17: =IF(OR($O$3="",$N17=""),"",IF($O$9-SUM($N$11:N16)-N17<0,TEXT(-(($O$9-SUM($N$11:N16)-N17)/24),"-[hh]:mm"),TEXT(($O$9-SUM($N$11:N16)-N17)/24,"[hh]:mm"))) ->  | S17: =IF(I9="","",IF(SUM(U12:U16)>I9,"zu viel!",IF(SUM(U12:U16)<I9,"zu wenig!",""))) ->  | U17: =IF(OR(U9="nein",SUM(U12:U16)=0),"ja",IF(OR(SUM(Uebersicht!C43:C47)>0,SUM(T12:T16)>0,SUM(U12:U16)>0),"nein","ja")) -> ja
C18: =IF(OR($K$9=0,AND($K$9=2,A18<=14)),1,IF(IF(ISNA(INDEX(X!$W$7:$W$20,MATCH(DATE($D$4,$C$4,A18),X!$AC$7:$AC$20,0))),1,2)=2,2,IF(OR(B18="Sa",B18="So"),2,IF($K$9=1,SUMIFS($R$4:$R$8,$S$4:$S$8,B18),IF(AND($K$9=2,A18<15),SUMIFS($R$4:$R$8,$S$4:$S$8,B18),IF(AND($K$9=2,A18>14),SUMIFS($R$12:$R$16,$S$12:$S$16,B18),IF(AND($K$9=3,A18>14),SUMIFS($R$12:$R$16,$S$12:$S$16,B18),IF(AND($K$9=3,A18<15),SUMIFS($R$4:$R$8,$S$4:$S$8,B18),1)))))))) -> 1 | I18: =IF($K$9>0,IF(SUM($K$11:$K18,$I$6)<0,TEXT(-(SUM($K$11:K18,$I$6)/60)/24,"-[h]:mm"),TEXT((SUM($K$11:K18,$I$6)/60)/24,"[h]:mm")),"") ->  | L18: 0 | M18: 0 | O18: =IF(OR($O$3="",$N18=""),"",IF($O$9-SUM($N$11:N17)-N18<0,TEXT(-(($O$9-SUM($N$11:N17)-N18)/24),"-[hh]:mm"),TEXT(($O$9-SUM($N$11:N17)-N18)/24,"[hh]:mm"))) -> 
C19: =IF(OR($K$9=0,AND($K$9=2,A19<=14)),1,IF(IF(ISNA(INDEX(X!$W$7:$W$20,MATCH(DATE($D$4,$C$4,A19),X!$AC$7:$AC$20,0))),1,2)=2,2,IF(OR(B19="Sa",B19="So"),2,IF($K$9=1,SUMIFS($R$4:$R$8,$S$4:$S$8,B19),IF(AND($K$9=2,A19<15),SUMIFS($R$4:$R$8,$S$4:$S$8,B19),IF(AND($K$9=2,A19>14),SUMIFS($R$12:$R$16,$S$12:$S$16,B19),IF(AND($K$9=3,A19>14),SUMIFS($R$12:$R$16,$S$12:$S$16,B19),IF(AND($K$9=3,A19<15),SUMIFS($R$4:$R$8,$S$4:$S$8,B19),1)))))))) -> 1 | I19: =IF($K$9>0,IF(SUM($K$11:$K19,$I$6)<0,TEXT(-(SUM($K$11:K19,$I$6)/60)/24,"-[h]:mm"),TEXT((SUM($K$11:K19,$I$6)/60)/24,"[h]:mm")),"") ->  | L19: 0 | M19: 0 | O19: =IF(OR($O$3="",$N19=""),"",IF($O$9-SUM($N$11:N18)-N19<0,TEXT(-(($O$9-SUM($N$11:N18)-N19)/24),"-[hh]:mm"),TEXT(($O$9-SUM($N$11:N18)-N19)/24,"[hh]:mm"))) -> 
C20: =IF(OR($K$9=0,AND($K$9=2,A20<=14)),1,IF(IF(ISNA(INDEX(X!$W$7:$W$20,MATCH(DATE($D$4,$C$4,A20),X!$AC$7:$AC$20,0))),1,2)=2,2,IF(OR(B20="Sa",B20="So"),2,IF($K$9=1,SUMIFS($R$4:$R$8,$S$4:$S$8,B20),IF(AND($K$9=2,A20<15),SUMIFS($R$4:$R$8,$S$4:$S$8,B20),IF(AND($K$9=2,A20>14),SUMIFS($R$12:$R$16,$S$12:$S$16,B20),IF(AND($K$9=3,A20>14),SUMIFS($R$12:$R$16,$S$12:$S$16,B20),IF(AND($K$9=3,A20<15),SUMIFS($R$4:$R$8,$S$4:$S$8,B20),1)))))))) -> 1 | I20: =IF($K$9>0,IF(SUM($K$11:$K20,$I$6)<0,TEXT(-(SUM($K$11:K20,$I$6)/60)/24,"-[h]:mm"),TEXT((SUM($K$11:K20,$I$6)/60)/24,"[h]:mm")),"") ->  | L20: 0 | M20: 0 | O20: =IF(OR($O$3="",$N20=""),"",IF($O$9-SUM($N$11:N19)-N20<0,TEXT(-(($O$9-SUM($N$11:N19)-N20)/24),"-[hh]:mm"),TEXT(($O$9-SUM($N$11:N19)-N20)/24,"[hh]:mm"))) -> 
C21: =IF(OR($K$9=0,AND($K$9=2,A21<=14)),1,IF(IF(ISNA(INDEX(X!$W$7:$W$20,MATCH(DATE($D$4,$C$4,A21),X!$AC$7:$AC$20,0))),1,2)=2,2,IF(OR(B21="Sa",B21="So"),2,IF($K$9=1,SUMIFS($R$4:$R$8,$S$4:$S$8,B21),IF(AND($K$9=2,A21<15),SUMIFS($R$4:$R$8,$S$4:$S$8,B21),IF(AND($K$9=2,A21>14),SUMIFS($R$12:$R$16,$S$12:$S$16,B21),IF(AND($K$9=3,A21>14),SUMIFS($R$12:$R$16,$S$12:$S$16,B21),IF(AND($K$9=3,A21<15),SUMIFS($R$4:$R$8,$S$4:$S$8,B21),1)))))))) -> 1 | I21: =IF($K$9>0,IF(SUM($K$11:$K21,$I$6)<0,TEXT(-(SUM($K$11:K21,$I$6)/60)/24,"-[h]:mm"),TEXT((SUM($K$11:K21,$I$6)/60)/24,"[h]:mm")),"") ->  | L21: 0 | M21: 0 | O21: =IF(OR($O$3="",$N21=""),"",IF($O$9-SUM($N$11:N20)-N21<0,TEXT(-(($O$9-SUM($N$11:N20)-N21)/24),"-[hh]:mm"),TEXT(($O$9-SUM($N$11:N20)-N21)/24,"[hh]:mm"))) -> 
C22: =IF(OR($K$9=0,AND($K$9=2,A22<=14)),1,IF(IF(ISNA(INDEX(X!$W$7:$W$20,MATCH(DATE($D$4,$C$4,A22),X!$AC$7:$AC$20,0))),1,2)=2,2,IF(OR(B22="Sa",B22="So"),2,IF($K$9=1,SUMIFS($R$4:$R$8,$S$4:$S$8,B22),IF(AND($K$9=2,A22<15),SUMIFS($R$4:$R$8,$S$4:$S$8,B22),IF(AND($K$9=2,A22>14),SUMIFS($R$12:$R$16,$S$12:$S$16,B22),IF(AND($K$9=3,A22>14),SUMIFS($R$12:$R$16,$S$12:$S$16,B22),IF(AND($K$9=3,A22<15),SUMIFS($R$4:$R$8,$S$4:$S$8,B22),1)))))))) -> 1 | I22: =IF($K$9>0,IF(SUM($K$11:$K22,$I$6)<0,TEXT(-(SUM($K$11:K22,$I$6)/60)/24,"-[h]:mm"),TEXT((SUM($K$11:K22,$I$6)/60)/24,"[h]:mm")),"") ->  | L22: 0 | M22: 0 | O22: =IF(OR($O$3="",$N22=""),"",IF($O$9-SUM($N$11:N21)-N22<0,TEXT(-(($O$9-SUM($N$11:N21)-N22)/24),"-[hh]:mm"),TEXT(($O$9-SUM($N$11:N21)-N22)/24,"[hh]:mm"))) -> 
C23: =IF(OR($K$9=0,AND($K$9=2,A23<=14)),1,IF(IF(ISNA(INDEX(X!$W$7:$W$20,MATCH(DATE($D$4,$C$4,A23),X!$AC$7:$AC$20,0))),1,2)=2,2,IF(OR(B23="Sa",B23="So"),2,IF($K$9=1,SUMIFS($R$4:$R$8,$S$4:$S$8,B23),IF(AND($K$9=2,A23<15),SUMIFS($R$4:$R$8,$S$4:$S$8,B23),IF(AND($K$9=2,A23>14),SUMIFS($R$12:$R$16,$S$12:$S$16,B23),IF(AND($K$9=3,A23>14),SUMIFS($R$12:$R$16,$S$12:$S$16,B23),IF(AND($K$9=3,A23<15),SUMIFS($R$4:$R$8,$S$4:$S$8,B23),1)))))))) -> 1 | I23: =IF($K$9>0,IF(SUM($K$11:$K23,$I$6)<0,TEXT(-(SUM($K$11:K23,$I$6)/60)/24,"-[h]:mm"),TEXT((SUM($K$11:K23,$I$6)/60)/24,"[h]:mm")),"") ->  | L23: 0 | M23: 0 | O23: =IF(OR($O$3="",$N23=""),"",IF($O$9-SUM($N$11:N22)-N23<0,TEXT(-(($O$9-SUM($N$11:N22)-N23)/24),"-[hh]:mm"),TEXT(($O$9-SUM($N$11:N22)-N23)/24,"[hh]:mm"))) -> 
C24: =IF(OR($K$9=0,AND($K$9=2,A24<=14)),1,IF(IF(ISNA(INDEX(X!$W$7:$W$20,MATCH(DATE($D$4,$C$4,A24),X!$AC$7:$AC$20,0))),1,2)=2,2,IF(OR(B24="Sa",B24="So"),2,IF($K$9=1,SUMIFS($R$4:$R$8,$S$4:$S$8,B24),IF(AND($K$9=2,A24<15),SUMIFS($R$4:$R$8,$S$4:$S$8,B24),IF(AND($K$9=2,A24>14),SUMIFS($R$12:$R$16,$S$12:$S$16,B24),IF(AND($K$9=3,A24>14),SUMIFS($R$12:$R$16,$S$12:$S$16,B24),IF(AND($K$9=3,A24<15),SUMIFS($R$4:$R$8,$S$4:$S$8,B24),1)))))))) -> 1 | I24: =IF($K$9>0,IF(SUM($K$11:$K24,$I$6)<0,TEXT(-(SUM($K$11:K24,$I$6)/60)/24,"-[h]:mm"),TEXT((SUM($K$11:K24,$I$6)/60)/24,"[h]:mm")),"") ->  | L24: 0 | M24: 0 | O24: =IF(OR($O$3="",$N24=""),"",IF($O$9-SUM($N$11:N23)-N24<0,TEXT(-(($O$9-SUM($N$11:N23)-N24)/24),"-[hh]:mm"),TEXT(($O$9-SUM($N$11:N23)-N24)/24,"[hh]:mm"))) -> 
C25: =IF(OR($K$9=0,AND($K$9=2,A25<=14)),1,IF(IF(ISNA(INDEX(X!$W$7:$W$20,MATCH(DATE($D$4,$C$4,A25),X!$AC$7:$AC$20,0))),1,2)=2,2,IF(OR(B25="Sa",B25="So"),2,IF($K$9=1,SUMIFS($R$4:$R$8,$S$4:$S$8,B25),IF(AND($K$9=2,A25<15),SUMIFS($R$4:$R$8,$S$4:$S$8,B25),IF(AND($K$9=2,A25>14),SUMIFS($R$12:$R$16,$S$12:$S$16,B25),IF(AND($K$9=3,A25>14),SUMIFS($R$12:$R$16,$S$12:$S$16,B25),IF(AND($K$9=3,A25<15),SUMIFS($R$4:$R$8,$S$4:$S$8,B25),1)))))))) -> 1 | I25: =IF($K$9>0,IF(SUM($K$11:$K25,$I$6)<0,TEXT(-(SUM($K$11:K25,$I$6)/60)/24,"-[h]:mm"),TEXT((SUM($K$11:K25,$I$6)/60)/24,"[h]:mm")),"") ->  | L25: 0 | M25: 0 | O25: =IF(OR($O$3="",$N25=""),"",IF($O$9-SUM($N$11:N24)-N25<0,TEXT(-(($O$9-SUM($N$11:N24)-N25)/24),"-[hh]:mm"),TEXT(($O$9-SUM($N$11:N24)-N25)/24,"[hh]:mm"))) -> 
C26: =IF(OR($K$9=0,AND($K$9=2,A26<=14)),1,IF(IF(ISNA(INDEX(X!$W$7:$W$20,MATCH(DATE($D$4,$C$4,A26),X!$AC$7:$AC$20,0))),1,2)=2,2,IF(OR(B26="Sa",B26="So"),2,IF($K$9=1,SUMIFS($R$4:$R$8,$S$4:$S$8,B26),IF(AND($K$9=2,A26<15),SUMIFS($R$4:$R$8,$S$4:$S$8,B26),IF(AND($K$9=2,A26>14),SUMIFS($R$12:$R$16,$S$12:$S$16,B26),IF(AND($K$9=3,A26>14),SUMIFS($R$12:$R$16,$S$12:$S$16,B26),IF(AND($K$9=3,A26<15),SUMIFS($R$4:$R$8,$S$4:$S$8,B26),1)))))))) -> 1 | I26: =IF($K$9>0,IF(SUM($K$11:$K26,$I$6)<0,TEXT(-(SUM($K$11:K26,$I$6)/60)/24,"-[h]:mm"),TEXT((SUM($K$11:K26,$I$6)/60)/24,"[h]:mm")),"") ->  | L26: 0 | M26: 0 | O26: =IF(OR($O$3="",$N26=""),"",IF($O$9-SUM($N$11:N25)-N26<0,TEXT(-(($O$9-SUM($N$11:N25)-N26)/24),"-[hh]:mm"),TEXT(($O$9-SUM($N$11:N25)-N26)/24,"[hh]:mm"))) -> 
C27: =IF(OR($K$9=0,AND($K$9=2,A27<=14)),1,IF(IF(ISNA(INDEX(X!$W$7:$W$20,MATCH(DATE($D$4,$C$4,A27),X!$AC$7:$AC$20,0))),1,2)=2,2,IF(OR(B27="Sa",B27="So"),2,IF($K$9=1,SUMIFS($R$4:$R$8,$S$4:$S$8,B27),IF(AND($K$9=2,A27<15),SUMIFS($R$4:$R$8,$S$4:$S$8,B27),IF(AND($K$9=2,A27>14),SUMIFS($R$12:$R$16,$S$12:$S$16,B27),IF(AND($K$9=3,A27>14),SUMIFS($R$12:$R$16,$S$12:$S$16,B27),IF(AND($K$9=3,A27<15),SUMIFS($R$4:$R$8,$S$4:$S$8,B27),1)))))))) -> 1 | I27: =IF($K$9>0,IF(SUM($K$11:$K27,$I$6)<0,TEXT(-(SUM($K$11:K27,$I$6)/60)/24,"-[h]:mm"),TEXT((SUM($K$11:K27,$I$6)/60)/24,"[h]:mm")),"") ->  | L27: 0 | M27: 0 | O27: =IF(OR($O$3="",$N27=""),"",IF($O$9-SUM($N$11:N26)-N27<0,TEXT(-(($O$9-SUM($N$11:N26)-N27)/24),"-[hh]:mm"),TEXT(($O$9-SUM($N$11:N26)-N27)/24,"[hh]:mm"))) -> 
C28: =IF(OR($K$9=0,AND($K$9=2,A28<=14)),1,IF(IF(ISNA(INDEX(X!$W$7:$W$20,MATCH(DATE($D$4,$C$4,A28),X!$AC$7:$AC$20,0))),1,2)=2,2,IF(OR(B28="Sa",B28="So"),2,IF($K$9=1,SUMIFS($R$4:$R$8,$S$4:$S$8,B28),IF(AND($K$9=2,A28<15),SUMIFS($R$4:$R$8,$S$4:$S$8,B28),IF(AND($K$9=2,A28>14),SUMIFS($R$12:$R$16,$S$12:$S$16,B28),IF(AND($K$9=3,A28>14),SUMIFS($R$12:$R$16,$S$12:$S$16,B28),IF(AND($K$9=3,A28<15),SUMIFS($R$4:$R$8,$S$4:$S$8,B28),1)))))))) -> 1 | I28: =IF($K$9>0,IF(SUM($K$11:$K28,$I$6)<0,TEXT(-(SUM($K$11:K28,$I$6)/60)/24,"-[h]:mm"),TEXT((SUM($K$11:K28,$I$6)/60)/24,"[h]:mm")),"") ->  | L28: 0 | M28: 0 | O28: =IF(OR($O$3="",$N28=""),"",IF($O$9-SUM($N$11:N27)-N28<0,TEXT(-(($O$9-SUM($N$11:N27)-N28)/24),"-[hh]:mm"),TEXT(($O$9-SUM($N$11:N27)-N28)/24,"[hh]:mm"))) -> 
C29: =IF(OR($K$9=0,AND($K$9=2,A29<=14)),1,IF(IF(ISNA(INDEX(X!$W$7:$W$20,MATCH(DATE($D$4,$C$4,A29),X!$AC$7:$AC$20,0))),1,2)=2,2,IF(OR(B29="Sa",B29="So"),2,IF($K$9=1,SUMIFS($R$4:$R$8,$S$4:$S$8,B29),IF(AND($K$9=2,A29<15),SUMIFS($R$4:$R$8,$S$4:$S$8,B29),IF(AND($K$9=2,A29>14),SUMIFS($R$12:$R$16,$S$12:$S$16,B29),IF(AND($K$9=3,A29>14),SUMIFS($R$12:$R$16,$S$12:$S$16,B29),IF(AND($K$9=3,A29<15),SUMIFS($R$4:$R$8,$S$4:$S$8,B29),1)))))))) -> 1 | I29: =IF($K$9>0,IF(SUM($K$11:$K29,$I$6)<0,TEXT(-(SUM($K$11:K29,$I$6)/60)/24,"-[h]:mm"),TEXT((SUM($K$11:K29,$I$6)/60)/24,"[h]:mm")),"") ->  | L29: 0 | M29: 0 | O29: =IF(OR($O$3="",$N29=""),"",IF($O$9-SUM($N$11:N28)-N29<0,TEXT(-(($O$9-SUM($N$11:N28)-N29)/24),"-[hh]:mm"),TEXT(($O$9-SUM($N$11:N28)-N29)/24,"[hh]:mm"))) -> 
C30: =IF(OR($K$9=0,AND($K$9=2,A30<=14)),1,IF(IF(ISNA(INDEX(X!$W$7:$W$20,MATCH(DATE($D$4,$C$4,A30),X!$AC$7:$AC$20,0))),1,2)=2,2,IF(OR(B30="Sa",B30="So"),2,IF($K$9=1,SUMIFS($R$4:$R$8,$S$4:$S$8,B30),IF(AND($K$9=2,A30<15),SUMIFS($R$4:$R$8,$S$4:$S$8,B30),IF(AND($K$9=2,A30>14),SUMIFS($R$12:$R$16,$S$12:$S$16,B30),IF(AND($K$9=3,A30>14),SUMIFS($R$12:$R$16,$S$12:$S$16,B30),IF(AND($K$9=3,A30<15),SUMIFS($R$4:$R$8,$S$4:$S$8,B30),1)))))))) -> 1 | I30: =IF($K$9>0,IF(SUM($K$11:$K30,$I$6)<0,TEXT(-(SUM($K$11:K30,$I$6)/60)/24,"-[h]:mm"),TEXT((SUM($K$11:K30,$I$6)/60)/24,"[h]:mm")),"") ->  | L30: 0 | M30: 0 | O30: =IF(OR($O$3="",$N30=""),"",IF($O$9-SUM($N$11:N29)-N30<0,TEXT(-(($O$9-SUM($N$11:N29)-N30)/24),"-[hh]:mm"),TEXT(($O$9-SUM($N$11:N29)-N30)/24,"[hh]:mm"))) -> 
C31: =IF(OR($K$9=0,AND($K$9=2,A31<=14)),1,IF(IF(ISNA(INDEX(X!$W$7:$W$20,MATCH(DATE($D$4,$C$4,A31),X!$AC$7:$AC$20,0))),1,2)=2,2,IF(OR(B31="Sa",B31="So"),2,IF($K$9=1,SUMIFS($R$4:$R$8,$S$4:$S$8,B31),IF(AND($K$9=2,A31<15),SUMIFS($R$4:$R$8,$S$4:$S$8,B31),IF(AND($K$9=2,A31>14),SUMIFS($R$12:$R$16,$S$12:$S$16,B31),IF(AND($K$9=3,A31>14),SUMIFS($R$12:$R$16,$S$12:$S$16,B31),IF(AND($K$9=3,A31<15),SUMIFS($R$4:$R$8,$S$4:$S$8,B31),1)))))))) -> 1 | I31: =IF($K$9>0,IF(SUM($K$11:$K31,$I$6)<0,TEXT(-(SUM($K$11:K31,$I$6)/60)/24,"-[h]:mm"),TEXT((SUM($K$11:K31,$I$6)/60)/24,"[h]:mm")),"") ->  | L31: 0 | M31: 0 | O31: =IF(OR($O$3="",$N31=""),"",IF($O$9-SUM($N$11:N30)-N31<0,TEXT(-(($O$9-SUM($N$11:N30)-N31)/24),"-[hh]:mm"),TEXT(($O$9-SUM($N$11:N30)-N31)/24,"[hh]:mm"))) -> 
C32: =IF(OR($K$9=0,AND($K$9=2,A32<=14)),1,IF(IF(ISNA(INDEX(X!$W$7:$W$20,MATCH(DATE($D$4,$C$4,A32),X!$AC$7:$AC$20,0))),1,2)=2,2,IF(OR(B32="Sa",B32="So"),2,IF($K$9=1,SUMIFS($R$4:$R$8,$S$4:$S$8,B32),IF(AND($K$9=2,A32<15),SUMIFS($R$4:$R$8,$S$4:$S$8,B32),IF(AND($K$9=2,A32>14),SUMIFS($R$12:$R$16,$S$12:$S$16,B32),IF(AND($K$9=3,A32>14),SUMIFS($R$12:$R$16,$S$12:$S$16,B32),IF(AND($K$9=3,A32<15),SUMIFS($R$4:$R$8,$S$4:$S$8,B32),1)))))))) -> 1 | I32: =IF($K$9>0,IF(SUM($K$11:$K32,$I$6)<0,TEXT(-(SUM($K$11:K32,$I$6)/60)/24,"-[h]:mm"),TEXT((SUM($K$11:K32,$I$6)/60)/24,"[h]:mm")),"") ->  | L32: 0 | M32: 0 | O32: =IF(OR($O$3="",$N32=""),"",IF($O$9-SUM($N$11:N31)-N32<0,TEXT(-(($O$9-SUM($N$11:N31)-N32)/24),"-[hh]:mm"),TEXT(($O$9-SUM($N$11:N31)-N32)/24,"[hh]:mm"))) -> 
C33: =IF(OR($K$9=0,AND($K$9=2,A33<=14)),1,IF(IF(ISNA(INDEX(X!$W$7:$W$20,MATCH(DATE($D$4,$C$4,A33),X!$AC$7:$AC$20,0))),1,2)=2,2,IF(OR(B33="Sa",B33="So"),2,IF($K$9=1,SUMIFS($R$4:$R$8,$S$4:$S$8,B33),IF(AND($K$9=2,A33<15),SUMIFS($R$4:$R$8,$S$4:$S$8,B33),IF(AND($K$9=2,A33>14),SUMIFS($R$12:$R$16,$S$12:$S$16,B33),IF(AND($K$9=3,A33>14),SUMIFS($R$12:$R$16,$S$12:$S$16,B33),IF(AND($K$9=3,A33<15),SUMIFS($R$4:$R$8,$S$4:$S$8,B33),1)))))))) -> 1 | I33: =IF($K$9>0,IF(SUM($K$11:$K33,$I$6)<0,TEXT(-(SUM($K$11:K33,$I$6)/60)/24,"-[h]:mm"),TEXT((SUM($K$11:K33,$I$6)/60)/24,"[h]:mm")),"") ->  | L33: 0 | M33: 0 | O33: =IF(OR($O$3="",$N33=""),"",IF($O$9-SUM($N$11:N32)-N33<0,TEXT(-(($O$9-SUM($N$11:N32)-N33)/24),"-[hh]:mm"),TEXT(($O$9-SUM($N$11:N32)-N33)/24,"[hh]:mm"))) -> 
C34: =IF(OR($K$9=0,AND($K$9=2,A34<=14)),1,IF(IF(ISNA(INDEX(X!$W$7:$W$20,MATCH(DATE($D$4,$C$4,A34),X!$AC$7:$AC$20,0))),1,2)=2,2,IF(OR(B34="Sa",B34="So"),2,IF($K$9=1,SUMIFS($R$4:$R$8,$S$4:$S$8,B34),IF(AND($K$9=2,A34<15),SUMIFS($R$4:$R$8,$S$4:$S$8,B34),IF(AND($K$9=2,A34>14),SUMIFS($R$12:$R$16,$S$12:$S$16,B34),IF(AND($K$9=3,A34>14),SUMIFS($R$12:$R$16,$S$12:$S$16,B34),IF(AND($K$9=3,A34<15),SUMIFS($R$4:$R$8,$S$4:$S$8,B34),1)))))))) -> 1 | I34: =IF($K$9>0,IF(SUM($K$11:$K34,$I$6)<0,TEXT(-(SUM($K$11:K34,$I$6)/60)/24,"-[h]:mm"),TEXT((SUM($K$11:K34,$I$6)/60)/24,"[h]:mm")),"") ->  | L34: 0 | M34: 0 | O34: =IF(OR($O$3="",$N34=""),"",IF($O$9-SUM($N$11:N33)-N34<0,TEXT(-(($O$9-SUM($N$11:N33)-N34)/24),"-[hh]:mm"),TEXT(($O$9-SUM($N$11:N33)-N34)/24,"[hh]:mm"))) -> 
C35: =IF(OR($K$9=0,AND($K$9=2,A35<=14)),1,IF(IF(ISNA(INDEX(X!$W$7:$W$20,MATCH(DATE($D$4,$C$4,A35),X!$AC$7:$AC$20,0))),1,2)=2,2,IF(OR(B35="Sa",B35="So"),2,IF($K$9=1,SUMIFS($R$4:$R$8,$S$4:$S$8,B35),IF(AND($K$9=2,A35<15),SUMIFS($R$4:$R$8,$S$4:$S$8,B35),IF(AND($K$9=2,A35>14),SUMIFS($R$12:$R$16,$S$12:$S$16,B35),IF(AND($K$9=3,A35>14),SUMIFS($R$12:$R$16,$S$12:$S$16,B35),IF(AND($K$9=3,A35<15),SUMIFS($R$4:$R$8,$S$4:$S$8,B35),1)))))))) -> 1 | I35: =IF($K$9>0,IF(SUM($K$11:$K35,$I$6)<0,TEXT(-(SUM($K$11:K35,$I$6)/60)/24,"-[h]:mm"),TEXT((SUM($K$11:K35,$I$6)/60)/24,"[h]:mm")),"") ->  | L35: 0 | M35: 0 | O35: =IF(OR($O$3="",$N35=""),"",IF($O$9-SUM($N$11:N34)-N35<0,TEXT(-(($O$9-SUM($N$11:N34)-N35)/24),"-[hh]:mm"),TEXT(($O$9-SUM($N$11:N34)-N35)/24,"[hh]:mm"))) -> 
C36: =IF(OR($K$9=0,AND($K$9=2,A36<=14)),1,IF(IF(ISNA(INDEX(X!$W$7:$W$20,MATCH(DATE($D$4,$C$4,A36),X!$AC$7:$AC$20,0))),1,2)=2,2,IF(OR(B36="Sa",B36="So"),2,IF($K$9=1,SUMIFS($R$4:$R$8,$S$4:$S$8,B36),IF(AND($K$9=2,A36<15),SUMIFS($R$4:$R$8,$S$4:$S$8,B36),IF(AND($K$9=2,A36>14),SUMIFS($R$12:$R$16,$S$12:$S$16,B36),IF(AND($K$9=3,A36>14),SUMIFS($R$12:$R$16,$S$12:$S$16,B36),IF(AND($K$9=3,A36<15),SUMIFS($R$4:$R$8,$S$4:$S$8,B36),1)))))))) -> 1 | I36: =IF($K$9>0,IF(SUM($K$11:$K36,$I$6)<0,TEXT(-(SUM($K$11:K36,$I$6)/60)/24,"-[h]:mm"),TEXT((SUM($K$11:K36,$I$6)/60)/24,"[h]:mm")),"") ->  | L36: 0 | M36: 0 | O36: =IF(OR($O$3="",$N36=""),"",IF($O$9-SUM($N$11:N35)-N36<0,TEXT(-(($O$9-SUM($N$11:N35)-N36)/24),"-[hh]:mm"),TEXT(($O$9-SUM($N$11:N35)-N36)/24,"[hh]:mm"))) -> 
C37: =IF(OR($K$9=0,AND($K$9=2,A37<=14)),1,IF(IF(ISNA(INDEX(X!$W$7:$W$20,MATCH(DATE($D$4,$C$4,A37),X!$AC$7:$AC$20,0))),1,2)=2,2,IF(OR(B37="Sa",B37="So"),2,IF($K$9=1,SUMIFS($R$4:$R$8,$S$4:$S$8,B37),IF(AND($K$9=2,A37<15),SUMIFS($R$4:$R$8,$S$4:$S$8,B37),IF(AND($K$9=2,A37>14),SUMIFS($R$12:$R$16,$S$12:$S$16,B37),IF(AND($K$9=3,A37>14),SUMIFS($R$12:$R$16,$S$12:$S$16,B37),IF(AND($K$9=3,A37<15),SUMIFS($R$4:$R$8,$S$4:$S$8,B37),1)))))))) -> 1 | I37: =IF($K$9>0,IF(SUM($K$11:$K37,$I$6)<0,TEXT(-(SUM($K$11:K37,$I$6)/60)/24,"-[h]:mm"),TEXT((SUM($K$11:K37,$I$6)/60)/24,"[h]:mm")),"") ->  | L37: 0 | M37: 0 | O37: =IF(OR($O$3="",$N37=""),"",IF($O$9-SUM($N$11:N36)-N37<0,TEXT(-(($O$9-SUM($N$11:N36)-N37)/24),"-[hh]:mm"),TEXT(($O$9-SUM($N$11:N36)-N37)/24,"[hh]:mm"))) -> 
C38: =IF(OR($K$9=0,AND($K$9=2,A38<=14)),1,IF(IF(ISNA(INDEX(X!$W$7:$W$20,MATCH(DATE($D$4,$C$4,A38),X!$AC$7:$AC$20,0))),1,2)=2,2,IF(OR(B38="Sa",B38="So"),2,IF($K$9=1,SUMIFS($R$4:$R$8,$S$4:$S$8,B38),IF(AND($K$9=2,A38<15),SUMIFS($R$4:$R$8,$S$4:$S$8,B38),IF(AND($K$9=2,A38>14),SUMIFS($R$12:$R$16,$S$12:$S$16,B38),IF(AND($K$9=3,A38>14),SUMIFS($R$12:$R$16,$S$12:$S$16,B38),IF(AND($K$9=3,A38<15),SUMIFS($R$4:$R$8,$S$4:$S$8,B38),1)))))))) -> 1 | I38: =IF($K$9>0,IF(SUM($K$11:$K38,$I$6)<0,TEXT(-(SUM($K$11:K38,$I$6)/60)/24,"-[h]:mm"),TEXT((SUM($K$11:K38,$I$6)/60)/24,"[h]:mm")),"") ->  | L38: 0 | M38: 0 | O38: =IF(OR($O$3="",$N38=""),"",IF($O$9-SUM($N$11:N37)-N38<0,TEXT(-(($O$9-SUM($N$11:N37)-N38)/24),"-[hh]:mm"),TEXT(($O$9-SUM($N$11:N37)-N38)/24,"[hh]:mm"))) -> 
B39: =IF(OR(A38="",$D$4=""),"",TEXT(DATE($D$4,$C$4,A39),"ttt")) ->  | C39: =IF(OR($K$9=0,AND($K$9=2,A39<=14)),1,IF(IF(ISNA(INDEX(X!$W$7:$W$20,MATCH(DATE($D$4,$C$4,A39),X!$AC$7:$AC$20,0))),1,2)=2,2,IF(OR(B39="Sa",B39="So"),2,IF($K$9=1,SUMIFS($R$4:$R$8,$S$4:$S$8,B39),IF(AND($K$9=2,A39<15),SUMIFS($R$4:$R$8,$S$4:$S$8,B39),IF(AND($K$9=2,A39>14),SUMIFS($R$12:$R$16,$S$12:$S$16,B39),IF(AND($K$9=3,A39>14),SUMIFS($R$12:$R$16,$S$12:$S$16,B39),IF(AND($K$9=3,A39<15),SUMIFS($R$4:$R$8,$S$4:$S$8,B39),1)))))))) -> 1 | I39: =IF($K$9>0,IF(SUM($K$11:$K39,$I$6)<0,TEXT(-(SUM($K$11:K39,$I$6)/60)/24,"-[h]:mm"),TEXT((SUM($K$11:K39,$I$6)/60)/24,"[h]:mm")),"") ->  | L39: 0 | M39: 0 | O39: =IF(OR($O$3="",$N39=""),"",IF($O$9-SUM($N$11:N38)-N39<0,TEXT(-(($O$9-SUM($N$11:N38)-N39)/24),"-[hh]:mm"),TEXT(($O$9-SUM($N$11:N38)-N39)/24,"[hh]:mm"))) -> 
B40: =IF(OR(A39="",$D$4=""),"",TEXT(DATE($D$4,$C$4,A40),"ttt")) ->  | C40: =IF(OR($K$9=0,AND($K$9=2,A40<=14)),1,IF(IF(ISNA(INDEX(X!$W$7:$W$20,MATCH(DATE($D$4,$C$4,A40),X!$AC$7:$AC$20,0))),1,2)=2,2,IF(OR(B40="Sa",B40="So"),2,IF($K$9=1,SUMIFS($R$4:$R$8,$S$4:$S$8,B40),IF(AND($K$9=2,A40<15),SUMIFS($R$4:$R$8,$S$4:$S$8,B40),IF(AND($K$9=2,A40>14),SUMIFS($R$12:$R$16,$S$12:$S$16,B40),IF(AND($K$9=3,A40>14),SUMIFS($R$12:$R$16,$S$12:$S$16,B40),IF(AND($K$9=3,A40<15),SUMIFS($R$4:$R$8,$S$4:$S$8,B40),1)))))))) -> 1 | I40: =IF($K$9>0,IF(SUM($K$11:$K40,$I$6)<0,TEXT(-(SUM($K$11:K40,$I$6)/60)/24,"-[h]:mm"),TEXT((SUM($K$11:K40,$I$6)/60)/24,"[h]:mm")),"") ->  | L40: 0 | M40: 0 | O40: =IF(OR($O$3="",$N40=""),"",IF($O$9-SUM($N$11:N39)-N40<0,TEXT(-(($O$9-SUM($N$11:N39)-N40)/24),"-[hh]:mm"),TEXT(($O$9-SUM($N$11:N39)-N40)/24,"[hh]:mm"))) -> 
C41: =IF(OR($K$9=0,AND($K$9=2,A41<=14)),1,IF(IF(ISNA(INDEX(X!$W$7:$W$20,MATCH(DATE($D$4,$C$4,A41),X!$AC$7:$AC$20,0))),1,2)=2,2,IF(OR(B41="Sa",B41="So"),2,IF($K$9=1,SUMIFS($R$4:$R$8,$S$4:$S$8,B41),IF(AND($K$9=2,A41<15),SUMIFS($R$4:$R$8,$S$4:$S$8,B41),IF(AND($K$9=2,A41>14),SUMIFS($R$12:$R$16,$S$12:$S$16,B41),IF(AND($K$9=3,A41>14),SUMIFS($R$12:$R$16,$S$12:$S$16,B41),IF(AND($K$9=3,A41<15),SUMIFS($R$4:$R$8,$S$4:$S$8,B41),1)))))))) -> 1 | I41: =IF($K$9>0,IF(SUM($K$11:$K41,$I$6)<0,TEXT(-(SUM($K$11:K41,$I$6)/60)/24,"-[h]:mm"),TEXT((SUM($K$11:K41,$I$6)/60)/24,"[h]:mm")),"") ->  | L41: 0 | M41: 0 | O41: =IF(OR($O$3="",$N41=""),"",IF($O$9-SUM($N$11:N40)-N41<0,TEXT(-(($O$9-SUM($N$11:N40)-N41)/24),"-[hh]:mm"),TEXT(($O$9-SUM($N$11:N40)-N41)/24,"[hh]:mm"))) -> 
G42: =L42+K42 -> 0 | H42: =K42 -> 0 | K42: =SUM(K11:K41) -> 0 | L42: =-SUM(L11:L41) -> 0 | M42: =M41 -> 0 | N42: =SUM(N11:N41)*60 -> 0 | Q42: =IF((G42/60)<0,TEXT(-((G42/60)/24),"-[hh]:mm"),TEXT((G42/60)/24,"[hh]:mm")) -> 00:00
A43: =IF(G4="","","Ergebnis") ->  | G43: =IF(G4="","",IF(((G42-N42)/60)<0,TEXT(-(((G42-N42)/60)/24),"-[hh]:mm"),TEXT(((G42-N42)/60)/24,"[hh]:mm"))) ->  | H43: =IF(G4="","",IF(H42<0,TEXT(-((H42/60)/24),"-[hh]:mm"),IF((H42/60)>24,TEXT((((H42/60)-24)/24)+(24/24),"[hh]:mm"),(H42/60)/24))) ->  | I43: =IF($K$9>0,IF(SUM(I6,K43)<0,TEXT(-(SUM(I6,K43)/60)/24,"-[h]:mm"),TEXT((SUM(I6,K43)/60)/24,"[h]:mm")),"") ->  | K43: =IF(L42<>L43,G42-L43,K42) -> 0 | L43: =IF(AND(K9=1,SUM(U4:U8)<>H9),((H9/5)*COUNTIFS(C11:C41,"<>"&2,F11:F41,""))*60,IF(AND(K9=2,SUM(U12:U16)<>I9),((I9/5)*COUNTIFS(C11:C41,"<>"&2,F11:F41,""))*60,IF(AND(K9=3,OR(SUM(U4:U8)<>H9,SUM(U12:U16)<>I9)),SUM(IF(SUM(U4:U8)<>H9,((H9/5)*COUNTIFS(C11:C41,"<>"&2,A11:A41,"<"&15,F11:F41,""))*60,-SUMIFS(L11:L41,A11:A41,"<"&15,F11:F41,"")),IF(SUM(U12:U16)<>I9,((I9/5)*COUNTIFS(C11:C41,"<>"&2,A11:A41,">"&14,F11:F41,""))*60,-SUMIFS(L11:L41,A11:A41,">"&14,F11:F41,""))),-SUM(L11:L41)))) -> 0 | N43: =IF(N42<0,TEXT(-((N42/60)/24),"-[hh]:mm"),TEXT((N42/60)/24,"[hh]:mm")) -> 00:00 | Q43: =Q42 -> 00:00
A44: =IF(G4="","","Saldo / Übertrag:") ->  | I44: =I43 ->  | J44: =IF(K42<>K43,"automatische Nachberechnung der Sollarbeitszeit, da wöchentlicher Stundenumfang nicht eingehalten wurde.","") ->  | K44: =K43+I6 -> 0 | L44: Übertrag
A46: =IF(I46="","","Korrektur der Stunden") ->  | I46: =IF(K9>0,IF(K42-K43<>0,IF(K43-K42<0,TEXT(-((K43-K42)/60)/24,"-[h]:mm"),TEXT(((K43-K42)/60)/24,"[h]:mm")),""),"") -> 
A57: =D4 ->  | B57: =C4 -> 1 | C57: =Uebersicht!A4 -> 0 | D57: =Uebersicht!B4 -> 0 | E57: =L43 -> 0 | F57: =K42 -> 0 | G57: =K43 -> 0 | H57: =M10 -> 0 | I57: =M42 -> 0
A58: =CELL("Dateiname",A1) -> R:\SHKs AAA\SHK Persoenlich\Zeiterfassung Vorlage\[Zeiterfassung_WHK_IO.xlsm]Jan

Sheet Feb
A1: Zeiterfassungsbogen für studentische Hilfskräfte | International Office | V1: "nein" auswählen, wenn keine festen Tage mehr gelten sollen!
A2: =IF(Uebersicht!A4="","",CONCATENATE(Uebersicht!B4," ",Uebersicht!A4)) -> 
N3: =INDEX(Uebersicht!AO5:AQ28,MATCH(C4,Uebersicht!AO5:AO28,0),3) -> 0 | O3: =INDEX(Uebersicht!AO5:AQ28,MATCH(C4+0.5,Uebersicht!AO5:AO28,0),3) -> 0 | S3: Tag | T3: h
A4: =IF(D4="","",TEXT(DATE(D4,C4,1),"MMM")) ->  | C4: 2 | D4: =Uebersicht!I1 ->  | G4: =IF(INDEX(Uebersicht!AO31:AQ42,MATCH(C4,Uebersicht!AO31:AO43,0),2)=0,"",INDEX(Uebersicht!AO31:AQ42,MATCH(C4,Uebersicht!AO31:AO43,0),2)) ->  | N4: =INDEX(Uebersicht!AO31:AQ42,MATCH(C4,Uebersicht!AO31:AO43,0),3) -> 0 | R4: =IF(OR($K$9=2,$K$9=0),1,IF(AND(OR($K$9=1,$K$9=3),OR(SUM($U$4:$U$8)=0,$U$1="nein")),3,IF(AND($U$1="",SUM($U$4:$U$8)>0,U4>=1,OR($K$9=3,$K$9=1)),4,1))) -> 1 | S4: Mo | U4: =IF(AND(H9=0,I9=0),0,IF(OR($K$9=0,INDIRECT("'"&TEXT(DATE(D4,$C$4-1,1),"MMM")&"'!$U$1")="nein",$U$1="nein"),0,IF(T4>0,T4,INDEX(Uebersicht!$BA$3:$BE$14,$C$4,MATCH(S4,Uebersicht!$BA$2:$BE$2,0))))) -> 0
R5: =IF(OR($K$9=2,$K$9=0),1,IF(AND(OR($K$9=1,$K$9=3),OR(SUM($U$4:$U$8)=0,$U$1="nein")),3,IF(AND($U$1="",SUM($U$4:$U$8)>0,U5>=1,OR($K$9=3,$K$9=1)),4,1))) -> 1 | S5: Di | U5: =IF(OR($K$9=0,INDIRECT("'"&TEXT(DATE(D5,$C$4-1,1),"MMM")&"'!$U$1")="nein",$U$1="nein"),0,IF(T5>0,T5,INDEX(Uebersicht!$BA$3:$BE$14,$C$4,MATCH(S5,Uebersicht!$BA$2:$BE$2,0)))) -> 0
C6: =DAY(DATE(D4,C4+1,1)-1) ->  | H6: =IF(N4=0,"","Arbeitsgebiet 1") ->  | I6: =IF(AND(I9=0,H9=0),0,IF(C4-1=0,Uebersicht!G4,INDIRECT("'"&TEXT(DATE(D4,C4-1,1),"MMM")&"'!K44"))) -> 0 | K6: nein | N6: =IF(N4="","","Arbeitsgebiet 2") -> Arbeitsgebiet 2 | R6: =IF(OR($K$9=2,$K$9=0),1,IF(AND(OR($K$9=1,$K$9=3),OR(SUM($U$4:$U$8)=0,$U$1="nein")),3,IF(AND($U$1="",SUM($U$4:$U$8)>0,U6>=1,OR($K$9=3,$K$9=1)),4,1))) -> 1 | S6: Mi | U6: =IF(OR($K$9=0,INDIRECT("'"&TEXT(DATE(D6,$C$4-1,1),"MMM")&"'!$U$1")="nein",$U$1="nein"),0,IF(T6>0,T6,INDEX(Uebersicht!$BA$3:$BE$14,$C$4,MATCH(S6,Uebersicht!$BA$2:$BE$2,0)))) -> 0
A7: =IF(AND(H9>0,I9=0),CONCATENATE(H9," Wochenarbeitszeit (h)"),IF(AND(H9=0,I9>0),CONCATENATE(I9," Wochenarbeitszeit (h)"),IF(AND(H9>0,I9>0,H9<>I9),CONCATENATE(H9," h, ab 15. ",TEXT(DATE(D4,C4,1),"MMMM")," ",I9,"h"),""))) ->  | F7: =IF(G4="","",IF(M42/60>0,TEXT((M42/60)/24,"[h]:mm"),0)) ->  | G7: =IF(F7="","","Urlaubsrest") ->  | I7: =IF(AND(YEAR(TODAY())=D4,MONTH(TODAY())>=C4,K9>0),IF(OR(I6=0,I6=""),0,IF(I6<0,TEXT(-(I6/60)/24,"-[h]:mm"),TEXT((I6/60)/24,"[h]:mm"))),"") ->  | J7: =IF(I7="","",CONCATENATE("h Übertrag aus ",IF(C6=1,"Vorjahr","Vormonat"))) ->  | K7: Urlaub | N7: =IF(AND(N3>0,O3=0),CONCATENATE(N3," Stunden - Anteil pro Woche"),IF(AND(N3=0,O3>0),CONCATENATE(O3," Stunden - Anteil pro Woche"),IF(AND(N3>0,O3>0,O3<>N3),CONCATENATE(N3," h, ab 15. ",TEXT(DATE(D4,C4,1),"MMMM")," ",O3,"h"),IF(N3=O3,CONCATENATE(N3," Stunden - Anteil pro Woche"),"")))) -> 0 Stunden - Anteil pro Woche | R7: =IF(OR($K$9=2,$K$9=0),1,IF(AND(OR($K$9=1,$K$9=3),OR(SUM($U$4:$U$8)=0,$U$1="nein")),3,IF(AND($U$1="",SUM($U$4:$U$8)>0,U7>=1,OR($K$9=3,$K$9=1)),4,1))) -> 1 | S7: Do | U7: =IF(OR($K$9=0,INDIRECT("'"&TEXT(DATE(D7,$C$4-1,1),"MMM")&"'!$U$1")="nein",$U$1="nein"),0,IF(T7>0,T7,INDEX(Uebersicht!$BA$3:$BE$14,$C$4,MATCH(S7,Uebersicht!$BA$2:$BE$2,0)))) -> 0
K8: Krank | R8: =IF(OR($K$9=2,$K$9=0),1,IF(AND(OR($K$9=1,$K$9=3),OR(SUM($U$4:$U$8)=0,$U$1="nein")),3,IF(AND($U$1="",SUM($U$4:$U$8)>0,U8>=1,OR($K$9=3,$K$9=1)),4,1))) -> 1 | S8: Fr | U8: =IF(OR($K$9=0,INDIRECT("'"&TEXT(DATE(D8,$C$4-1,1),"MMM")&"'!$U$1")="nein",$U$1="nein"),0,IF(T8>0,T8,INDEX(Uebersicht!$BA$3:$BE$14,$C$4,MATCH(S8,Uebersicht!$BA$2:$BE$2,0)))) -> 0
H9: =INDEX(Uebersicht!AU3:AW14,C4,2) -> 0 | I9: =IF(INDEX(Uebersicht!AU3:AW14,C4,3)=H9,0,INDEX(Uebersicht!AU3:AW14,C4,3)) -> 0 | K9: =IF(AND(H9>0,I9=0),1,IF(AND(H9=0,I9>0),2,IF(AND(H9=0,I9=0),0,IF(H9<>I9,3,"")))) -> 0 | O9: =IF(OR(N3>0,O3>0),IF(OR(K9=1,K9=2),(IF(K9=1,N3,IF(K9=2,O2,0))/5)*NETWORKDAYS(IF(K9=1,DATE(D4,C4,1),IF(K9=2,DATE(D4,C4,15),0)),IF(OR(K9=1,K9=2),DATE(D4,C4,MAX(A11:A41)),0),COUNTIFS(C11:C41,"<>"&2)),IF(K9=3,SUM(IF(N3>0,(N3/5)*NETWORKDAYS(DATE(D4,C4,1),DATE(D4,C4,14),2),0),IF(O3>0,(O3/5)*NETWORKDAYS(DATE(D4,C4,15),DATE(D4,C4,MAX(A11:A41)),2),0)),0)),"") ->  | S9: =IF(SUM(U4:U8)=0,"",IF(SUM(U4:U8)>H9,"zu viel!",IF(SUM(U4:U8)<H9,"zu wenig!",""))) ->  | U9: =IF(OR(U1="nein",SUM(U4:U8)=0),"ja",IF(OR(SUM(Uebersicht!C36:C40)>0,SUM(T4:T8)>0,SUM(U4:U8)>0),"nein","ja")) -> ja
A10: Tag | D10: Beginn | E10: Ende | F10: Urlaub Krank | G10: Stunden | H10: Mehr/ Minder | I10: Saldo summiert | J10: Bemerkungen | K10: Differenz | L10: Soll | M10: =IF(AND(I9=0,H9=0),0,IF(C4-1=0,IF(Uebersicht!E8="",0,Uebersicht!E8*60),INDIRECT("'"&TEXT(DATE(D4,C4-1,1),"MMM")&"'!M42"))) -> 0 | N10: Stunden | O10: Rest | P10: Bemerkungen | Q10: Gesamt | S10: Änderung im laufenden Monat
A11: 1 | B11: =IF(OR(A11="",$D$4=""),"",TEXT(DATE($D$4,$C$4,A11),"ttt")) ->  | C11: =IF(OR($K$9=0,AND($K$9=2,A11<=14)),1,IF(IF(ISNA(INDEX(X!$W$7:$W$20,MATCH(DATE($D$4,$C$4,A11),X!$AC$7:$AC$20,0))),1,2)=2,2,IF(OR(B11="Sa",B11="So"),2,IF($K$9=1,SUMIFS($R$4:$R$8,$S$4:$S$8,B11),IF(AND($K$9=2,A11<15),SUMIFS($R$4:$R$8,$S$4:$S$8,B11),IF(AND($K$9=2,A11>14),SUMIFS($R$12:$R$16,$S$12:$S$16,B11),IF(AND($K$9=3,A11>14),SUMIFS($R$12:$R$16,$S$12:$S$16,B11),IF(AND($K$9=3,A11<15),SUMIFS($R$4:$R$8,$S$4:$S$8,B11),1)))))))) -> 1 | G11: =IF(AND(D11="",E11=""),"",IF(N11="",IF(((HOUR(E11)*60+MINUTE(E11))-(HOUR(D11)*60+MINUTE(D11)))>360,TEXT(((((HOUR(E11)*60+MINUTE(E11))-(HOUR(D11)*60+MINUTE(D11)))-30)/60)/24,"[h]:mm"),TEXT((((HOUR(E11)*60+MINUTE(E11))-(HOUR(D11)*60+MINUTE(D11)))/60)/24,"[h]:mm")),IF((((HOUR(E11)*60+MINUTE(E11))-(HOUR(D11)*60+MINUTE(D11)))-N11)>360,TEXT(((((((HOUR(E11)*60+MINUTE(E11))-(HOUR(D11)*60+MINUTE(D11)))-30))/60)-N11)/24,"[h]:mm"),TEXT(((((HOUR(E11)*60+MINUTE(E11))-(HOUR(D11)*60+MINUTE(D11)))/60)-N11)/24,"[h]:mm")))) ->  | H11: =IF(K11="","",IF(TODAY()<=DATE($D$4,$C$4,A11),0,IF(K11>0,TEXT((K11/60)/24,"[h]:mm"),TEXT(-(K11/60)/24,"-[h]:mm")))) ->  | I11: =IF($K$9>0,IF(SUM($K$11:$K11,I6)<0,TEXT(-(SUM($K$11:K11,I6)/60)/24,"-[h]:mm"),TEXT((SUM($K$11:K11,I6)/60)/24,"[h]:mm")),"") ->  | K11: =IF(F11="",IF(L11<0,L11+IF(G11=" ",0,IF(((HOUR(E11)*60+MINUTE(E11))-(HOUR(D11)*60+MINUTE(D11)))>360,(HOUR(E11)*60+MINUTE(E11))-(HOUR(D11)*60+MINUTE(D11))-30,(HOUR(E11)*60+MINUTE(E11))-(HOUR(D11)*60+MINUTE(D11)))),IF(Q11="","",(Q11*60)*24)),"") ->  | L11: =IF(OR(F11="krank",F11="Urlaub",C11=1,C11=2),0,IF($K$9=1,IF(SUM($U$4:$U$8)=0,$H$9/5,INDEX($S$4:$U$8,MATCH(B11,$S$4:$S$8,0),3)),IF($K$9=2,IF(AND(A11>14,SUM($U$12:$U$16)=0),$I$9/5,INDEX($S$12:$U$16,MATCH(B11,$S$12:$S$16,0),3)),IF($K$9=3,IF(A11<15,IF(SUM($U$4:$U$8)=0,$H$9/5,INDEX($S$4:$U$8,MATCH(B11,$S$4:$S$8,0),3))),IF(A11>14,IF(SUM($U$12:$U$16)=0,$I$9/5,INDEX($S$12:$U$16,MATCH(B11,$S$12:$S$16,0),3))))))*-60) -> 0 | M11: =M10-(IF(OR(C11=1,C11=2),0,IF(C11=3,IF(AND($K$9=1,F11="Urlaub"),$H$9/5,IF($K$9=2,IF(AND(A11<15,F11="Urlaub"),$I$9/5,IF(AND($K$9=3,A11<15,F11="Urlaub"),$H$9/5,IF(AND($K$9=3,A11>14,F11="Urlaub"),$I$9/5))))),IF(C11=4,IF(AND(F11="Urlaub",$K$9=1),SUMIFS($U$4:$U$8,$S$4:$S$8,B11),IF(AND(F11="Urlaub",$K$9=2,A11>14),SUMIFS($U$12:$U$16,$S$12:$S$16,B11),IF(AND(F11="Urlaub",$K$9=3,A11<15),SUMIFS($U$4:$U$8,$S$4:$S$8,B11),IF(AND(F11="Urlaub",$K$9=3,A11>14),SUMIFS($U$12:$U$16,$S$12:$S$16,B11),0)))))))*60) -> 0 | O11: =IF(OR($O$3="",$N$3="",N11=""),"",IF($O$9-SUM($N10:N$11)-N11<0,TEXT(-(($O$9-SUM($N10:N$11)-N11)/24),"-[hh]:mm"),TEXT(($O$9-SUM($N10:N$11)-N11)/24,"[hh]:mm"))) ->  | Q11: =IF(AND(D11="",E11=""),"",IF(((HOUR(E11)*60+MINUTE(E11))-(HOUR(D11)*60+MINUTE(D11)))>360,TEXT(((((HOUR(E11)*60+MINUTE(E11))-(HOUR(D11)*60+MINUTE(D11)))-30)/60)/24,"[h]:mm"),TEXT((((HOUR(E11)*60+MINUTE(E11))-(HOUR(D11)*60+MINUTE(D11)))/60)/24,"[h]:mm"))) -> 
A12: =IF(OR(A11="",$D$4=""),"",IF(A11+1<=$C$6,A11+1,"")) ->  | C12: =IF(OR($K$9=0,AND($K$9=2,A12<=14)),1,IF(IF(ISNA(INDEX(X!$W$7:$W$20,MATCH(DATE($D$4,$C$4,A12),X!$AC$7:$AC$20,0))),1,2)=2,2,IF(OR(B12="Sa",B12="So"),2,IF($K$9=1,SUMIFS($R$4:$R$8,$S$4:$S$8,B12),IF(AND($K$9=2,A12<15),SUMIFS($R$4:$R$8,$S$4:$S$8,B12),IF(AND($K$9=2,A12>14),SUMIFS($R$12:$R$16,$S$12:$S$16,B12),IF(AND($K$9=3,A12>14),SUMIFS($R$12:$R$16,$S$12:$S$16,B12),IF(AND($K$9=3,A12<15),SUMIFS($R$4:$R$8,$S$4:$S$8,B12),1)))))))) -> 1 | I12: =IF($K$9>0,IF(SUM($K$11:$K12,$I$6)<0,TEXT(-(SUM($K$11:K12,$I$6)/60)/24,"-[h]:mm"),TEXT((SUM($K$11:K12,$I$6)/60)/24,"[h]:mm")),"") ->  | K12: =IF(F12="",IF(L12<0,L12+IF(G12=" ",0,IF(((HOUR(E12)*60+MINUTE(E12))-(HOUR(D12)*60+MINUTE(D12)))>360,(HOUR(E12)*60+MINUTE(E12))-(HOUR(D12)*60+MINUTE(D12))-30,(HOUR(E12)*60+MINUTE(E12))-(HOUR(D12)*60+MINUTE(D12)))),IF(Q12="","",(Q12*60)*24)),"") ->  | L12: =IF(OR(F12="krank",F12="Urlaub",C12=1,C12=2),0,IF($K$9=1,IF(SUM($U$4:$U$8)=0,$H$9/5,INDEX($S$4:$U$8,MATCH(B12,$S$4:$S$8,0),3)),IF($K$9=2,IF(AND(A12>14,SUM($U$12:$U$16)=0),$I$9/5,INDEX($S$12:$U$16,MATCH(B12,$S$12:$S$16,0),3)),IF($K$9=3,IF(A12<15,IF(SUM($U$4:$U$8)=0,$H$9/5,INDEX($S$4:$U$8,MATCH(B12,$S$4:$S$8,0),3)),IF(SUM($U$12:$U$16)=0,$I$9/5,INDEX($S$12:$U$16,MATCH(B12,$S$12:$S$16,0),3)))))))*-60 -> 0 | M12: 0 | N12: 5.5 | O12: =IF(OR($O$3="",$N$3="",N12=""),"",IF($O$9-SUM($N$11:N11)-N12<0,TEXT(-(($O$9-SUM($N$11:N11)-N12)/24),"-[hh]:mm"),TEXT(($O$9-SUM($N$11:N11)-N12)/24,"[hh]:mm"))) ->  | R12: =IF($K$9=0,1,IF($K$9=1,R4,IF(AND($K$9=3,OR(SUM($U$12:$U$16)=0,$U$1="nein")),3,IF(AND($U$1="",SUM($U$12:$U$16)>0,U12>=1,OR($K$9=3,$K$9=2)),4,1)))) -> 1 | S12: Mo | U12: =IF(AND(I9=0,H9=0),0,IF(OR($K$9=0,INDIRECT("'"&TEXT(DATE(D4,$C$4-1,1),"MMM")&"'!$U$1")="nein",$U$1="nein"),0,IF(T12>0,T12,INDEX(Uebersicht!$BF$3:$BJ$14,$C$4,MATCH(S12,Uebersicht!$BF$2:$BJ$2,0))))) -> 0
A13: =IF(OR(A12="",$D$4=""),"",IF(A12+1<=$C$6,A12+1,"")) ->  | C13: =IF(OR($K$9=0,AND($K$9=2,A13<=14)),1,IF(IF(ISNA(INDEX(X!$W$7:$W$20,MATCH(DATE($D$4,$C$4,A13),X!$AC$7:$AC$20,0))),1,2)=2,2,IF(OR(B13="Sa",B13="So"),2,IF($K$9=1,SUMIFS($R$4:$R$8,$S$4:$S$8,B13),IF(AND($K$9=2,A13<15),SUMIFS($R$4:$R$8,$S$4:$S$8,B13),IF(AND($K$9=2,A13>14),SUMIFS($R$12:$R$16,$S$12:$S$16,B13),IF(AND($K$9=3,A13>14),SUMIFS($R$12:$R$16,$S$12:$S$16,B13),IF(AND($K$9=3,A13<15),SUMIFS($R$4:$R$8,$S$4:$S$8,B13),1)))))))) -> 1 | I13: =IF($K$9>0,IF(SUM($K$11:$K13,$I$6)<0,TEXT(-(SUM($K$11:K13,$I$6)/60)/24,"-[h]:mm"),TEXT((SUM($K$11:K13,$I$6)/60)/24,"[h]:mm")),"") ->  | L13: 0 | M13: 0 | O13: =IF(OR($O$3="",$N$3="",N13=""),"",IF($O$9-SUM($N$11:N12)-N13<0,TEXT(-(($O$9-SUM($N$11:N12)-N13)/24),"-[hh]:mm"),TEXT(($O$9-SUM($N$11:N12)-N13)/24,"[hh]:mm"))) ->  | R13: =IF($K$9=0,1,IF($K$9=1,R5,IF(AND($K$9=3,OR(SUM($U$12:$U$16)=0,$U$1="nein")),3,IF(AND($U$1="",SUM($U$12:$U$16)>0,U13>=1,OR($K$9=3,$K$9=2)),4,1)))) -> 1 | S13: Di | U13: =IF(OR($K$9=0,INDIRECT("'"&TEXT(DATE(D5,$C$4-1,1),"MMM")&"'!$U$1")="nein",$U$1="nein"),0,IF(T13>0,T13,INDEX(Uebersicht!$BF$3:$BJ$14,$C$4,MATCH(S13,Uebersicht!$BF$2:$BJ$2,0)))) -> 0
C14: =IF(OR($K$9=0,AND($K$9=2,A14<=14)),1,IF(IF(ISNA(INDEX(X!$W$7:$W$20,MATCH(DATE($D$4,$C$4,A14),X!$AC$7:$AC$20,0))),1,2)=2,2,IF(OR(B14="Sa",B14="So"),2,IF($K$9=1,SUMIFS($R$4:$R$8,$S$4:$S$8,B14),IF(AND($K$9=2,A14<15),SUMIFS($R$4:$R$8,$S$4:$S$8,B14),IF(AND($K$9=2,A14>14),SUMIFS($R$12:$R$16,$S$12:$S$16,B14),IF(AND($K$9=3,A14>14),SUMIFS($R$12:$R$16,$S$12:$S$16,B14),IF(AND($K$9=3,A14<15),SUMIFS($R$4:$R$8,$S$4:$S$8,B14),1)))))))) -> 1 | I14: =IF($K$9>0,IF(SUM($K$11:$K14,$I$6)<0,TEXT(-(SUM($K$11:K14,$I$6)/60)/24,"-[h]:mm"),TEXT((SUM($K$11:K14,$I$6)/60)/24,"[h]:mm")),"") ->  | L14: 0 | M14: 0 | O14: =IF(OR($O$3="",$N$3="",N14=""),"",IF($O$9-SUM($N$11:N13)-N14<0,TEXT(-(($O$9-SUM($N$11:N13)-N14)/24),"-[hh]:mm"),TEXT(($O$9-SUM($N$11:N13)-N14)/24,"[hh]:mm"))) ->  | R14: =IF($K$9=0,1,IF($K$9=1,R6,IF(AND($K$9=3,OR(SUM($U$12:$U$16)=0,$U$1="nein")),3,IF(AND($U$1="",SUM($U$12:$U$16)>0,U14>=1,OR($K$9=3,$K$9=2)),4,1)))) -> 1 | S14: Mi | U14: =IF(OR($K$9=0,INDIRECT("'"&TEXT(DATE(D6,$C$4-1,1),"MMM")&"'!$U$1")="nein",$U$1="nein"),0,IF(T14>0,T14,INDEX(Uebersicht!$BF$3:$BJ$14,$C$4,MATCH(S14,Uebersicht!$BF$2:$BJ$2,0)))) -> 0
C15: =IF(OR($K$9=0,AND($K$9=2,A15<=14)),1,IF(IF(ISNA(INDEX(X!$W$7:$W$20,MATCH(DATE($D$4,$C$4,A15),X!$AC$7:$AC$20,0))),1,2)=2,2,IF(OR(B15="Sa",B15="So"),2,IF($K$9=1,SUMIFS($R$4:$R$8,$S$4:$S$8,B15),IF(AND($K$9=2,A15<15),SUMIFS($R$4:$R$8,$S$4:$S$8,B15),IF(AND($K$9=2,A15>14),SUMIFS($R$12:$R$16,$S$12:$S$16,B15),IF(AND($K$9=3,A15>14),SUMIFS($R$12:$R$16,$S$12:$S$16,B15),IF(AND($K$9=3,A15<15),SUMIFS($R$4:$R$8,$S$4:$S$8,B15),1)))))))) -> 1 | I15: =IF($K$9>0,IF(SUM($K$11:$K15,$I$6)<0,TEXT(-(SUM($K$11:K15,$I$6)/60)/24,"-[h]:mm"),TEXT((SUM($K$11:K15,$I$6)/60)/24,"[h]:mm")),"") ->  | L15: 0 | M15: 0 | O15: =IF(OR($O$3="",$N$3="",N15=""),"",IF($O$9-SUM($N$11:N14)-N15<0,TEXT(-(($O$9-SUM($N$11:N14)-N15)/24),"-[hh]:mm"),TEXT(($O$9-SUM($N$11:N14)-N15)/24,"[hh]:mm"))) ->  | R15: =IF($K$9=0,1,IF($K$9=1,R7,IF(AND($K$9=3,OR(SUM($U$12:$U$16)=0,$U$1="nein")),3,IF(AND($U$1="",SUM($U$12:$U$16)>0,U15>=1,OR($K$9=3,$K$9=2)),4,1)))) -> 1 | S15: Do | U15: =IF(OR($K$9=0,INDIRECT("'"&TEXT(DATE(D7,$C$4-1,1),"MMM")&"'!$U$1")="nein",$U$1="nein"),0,IF(T15>0,T15,INDEX(Uebersicht!$BF$3:$BJ$14,$C$4,MATCH(S15,Uebersicht!$BF$2:$BJ$2,0)))) -> 0
C16: =IF(OR($K$9=0,AND($K$9=2,A16<=14)),1,IF(IF(ISNA(INDEX(X!$W$7:$W$20,MATCH(DATE($D$4,$C$4,A16),X!$AC$7:$AC$20,0))),1,2)=2,2,IF(OR(B16="Sa",B16="So"),2,IF($K$9=1,SUMIFS($R$4:$R$8,$S$4:$S$8,B16),IF(AND($K$9=2,A16<15),SUMIFS($R$4:$R$8,$S$4:$S$8,B16),IF(AND($K$9=2,A16>14),SUMIFS($R$12:$R$16,$S$12:$S$16,B16),IF(AND($K$9=3,A16>14),SUMIFS($R$12:$R$16,$S$12:$S$16,B16),IF(AND($K$9=3,A16<15),SUMIFS($R$4:$R$8,$S$4:$S$8,B16),1)))))))) -> 1 | I16: =IF($K$9>0,IF(SUM($K$11:$K16,$I$6)<0,TEXT(-(SUM($K$11:K16,$I$6)/60)/24,"-[h]:mm"),TEXT((SUM($K$11:K16,$I$6)/60)/24,"[h]:mm")),"") ->  | L16: 0 | M16: 0 | O16: =IF(OR($O$3="",$N$3="",N16=""),"",IF($O$9-SUM($N$11:N15)-N16<0,TEXT(-(($O$9-SUM($N$11:N15)-N16)/24),"-[hh]:mm"),TEXT(($O$9-SUM($N$11:N15)-N16)/24,"[hh]:mm"))) ->  | R16: =IF($K$9=0,1,IF($K$9=1,R8,IF(AND($K$9=3,OR(SUM($U$12:$U$16)=0,$U$1="nein")),3,IF(AND($U$1="",SUM($U$12:$U$16)>0,U16>=1,OR($K$9=3,$K$9=2)),4,1)))) -> 1 | S16: Fr | U16: =IF(OR($K$9=0,INDIRECT("'"&TEXT(DATE(D8,$C$4-1,1),"MMM")&"'!$U$1")="nein",$U$1="nein"),0,IF(T16>0,T16,INDEX(Uebersicht!$BF$3:$BJ$14,$C$4,MATCH(S16,Uebersicht!$BF$2:$BJ$2,0)))) -> 0
C17: =IF(OR($K$9=0,AND($K$9=2,A17<=14)),1,IF(IF(ISNA(INDEX(X!$W$7:$W$20,MATCH(DATE($D$4,$C$4,A17),X!$AC$7:$AC$20,0))),1,2)=2,2,IF(OR(B17="Sa",B17="So"),2,IF($K$9=1,SUMIFS($R$4:$R$8,$S$4:$S$8,B17),IF(AND($K$9=2,A17<15),SUMIFS($R$4:$R$8,$S$4:$S$8,B17),IF(AND($K$9=2,A17>14),SUMIFS($R$12:$R$16,$S$12:$S$16,B17),IF(AND($K$9=3,A17>14),SUMIFS($R$12:$R$16,$S$12:$S$16,B17),IF(AND($K$9=3,A17<15),SUMIFS($R$4:$R$8,$S$4:$S$8,B17),1)))))))) -> 1 | I17: =IF($K$9>0,IF(SUM($K$11:$K17,$I$6)<0,TEXT(-(SUM($K$11:K17,$I$6)/60)/24,"-[h]:mm"),TEXT((SUM($K$11:K17,$I$6)/60)/24,"[h]:mm")),"") ->  | L17: 0 | M17: 0 | O17: =IF(OR($O$3="",$N$3="",N17=""),"",IF($O$9-SUM($N$11:N16)-N17<0,TEXT(-(($O$9-SUM($N$11:N16)-N17)/24),"-[hh]:mm"),TEXT(($O$9-SUM($N$11:N16)-N17)/24,"[hh]:mm"))) ->  | S17: =IF(I9=0,"",IF(SUM(U12:U16)>I9,"zu viel!",IF(SUM(U12:U16)<I9,"zu wenig!",""))) ->  | U17: =IF(OR(U9="nein",SUM(U12:U16)=0),"ja",IF(OR(SUM(Uebersicht!C43:C47)>0,SUM(T12:T16)>0,SUM(U12:U16)>0),"nein","ja")) -> ja
C18: =IF(OR($K$9=0,AND($K$9=2,A18<=14)),1,IF(IF(ISNA(INDEX(X!$W$7:$W$20,MATCH(DATE($D$4,$C$4,A18),X!$AC$7:$AC$20,0))),1,2)=2,2,IF(OR(B18="Sa",B18="So"),2,IF($K$9=1,SUMIFS($R$4:$R$8,$S$4:$S$8,B18),IF(AND($K$9=2,A18<15),SUMIFS($R$4:$R$8,$S$4:$S$8,B18),IF(AND($K$9=2,A18>14),SUMIFS($R$12:$R$16,$S$12:$S$16,B18),IF(AND($K$9=3,A18>14),SUMIFS($R$12:$R$16,$S$12:$S$16,B18),IF(AND($K$9=3,A18<15),SUMIFS($R$4:$R$8,$S$4:$S$8,B18),1)))))))) -> 1 | I18: =IF($K$9>0,IF(SUM($K$11:$K18,$I$6)<0,TEXT(-(SUM($K$11:K18,$I$6)/60)/24,"-[h]:mm"),TEXT((SUM($K$11:K18,$I$6)/60)/24,"[h]:mm")),"") ->  | L18: 0 | M18: 0 | O18: =IF(OR($O$3="",$N$3="",N18=""),"",IF($O$9-SUM($N$11:N17)-N18<0,TEXT(-(($O$9-SUM($N$11:N17)-N18)/24),"-[hh]:mm"),TEXT(($O$9-SUM($N$11:N17)-N18)/24,"[hh]:mm"))) -> 
C19: =IF(OR($K$9=0,AND($K$9=2,A19<=14)),1,IF(IF(ISNA(INDEX(X!$W$7:$W$20,MATCH(DATE($D$4,$C$4,A19),X!$AC$7:$AC$20,0))),1,2)=2,2,IF(OR(B19="Sa",B19="So"),2,IF($K$9=1,SUMIFS($R$4:$R$8,$S$4:$S$8,B19),IF(AND($K$9=2,A19<15),SUMIFS($R$4:$R$8,$S$4:$S$8,B19),IF(AND($K$9=2,A19>14),SUMIFS($R$12:$R$16,$S$12:$S$16,B19),IF(AND($K$9=3,A19>14),SUMIFS($R$12:$R$16,$S$12:$S$16,B19),IF(AND($K$9=3,A19<15),SUMIFS($R$4:$R$8,$S$4:$S$8,B19),1)))))))) -> 1 | I19: =IF($K$9>0,IF(SUM($K$11:$K19,$I$6)<0,TEXT(-(SUM($K$11:K19,$I$6)/60)/24,"-[h]:mm"),TEXT((SUM($K$11:K19,$I$6)/60)/24,"[h]:mm")),"") ->  | L19: 0 | M19: 0 | O19: =IF(OR($O$3="",$N$3="",N19=""),"",IF($O$9-SUM($N$11:N18)-N19<0,TEXT(-(($O$9-SUM($N$11:N18)-N19)/24),"-[hh]:mm"),TEXT(($O$9-SUM($N$11:N18)-N19)/24,"[hh]:mm"))) -> 
C20: =IF(OR($K$9=0,AND($K$9=2,A20<=14)),1,IF(IF(ISNA(INDEX(X!$W$7:$W$20,MATCH(DATE($D$4,$C$4,A20),X!$AC$7:$AC$20,0))),1,2)=2,2,IF(OR(B20="Sa",B20="So"),2,IF($K$9=1,SUMIFS($R$4:$R$8,$S$4:$S$8,B20),IF(AND($K$9=2,A20<15),SUMIFS($R$4:$R$8,$S$4:$S$8,B20),IF(AND($K$9=2,A20>14),SUMIFS($R$12:$R$16,$S$12:$S$16,B20),IF(AND($K$9=3,A20>14),SUMIFS($R$12:$R$16,$S$12:$S$16,B20),IF(AND($K$9=3,A20<15),SUMIFS($R$4:$R$8,$S$4:$S$8,B20),1)))))))) -> 1 | I20: =IF($K$9>0,IF(SUM($K$11:$K20,$I$6)<0,TEXT(-(SUM($K$11:K20,$I$6)/60)/24,"-[h]:mm"),TEXT((SUM($K$11:K20,$I$6)/60)/24,"[h]:mm")),"") ->  | L20: 0 | M20: 0 | O20: =IF(OR($O$3="",$N$3="",N20=""),"",IF($O$9-SUM($N$11:N19)-N20<0,TEXT(-(($O$9-SUM($N$11:N19)-N20)/24),"-[hh]:mm"),TEXT(($O$9-SUM($N$11:N19)-N20)/24,"[hh]:mm"))) -> 
C21: =IF(OR($K$9=0,AND($K$9=2,A21<=14)),1,IF(IF(ISNA(INDEX(X!$W$7:$W$20,MATCH(DATE($D$4,$C$4,A21),X!$AC$7:$AC$20,0))),1,2)=2,2,IF(OR(B21="Sa",B21="So"),2,IF($K$9=1,SUMIFS($R$4:$R$8,$S$4:$S$8,B21),IF(AND($K$9=2,A21<15),SUMIFS($R$4:$R$8,$S$4:$S$8,B21),IF(AND($K$9=2,A21>14),SUMIFS($R$12:$R$16,$S$12:$S$16,B21),IF(AND($K$9=3,A21>14),SUMIFS($R$12:$R$16,$S$12:$S$16,B21),IF(AND($K$9=3,A21<15),SUMIFS($R$4:$R$8,$S$4:$S$8,B21),1)))))))) -> 1 | I21: =IF($K$9>0,IF(SUM($K$11:$K21,$I$6)<0,TEXT(-(SUM($K$11:K21,$I$6)/60)/24,"-[h]:mm"),TEXT((SUM($K$11:K21,$I$6)/60)/24,"[h]:mm")),"") ->  | L21: 0 | M21: 0 | O21: =IF(OR($O$3="",$N$3="",N21=""),"",IF($O$9-SUM($N$11:N20)-N21<0,TEXT(-(($O$9-SUM($N$11:N20)-N21)/24),"-[hh]:mm"),TEXT(($O$9-SUM($N$11:N20)-N21)/24,"[hh]:mm"))) -> 
C22: =IF(OR($K$9=0,AND($K$9=2,A22<=14)),1,IF(IF(ISNA(INDEX(X!$W$7:$W$20,MATCH(DATE($D$4,$C$4,A22),X!$AC$7:$AC$20,0))),1,2)=2,2,IF(OR(B22="Sa",B22="So"),2,IF($K$9=1,SUMIFS($R$4:$R$8,$S$4:$S$8,B22),IF(AND($K$9=2,A22<15),SUMIFS($R$4:$R$8,$S$4:$S$8,B22),IF(AND($K$9=2,A22>14),SUMIFS($R$12:$R$16,$S$12:$S$16,B22),IF(AND($K$9=3,A22>14),SUMIFS($R$12:$R$16,$S$12:$S$16,B22),IF(AND($K$9=3,A22<15),SUMIFS($R$4:$R$8,$S$4:$S$8,B22),1)))))))) -> 1 | I22: =IF($K$9>0,IF(SUM($K$11:$K22,$I$6)<0,TEXT(-(SUM($K$11:K22,$I$6)/60)/24,"-[h]:mm"),TEXT((SUM($K$11:K22,$I$6)/60)/24,"[h]:mm")),"") ->  | L22: 0 | M22: 0 | O22: =IF(OR($O$3="",$N$3="",N22=""),"",IF($O$9-SUM($N$11:N21)-N22<0,TEXT(-(($O$9-SUM($N$11:N21)-N22)/24),"-[hh]:mm"),TEXT(($O$9-SUM($N$11:N21)-N22)/24,"[hh]:mm"))) -> 
C23: =IF(OR($K$9=0,AND($K$9=2,A23<=14)),1,IF(IF(ISNA(INDEX(X!$W$7:$W$20,MATCH(DATE($D$4,$C$4,A23),X!$AC$7:$AC$20,0))),1,2)=2,2,IF(OR(B23="Sa",B23="So"),2,IF($K$9=1,SUMIFS($R$4:$R$8,$S$4:$S$8,B23),IF(AND($K$9=2,A23<15),SUMIFS($R$4:$R$8,$S$4:$S$8,B23),IF(AND($K$9=2,A23>14),SUMIFS($R$12:$R$16,$S$12:$S$16,B23),IF(AND($K$9=3,A23>14),SUMIFS($R$12:$R$16,$S$12:$S$16,B23),IF(AND($K$9=3,A23<15),SUMIFS($R$4:$R$8,$S$4:$S$8,B23),1)))))))) -> 1 | I23: =IF($K$9>0,IF(SUM($K$11:$K23,$I$6)<0,TEXT(-(SUM($K$11:K23,$I$6)/60)/24,"-[h]:mm"),TEXT((SUM($K$11:K23,$I$6)/60)/24,"[h]:mm")),"") ->  | L23: 0 | M23: 0 | O23: =IF(OR($O$3="",$N$3="",N23=""),"",IF($O$9-SUM($N$11:N22)-N23<0,TEXT(-(($O$9-SUM($N$11:N22)-N23)/24),"-[hh]:mm"),TEXT(($O$9-SUM($N$11:N22)-N23)/24,"[hh]:mm"))) -> 
C24: =IF(OR($K$9=0,AND($K$9=2,A24<=14)),1,IF(IF(ISNA(INDEX(X!$W$7:$W$20,MATCH(DATE($D$4,$C$4,A24),X!$AC$7:$AC$20,0))),1,2)=2,2,IF(OR(B24="Sa",B24="So"),2,IF($K$9=1,SUMIFS($R$4:$R$8,$S$4:$S$8,B24),IF(AND($K$9=2,A24<15),SUMIFS($R$4:$R$8,$S$4:$S$8,B24),IF(AND($K$9=2,A24>14),SUMIFS($R$12:$R$16,$S$12:$S$16,B24),IF(AND($K$9=3,A24>14),SUMIFS($R$12:$R$16,$S$12:$S$16,B24),IF(AND($K$9=3,A24<15),SUMIFS($R$4:$R$8,$S$4:$S$8,B24),1)))))))) -> 1 | I24: =IF($K$9>0,IF(SUM($K$11:$K24,$I$6)<0,TEXT(-(SUM($K$11:K24,$I$6)/60)/24,"-[h]:mm"),TEXT((SUM($K$11:K24,$I$6)/60)/24,"[h]:mm")),"") ->  | L24: 0 | M24: 0 | O24: =IF(OR($O$3="",$N$3="",N24=""),"",IF($O$9-SUM($N$11:N23)-N24<0,TEXT(-(($O$9-SUM($N$11:N23)-N24)/24),"-[hh]:mm"),TEXT(($O$9-SUM($N$11:N23)-N24)/24,"[hh]:mm"))) -> 
C25: =IF(OR($K$9=0,AND($K$9=2,A25<=14)),1,IF(IF(ISNA(INDEX(X!$W$7:$W$20,MATCH(DATE($D$4,$C$4,A25),X!$AC$7:$AC$20,0))),1,2)=2,2,IF(OR(B25="Sa",B25="So"),2,IF($K$9=1,SUMIFS($R$4:$R$8,$S$4:$S$8,B25),IF(AND($K$9=2,A25<15),SUMIFS($R$4:$R$8,$S$4:$S$8,B25),IF(AND($K$9=2,A25>14),SUMIFS($R$12:$R$16,$S$12:$S$16,B25),IF(AND($K$9=3,A25>14),SUMIFS($R$12:$R$16,$S$12:$S$16,B25),IF(AND($K$9=3,A25<15),SUMIFS($R$4:$R$8,$S$4:$S$8,B25),1)))))))) -> 1 | I25: =IF($K$9>0,IF(SUM($K$11:$K25,$I$6)<0,TEXT(-(SUM($K$11:K25,$I$6)/60)/24,"-[h]:mm"),TEXT((SUM($K$11:K25,$I$6)/60)/24,"[h]:mm")),"") ->  | L25: 0 | M25: 0 | O25: =IF(OR($O$3="",$N$3="",N25=""),"",IF($O$9-SUM($N$11:N24)-N25<0,TEXT(-(($O$9-SUM($N$11:N24)-N25)/24),"-[hh]:mm"),TEXT(($O$9-SUM($N$11:N24)-N25)/24,"[hh]:mm"))) -> 
C26: =IF(OR($K$9=0,AND($K$9=2,A26<=14)),1,IF(IF(ISNA(INDEX(X!$W$7:$W$20,MATCH(DATE($D$4,$C$4,A26),X!$AC$7:$AC$20,0))),1,2)=2,2,IF(OR(B26="Sa",B26="So"),2,IF($K$9=1,SUMIFS($R$4:$R$8,$S$4:$S$8,B26),IF(AND($K$9=2,A26<15),SUMIFS($R$4:$R$8,$S$4:$S$8,B26),IF(AND($K$9=2,A26>14),SUMIFS($R$12:$R$16,$S$12:$S$16,B26),IF(AND($K$9=3,A26>14),SUMIFS($R$12:$R$16,$S$12:$S$16,B26),IF(AND($K$9=3,A26<15),SUMIFS($R$4:$R$8,$S$4:$S$8,B26),1)))))))) -> 1 | I26: =IF($K$9>0,IF(SUM($K$11:$K26,$I$6)<0,TEXT(-(SUM($K$11:K26,$I$6)/60)/24,"-[h]:mm"),TEXT((SUM($K$11:K26,$I$6)/60)/24,"[h]:mm")),"") ->  | L26: 0 | M26: 0 | O26: =IF(OR($O$3="",$N$3="",N26=""),"",IF($O$9-SUM($N$11:N25)-N26<0,TEXT(-(($O$9-SUM($N$11:N25)-N26)/24),"-[hh]:mm"),TEXT(($O$9-SUM($N$11:N25)-N26)/24,"[hh]:mm"))) -> 
C27: =IF(OR($K$9=0,AND($K$9=2,A27<=14)),1,IF(IF(ISNA(INDEX(X!$W$7:$W$20,MATCH(DATE($D$4,$C$4,A27),X!$AC$7:$AC$20,0))),1,2)=2,2,IF(OR(B27="Sa",B27="So"),2,IF($K$9=1,SUMIFS($R$4:$R$8,$S$4:$S$8,B27),IF(AND($K$9=2,A27<15),SUMIFS($R$4:$R$8,$S$4:$S$8,B27),IF(AND($K$9=2,A27>14),SUMIFS($R$12:$R$16,$S$12:$S$16,B27),IF(AND($K$9=3,A27>14),SUMIFS($R$12:$R$16,$S$12:$S$16,B27),IF(AND($K$9=3,A27<15),SUMIFS($R$4:$R$8,$S$4:$S$8,B27),1)))))))) -> 1 | I27: =IF($K$9>0,IF(SUM($K$11:$K27,$I$6)<0,TEXT(-(SUM($K$11:K27,$I$6)/60)/24,"-[h]:mm"),TEXT((SUM($K$11:K27,$I$6)/60)/24,"[h]:mm")),"") ->  | L27: 0 | M27: 0 | O27: =IF(OR($O$3="",$N$3="",N27=""),"",IF($O$9-SUM($N$11:N26)-N27<0,TEXT(-(($O$9-SUM($N$11:N26)-N27)/24),"-[hh]:mm"),TEXT(($O$9-SUM($N$11:N26)-N27)/24,"[hh]:mm"))) -> 
C28: =IF(OR($K$9=0,AND($K$9=2,A28<=14)),1,IF(IF(ISNA(INDEX(X!$W$7:$W$20,MATCH(DATE($D$4,$C$4,A28),X!$AC$7:$AC$20,0))),1,2)=2,2,IF(OR(B28="Sa",B28="So"),2,IF($K$9=1,SUMIFS($R$4:$R$8,$S$4:$S$8,B28),IF(AND($K$9=2,A28<15),SUMIFS($R$4:$R$8,$S$4:$S$8,B28),IF(AND($K$9=2,A28>14),SUMIFS($R$12:$R$16,$S$12:$S$16,B28),IF(AND($K$9=3,A28>14),SUMIFS($R$12:$R$16,$S$12:$S$16,B28),IF(AND($K$9=3,A28<15),SUMIFS($R$4:$R$8,$S$4:$S$8,B28),1)))))))) -> 1 | I28: =IF($K$9>0,IF(SUM($K$11:$K28,$I$6)<0,TEXT(-(SUM($K$11:K28,$I$6)/60)/24,"-[h]:mm"),TEXT((SUM($K$11:K28,$I$6)/60)/24,"[h]:mm")),"") ->  | L28: 0 | M28: 0 | O28: =IF(OR($O$3="",$N$3="",N28=""),"",IF($O$9-SUM($N$11:N27)-N28<0,TEXT(-(($O$9-SUM($N$11:N27)-N28)/24),"-[hh]:mm"),TEXT(($O$9-SUM($N$11:N27)-N28)/24,"[hh]:mm"))) -> 
C29: =IF(OR($K$9=0,AND($K$9=2,A29<=14)),1,IF(IF(ISNA(INDEX(X!$W$7:$W$20,MATCH(DATE($D$4,$C$4,A29),X!$AC$7:$AC$20,0))),1,2)=2,2,IF(OR(B29="Sa",B29="So"),2,IF($K$9=1,SUMIFS($R$4:$R$8,$S$4:$S$8,B29),IF(AND($K$9=2,A29<15),SUMIFS($R$4:$R$8,$S$4:$S$8,B29),IF(AND($K$9=2,A29>14),SUMIFS($R$12:$R$16,$S$12:$S$16,B29),IF(AND($K$9=3,A29>14),SUMIFS($R$12:$R$16,$S$12:$S$16,B29),IF(AND($K$9=3,A29<15),SUMIFS($R$4:$R$8,$S$4:$S$8,B29),1)))))))) -> 1 | I29: =IF($K$9>0,IF(SUM($K$11:$K29,$I$6)<0,TEXT(-(SUM($K$11:K29,$I$6)/60)/24,"-[h]:mm"),TEXT((SUM($K$11:K29,$I$6)/60)/24,"[h]:mm")),"") ->  | L29: 0 | M29: 0 | O29: =IF(OR($O$3="",$N$3="",N29=""),"",IF($O$9-SUM($N$11:N28)-N29<0,TEXT(-(($O$9-SUM($N$11:N28)-N29)/24),"-[hh]:mm"),TEXT(($O$9-SUM($N$11:N28)-N29)/24,"[hh]:mm"))) -> 
C30: =IF(OR($K$9=0,AND($K$9=2,A30<=14)),1,IF(IF(ISNA(INDEX(X!$W$7:$W$20,MATCH(DATE($D$4,$C$4,A30),X!$AC$7:$AC$20,0))),1,2)=2,2,IF(OR(B30="Sa",B30="So"),2,IF($K$9=1,SUMIFS($R$4:$R$8,$S$4:$S$8,B30),IF(AND($K$9=2,A30<15),SUMIFS($R$4:$R$8,$S$4:$S$8,B30),IF(AND($K$9=2,A30>14),SUMIFS($R$12:$R$16,$S$12:$S$16,B30),IF(AND($K$9=3,A30>14),SUMIFS($R$12:$R$16,$S$12:$S$16,B30),IF(AND($K$9=3,A30<15),SUMIFS($R$4:$R$8,$S$4:$S$8,B30),1)))))))) -> 1 | I30: =IF($K$9>0,IF(SUM($K$11:$K30,$I$6)<0,TEXT(-(SUM($K$11:K30,$I$6)/60)/24,"-[h]:mm"),TEXT((SUM($K$11:K30,$I$6)/60)/24,"[h]:mm")),"") ->  | L30: 0 | M30: 0 | O30: =IF(OR($O$3="",$N$3="",N30=""),"",IF($O$9-SUM($N$11:N29)-N30<0,TEXT(-(($O$9-SUM($N$11:N29)-N30)/24),"-[hh]:mm"),TEXT(($O$9-SUM($N$11:N29)-N30)/24,"[hh]:mm"))) -> 
C31: =IF(OR($K$9=0,AND($K$9=2,A31<=14)),1,IF(IF(ISNA(INDEX(X!$W$7:$W$20,MATCH(DATE($D$4,$C$4,A31),X!$AC$7:$AC$20,0))),1,2)=2,2,IF(OR(B31="Sa",B31="So"),2,IF($K$9=1,SUMIFS($R$4:$R$8,$S$4:$S$8,B31),IF(AND($K$9=2,A31<15),SUMIFS($R$4:$R$8,$S$4:$S$8,B31),IF(AND($K$9=2,A31>14),SUMIFS($R$12:$R$16,$S$12:$S$16,B31),IF(AND($K$9=3,A31>14),SUMIFS($R$12:$R$16,$S$12:$S$16,B31),IF(AND($K$9=3,A31<15),SUMIFS($R$4:$R$8,$S$4:$S$8,B31),1)))))))) -> 1 | I31: =IF($K$9>0,IF(SUM($K$11:$K31,$I$6)<0,TEXT(-(SUM($K$11:K31,$I$6)/60)/24,"-[h]:mm"),TEXT((SUM($K$11:K31,$I$6)/60)/24,"[h]:mm")),"") ->  | L31: 0 | M31: 0 | O31: =IF(OR($O$3="",$N$3="",N31=""),"",IF($O$9-SUM($N$11:N30)-N31<0,TEXT(-(($O$9-SUM($N$11:N30)-N31)/24),"-[hh]:mm"),TEXT(($O$9-SUM($N$11:N30)-N31)/24,"[hh]:mm"))) -> 
C32: =IF(OR($K$9=0,AND($K$9=2,A32<=14)),1,IF(IF(ISNA(INDEX(X!$W$7:$W$20,MATCH(DATE($D$4,$C$4,A32),X!$AC$7:$AC$20,0))),1,2)=2,2,IF(OR(B32="Sa",B32="So"),2,IF($K$9=1,SUMIFS($R$4:$R$8,$S$4:$S$8,B32),IF(AND($K$9=2,A32<15),SUMIFS($R$4:$R$8,$S$4:$S$8,B32),IF(AND($K$9=2,A32>14),SUMIFS($R$12:$R$16,$S$12:$S$16,B32),IF(AND($K$9=3,A32>14),SUMIFS($R$12:$R$16,$S$12:$S$16,B32),IF(AND($K$9=3,A32<15),SUMIFS($R$4:$R$8,$S$4:$S$8,B32),1)))))))) -> 1 | I32: =IF($K$9>0,IF(SUM($K$11:$K32,$I$6)<0,TEXT(-(SUM($K$11:K32,$I$6)/60)/24,"-[h]:mm"),TEXT((SUM($K$11:K32,$I$6)/60)/24,"[h]:mm")),"") ->  | L32: 0 | M32: 0 | O32: =IF(OR($O$3="",$N$3="",N32=""),"",IF($O$9-SUM($N$11:N31)-N32<0,TEXT(-(($O$9-SUM($N$11:N31)-N32)/24),"-[hh]:mm"),TEXT(($O$9-SUM($N$11:N31)-N32)/24,"[hh]:mm"))) -> 
C33: =IF(OR($K$9=0,AND($K$9=2,A33<=14)),1,IF(IF(ISNA(INDEX(X!$W$7:$W$20,MATCH(DATE($D$4,$C$4,A33),X!$AC$7:$AC$20,0))),1,2)=2,2,IF(OR(B33="Sa",B33="So"),2,IF($K$9=1,SUMIFS($R$4:$R$8,$S$4:$S$8,B33),IF(AND($K$9=2,A33<15),SUMIFS($R$4:$R$8,$S$4:$S$8,B33),IF(AND($K$9=2,A33>14),SUMIFS($R$12:$R$16,$S$12:$S$16,B33),IF(AND($K$9=3,A33>14),SUMIFS($R$12:$R$16,$S$12:$S$16,B33),IF(AND($K$9=3,A33<15),SUMIFS($R$4:$R$8,$S$4:$S$8,B33),1)))))))) -> 1 | I33: =IF($K$9>0,IF(SUM($K$11:$K33,$I$6)<0,TEXT(-(SUM($K$11:K33,$I$6)/60)/24,"-[h]:mm"),TEXT((SUM($K$11:K33,$I$6)/60)/24,"[h]:mm")),"") ->  | L33: 0 | M33: 0 | O33: =IF(OR($O$3="",$N$3="",N33=""),"",IF($O$9-SUM($N$11:N32)-N33<0,TEXT(-(($O$9-SUM($N$11:N32)-N33)/24),"-[hh]:mm"),TEXT(($O$9-SUM($N$11:N32)-N33)/24,"[hh]:mm"))) -> 
C34: =IF(OR($K$9=0,AND($K$9=2,A34<=14)),1,IF(IF(ISNA(INDEX(X!$W$7:$W$20,MATCH(DATE($D$4,$C$4,A34),X!$AC$7:$AC$20,0))),1,2)=2,2,IF(OR(B34="Sa",B34="So"),2,IF($K$9=1,SUMIFS($R$4:$R$8,$S$4:$S$8,B34),IF(AND($K$9=2,A34<15),SUMIFS($R$4:$R$8,$S$4:$S$8,B34),IF(AND($K$9=2,A34>14),SUMIFS($R$12:$R$16,$S$12:$S$16,B34),IF(AND($K$9=3,A34>14),SUMIFS($R$12:$R$16,$S$12:$S$16,B34),IF(AND($K$9=3,A34<15),SUMIFS($R$4:$R$8,$S$4:$S$8,B34),1)))))))) -> 1 | I34: =IF($K$9>0,IF(SUM($K$11:$K34,$I$6)<0,TEXT(-(SUM($K$11:K34,$I$6)/60)/24,"-[h]:mm"),TEXT((SUM($K$11:K34,$I$6)/60)/24,"[h]:mm")),"") ->  | L34: 0 | M34: 0 | O34: =IF(OR($O$3="",$N$3="",N34=""),"",IF($O$9-SUM($N$11:N33)-N34<0,TEXT(-(($O$9-SUM($N$11:N33)-N34)/24),"-[hh]:mm"),TEXT(($O$9-SUM($N$11:N33)-N34)/24,"[hh]:mm"))) -> 
C35: =IF(OR($K$9=0,AND($K$9=2,A35<=14)),1,IF(IF(ISNA(INDEX(X!$W$7:$W$20,MATCH(DATE($D$4,$C$4,A35),X!$AC$7:$AC$20,0))),1,2)=2,2,IF(OR(B35="Sa",B35="So"),2,IF($K$9=1,SUMIFS($R$4:$R$8,$S$4:$S$8,B35),IF(AND($K$9=2,A35<15),SUMIFS($R$4:$R$8,$S$4:$S$8,B35),IF(AND($K$9=2,A35>14),SUMIFS($R$12:$R$16,$S$12:$S$16,B35),IF(AND($K$9=3,A35>14),SUMIFS($R$12:$R$16,$S$12:$S$16,B35),IF(AND($K$9=3,A35<15),SUMIFS($R$4:$R$8,$S$4:$S$8,B35),1)))))))) -> 1 | I35: =IF($K$9>0,IF(SUM($K$11:$K35,$I$6)<0,TEXT(-(SUM($K$11:K35,$I$6)/60)/24,"-[h]:mm"),TEXT((SUM($K$11:K35,$I$6)/60)/24,"[h]:mm")),"") ->  | L35: 0 | M35: 0 | O35: =IF(OR($O$3="",$N$3="",N35=""),"",IF($O$9-SUM($N$11:N34)-N35<0,TEXT(-(($O$9-SUM($N$11:N34)-N35)/24),"-[hh]:mm"),TEXT(($O$9-SUM($N$11:N34)-N35)/24,"[hh]:mm"))) -> 
C36: =IF(OR($K$9=0,AND($K$9=2,A36<=14)),1,IF(IF(ISNA(INDEX(X!$W$7:$W$20,MATCH(DATE($D$4,$C$4,A36),X!$AC$7:$AC$20,0))),1,2)=2,2,IF(OR(B36="Sa",B36="So"),2,IF($K$9=1,SUMIFS($R$4:$R$8,$S$4:$S$8,B36),IF(AND($K$9=2,A36<15),SUMIFS($R$4:$R$8,$S$4:$S$8,B36),IF(AND($K$9=2,A36>14),SUMIFS($R$12:$R$16,$S$12:$S$16,B36),IF(AND($K$9=3,A36>14),SUMIFS($R$12:$R$16,$S$12:$S$16,B36),IF(AND($K$9=3,A36<15),SUMIFS($R$4:$R$8,$S$4:$S$8,B36),1)))))))) -> 1 | I36: =IF($K$9>0,IF(SUM($K$11:$K36,$I$6)<0,TEXT(-(SUM($K$11:K36,$I$6)/60)/24,"-[h]:mm"),TEXT((SUM($K$11:K36,$I$6)/60)/24,"[h]:mm")),"") ->  | L36: 0 | M36: 0 | O36: =IF(OR($O$3="",$N$3="",N36=""),"",IF($O$9-SUM($N$11:N35)-N36<0,TEXT(-(($O$9-SUM($N$11:N35)-N36)/24),"-[hh]:mm"),TEXT(($O$9-SUM($N$11:N35)-N36)/24,"[hh]:mm"))) -> 
C37: =IF(OR($K$9=0,AND($K$9=2,A37<=14)),1,IF(IF(ISNA(INDEX(X!$W$7:$W$20,MATCH(DATE($D$4,$C$4,A37),X!$AC$7:$AC$20,0))),1,2)=2,2,IF(OR(B37="Sa",B37="So"),2,IF($K$9=1,SUMIFS($R$4:$R$8,$S$4:$S$8,B37),IF(AND($K$9=2,A37<15),SUMIFS($R$4:$R$8,$S$4:$S$8,B37),IF(AND($K$9=2,A37>14),SUMIFS($R$12:$R$16,$S$12:$S$16,B37),IF(AND($K$9=3,A37>14),SUMIFS($R$12:$R$16,$S$12:$S$16,B37),IF(AND($K$9=3,A37<15),SUMIFS($R$4:$R$8,$S$4:$S$8,B37),1)))))))) -> 1 | I37: =IF($K$9>0,IF(SUM($K$11:$K37,$I$6)<0,TEXT(-(SUM($K$11:K37,$I$6)/60)/24,"-[h]:mm"),TEXT((SUM($K$11:K37,$I$6)/60)/24,"[h]:mm")),"") ->  | L37: 0 | M37: 0 | O37: =IF(OR($O$3="",$N$3="",N37=""),"",IF($O$9-SUM($N$11:N36)-N37<0,TEXT(-(($O$9-SUM($N$11:N36)-N37)/24),"-[hh]:mm"),TEXT(($O$9-SUM($N$11:N36)-N37)/24,"[hh]:mm"))) -> 
C38: =IF(OR($K$9=0,AND($K$9=2,A38<=14)),1,IF(IF(ISNA(INDEX(X!$W$7:$W$20,MATCH(DATE($D$4,$C$4,A38),X!$AC$7:$AC$20,0))),1,2)=2,2,IF(OR(B38="Sa",B38="So"),2,IF($K$9=1,SUMIFS($R$4:$R$8,$S$4:$S$8,B38),IF(AND($K$9=2,A38<15),SUMIFS($R$4:$R$8,$S$4:$S$8,B38),IF(AND($K$9=2,A38>14),SUMIFS($R$12:$R$16,$S$12:$S$16,B38),IF(AND($K$9=3,A38>14),SUMIFS($R$12:$R$16,$S$12:$S$16,B38),IF(AND($K$9=3,A38<15),SUMIFS($R$4:$R$8,$S$4:$S$8,B38),1)))))))) -> 1 | I38: =IF($K$9>0,IF(SUM($K$11:$K38,$I$6)<0,TEXT(-(SUM($K$11:K38,$I$6)/60)/24,"-[h]:mm"),TEXT((SUM($K$11:K38,$I$6)/60)/24,"[h]:mm")),"") ->  | L38: 0 | M38: 0 | O38: =IF(OR($O$3="",$N$3="",N38=""),"",IF($O$9-SUM($N$11:N37)-N38<0,TEXT(-(($O$9-SUM($N$11:N37)-N38)/24),"-[hh]:mm"),TEXT(($O$9-SUM($N$11:N37)-N38)/24,"[hh]:mm"))) -> 
B39: =IF(OR(A39="",$D$4=""),"",TEXT(DATE($D$4,$C$4,A39),"ttt")) ->  | C39: =IF(OR($K$9=0,AND($K$9=2,A39<=14)),1,IF(IF(ISNA(INDEX(X!$W$7:$W$20,MATCH(DATE($D$4,$C$4,A39),X!$AC$7:$AC$20,0))),1,2)=2,2,IF(OR(B39="Sa",B39="So"),2,IF($K$9=1,SUMIFS($R$4:$R$8,$S$4:$S$8,B39),IF(AND($K$9=2,A39<15),SUMIFS($R$4:$R$8,$S$4:$S$8,B39),IF(AND($K$9=2,A39>14),SUMIFS($R$12:$R$16,$S$12:$S$16,B39),IF(AND($K$9=3,A39>14),SUMIFS($R$12:$R$16,$S$12:$S$16,B39),IF(AND($K$9=3,A39<15),SUMIFS($R$4:$R$8,$S$4:$S$8,B39),1)))))))) -> 1 | I39: =IF($K$9>0,IF(SUM($K$11:$K39,$I$6)<0,TEXT(-(SUM($K$11:K39,$I$6)/60)/24,"-[h]:mm"),TEXT((SUM($K$11:K39,$I$6)/60)/24,"[h]:mm")),"") ->  | L39: 0 | M39: 0 | O39: =IF(OR($O$3="",$N$3="",N39=""),"",IF($O$9-SUM($N$11:N38)-N39<0,TEXT(-(($O$9-SUM($N$11:N38)-N39)/24),"-[hh]:mm"),TEXT(($O$9-SUM($N$11:N38)-N39)/24,"[hh]:mm"))) -> 
B40: =IF(OR(A40="",$D$4=""),"",TEXT(DATE($D$4,$C$4,A40),"ttt")) ->  | C40: =IF(OR($K$9=0,AND($K$9=2,A40<=14)),1,IF(IF(ISNA(INDEX(X!$W$7:$W$20,MATCH(DATE($D$4,$C$4,A40),X!$AC$7:$AC$20,0))),1,2)=2,2,IF(OR(B40="Sa",B40="So"),2,IF($K$9=1,SUMIFS($R$4:$R$8,$S$4:$S$8,B40),IF(AND($K$9=2,A40<15),SUMIFS($R$4:$R$8,$S$4:$S$8,B40),IF(AND($K$9=2,A40>14),SUMIFS($R$12:$R$16,$S$12:$S$16,B40),IF(AND($K$9=3,A40>14),SUMIFS($R$12:$R$16,$S$12:$S$16,B40),IF(AND($K$9=3,A40<15),SUMIFS($R$4:$R$8,$S$4:$S$8,B40),1)))))))) -> 1 | I40: =IF($K$9>0,IF(SUM($K$11:$K40,$I$6)<0,TEXT(-(SUM($K$11:K40,$I$6)/60)/24,"-[h]:mm"),TEXT((SUM($K$11:K40,$I$6)/60)/24,"[h]:mm")),"") ->  | L40: 0 | M40: 0 | O40: =IF(OR($O$3="",$N$3="",N40=""),"",IF($O$9-SUM($N$11:N39)-N40<0,TEXT(-(($O$9-SUM($N$11:N39)-N40)/24),"-[hh]:mm"),TEXT(($O$9-SUM($N$11:N39)-N40)/24,"[hh]:mm"))) -> 
C41: =IF(OR($K$9=0,AND($K$9=2,A41<=14)),1,IF(IF(ISNA(INDEX(X!$W$7:$W$20,MATCH(DATE($D$4,$C$4,A41),X!$AC$7:$AC$20,0))),1,2)=2,2,IF(OR(B41="Sa",B41="So"),2,IF($K$9=1,SUMIFS($R$4:$R$8,$S$4:$S$8,B41),IF(AND($K$9=2,A41<15),SUMIFS($R$4:$R$8,$S$4:$S$8,B41),IF(AND($K$9=2,A41>14),SUMIFS($R$12:$R$16,$S$12:$S$16,B41),IF(AND($K$9=3,A41>14),SUMIFS($R$12:$R$16,$S$12:$S$16,B41),IF(AND($K$9=3,A41<15),SUMIFS($R$4:$R$8,$S$4:$S$8,B41),1)))))))) -> 1 | I41: =IF($K$9>0,IF(SUM($K$11:$K41,$I$6)<0,TEXT(-(SUM($K$11:K41,$I$6)/60)/24,"-[h]:mm"),TEXT((SUM($K$11:K41,$I$6)/60)/24,"[h]:mm")),"") ->  | L41: 0 | M41: 0 | O41: =IF(OR($O$3="",$N$3="",N41=""),"",IF($O$9-SUM($N$11:N40)-N41<0,TEXT(-(($O$9-SUM($N$11:N40)-N41)/24),"-[hh]:mm"),TEXT(($O$9-SUM($N$11:N40)-N41)/24,"[hh]:mm"))) -> 
G42: =L42+K42 -> 0 | H42: =K42 -> 0 | K42: =SUM(K11:K41) -> 0 | L42: =-SUM(L11:L41) -> 0 | M42: =M41 -> 0 | N42: =SUM(N11:N41)*60 -> 330 | Q42: =IF((G42/60)<0,TEXT(-((G42/60)/24),"-[hh]:mm"),TEXT((G42/60)/24,"[hh]:mm")) -> 00:00
A43: =IF(G4="","","Ergebnis") ->  | G43: =IF(G4="",0,IF(((G42-N42)/60)<0,TEXT(-(((G42-N42)/60)/24),"-[hh]:mm"),TEXT(((G42-N42)/60)/24,"[hh]:mm"))) -> 0 | H43: =IF(G4=0,"",IF(H42<0,TEXT(-((H42/60)/24),"-[hh]:mm"),IF((H42/60)>24,TEXT((((H42/60)-24)/24)+(24/24),"[hh]:mm"),(H42/60)/24))) -> 0 | I43: =IF($K$9>0,IF(SUM(I6,K43)<0,TEXT(-(SUM(I6,K43)/60)/24,"-[h]:mm"),TEXT((SUM(I6,K43)/60)/24,"[h]:mm")),"") ->  | K43: =IF(L42<>L43,G42-L43,K42) -> 0 | L43: =IF(AND(K9=1,SUM(U4:U8)<>H9),((H9/5)*COUNTIFS(C11:C41,"<>"&2,F11:F41,""))*60,IF(AND(K9=2,SUM(U12:U16)<>I9),((I9/5)*COUNTIFS(C11:C41,"<>"&2,F11:F41,""))*60,IF(AND(K9=3,OR(SUM(U4:U8)<>H9,SUM(U12:U16)<>I9)),SUM(IF(SUM(U4:U8)<>H9,((H9/5)*COUNTIFS(C11:C41,"<>"&2,A11:A41,"<"&15,F11:F41,""))*60,-SUMIFS(L11:L41,A11:A41,"<"&15,F11:F41,"")),IF(SUM(U12:U16)<>I9,((I9/5)*COUNTIFS(C11:C41,"<>"&2,A11:A41,">"&14,F11:F41,""))*60,-SUMIFS(L11:L41,A11:A41,">"&14,F11:F41,""))),-SUM(L11:L41)))) -> 0 | N43: =IF(N42<0,TEXT(-((N42/60)/24),"-[hh]:mm"),TEXT((N42/60)/24,"[hh]:mm")) -> 05:30 | O43: =IF(O9-SUM(N11:N41)<0,TEXT(-(O9-SUM(N11:N41))/24,"-[h]:mm"),TEXT((O9-SUM(N11:N41))/24,"[h]:mm")) ->  | Q43: =Q42 -> 00:00
A44: =IF(G4="","","Saldo / Übertrag:") ->  | I44: =I43 ->  | J44: =IF(K42<>K43,"automatische Nachberechnung der Sollarbeitszeit, da wöchentlicher Stundenumfang nicht eingehalten wurde.","") ->  | K44: =K43+I6 -> 0 | L44: Übertrag
A46: =IF(I46="","","Korrektur der Stunden") ->  | I46: =IF(K9>0,IF(K42-K43<>0,IF(K43-K42<0,TEXT(-((K43-K42)/60)/24,"-[h]:mm"),TEXT(((K43-K42)/60)/24,"[h]:mm")),""),"") -> 
A57: =D4 ->  | B57: =C4 -> 2 | C57: =Uebersicht!A4 -> 0 | D57: =Uebersicht!B4 -> 0 | E57: =L43 -> 0 | F57: =K42 -> 0 | G57: =K43 -> 0 | H57: =M10 -> 0 | I57: =M42 -> 0

Sheet Mrz
A1: Zeiterfassungsbogen für studentische Hilfskräfte | International Office | V1: "nein" auswählen, wenn keine festen Tage mehr gelten sollen!
A2: =IF(Uebersicht!A4="","",CONCATENATE(Uebersicht!B4," ",Uebersicht!A4)) -> 
N3: =INDEX(Uebersicht!AO5:AQ28,MATCH(C4,Uebersicht!AO5:AO28,0),3) -> 0 | O3: =INDEX(Uebersicht!AO5:AQ28,MATCH(C4+0.5,Uebersicht!AO5:AO28,0),3) -> 0 | S3: Tag | T3: h
A4: =IF(D4="","",TEXT(DATE(D4,C4,1),"MMM")) ->  | C4: 3 | D4: =Uebersicht!I1 ->  | G4: =IF(INDEX(Uebersicht!AO31:AQ42,MATCH(C4,Uebersicht!AO31:AO43,0),2)=0,"",INDEX(Uebersicht!AO31:AQ42,MATCH(C4,Uebersicht!AO31:AO43,0),2)) ->  | N4: =INDEX(Uebersicht!AO31:AQ42,MATCH(C4,Uebersicht!AO31:AO43,0),3) -> 0 | R4: =IF(OR($K$9=2,$K$9=0),1,IF(AND(OR($K$9=1,$K$9=3),OR(SUM($U$4:$U$8)=0,$U$1="nein")),3,IF(AND($U$1="",SUM($U$4:$U$8)>0,U4>=1,OR($K$9=3,$K$9=1)),4,1))) -> 1 | S4: Mo | U4: =IF(AND(H9=0,I9=0),0,IF(OR($K$9=0,INDIRECT("'"&TEXT(DATE(D4,$C$4-1,1),"MMM")&"'!$U$1")="nein",$U$1="nein"),0,IF(T4>0,T4,INDEX(Uebersicht!$BA$3:$BE$14,$C$4,MATCH(S4,Uebersicht!$BA$2:$BE$2,0))))) -> 0
R5: =IF(OR($K$9=2,$K$9=0),1,IF(AND(OR($K$9=1,$K$9=3),OR(SUM($U$4:$U$8)=0,$U$1="nein")),3,IF(AND($U$1="",SUM($U$4:$U$8)>0,U5>=1,OR($K$9=3,$K$9=1)),4,1))) -> 1 | S5: Di | U5: =IF(OR($K$9=0,INDIRECT("'"&TEXT(DATE(D5,$C$4-1,1),"MMM")&"'!$U$1")="nein",$U$1="nein"),0,IF(T5>0,T5,INDEX(Uebersicht!$BA$3:$BE$14,$C$4,MATCH(S5,Uebersicht!$BA$2:$BE$2,0)))) -> 0
C6: =DAY(DATE(D4,C4+1,1)-1) ->  | H6: =IF(N4=0,"","Arbeitsgebiet 1") ->  | I6: =IF(AND(I9=0,H9=0),0,IF(C4-1=0,Uebersicht!G4,INDIRECT("'"&TEXT(DATE(D4,C4-1,1),"MMM")&"'!K44"))) -> 0 | K6: nein | N6: =IF(N4="","","Arbeitsgebiet 2") -> Arbeitsgebiet 2 | R6: =IF(OR($K$9=2,$K$9=0),1,IF(AND(OR($K$9=1,$K$9=3),OR(SUM($U$4:$U$8)=0,$U$1="nein")),3,IF(AND($U$1="",SUM($U$4:$U$8)>0,U6>=1,OR($K$9=3,$K$9=1)),4,1))) -> 1 | S6: Mi | U6: =IF(OR($K$9=0,INDIRECT("'"&TEXT(DATE(D6,$C$4-1,1),"MMM")&"'!$U$1")="nein",$U$1="nein"),0,IF(T6>0,T6,INDEX(Uebersicht!$BA$3:$BE$14,$C$4,MATCH(S6,Uebersicht!$BA$2:$BE$2,0)))) -> 0
A7: =IF(AND(H9>0,I9=0),CONCATENATE(H9," Wochenarbeitszeit (h)"),IF(AND(H9=0,I9>0),CONCATENATE(I9," Wochenarbeitszeit (h)"),IF(AND(H9>0,I9>0,H9<>I9),CONCATENATE(H9," h, ab 15. ",TEXT(DATE(D4,C4,1),"MMMM")," ",I9,"h"),""))) ->  | F7: =IF(G4="","",IF(M42/60>0,TEXT((M42/60)/24,"[h]:mm"),0)) ->  | G7: =IF(F7="","","Urlaubsrest") ->  | I7: =IF(AND(YEAR(TODAY())=D4,MONTH(TODAY())>=C4,K9>0),IF(OR(I6=0,I6=""),0,IF(I6<0,TEXT(-(I6/60)/24,"-[h]:mm"),TEXT((I6/60)/24,"[h]:mm"))),"") ->  | J7: =IF(I7="","",CONCATENATE("h Übertrag aus ",IF(C6=1,"Vorjahr","Vormonat"))) ->  | K7: Urlaub | N7: =IF(AND(N3>0,O3=0),CONCATENATE(N3," Stunden - Anteil pro Woche"),IF(AND(N3=0,O3>0),CONCATENATE(O3," Stunden - Anteil pro Woche"),IF(AND(N3>0,O3>0,O3<>N3),CONCATENATE(N3," h, ab 15. ",TEXT(DATE(D4,C4,1),"MMMM")," ",O3,"h"),IF(N3=O3,CONCATENATE(N3," Stunden - Anteil pro Woche"),"")))) -> 0 Stunden - Anteil pro Woche | R7: =IF(OR($K$9=2,$K$9=0),1,IF(AND(OR($K$9=1,$K$9=3),OR(SUM($U$4:$U$8)=0,$U$1="nein")),3,IF(AND($U$1="",SUM($U$4:$U$8)>0,U7>=1,OR($K$9=3,$K$9=1)),4,1))) -> 1 | S7: Do | U7: =IF(OR($K$9=0,INDIRECT("'"&TEXT(DATE(D7,$C$4-1,1),"MMM")&"'!$U$1")="nein",$U$1="nein"),0,IF(T7>0,T7,INDEX(Uebersicht!$BA$3:$BE$14,$C$4,MATCH(S7,Uebersicht!$BA$2:$BE$2,0)))) -> 0
K8: Krank | R8: =IF(OR($K$9=2,$K$9=0),1,IF(AND(OR($K$9=1,$K$9=3),OR(SUM($U$4:$U$8)=0,$U$1="nein")),3,IF(AND($U$1="",SUM($U$4:$U$8)>0,U8>=1,OR($K$9=3,$K$9=1)),4,1))) -> 1 | S8: Fr | U8: =IF(OR($K$9=0,INDIRECT("'"&TEXT(DATE(D8,$C$4-1,1),"MMM")&"'!$U$1")="nein",$U$1="nein"),0,IF(T8>0,T8,INDEX(Uebersicht!$BA$3:$BE$14,$C$4,MATCH(S8,Uebersicht!$BA$2:$BE$2,0)))) -> 0
H9: =INDEX(Uebersicht!AU3:AW14,C4,2) -> 0 | I9: =IF(INDEX(Uebersicht!AU3:AW14,C4,3)=H9,0,INDEX(Uebersicht!AU3:AW14,C4,3)) -> 0 | K9: =IF(AND(H9>0,I9=0),1,IF(AND(H9=0,I9>0),2,IF(AND(H9=0,I9=0),0,IF(H9<>I9,3,"")))) -> 0 | O9: =IF(OR(N3>0,O3>0),IF(OR(K9=1,K9=2),(IF(K9=1,N3,IF(K9=2,O2,0))/5)*NETWORKDAYS(IF(K9=1,DATE(D4,C4,1),IF(K9=2,DATE(D4,C4,15),0)),IF(OR(K9=1,K9=2),DATE(D4,C4,MAX(A11:A41)),0),COUNTIFS(C11:C41,"<>"&2)),IF(K9=3,SUM(IF(N3>0,(N3/5)*NETWORKDAYS(DATE(D4,C4,1),DATE(D4,C4,14),2),0),IF(O3>0,(O3/5)*NETWORKDAYS(DATE(D4,C4,15),DATE(D4,C4,MAX(A11:A41)),2),0)),0)),"") ->  | S9: =IF(SUM(U4:U8)=0,"",IF(SUM(U4:U8)>H9,"zu viel!",IF(SUM(U4:U8)<H9,"zu wenig!",""))) ->  | U9: =IF(OR(U1="nein",SUM(U4:U8)=0),"ja",IF(OR(SUM(Uebersicht!C36:C40)>0,SUM(T4:T8)>0,SUM(U4:U8)>0),"nein","ja")) -> ja
A10: Tag | D10: Beginn | E10: Ende | F10: Urlaub Krank | G10: Stunden | H10: Mehr/ Minder | I10: Saldo summiert | J10: Bemerkungen | K10: Differenz | L10: Soll | M10: =IF(AND(I9=0,H9=0),0,IF(C4-1=0,IF(Uebersicht!E8="",0,Uebersicht!E8*60),INDIRECT("'"&TEXT(DATE(D4,C4-1,1),"MMM")&"'!M42"))) -> 0 | N10: Stunden | O10: Rest | P10: Bemerkungen | Q10: Gesamt | S10: Änderung im laufenden Monat
A11: 1 | B11: =IF(OR(A11="",$D$4=""),"",TEXT(DATE($D$4,$C$4,A11),"ttt")) ->  | C11: =IF(OR($K$9=0,AND($K$9=2,A11<=14)),1,IF(IF(ISNA(INDEX(X!$W$7:$W$20,MATCH(DATE($D$4,$C$4,A11),X!$AC$7:$AC$20,0))),1,2)=2,2,IF(OR(B11="Sa",B11="So"),2,IF($K$9=1,SUMIFS($R$4:$R$8,$S$4:$S$8,B11),IF(AND($K$9=2,A11<15),SUMIFS($R$4:$R$8,$S$4:$S$8,B11),IF(AND($K$9=2,A11>14),SUMIFS($R$12:$R$16,$S$12:$S$16,B11),IF(AND($K$9=3,A11>14),SUMIFS($R$12:$R$16,$S$12:$S$16,B11),IF(AND($K$9=3,A11<15),SUMIFS($R$4:$R$8,$S$4:$S$8,B11),1)))))))) -> 1 | G11: =IF(AND(D11="",E11=""),"",IF(N11="",IF(((HOUR(E11)*60+MINUTE(E11))-(HOUR(D11)*60+MINUTE(D11)))>360,TEXT(((((HOUR(E11)*60+MINUTE(E11))-(HOUR(D11)*60+MINUTE(D11)))-30)/60)/24,"[h]:mm"),TEXT((((HOUR(E11)*60+MINUTE(E11))-(HOUR(D11)*60+MINUTE(D11)))/60)/24,"[h]:mm")),IF((((HOUR(E11)*60+MINUTE(E11))-(HOUR(D11)*60+MINUTE(D11)))-N11)>360,TEXT(((((((HOUR(E11)*60+MINUTE(E11))-(HOUR(D11)*60+MINUTE(D11)))-30))/60)-N11)/24,"[h]:mm"),TEXT(((((HOUR(E11)*60+MINUTE(E11))-(HOUR(D11)*60+MINUTE(D11)))/60)-N11)/24,"[h]:mm")))) ->  | H11: =IF(K11="","",IF(TODAY()<=DATE($D$4,$C$4,A11),0,IF(K11>0,TEXT((K11/60)/24,"[h]:mm"),TEXT(-(K11/60)/24,"-[h]:mm")))) ->  | I11: =IF($K$9>0,IF(SUM($K$11:$K11,I6)<0,TEXT(-(SUM($K$11:K11,I6)/60)/24,"-[h]:mm"),TEXT((SUM($K$11:K11,I6)/60)/24,"[h]:mm")),"") ->  | K11: =IF(F11="",IF(L11<0,L11+IF(G11=" ",0,IF(((HOUR(E11)*60+MINUTE(E11))-(HOUR(D11)*60+MINUTE(D11)))>360,(HOUR(E11)*60+MINUTE(E11))-(HOUR(D11)*60+MINUTE(D11))-30,(HOUR(E11)*60+MINUTE(E11))-(HOUR(D11)*60+MINUTE(D11)))),IF(Q11="","",(Q11*60)*24)),"") ->  | L11: =IF(OR(F11="krank",F11="Urlaub",C11=1,C11=2),0,IF($K$9=1,IF(SUM($U$4:$U$8)=0,$H$9/5,INDEX($S$4:$U$8,MATCH(B11,$S$4:$S$8,0),3)),IF($K$9=2,IF(AND(A11>14,SUM($U$12:$U$16)=0),$I$9/5,INDEX($S$12:$U$16,MATCH(B11,$S$12:$S$16,0),3)),IF($K$9=3,IF(A11<15,IF(SUM($U$4:$U$8)=0,$H$9/5,INDEX($S$4:$U$8,MATCH(B11,$S$4:$S$8,0),3))),IF(A11>14,IF(SUM($U$12:$U$16)=0,$I$9/5,INDEX($S$12:$U$16,MATCH(B11,$S$12:$S$16,0),3))))))*-60) -> 0 | M11: =M10-(IF(OR(C11=1,C11=2),0,IF(C11=3,IF(AND($K$9=1,F11="Urlaub"),$H$9/5,IF($K$9=2,IF(AND(A11<15,F11="Urlaub"),$I$9/5,IF(AND($K$9=3,A11<15,F11="Urlaub"),$H$9/5,IF(AND($K$9=3,A11>14,F11="Urlaub"),$I$9/5))))),IF(C11=4,IF(AND(F11="Urlaub",$K$9=1),SUMIFS($U$4:$U$8,$S$4:$S$8,B11),IF(AND(F11="Urlaub",$K$9=2,A11>14),SUMIFS($U$12:$U$16,$S$12:$S$16,B11),IF(AND(F11="Urlaub",$K$9=3,A11<15),SUMIFS($U$4:$U$8,$S$4:$S$8,B11),IF(AND(F11="Urlaub",$K$9=3,A11>14),SUMIFS($U$12:$U$16,$S$12:$S$16,B11),0)))))))*60) -> 0 | O11: =IF(OR($O$3="",$N$3="",N11=""),"",IF($O$9-SUM($N10:N$11)-N11<0,TEXT(-(($O$9-SUM($N10:N$11)-N11)/24),"-[hh]:mm"),TEXT(($O$9-SUM($N10:N$11)-N11)/24,"[hh]:mm"))) ->  | Q11: =IF(AND(D11="",E11=""),"",IF(((HOUR(E11)*60+MINUTE(E11))-(HOUR(D11)*60+MINUTE(D11)))>360,TEXT(((((HOUR(E11)*60+MINUTE(E11))-(HOUR(D11)*60+MINUTE(D11)))-30)/60)/24,"[h]:mm"),TEXT((((HOUR(E11)*60+MINUTE(E11))-(HOUR(D11)*60+MINUTE(D11)))/60)/24,"[h]:mm"))) -> 
A12: =IF(OR(A11="",$D$4=""),"",IF(A11+1<=$C$6,A11+1,"")) ->  | C12: =IF(OR($K$9=0,AND($K$9=2,A12<=14)),1,IF(IF(ISNA(INDEX(X!$W$7:$W$20,MATCH(DATE($D$4,$C$4,A12),X!$AC$7:$AC$20,0))),1,2)=2,2,IF(OR(B12="Sa",B12="So"),2,IF($K$9=1,SUMIFS($R$4:$R$8,$S$4:$S$8,B12),IF(AND($K$9=2,A12<15),SUMIFS($R$4:$R$8,$S$4:$S$8,B12),IF(AND($K$9=2,A12>14),SUMIFS($R$12:$R$16,$S$12:$S$16,B12),IF(AND($K$9=3,A12>14),SUMIFS($R$12:$R$16,$S$12:$S$16,B12),IF(AND($K$9=3,A12<15),SUMIFS($R$4:$R$8,$S$4:$S$8,B12),1)))))))) -> 1 | I12: =IF($K$9>0,IF(SUM($K$11:$K12,$I$6)<0,TEXT(-(SUM($K$11:K12,$I$6)/60)/24,"-[h]:mm"),TEXT((SUM($K$11:K12,$I$6)/60)/24,"[h]:mm")),"") ->  | K12: =IF(F12="",IF(L12<0,L12+IF(G12=" ",0,IF(((HOUR(E12)*60+MINUTE(E12))-(HOUR(D12)*60+MINUTE(D12)))>360,(HOUR(E12)*60+MINUTE(E12))-(HOUR(D12)*60+MINUTE(D12))-30,(HOUR(E12)*60+MINUTE(E12))-(HOUR(D12)*60+MINUTE(D12)))),IF(Q12="","",(Q12*60)*24)),"") ->  | L12: =IF(OR(F12="krank",F12="Urlaub",C12=1,C12=2),0,IF($K$9=1,IF(SUM($U$4:$U$8)=0,$H$9/5,INDEX($S$4:$U$8,MATCH(B12,$S$4:$S$8,0),3)),IF($K$9=2,IF(AND(A12>14,SUM($U$12:$U$16)=0),$I$9/5,INDEX($S$12:$U$16,MATCH(B12,$S$12:$S$16,0),3)),IF($K$9=3,IF(A12<15,IF(SUM($U$4:$U$8)=0,$H$9/5,INDEX($S$4:$U$8,MATCH(B12,$S$4:$S$8,0),3)),IF(SUM($U$12:$U$16)=0,$I$9/5,INDEX($S$12:$U$16,MATCH(B12,$S$12:$S$16,0),3)))))))*-60 -> 0 | M12: 0 | O12: =IF(OR($O$3="",$N$3="",N12=""),"",IF($O$9-SUM($N$11:N11)-N12<0,TEXT(-(($O$9-SUM($N$11:N11)-N12)/24),"-[hh]:mm"),TEXT(($O$9-SUM($N$11:N11)-N12)/24,"[hh]:mm"))) ->  | R12: =IF($K$9=0,1,IF($K$9=1,R4,IF(AND($K$9=3,OR(SUM($U$12:$U$16)=0,$U$1="nein")),3,IF(AND($U$1="",SUM($U$12:$U$16)>0,U12>=1,OR($K$9=3,$K$9=2)),4,1)))) -> 1 | S12: Mo | U12: =IF(AND(I9=0,H9=0),0,IF(OR($K$9=0,INDIRECT("'"&TEXT(DATE(D4,$C$4-1,1),"MMM")&"'!$U$1")="nein",$U$1="nein"),0,IF(T12>0,T12,INDEX(Uebersicht!$BF$3:$BJ$14,$C$4,MATCH(S12,Uebersicht!$BF$2:$BJ$2,0))))) -> 0
A13: =IF(OR(A12="",$D$4=""),"",IF(A12+1<=$C$6,A12+1,"")) ->  | C13: =IF(OR($K$9=0,AND($K$9=2,A13<=14)),1,IF(IF(ISNA(INDEX(X!$W$7:$W$20,MATCH(DATE($D$4,$C$4,A13),X!$AC$7:$AC$20,0))),1,2)=2,2,IF(OR(B13="Sa",B13="So"),2,IF($K$9=1,SUMIFS($R$4:$R$8,$S$4:$S$8,B13),IF(AND($K$9=2,A13<15),SUMIFS($R$4:$R$8,$S$4:$S$8,B13),IF(AND($K$9=2,A13>14),SUMIFS($R$12:$R$16,$S$12:$S$16,B13),IF(AND($K$9=3,A13>14),SUMIFS($R$12:$R$16,$S$12:$S$16,B13),IF(AND($K$9=3,A13<15),SUMIFS($R$4:$R$8,$S$4:$S$8,B13),1)))))))) -> 1 | I13: =IF($K$9>0,IF(SUM($K$11:$K13,$I$6)<0,TEXT(-(SUM($K$11:K13,$I$6)/60)/24,"-[h]:mm"),TEXT((SUM($K$11:K13,$I$6)/60)/24,"[h]:mm")),"") ->  | L13: 0 | M13: 0 | O13: =IF(OR($O$3="",$N$3="",N13=""),"",IF($O$9-SUM($N$11:N12)-N13<0,TEXT(-(($O$9-SUM($N$11:N12)-N13)/24),"-[hh]:mm"),TEXT(($O$9-SUM($N$11:N12)-N13)/24,"[hh]:mm"))) ->  | R13: =IF($K$9=0,1,IF($K$9=1,R5,IF(AND($K$9=3,OR(SUM($U$12:$U$16)=0,$U$1="nein")),3,IF(AND($U$1="",SUM($U$12:$U$16)>0,U13>=1,OR($K$9=3,$K$9=2)),4,1)))) -> 1 | S13: Di | U13: =IF(OR($K$9=0,INDIRECT("'"&TEXT(DATE(D5,$C$4-1,1),"MMM")&"'!$U$1")="nein",$U$1="nein"),0,IF(T13>0,T13,INDEX(Uebersicht!$BF$3:$BJ$14,$C$4,MATCH(S13,Uebersicht!$BF$2:$BJ$2,0)))) -> 0
C14: =IF(OR($K$9=0,AND($K$9=2,A14<=14)),1,IF(IF(ISNA(INDEX(X!$W$7:$W$20,MATCH(DATE($D$4,$C$4,A14),X!$AC$7:$AC$20,0))),1,2)=2,2,IF(OR(B14="Sa",B14="So"),2,IF($K$9=1,SUMIFS($R$4:$R$8,$S$4:$S$8,B14),IF(AND($K$9=2,A14<15),SUMIFS($R$4:$R$8,$S$4:$S$8,B14),IF(AND($K$9=2,A14>14),SUMIFS($R$12:$R$16,$S$12:$S$16,B14),IF(AND($K$9=3,A14>14),SUMIFS($R$12:$R$16,$S$12:$S$16,B14),IF(AND($K$9=3,A14<15),SUMIFS($R$4:$R$8,$S$4:$S$8,B14),1)))))))) -> 1 | I14: =IF($K$9>0,IF(SUM($K$11:$K14,$I$6)<0,TEXT(-(SUM($K$11:K14,$I$6)/60)/24,"-[h]:mm"),TEXT((SUM($K$11:K14,$I$6)/60)/24,"[h]:mm")),"") ->  | L14: 0 | M14: 0 | O14: =IF(OR($O$3="",$N$3="",N14=""),"",IF($O$9-SUM($N$11:N13)-N14<0,TEXT(-(($O$9-SUM($N$11:N13)-N14)/24),"-[hh]:mm"),TEXT(($O$9-SUM($N$11:N13)-N14)/24,"[hh]:mm"))) ->  | R14: =IF($K$9=0,1,IF($K$9=1,R6,IF(AND($K$9=3,OR(SUM($U$12:$U$16)=0,$U$1="nein")),3,IF(AND($U$1="",SUM($U$12:$U$16)>0,U14>=1,OR($K$9=3,$K$9=2)),4,1)))) -> 1 | S14: Mi | U14: =IF(OR($K$9=0,INDIRECT("'"&TEXT(DATE(D6,$C$4-1,1),"MMM")&"'!$U$1")="nein",$U$1="nein"),0,IF(T14>0,T14,INDEX(Uebersicht!$BF$3:$BJ$14,$C$4,MATCH(S14,Uebersicht!$BF$2:$BJ$2,0)))) -> 0
C15: =IF(OR($K$9=0,AND($K$9=2,A15<=14)),1,IF(IF(ISNA(INDEX(X!$W$7:$W$20,MATCH(DATE($D$4,$C$4,A15),X!$AC$7:$AC$20,0))),1,2)=2,2,IF(OR(B15="Sa",B15="So"),2,IF($K$9=1,SUMIFS($R$4:$R$8,$S$4:$S$8,B15),IF(AND($K$9=2,A15<15),SUMIFS($R$4:$R$8,$S$4:$S$8,B15),IF(AND($K$9=2,A15>14),SUMIFS($R$12:$R$16,$S$12:$S$16,B15),IF(AND($K$9=3,A15>14),SUMIFS($R$12:$R$16,$S$12:$S$16,B15),IF(AND($K$9=3,A15<15),SUMIFS($R$4:$R$8,$S$4:$S$8,B15),1)))))))) -> 1 | I15: =IF($K$9>0,IF(SUM($K$11:$K15,$I$6)<0,TEXT(-(SUM($K$11:K15,$I$6)/60)/24,"-[h]:mm"),TEXT((SUM($K$11:K15,$I$6)/60)/24,"[h]:mm")),"") ->  | L15: 0 | M15: 0 | O15: =IF(OR($O$3="",$N$3="",N15=""),"",IF($O$9-SUM($N$11:N14)-N15<0,TEXT(-(($O$9-SUM($N$11:N14)-N15)/24),"-[hh]:mm"),TEXT(($O$9-SUM($N$11:N14)-N15)/24,"[hh]:mm"))) ->  | R15: =IF($K$9=0,1,IF($K$9=1,R7,IF(AND($K$9=3,OR(SUM($U$12:$U$16)=0,$U$1="nein")),3,IF(AND($U$1="",SUM($U$12:$U$16)>0,U15>=1,OR($K$9=3,$K$9=2)),4,1)))) -> 1 | S15: Do | U15: =IF(OR($K$9=0,INDIRECT("'"&TEXT(DATE(D7,$C$4-1,1),"MMM")&"'!$U$1")="nein",$U$1="nein"),0,IF(T15>0,T15,INDEX(Uebersicht!$BF$3:$BJ$14,$C$4,MATCH(S15,Uebersicht!$BF$2:$BJ$2,0)))) -> 0
C16: =IF(OR($K$9=0,AND($K$9=2,A16<=14)),1,IF(IF(ISNA(INDEX(X!$W$7:$W$20,MATCH(DATE($D$4,$C$4,A16),X!$AC$7:$AC$20,0))),1,2)=2,2,IF(OR(B16="Sa",B16="So"),2,IF($K$9=1,SUMIFS($R$4:$R$8,$S$4:$S$8,B16),IF(AND($K$9=2,A16<15),SUMIFS($R$4:$R$8,$S$4:$S$8,B16),IF(AND($K$9=2,A16>14),SUMIFS($R$12:$R$16,$S$12:$S$16,B16),IF(AND($K$9=3,A16>14),SUMIFS($R$12:$R$16,$S$12:$S$16,B16),IF(AND($K$9=3,A16<15),SUMIFS($R$4:$R$8,$S$4:$S$8,B16),1)))))))) -> 1 | I16: =IF($K$9>0,IF(SUM($K$11:$K16,$I$6)<0,TEXT(-(SUM($K$11:K16,$I$6)/60)/24,"-[h]:mm"),TEXT((SUM($K$11:K16,$I$6)/60)/24,"[h]:mm")),"") ->  | L16: 0 | M16: 0 | O16: =IF(OR($O$3="",$N$3="",N16=""),"",IF($O$9-SUM($N$11:N15)-N16<0,TEXT(-(($O$9-SUM($N$11:N15)-N16)/24),"-[hh]:mm"),TEXT(($O$9-SUM($N$11:N15)-N16)/24,"[hh]:mm"))) ->  | R16: =IF($K$9=0,1,IF($K$9=1,R8,IF(AND($K$9=3,OR(SUM($U$12:$U$16)=0,$U$1="nein")),3,IF(AND($U$1="",SUM($U$12:$U$16)>0,U16>=1,OR($K$9=3,$K$9=2)),4,1)))) -> 1 | S16: Fr | U16: =IF(OR($K$9=0,INDIRECT("'"&TEXT(DATE(D8,$C$4-1,1),"MMM")&"'!$U$1")="nein",$U$1="nein"),0,IF(T16>0,T16,INDEX(Uebersicht!$BF$3:$BJ$14,$C$4,MATCH(S16,Uebersicht!$BF$2:$BJ$2,0)))) -> 0
C17: =IF(OR($K$9=0,AND($K$9=2,A17<=14)),1,IF(IF(ISNA(INDEX(X!$W$7:$W$20,MATCH(DATE($D$4,$C$4,A17),X!$AC$7:$AC$20,0))),1,2)=2,2,IF(OR(B17="Sa",B17="So"),2,IF($K$9=1,SUMIFS($R$4:$R$8,$S$4:$S$8,B17),IF(AND($K$9=2,A17<15),SUMIFS($R$4:$R$8,$S$4:$S$8,B17),IF(AND($K$9=2,A17>14),SUMIFS($R$12:$R$16,$S$12:$S$16,B17),IF(AND($K$9=3,A17>14),SUMIFS($R$12:$R$16,$S$12:$S$16,B17),IF(AND($K$9=3,A17<15),SUMIFS($R$4:$R$8,$S$4:$S$8,B17),1)))))))) -> 1 | I17: =IF($K$9>0,IF(SUM($K$11:$K17,$I$6)<0,TEXT(-(SUM($K$11:K17,$I$6)/60)/24,"-[h]:mm"),TEXT((SUM($K$11:K17,$I$6)/60)/24,"[h]:mm")),"") ->  | L17: 0 | M17: 0 | O17: =IF(OR($O$3="",$N$3="",N17=""),"",IF($O$9-SUM($N$11:N16)-N17<0,TEXT(-(($O$9-SUM($N$11:N16)-N17)/24),"-[hh]:mm"),TEXT(($O$9-SUM($N$11:N16)-N17)/24,"[hh]:mm"))) ->  | S17: =IF(I9=0,"",IF(SUM(U12:U16)>I9,"zu viel!",IF(SUM(U12:U16)<I9,"zu wenig!",""))) ->  | U17: =IF(OR(U9="nein",SUM(U12:U16)=0),"ja",IF(OR(SUM(Uebersicht!C43:C47)>0,SUM(T12:T16)>0,SUM(U12:U16)>0),"nein","ja")) -> ja
C18: =IF(OR($K$9=0,AND($K$9=2,A18<=14)),1,IF(IF(ISNA(INDEX(X!$W$7:$W$20,MATCH(DATE($D$4,$C$4,A18),X!$AC$7:$AC$20,0))),1,2)=2,2,IF(OR(B18="Sa",B18="So"),2,IF($K$9=1,SUMIFS($R$4:$R$8,$S$4:$S$8,B18),IF(AND($K$9=2,A18<15),SUMIFS($R$4:$R$8,$S$4:$S$8,B18),IF(AND($K$9=2,A18>14),SUMIFS($R$12:$R$16,$S$12:$S$16,B18),IF(AND($K$9=3,A18>14),SUMIFS($R$12:$R$16,$S$12:$S$16,B18),IF(AND($K$9=3,A18<15),SUMIFS($R$4:$R$8,$S$4:$S$8,B18),1)))))))) -> 1 | I18: =IF($K$9>0,IF(SUM($K$11:$K18,$I$6)<0,TEXT(-(SUM($K$11:K18,$I$6)/60)/24,"-[h]:mm"),TEXT((SUM($K$11:K18,$I$6)/60)/24,"[h]:mm")),"") ->  | L18: 0 | M18: 0 | O18: =IF(OR($O$3="",$N$3="",N18=""),"",IF($O$9-SUM($N$11:N17)-N18<0,TEXT(-(($O$9-SUM($N$11:N17)-N18)/24),"-[hh]:mm"),TEXT(($O$9-SUM($N$11:N17)-N18)/24,"[hh]:mm"))) -> 
C19: =IF(OR($K$9=0,AND($K$9=2,A19<=14)),1,IF(IF(ISNA(INDEX(X!$W$7:$W$20,MATCH(DATE($D$4,$C$4,A19),X!$AC$7:$AC$20,0))),1,2)=2,2,IF(OR(B19="Sa",B19="So"),2,IF($K$9=1,SUMIFS($R$4:$R$8,$S$4:$S$8,B19),IF(AND($K$9=2,A19<15),SUMIFS($R$4:$R$8,$S$4:$S$8,B19),IF(AND($K$9=2,A19>14),SUMIFS($R$12:$R$16,$S$12:$S$16,B19),IF(AND($K$9=3,A19>14),SUMIFS($R$12:$R$16,$S$12:$S$16,B19),IF(AND($K$9=3,A19<15),SUMIFS($R$4:$R$8,$S$4:$S$8,B19),1)))))))) -> 1 | I19: =IF($K$9>0,IF(SUM($K$11:$K19,$I$6)<0,TEXT(-(SUM($K$11:K19,$I$6)/60)/24,"-[h]:mm"),TEXT((SUM($K$11:K19,$I$6)/60)/24,"[h]:mm")),"") ->  | L19: 0 | M19: 0 | O19: =IF(OR($O$3="",$N$3="",N19=""),"",IF($O$9-SUM($N$11:N18)-N19<0,TEXT(-(($O$9-SUM($N$11:N18)-N19)/24),"-[hh]:mm"),TEXT(($O$9-SUM($N$11:N18)-N19)/24,"[hh]:mm"))) -> 
C20: =IF(OR($K$9=0,AND($K$9=2,A20<=14)),1,IF(IF(ISNA(INDEX(X!$W$7:$W$20,MATCH(DATE($D$4,$C$4,A20),X!$AC$7:$AC$20,0))),1,2)=2,2,IF(OR(B20="Sa",B20="So"),2,IF($K$9=1,SUMIFS($R$4:$R$8,$S$4:$S$8,B20),IF(AND($K$9=2,A20<15),SUMIFS($R$4:$R$8,$S$4:$S$8,B20),IF(AND($K$9=2,A20>14),SUMIFS($R$12:$R$16,$S$12:$S$16,B20),IF(AND($K$9=3,A20>14),SUMIFS($R$12:$R$16,$S$12:$S$16,B20),IF(AND($K$9=3,A20<15),SUMIFS($R$4:$R$8,$S$4:$S$8,B20),1)))))))) -> 1 | I20: =IF($K$9>0,IF(SUM($K$11:$K20,$I$6)<0,TEXT(-(SUM($K$11:K20,$I$6)/60)/24,"-[h]:mm"),TEXT((SUM($K$11:K20,$I$6)/60)/24,"[h]:mm")),"") ->  | L20: 0 | M20: 0 | O20: =IF(OR($O$3="",$N$3="",N20=""),"",IF($O$9-SUM($N$11:N19)-N20<0,TEXT(-(($O$9-SUM($N$11:N19)-N20)/24),"-[hh]:mm"),TEXT(($O$9-SUM($N$11:N19)-N20)/24,"[hh]:mm"))) -> 
C21: =IF(OR($K$9=0,AND($K$9=2,A21<=14)),1,IF(IF(ISNA(INDEX(X!$W$7:$W$20,MATCH(DATE($D$4,$C$4,A21),X!$AC$7:$AC$20,0))),1,2)=2,2,IF(OR(B21="Sa",B21="So"),2,IF($K$9=1,SUMIFS($R$4:$R$8,$S$4:$S$8,B21),IF(AND($K$9=2,A21<15),SUMIFS($R$4:$R$8,$S$4:$S$8,B21),IF(AND($K$9=2,A21>14),SUMIFS($R$12:$R$16,$S$12:$S$16,B21),IF(AND($K$9=3,A21>14),SUMIFS($R$12:$R$16,$S$12:$S$16,B21),IF(AND($K$9=3,A21<15),SUMIFS($R$4:$R$8,$S$4:$S$8,B21),1)))))))) -> 1 | I21: =IF($K$9>0,IF(SUM($K$11:$K21,$I$6)<0,TEXT(-(SUM($K$11:K21,$I$6)/60)/24,"-[h]:mm"),TEXT((SUM($K$11:K21,$I$6)/60)/24,"[h]:mm")),"") ->  | L21: 0 | M21: 0 | O21: =IF(OR($O$3="",$N$3="",N21=""),"",IF($O$9-SUM($N$11:N20)-N21<0,TEXT(-(($O$9-SUM($N$11:N20)-N21)/24),"-[hh]:mm"),TEXT(($O$9-SUM($N$11:N20)-N21)/24,"[hh]:mm"))) -> 
C22: =IF(OR($K$9=0,AND($K$9=2,A22<=14)),1,IF(IF(ISNA(INDEX(X!$W$7:$W$20,MATCH(DATE($D$4,$C$4,A22),X!$AC$7:$AC$20,0))),1,2)=2,2,IF(OR(B22="Sa",B22="So"),2,IF($K$9=1,SUMIFS($R$4:$R$8,$S$4:$S$8,B22),IF(AND($K$9=2,A22<15),SUMIFS($R$4:$R$8,$S$4:$S$8,B22),IF(AND($K$9=2,A22>14),SUMIFS($R$12:$R$16,$S$12:$S$16,B22),IF(AND($K$9=3,A22>14),SUMIFS($R$12:$R$16,$S$12:$S$16,B22),IF(AND($K$9=3,A22<15),SUMIFS($R$4:$R$8,$S$4:$S$8,B22),1)))))))) -> 1 | I22: =IF($K$9>0,IF(SUM($K$11:$K22,$I$6)<0,TEXT(-(SUM($K$11:K22,$I$6)/60)/24,"-[h]:mm"),TEXT((SUM($K$11:K22,$I$6)/60)/24,"[h]:mm")),"") ->  | L22: 0 | M22: 0 | O22: =IF(OR($O$3="",$N$3="",N22=""),"",IF($O$9-SUM($N$11:N21)-N22<0,TEXT(-(($O$9-SUM($N$11:N21)-N22)/24),"-[hh]:mm"),TEXT(($O$9-SUM($N$11:N21)-N22)/24,"[hh]:mm"))) -> 
C23: =IF(OR($K$9=0,AND($K$9=2,A23<=14)),1,IF(IF(ISNA(INDEX(X!$W$7:$W$20,MATCH(DATE($D$4,$C$4,A23),X!$AC$7:$AC$20,0))),1,2)=2,2,IF(OR(B23="Sa",B23="So"),2,IF($K$9=1,SUMIFS($R$4:$R$8,$S$4:$S$8,B23),IF(AND($K$9=2,A23<15),SUMIFS($R$4:$R$8,$S$4:$S$8,B23),IF(AND($K$9=2,A23>14),SUMIFS($R$12:$R$16,$S$12:$S$16,B23),IF(AND($K$9=3,A23>14),SUMIFS($R$12:$R$16,$S$12:$S$16,B23),IF(AND($K$9=3,A23<15),SUMIFS($R$4:$R$8,$S$4:$S$8,B23),1)))))))) -> 1 | I23: =IF($K$9>0,IF(SUM($K$11:$K23,$I$6)<0,TEXT(-(SUM($K$11:K23,$I$6)/60)/24,"-[h]:mm"),TEXT((SUM($K$11:K23,$I$6)/60)/24,"[h]:mm")),"") ->  | L23: 0 | M23: 0 | O23: =IF(OR($O$3="",$N$3="",N23=""),"",IF($O$9-SUM($N$11:N22)-N23<0,TEXT(-(($O$9-SUM($N$11:N22)-N23)/24),"-[hh]:mm"),TEXT(($O$9-SUM($N$11:N22)-N23)/24,"[hh]:mm"))) -> 
C24: =IF(OR($K$9=0,AND($K$9=2,A24<=14)),1,IF(IF(ISNA(INDEX(X!$W$7:$W$20,MATCH(DATE($D$4,$C$4,A24),X!$AC$7:$AC$20,0))),1,2)=2,2,IF(OR(B24="Sa",B24="So"),2,IF($K$9=1,SUMIFS($R$4:$R$8,$S$4:$S$8,B24),IF(AND($K$9=2,A24<15),SUMIFS($R$4:$R$8,$S$4:$S$8,B24),IF(AND($K$9=2,A24>14),SUMIFS($R$12:$R$16,$S$12:$S$16,B24),IF(AND($K$9=3,A24>14),SUMIFS($R$12:$R$16,$S$12:$S$16,B24),IF(AND($K$9=3,A24<15),SUMIFS($R$4:$R$8,$S$4:$S$8,B24),1)))))))) -> 1 | I24: =IF($K$9>0,IF(SUM($K$11:$K24,$I$6)<0,TEXT(-(SUM($K$11:K24,$I$6)/60)/24,"-[h]:mm"),TEXT((SUM($K$11:K24,$I$6)/60)/24,"[h]:mm")),"") ->  | L24: 0 | M24: 0 | O24: =IF(OR($O$3="",$N$3="",N24=""),"",IF($O$9-SUM($N$11:N23)-N24<0,TEXT(-(($O$9-SUM($N$11:N23)-N24)/24),"-[hh]:mm"),TEXT(($O$9-SUM($N$11:N23)-N24)/24,"[hh]:mm"))) -> 
C25: =IF(OR($K$9=0,AND($K$9=2,A25<=14)),1,IF(IF(ISNA(INDEX(X!$W$7:$W$20,MATCH(DATE($D$4,$C$4,A25),X!$AC$7:$AC$20,0))),1,2)=2,2,IF(OR(B25="Sa",B25="So"),2,IF($K$9=1,SUMIFS($R$4:$R$8,$S$4:$S$8,B25),IF(AND($K$9=2,A25<15),SUMIFS($R$4:$R$8,$S$4:$S$8,B25),IF(AND($K$9=2,A25>14),SUMIFS($R$12:$R$16,$S$12:$S$16,B25),IF(AND($K$9=3,A25>14),SUMIFS($R$12:$R$16,$S$12:$S$16,B25),IF(AND($K$9=3,A25<15),SUMIFS($R$4:$R$8,$S$4:$S$8,B25),1)))))))) -> 1 | I25: =IF($K$9>0,IF(SUM($K$11:$K25,$I$6)<0,TEXT(-(SUM($K$11:K25,$I$6)/60)/24,"-[h]:mm"),TEXT((SUM($K$11:K25,$I$6)/60)/24,"[h]:mm")),"") ->  | L25: 0 | M25: 0 | O25: =IF(OR($O$3="",$N$3="",N25=""),"",IF($O$9-SUM($N$11:N24)-N25<0,TEXT(-(($O$9-SUM($N$11:N24)-N25)/24),"-[hh]:mm"),TEXT(($O$9-SUM($N$11:N24)-N25)/24,"[hh]:mm"))) -> 
C26: =IF(OR($K$9=0,AND($K$9=2,A26<=14)),1,IF(IF(ISNA(INDEX(X!$W$7:$W$20,MATCH(DATE($D$4,$C$4,A26),X!$AC$7:$AC$20,0))),1,2)=2,2,IF(OR(B26="Sa",B26="So"),2,IF($K$9=1,SUMIFS($R$4:$R$8,$S$4:$S$8,B26),IF(AND($K$9=2,A26<15),SUMIFS($R$4:$R$8,$S$4:$S$8,B26),IF(AND($K$9=2,A26>14),SUMIFS($R$12:$R$16,$S$12:$S$16,B26),IF(AND($K$9=3,A26>14),SUMIFS($R$12:$R$16,$S$12:$S$16,B26),IF(AND($K$9=3,A26<15),SUMIFS($R$4:$R$8,$S$4:$S$8,B26),1)))))))) -> 1 | I26: =IF($K$9>0,IF(SUM($K$11:$K26,$I$6)<0,TEXT(-(SUM($K$11:K26,$I$6)/60)/24,"-[h]:mm"),TEXT((SUM($K$11:K26,$I$6)/60)/24,"[h]:mm")),"") ->  | L26: 0 | M26: 0 | O26: =IF(OR($O$3="",$N$3="",N26=""),"",IF($O$9-SUM($N$11:N25)-N26<0,TEXT(-(($O$9-SUM($N$11:N25)-N26)/24),"-[hh]:mm"),TEXT(($O$9-SUM($N$11:N25)-N26)/24,"[hh]:mm"))) -> 
C27: =IF(OR($K$9=0,AND($K$9=2,A27<=14)),1,IF(IF(ISNA(INDEX(X!$W$7:$W$20,MATCH(DATE($D$4,$C$4,A27),X!$AC$7:$AC$20,0))),1,2)=2,2,IF(OR(B27="Sa",B27="So"),2,IF($K$9=1,SUMIFS($R$4:$R$8,$S$4:$S$8,B27),IF(AND($K$9=2,A27<15),SUMIFS($R$4:$R$8,$S$4:$S$8,B27),IF(AND($K$9=2,A27>14),SUMIFS($R$12:$R$16,$S$12:$S$16,B27),IF(AND($K$9=3,A27>14),SUMIFS($R$12:$R$16,$S$12:$S$16,B27),IF(AND($K$9=3,A27<15),SUMIFS($R$4:$R$8,$S$4:$S$8,B27),1)))))))) -> 1 | I27: =IF($K$9>0,IF(SUM($K$11:$K27,$I$6)<0,TEXT(-(SUM($K$11:K27,$I$6)/60)/24,"-[h]:mm"),TEXT((SUM($K$11:K27,$I$6)/60)/24,"[h]:mm")),"") ->  | L27: 0 | M27: 0 | O27: =IF(OR($O$3="",$N$3="",N27=""),"",IF($O$9-SUM($N$11:N26)-N27<0,TEXT(-(($O$9-SUM($N$11:N26)-N27)/24),"-[hh]:mm"),TEXT(($O$9-SUM($N$11:N26)-N27)/24,"[hh]:mm"))) -> 
C28: =IF(OR($K$9=0,AND($K$9=2,A28<=14)),1,IF(IF(ISNA(INDEX(X!$W$7:$W$20,MATCH(DATE($D$4,$C$4,A28),X!$AC$7:$AC$20,0))),1,2)=2,2,IF(OR(B28="Sa",B28="So"),2,IF($K$9=1,SUMIFS($R$4:$R$8,$S$4:$S$8,B28),IF(AND($K$9=2,A28<15),SUMIFS($R$4:$R$8,$S$4:$S$8,B28),IF(AND($K$9=2,A28>14),SUMIFS($R$12:$R$16,$S$12:$S$16,B28),IF(AND($K$9=3,A28>14),SUMIFS($R$12:$R$16,$S$12:$S$16,B28),IF(AND($K$9=3,A28<15),SUMIFS($R$4:$R$8,$S$4:$S$8,B28),1)))))))) -> 1 | I28: =IF($K$9>0,IF(SUM($K$11:$K28,$I$6)<0,TEXT(-(SUM($K$11:K28,$I$6)/60)/24,"-[h]:mm"),TEXT((SUM($K$11:K28,$I$6)/60)/24,"[h]:mm")),"") ->  | L28: 0 | M28: 0 | O28: =IF(OR($O$3="",$N$3="",N28=""),"",IF($O$9-SUM($N$11:N27)-N28<0,TEXT(-(($O$9-SUM($N$11:N27)-N28)/24),"-[hh]:mm"),TEXT(($O$9-SUM($N$11:N27)-N28)/24,"[hh]:mm"))) -> 
C29: =IF(OR($K$9=0,AND($K$9=2,A29<=14)),1,IF(IF(ISNA(INDEX(X!$W$7:$W$20,MATCH(DATE($D$4,$C$4,A29),X!$AC$7:$AC$20,0))),1,2)=2,2,IF(OR(B29="Sa",B29="So"),2,IF($K$9=1,SUMIFS($R$4:$R$8,$S$4:$S$8,B29),IF(AND($K$9=2,A29<15),SUMIFS($R$4:$R$8,$S$4:$S$8,B29),IF(AND($K$9=2,A29>14),SUMIFS($R$12:$R$16,$S$12:$S$16,B29),IF(AND($K$9=3,A29>14),SUMIFS($R$12:$R$16,$S$12:$S$16,B29),IF(AND($K$9=3,A29<15),SUMIFS($R$4:$R$8,$S$4:$S$8,B29),1)))))))) -> 1 | I29: =IF($K$9>0,IF(SUM($K$11:$K29,$I$6)<0,TEXT(-(SUM($K$11:K29,$I$6)/60)/24,"-[h]:mm"),TEXT((SUM($K$11:K29,$I$6)/60)/24,"[h]:mm")),"") ->  | L29: 0 | M29: 0 | O29: =IF(OR($O$3="",$N$3="",N29=""),"",IF($O$9-SUM($N$11:N28)-N29<0,TEXT(-(($O$9-SUM($N$11:N28)-N29)/24),"-[hh]:mm"),TEXT(($O$9-SUM($N$11:N28)-N29)/24,"[hh]:mm"))) -> 
C30: =IF(OR($K$9=0,AND($K$9=2,A30<=14)),1,IF(IF(ISNA(INDEX(X!$W$7:$W$20,MATCH(DATE($D$4,$C$4,A30),X!$AC$7:$AC$20,0))),1,2)=2,2,IF(OR(B30="Sa",B30="So"),2,IF($K$9=1,SUMIFS($R$4:$R$8,$S$4:$S$8,B30),IF(AND($K$9=2,A30<15),SUMIFS($R$4:$R$8,$S$4:$S$8,B30),IF(AND($K$9=2,A30>14),SUMIFS($R$12:$R$16,$S$12:$S$16,B30),IF(AND($K$9=3,A30>14),SUMIFS($R$12:$R$16,$S$12:$S$16,B30),IF(AND($K$9=3,A30<15),SUMIFS($R$4:$R$8,$S$4:$S$8,B30),1)))))))) -> 1 | I30: =IF($K$9>0,IF(SUM($K$11:$K30,$I$6)<0,TEXT(-(SUM($K$11:K30,$I$6)/60)/24,"-[h]:mm"),TEXT((SUM($K$11:K30,$I$6)/60)/24,"[h]:mm")),"") ->  | L30: 0 | M30: 0 | O30: =IF(OR($O$3="",$N$3="",N30=""),"",IF($O$9-SUM($N$11:N29)-N30<0,TEXT(-(($O$9-SUM($N$11:N29)-N30)/24),"-[hh]:mm"),TEXT(($O$9-SUM($N$11:N29)-N30)/24,"[hh]:mm"))) -> 
C31: =IF(OR($K$9=0,AND($K$9=2,A31<=14)),1,IF(IF(ISNA(INDEX(X!$W$7:$W$20,MATCH(DATE($D$4,$C$4,A31),X!$AC$7:$AC$20,0))),1,2)=2,2,IF(OR(B31="Sa",B31="So"),2,IF($K$9=1,SUMIFS($R$4:$R$8,$S$4:$S$8,B31),IF(AND($K$9=2,A31<15),SUMIFS($R$4:$R$8,$S$4:$S$8,B31),IF(AND($K$9=2,A31>14),SUMIFS($R$12:$R$16,$S$12:$S$16,B31),IF(AND($K$9=3,A31>14),SUMIFS($R$12:$R$16,$S$12:$S$16,B31),IF(AND($K$9=3,A31<15),SUMIFS($R$4:$R$8,$S$4:$S$8,B31),1)))))))) -> 1 | I31: =IF($K$9>0,IF(SUM($K$11:$K31,$I$6)<0,TEXT(-(SUM($K$11:K31,$I$6)/60)/24,"-[h]:mm"),TEXT((SUM($K$11:K31,$I$6)/60)/24,"[h]:mm")),"") ->  | L31: 0 | M31: 0 | O31: =IF(OR($O$3="",$N$3="",N31=""),"",IF($O$9-SUM($N$11:N30)-N31<0,TEXT(-(($O$9-SUM($N$11:N30)-N31)/24),"-[hh]:mm"),TEXT(($O$9-SUM($N$11:N30)-N31)/24,"[hh]:mm"))) -> 
C32: =IF(OR($K$9=0,AND($K$9=2,A32<=14)),1,IF(IF(ISNA(INDEX(X!$W$7:$W$20,MATCH(DATE($D$4,$C$4,A32),X!$AC$7:$AC$20,0))),1,2)=2,2,IF(OR(B32="Sa",B32="So"),2,IF($K$9=1,SUMIFS($R$4:$R$8,$S$4:$S$8,B32),IF(AND($K$9=2,A32<15),SUMIFS($R$4:$R$8,$S$4:$S$8,B32),IF(AND($K$9=2,A32>14),SUMIFS($R$12:$R$16,$S$12:$S$16,B32),IF(AND($K$9=3,A32>14),SUMIFS($R$12:$R$16,$S$12:$S$16,B32),IF(AND($K$9=3,A32<15),SUMIFS($R$4:$R$8,$S$4:$S$8,B32),1)))))))) -> 1 | I32: =IF($K$9>0,IF(SUM($K$11:$K32,$I$6)<0,TEXT(-(SUM($K$11:K32,$I$6)/60)/24,"-[h]:mm"),TEXT((SUM($K$11:K32,$I$6)/60)/24,"[h]:mm")),"") ->  | L32: 0 | M32: 0 | O32: =IF(OR($O$3="",$N$3="",N32=""),"",IF($O$9-SUM($N$11:N31)-N32<0,TEXT(-(($O$9-SUM($N$11:N31)-N32)/24),"-[hh]:mm"),TEXT(($O$9-SUM($N$11:N31)-N32)/24,"[hh]:mm"))) -> 
C33: =IF(OR($K$9=0,AND($K$9=2,A33<=14)),1,IF(IF(ISNA(INDEX(X!$W$7:$W$20,MATCH(DATE($D$4,$C$4,A33),X!$AC$7:$AC$20,0))),1,2)=2,2,IF(OR(B33="Sa",B33="So"),2,IF($K$9=1,SUMIFS($R$4:$R$8,$S$4:$S$8,B33),IF(AND($K$9=2,A33<15),SUMIFS($R$4:$R$8,$S$4:$S$8,B33),IF(AND($K$9=2,A33>14),SUMIFS($R$12:$R$16,$S$12:$S$16,B33),IF(AND($K$9=3,A33>14),SUMIFS($R$12:$R$16,$S$12:$S$16,B33),IF(AND($K$9=3,A33<15),SUMIFS($R$4:$R$8,$S$4:$S$8,B33),1)))))))) -> 1 | I33: =IF($K$9>0,IF(SUM($K$11:$K33,$I$6)<0,TEXT(-(SUM($K$11:K33,$I$6)/60)/24,"-[h]:mm"),TEXT((SUM($K$11:K33,$I$6)/60)/24,"[h]:mm")),"") ->  | L33: 0 | M33: 0 | O33: =IF(OR($O$3="",$N$3="",N33=""),"",IF($O$9-SUM($N$11:N32)-N33<0,TEXT(-(($O$9-SUM($N$11:N32)-N33)/24),"-[hh]:mm"),TEXT(($O$9-SUM($N$11:N32)-N33)/24,"[hh]:mm"))) -> 
C34: =IF(OR($K$9=0,AND($K$9=2,A34<=14)),1,IF(IF(ISNA(INDEX(X!$W$7:$W$20,MATCH(DATE($D$4,$C$4,A34),X!$AC$7:$AC$20,0))),1,2)=2,2,IF(OR(B34="Sa",B34="So"),2,IF($K$9=1,SUMIFS($R$4:$R$8,$S$4:$S$8,B34),IF(AND($K$9=2,A34<15),SUMIFS($R$4:$R$8,$S$4:$S$8,B34),IF(AND($K$9=2,A34>14),SUMIFS($R$12:$R$16,$S$12:$S$16,B34),IF(AND($K$9=3,A34>14),SUMIFS($R$12:$R$16,$S$12:$S$16,B34),IF(AND($K$9=3,A34<15),SUMIFS($R$4:$R$8,$S$4:$S$8,B34),1)))))))) -> 1 | I34: =IF($K$9>0,IF(SUM($K$11:$K34,$I$6)<0,TEXT(-(SUM($K$11:K34,$I$6)/60)/24,"-[h]:mm"),TEXT((SUM($K$11:K34,$I$6)/60)/24,"[h]:mm")),"") ->  | L34: 0 | M34: 0 | O34: =IF(OR($O$3="",$N$3="",N34=""),"",IF($O$9-SUM($N$11:N33)-N34<0,TEXT(-(($O$9-SUM($N$11:N33)-N34)/24),"-[hh]:mm"),TEXT(($O$9-SUM($N$11:N33)-N34)/24,"[hh]:mm"))) -> 
C35: =IF(OR($K$9=0,AND($K$9=2,A35<=14)),1,IF(IF(ISNA(INDEX(X!$W$7:$W$20,MATCH(DATE($D$4,$C$4,A35),X!$AC$7:$AC$20,0))),1,2)=2,2,IF(OR(B35="Sa",B35="So"),2,IF($K$9=1,SUMIFS($R$4:$R$8,$S$4:$S$8,B35),IF(AND($K$9=2,A35<15),SUMIFS($R$4:$R$8,$S$4:$S$8,B35),IF(AND($K$9=2,A35>14),SUMIFS($R$12:$R$16,$S$12:$S$16,B35),IF(AND($K$9=3,A35>14),SUMIFS($R$12:$R$16,$S$12:$S$16,B35),IF(AND($K$9=3,A35<15),SUMIFS($R$4:$R$8,$S$4:$S$8,B35),1)))))))) -> 1 | I35: =IF($K$9>0,IF(SUM($K$11:$K35,$I$6)<0,TEXT(-(SUM($K$11:K35,$I$6)/60)/24,"-[h]:mm"),TEXT((SUM($K$11:K35,$I$6)/60)/24,"[h]:mm")),"") ->  | L35: 0 | M35: 0 | O35: =IF(OR($O$3="",$N$3="",N35=""),"",IF($O$9-SUM($N$11:N34)-N35<0,TEXT(-(($O$9-SUM($N$11:N34)-N35)/24),"-[hh]:mm"),TEXT(($O$9-SUM($N$11:N34)-N35)/24,"[hh]:mm"))) -> 
C36: =IF(OR($K$9=0,AND($K$9=2,A36<=14)),1,IF(IF(ISNA(INDEX(X!$W$7:$W$20,MATCH(DATE($D$4,$C$4,A36),X!$AC$7:$AC$20,0))),1,2)=2,2,IF(OR(B36="Sa",B36="So"),2,IF($K$9=1,SUMIFS($R$4:$R$8,$S$4:$S$8,B36),IF(AND($K$9=2,A36<15),SUMIFS($R$4:$R$8,$S$4:$S$8,B36),IF(AND($K$9=2,A36>14),SUMIFS($R$12:$R$16,$S$12:$S$16,B36),IF(AND($K$9=3,A36>14),SUMIFS($R$12:$R$16,$S$12:$S$16,B36),IF(AND($K$9=3,A36<15),SUMIFS($R$4:$R$8,$S$4:$S$8,B36),1)))))))) -> 1 | I36: =IF($K$9>0,IF(SUM($K$11:$K36,$I$6)<0,TEXT(-(SUM($K$11:K36,$I$6)/60)/24,"-[h]:mm"),TEXT((SUM($K$11:K36,$I$6)/60)/24,"[h]:mm")),"") ->  | L36: 0 | M36: 0 | O36: =IF(OR($O$3="",$N$3="",N36=""),"",IF($O$9-SUM($N$11:N35)-N36<0,TEXT(-(($O$9-SUM($N$11:N35)-N36)/24),"-[hh]:mm"),TEXT(($O$9-SUM($N$11:N35)-N36)/24,"[hh]:mm"))) -> 
C37: =IF(OR($K$9=0,AND($K$9=2,A37<=14)),1,IF(IF(ISNA(INDEX(X!$W$7:$W$20,MATCH(DATE($D$4,$C$4,A37),X!$AC$7:$AC$20,0))),1,2)=2,2,IF(OR(B37="Sa",B37="So"),2,IF($K$9=1,SUMIFS($R$4:$R$8,$S$4:$S$8,B37),IF(AND($K$9=2,A37<15),SUMIFS($R$4:$R$8,$S$4:$S$8,B37),IF(AND($K$9=2,A37>14),SUMIFS($R$12:$R$16,$S$12:$S$16,B37),IF(AND($K$9=3,A37>14),SUMIFS($R$12:$R$16,$S$12:$S$16,B37),IF(AND($K$9=3,A37<15),SUMIFS($R$4:$R$8,$S$4:$S$8,B37),1)))))))) -> 1 | I37: =IF($K$9>0,IF(SUM($K$11:$K37,$I$6)<0,TEXT(-(SUM($K$11:K37,$I$6)/60)/24,"-[h]:mm"),TEXT((SUM($K$11:K37,$I$6)/60)/24,"[h]:mm")),"") ->  | L37: 0 | M37: 0 | O37: =IF(OR($O$3="",$N$3="",N37=""),"",IF($O$9-SUM($N$11:N36)-N37<0,TEXT(-(($O$9-SUM($N$11:N36)-N37)/24),"-[hh]:mm"),TEXT(($O$9-SUM($N$11:N36)-N37)/24,"[hh]:mm"))) -> 
C38: =IF(OR($K$9=0,AND($K$9=2,A38<=14)),1,IF(IF(ISNA(INDEX(X!$W$7:$W$20,MATCH(DATE($D$4,$C$4,A38),X!$AC$7:$AC$20,0))),1,2)=2,2,IF(OR(B38="Sa",B38="So"),2,IF($K$9=1,SUMIFS($R$4:$R$8,$S$4:$S$8,B38),IF(AND($K$9=2,A38<15),SUMIFS($R$4:$R$8,$S$4:$S$8,B38),IF(AND($K$9=2,A38>14),SUMIFS($R$12:$R$16,$S$12:$S$16,B38),IF(AND($K$9=3,A38>14),SUMIFS($R$12:$R$16,$S$12:$S$16,B38),IF(AND($K$9=3,A38<15),SUMIFS($R$4:$R$8,$S$4:$S$8,B38),1)))))))) -> 1 | I38: =IF($K$9>0,IF(SUM($K$11:$K38,$I$6)<0,TEXT(-(SUM($K$11:K38,$I$6)/60)/24,"-[h]:mm"),TEXT((SUM($K$11:K38,$I$6)/60)/24,"[h]:mm")),"") ->  | L38: 0 | M38: 0 | O38: =IF(OR($O$3="",$N$3="",N38=""),"",IF($O$9-SUM($N$11:N37)-N38<0,TEXT(-(($O$9-SUM($N$11:N37)-N38)/24),"-[hh]:mm"),TEXT(($O$9-SUM($N$11:N37)-N38)/24,"[hh]:mm"))) -> 
B39: =IF(OR(A39="",$D$4=""),"",TEXT(DATE($D$4,$C$4,A39),"ttt")) ->  | C39: =IF(OR($K$9=0,AND($K$9=2,A39<=14)),1,IF(IF(ISNA(INDEX(X!$W$7:$W$20,MATCH(DATE($D$4,$C$4,A39),X!$AC$7:$AC$20,0))),1,2)=2,2,IF(OR(B39="Sa",B39="So"),2,IF($K$9=1,SUMIFS($R$4:$R$8,$S$4:$S$8,B39),IF(AND($K$9=2,A39<15),SUMIFS($R$4:$R$8,$S$4:$S$8,B39),IF(AND($K$9=2,A39>14),SUMIFS($R$12:$R$16,$S$12:$S$16,B39),IF(AND($K$9=3,A39>14),SUMIFS($R$12:$R$16,$S$12:$S$16,B39),IF(AND($K$9=3,A39<15),SUMIFS($R$4:$R$8,$S$4:$S$8,B39),1)))))))) -> 1 | I39: =IF($K$9>0,IF(SUM($K$11:$K39,$I$6)<0,TEXT(-(SUM($K$11:K39,$I$6)/60)/24,"-[h]:mm"),TEXT((SUM($K$11:K39,$I$6)/60)/24,"[h]:mm")),"") ->  | L39: 0 | M39: 0 | O39: =IF(OR($O$3="",$N$3="",N39=""),"",IF($O$9-SUM($N$11:N38)-N39<0,TEXT(-(($O$9-SUM($N$11:N38)-N39)/24),"-[hh]:mm"),TEXT(($O$9-SUM($N$11:N38)-N39)/24,"[hh]:mm"))) -> 
B40: =IF(OR(A40="",$D$4=""),"",TEXT(DATE($D$4,$C$4,A40),"ttt")) ->  | C40: =IF(OR($K$9=0,AND($K$9=2,A40<=14)),1,IF(IF(ISNA(INDEX(X!$W$7:$W$20,MATCH(DATE($D$4,$C$4,A40),X!$AC$7:$AC$20,0))),1,2)=2,2,IF(OR(B40="Sa",B40="So"),2,IF($K$9=1,SUMIFS($R$4:$R$8,$S$4:$S$8,B40),IF(AND($K$9=2,A40<15),SUMIFS($R$4:$R$8,$S$4:$S$8,B40),IF(AND($K$9=2,A40>14),SUMIFS($R$12:$R$16,$S$12:$S$16,B40),IF(AND($K$9=3,A40>14),SUMIFS($R$12:$R$16,$S$12:$S$16,B40),IF(AND($K$9=3,A40<15),SUMIFS($R$4:$R$8,$S$4:$S$8,B40),1)))))))) -> 1 | I40: =IF($K$9>0,IF(SUM($K$11:$K40,$I$6)<0,TEXT(-(SUM($K$11:K40,$I$6)/60)/24,"-[h]:mm"),TEXT((SUM($K$11:K40,$I$6)/60)/24,"[h]:mm")),"") ->  | L40: 0 | M40: 0 | O40: =IF(OR($O$3="",$N$3="",N40=""),"",IF($O$9-SUM($N$11:N39)-N40<0,TEXT(-(($O$9-SUM($N$11:N39)-N40)/24),"-[hh]:mm"),TEXT(($O$9-SUM($N$11:N39)-N40)/24,"[hh]:mm"))) -> 
C41: =IF(OR($K$9=0,AND($K$9=2,A41<=14)),1,IF(IF(ISNA(INDEX(X!$W$7:$W$20,MATCH(DATE($D$4,$C$4,A41),X!$AC$7:$AC$20,0))),1,2)=2,2,IF(OR(B41="Sa",B41="So"),2,IF($K$9=1,SUMIFS($R$4:$R$8,$S$4:$S$8,B41),IF(AND($K$9=2,A41<15),SUMIFS($R$4:$R$8,$S$4:$S$8,B41),IF(AND($K$9=2,A41>14),SUMIFS($R$12:$R$16,$S$12:$S$16,B41),IF(AND($K$9=3,A41>14),SUMIFS($R$12:$R$16,$S$12:$S$16,B41),IF(AND($K$9=3,A41<15),SUMIFS($R$4:$R$8,$S$4:$S$8,B41),1)))))))) -> 1 | I41: =IF($K$9>0,IF(SUM($K$11:$K41,$I$6)<0,TEXT(-(SUM($K$11:K41,$I$6)/60)/24,"-[h]:mm"),TEXT((SUM($K$11:K41,$I$6)/60)/24,"[h]:mm")),"") ->  | L41: 0 | M41: 0 | O41: =IF(OR($O$3="",$N$3="",N41=""),"",IF($O$9-SUM($N$11:N40)-N41<0,TEXT(-(($O$9-SUM($N$11:N40)-N41)/24),"-[hh]:mm"),TEXT(($O$9-SUM($N$11:N40)-N41)/24,"[hh]:mm"))) -> 
G42: =L42+K42 -> 0 | H42: =K42 -> 0 | K42: =SUM(K11:K41) -> 0 | L42: =-SUM(L11:L41) -> 0 | M42: =M41 -> 0 | N42: =SUM(N11:N41)*60 -> 0 | Q42: =IF((G42/60)<0,TEXT(-((G42/60)/24),"-[hh]:mm"),TEXT((G42/60)/24,"[hh]:mm")) -> 00:00
A43: =IF(G4="","","Ergebnis") ->  | G43: =IF(G4="",0,IF(((G42-N42)/60)<0,TEXT(-(((G42-N42)/60)/24),"-[hh]:mm"),TEXT(((G42-N42)/60)/24,"[hh]:mm"))) -> 0 | H43: =IF(G4=0,"",IF(H42<0,TEXT(-((H42/60)/24),"-[hh]:mm"),IF((H42/60)>24,TEXT((((H42/60)-24)/24)+(24/24),"[hh]:mm"),(H42/60)/24))) -> 0 | I43: =IF($K$9>0,IF(SUM(I6,K43)<0,TEXT(-(SUM(I6,K43)/60)/24,"-[h]:mm"),TEXT((SUM(I6,K43)/60)/24,"[h]:mm")),"") ->  | K43: =IF(L42<>L43,G42-L43,K42) -> 0 | L43: =IF(AND(K9=1,SUM(U4:U8)<>H9),((H9/5)*COUNTIFS(C11:C41,"<>"&2,F11:F41,""))*60,IF(AND(K9=2,SUM(U12:U16)<>I9),((I9/5)*COUNTIFS(C11:C41,"<>"&2,F11:F41,""))*60,IF(AND(K9=3,OR(SUM(U4:U8)<>H9,SUM(U12:U16)<>I9)),SUM(IF(SUM(U4:U8)<>H9,((H9/5)*COUNTIFS(C11:C41,"<>"&2,A11:A41,"<"&15,F11:F41,""))*60,-SUMIFS(L11:L41,A11:A41,"<"&15,F11:F41,"")),IF(SUM(U12:U16)<>I9,((I9/5)*COUNTIFS(C11:C41,"<>"&2,A11:A41,">"&14,F11:F41,""))*60,-SUMIFS(L11:L41,A11:A41,">"&14,F11:F41,""))),-SUM(L11:L41)))) -> 0 | N43: =IF(N42<0,TEXT(-((N42/60)/24),"-[hh]:mm"),TEXT((N42/60)/24,"[hh]:mm")) -> 00:00 | O43: =IF(O9-SUM(N11:N41)<0,TEXT(-(O9-SUM(N11:N41))/24,"-[h]:mm"),TEXT((O9-SUM(N11:N41))/24,"[h]:mm")) ->  | Q43: =Q42 -> 00:00
A44: =IF(G4="","","Saldo / Übertrag:") ->  | I44: =I43 ->  | J44: =IF(K42<>K43,"automatische Nachberechnung der Sollarbeitszeit, da wöchentlicher Stundenumfang nicht eingehalten wurde.","") ->  | K44: =K43+I6 -> 0 | L44: Übertrag
A46: =IF(I46="","","Korrektur der Stunden") ->  | I46: =IF(K9>0,IF(K42-K43<>0,IF(K43-K42<0,TEXT(-((K43-K42)/60)/24,"-[h]:mm"),TEXT(((K43-K42)/60)/24,"[h]:mm")),""),"") -> 
A49: martinm
A57: =D4 ->  | B57: =C4 -> 3 | C57: =Uebersicht!A4 -> 0 | D57: =Uebersicht!B4 -> 0 | E57: =L43 -> 0 | F57: =K42 -> 0 | G57: =K43 -> 0 | H57: =M10 -> 0 | I57: =M42 -> 0

Sheet Apr
A1: Zeiterfassungsbogen für studentische Hilfskräfte | International Office | V1: "nein" auswählen, wenn keine festen Tage mehr gelten sollen!
A2: =IF(Uebersicht!A4="","",CONCATENATE(Uebersicht!B4," ",Uebersicht!A4)) -> 
N3: =INDEX(Uebersicht!AO5:AQ28,MATCH(C4,Uebersicht!AO5:AO28,0),3) -> 0 | O3: =INDEX(Uebersicht!AO5:AQ28,MATCH(C4+0.5,Uebersicht!AO5:AO28,0),3) -> 0 | S3: Tag | T3: h
A4: =IF(D4="","",TEXT(DATE(D4,C4,1),"MMM")) ->  | C4: 4 | D4: =Uebersicht!I1 ->  | G4: =IF(INDEX(Uebersicht!AO31:AQ42,MATCH(C4,Uebersicht!AO31:AO43,0),2)=0,"",INDEX(Uebersicht!AO31:AQ42,MATCH(C4,Uebersicht!AO31:AO43,0),2)) ->  | N4: =INDEX(Uebersicht!AO31:AQ42,MATCH(C4,Uebersicht!AO31:AO43,0),3) -> 0 | R4: =IF(OR($K$9=2,$K$9=0),1,IF(AND(OR($K$9=1,$K$9=3),OR(SUM($U$4:$U$8)=0,$U$1="nein")),3,IF(AND($U$1="",SUM($U$4:$U$8)>0,U4>=1,OR($K$9=3,$K$9=1)),4,1))) -> 1 | S4: Mo | U4: =IF(AND(H9=0,I9=0),0,IF(OR($K$9=0,INDIRECT("'"&TEXT(DATE(D4,$C$4-1,1),"MMM")&"'!$U$1")="nein",$U$1="nein"),0,IF(T4>0,T4,INDEX(Uebersicht!$BA$3:$BE$14,$C$4,MATCH(S4,Uebersicht!$BA$2:$BE$2,0))))) -> 0
R5: =IF(OR($K$9=2,$K$9=0),1,IF(AND(OR($K$9=1,$K$9=3),OR(SUM($U$4:$U$8)=0,$U$1="nein")),3,IF(AND($U$1="",SUM($U$4:$U$8)>0,U5>=1,OR($K$9=3,$K$9=1)),4,1))) -> 1 | S5: Di | U5: =IF(OR($K$9=0,INDIRECT("'"&TEXT(DATE(D5,$C$4-1,1),"MMM")&"'!$U$1")="nein",$U$1="nein"),0,IF(T5>0,T5,INDEX(Uebersicht!$BA$3:$BE$14,$C$4,MATCH(S5,Uebersicht!$BA$2:$BE$2,0)))) -> 0
C6: =DAY(DATE(D4,C4+1,1)-1) ->  | H6: =IF(N4=0,"","Arbeitsgebiet 1") ->  | I6: =IF(AND(I9=0,H9=0),0,IF(C4-1=0,Uebersicht!G4,INDIRECT("'"&TEXT(DATE(D4,C4-1,1),"MMM")&"'!K44"))) -> 0 | K6: nein | N6: =IF(N4="","","Arbeitsgebiet 2") -> Arbeitsgebiet 2 | R6: =IF(OR($K$9=2,$K$9=0),1,IF(AND(OR($K$9=1,$K$9=3),OR(SUM($U$4:$U$8)=0,$U$1="nein")),3,IF(AND($U$1="",SUM($U$4:$U$8)>0,U6>=1,OR($K$9=3,$K$9=1)),4,1))) -> 1 | S6: Mi | U6: =IF(OR($K$9=0,INDIRECT("'"&TEXT(DATE(D6,$C$4-1,1),"MMM")&"'!$U$1")="nein",$U$1="nein"),0,IF(T6>0,T6,INDEX(Uebersicht!$BA$3:$BE$14,$C$4,MATCH(S6,Uebersicht!$BA$2:$BE$2,0)))) -> 0
A7: =IF(AND(H9>0,I9=0),CONCATENATE(H9," Wochenarbeitszeit (h)"),IF(AND(H9=0,I9>0),CONCATENATE(I9," Wochenarbeitszeit (h)"),IF(AND(H9>0,I9>0,H9<>I9),CONCATENATE(H9," h, ab 15. ",TEXT(DATE(D4,C4,1),"MMMM")," ",I9,"h"),""))) ->  | F7: =IF(G4="","",IF(M42/60>0,TEXT((M42/60)/24,"[h]:mm"),0)) ->  | G7: =IF(F7="","","Urlaubsrest") ->  | I7: =IF(AND(YEAR(TODAY())=D4,MONTH(TODAY())>=C4,K9>0),IF(OR(I6=0,I6=""),0,IF(I6<0,TEXT(-(I6/60)/24,"-[h]:mm"),TEXT((I6/60)/24,"[h]:mm"))),"") ->  | J7: =IF(I7="","",CONCATENATE("h Übertrag aus ",IF(C6=1,"Vorjahr","Vormonat"))) ->  | K7: Urlaub | N7: =IF(AND(N3>0,O3=0),CONCATENATE(N3," Stunden - Anteil pro Woche"),IF(AND(N3=0,O3>0),CONCATENATE(O3," Stunden - Anteil pro Woche"),IF(AND(N3>0,O3>0,O3<>N3),CONCATENATE(N3," h, ab 15. ",TEXT(DATE(D4,C4,1),"MMMM")," ",O3,"h"),IF(N3=O3,CONCATENATE(N3," Stunden - Anteil pro Woche"),"")))) -> 0 Stunden - Anteil pro Woche | R7: =IF(OR($K$9=2,$K$9=0),1,IF(AND(OR($K$9=1,$K$9=3),OR(SUM($U$4:$U$8)=0,$U$1="nein")),3,IF(AND($U$1="",SUM($U$4:$U$8)>0,U7>=1,OR($K$9=3,$K$9=1)),4,1))) -> 1 | S7: Do | U7: =IF(OR($K$9=0,INDIRECT("'"&TEXT(DATE(D7,$C$4-1,1),"MMM")&"'!$U$1")="nein",$U$1="nein"),0,IF(T7>0,T7,INDEX(Uebersicht!$BA$3:$BE$14,$C$4,MATCH(S7,Uebersicht!$BA$2:$BE$2,0)))) -> 0
K8: Krank | R8: =IF(OR($K$9=2,$K$9=0),1,IF(AND(OR($K$9=1,$K$9=3),OR(SUM($U$4:$U$8)=0,$U$1="nein")),3,IF(AND($U$1="",SUM($U$4:$U$8)>0,U8>=1,OR($K$9=3,$K$9=1)),4,1))) -> 1 | S8: Fr | U8: =IF(OR($K$9=0,INDIRECT("'"&TEXT(DATE(D8,$C$4-1,1),"MMM")&"'!$U$1")="nein",$U$1="nein"),0,IF(T8>0,T8,INDEX(Uebersicht!$BA$3:$BE$14,$C$4,MATCH(S8,Uebersicht!$BA$2:$BE$2,0)))) -> 0
H9: =INDEX(Uebersicht!AU3:AW14,C4,2) -> 0 | I9: =IF(INDEX(Uebersicht!AU3:AW14,C4,3)=H9,0,INDEX(Uebersicht!AU3:AW14,C4,3)) -> 0 | K9: =IF(AND(H9>0,I9=0),1,IF(AND(H9=0,I9>0),2,IF(AND(H9=0,I9=0),0,IF(H9<>I9,3,"")))) -> 0 | O9: =IF(OR(N3>0,O3>0),IF(OR(K9=1,K9=2),(IF(K9=1,N3,IF(K9=2,O2,0))/5)*NETWORKDAYS(IF(K9=1,DATE(D4,C4,1),IF(K9=2,DATE(D4,C4,15),0)),IF(OR(K9=1,K9=2),DATE(D4,C4,MAX(A11:A41)),0),COUNTIFS(C11:C41,"<>"&2)),IF(K9=3,SUM(IF(N3>0,(N3/5)*NETWORKDAYS(DATE(D4,C4,1),DATE(D4,C4,14),2),0),IF(O3>0,(O3/5)*NETWORKDAYS(DATE(D4,C4,15),DATE(D4,C4,MAX(A11:A41)),2),0)),0)),"") ->  | S9: =IF(SUM(U4:U8)=0,"",IF(SUM(U4:U8)>H9,"zu viel!",IF(SUM(U4:U8)<H9,"zu wenig!",""))) ->  | U9: =IF(OR(U1="nein",SUM(U4:U8)=0),"ja",IF(OR(SUM(Uebersicht!C36:C40)>0,SUM(T4:T8)>0,SUM(U4:U8)>0),"nein","ja")) -> ja
A10: Tag | D10: Beginn | E10: Ende | F10: Urlaub Krank | G10: Stunden | H10: Mehr/ Minder | I10: Saldo summiert | J10: Bemerkungen | K10: Differenz | L10: Soll | M10: =IF(AND(I9=0,H9=0),0,IF(C4-1=0,IF(Uebersicht!E8="",0,Uebersicht!E8*60),INDIRECT("'"&TEXT(DATE(D4,C4-1,1),"MMM")&"'!M42"))) -> 0 | N10: Stunden | O10: Rest | P10: Bemerkungen | Q10: Gesamt | S10: Änderung im laufenden Monat
A11: 1 | B11: =IF(OR(A11="",$D$4=""),"",TEXT(DATE($D$4,$C$4,A11),"ttt")) ->  | C11: =IF(OR($K$9=0,AND($K$9=2,A11<=14)),1,IF(IF(ISNA(INDEX(X!$W$7:$W$20,MATCH(DATE($D$4,$C$4,A11),X!$AC$7:$AC$20,0))),1,2)=2,2,IF(OR(B11="Sa",B11="So"),2,IF($K$9=1,SUMIFS($R$4:$R$8,$S$4:$S$8,B11),IF(AND($K$9=2,A11<15),SUMIFS($R$4:$R$8,$S$4:$S$8,B11),IF(AND($K$9=2,A11>14),SUMIFS($R$12:$R$16,$S$12:$S$16,B11),IF(AND($K$9=3,A11>14),SUMIFS($R$12:$R$16,$S$12:$S$16,B11),IF(AND($K$9=3,A11<15),SUMIFS($R$4:$R$8,$S$4:$S$8,B11),1)))))))) -> 1 | G11: =IF(AND(D11="",E11=""),"",IF(N11="",IF(((HOUR(E11)*60+MINUTE(E11))-(HOUR(D11)*60+MINUTE(D11)))>360,TEXT(((((HOUR(E11)*60+MINUTE(E11))-(HOUR(D11)*60+MINUTE(D11)))-30)/60)/24,"[h]:mm"),TEXT((((HOUR(E11)*60+MINUTE(E11))-(HOUR(D11)*60+MINUTE(D11)))/60)/24,"[h]:mm")),IF((((HOUR(E11)*60+MINUTE(E11))-(HOUR(D11)*60+MINUTE(D11)))-N11)>360,TEXT(((((((HOUR(E11)*60+MINUTE(E11))-(HOUR(D11)*60+MINUTE(D11)))-30))/60)-N11)/24,"[h]:mm"),TEXT(((((HOUR(E11)*60+MINUTE(E11))-(HOUR(D11)*60+MINUTE(D11)))/60)-N11)/24,"[h]:mm")))) ->  | H11: =IF(K11="","",IF(TODAY()<=DATE($D$4,$C$4,A11),0,IF(K11>0,TEXT((K11/60)/24,"[h]:mm"),TEXT(-(K11/60)/24,"-[h]:mm")))) ->  | I11: =IF($K$9>0,IF(SUM($K$11:$K11,I6)<0,TEXT(-(SUM($K$11:K11,I6)/60)/24,"-[h]:mm"),TEXT((SUM($K$11:K11,I6)/60)/24,"[h]:mm")),"") ->  | K11: =IF(F11="",IF(L11<0,L11+IF(G11=" ",0,IF(((HOUR(E11)*60+MINUTE(E11))-(HOUR(D11)*60+MINUTE(D11)))>360,(HOUR(E11)*60+MINUTE(E11))-(HOUR(D11)*60+MINUTE(D11))-30,(HOUR(E11)*60+MINUTE(E11))-(HOUR(D11)*60+MINUTE(D11)))),IF(Q11="","",(Q11*60)*24)),"") ->  | L11: =IF(OR(F11="krank",F11="Urlaub",C11=1,C11=2),0,IF($K$9=1,IF(SUM($U$4:$U$8)=0,$H$9/5,INDEX($S$4:$U$8,MATCH(B11,$S$4:$S$8,0),3)),IF($K$9=2,IF(AND(A11>14,SUM($U$12:$U$16)=0),$I$9/5,INDEX($S$12:$U$16,MATCH(B11,$S$12:$S$16,0),3)),IF($K$9=3,IF(A11<15,IF(SUM($U$4:$U$8)=0,$H$9/5,INDEX($S$4:$U$8,MATCH(B11,$S$4:$S$8,0),3))),IF(A11>14,IF(SUM($U$12:$U$16)=0,$I$9/5,INDEX($S$12:$U$16,MATCH(B11,$S$12:$S$16,0),3))))))*-60) -> 0 | M11: =M10-(IF(OR(C11=1,C11=2),0,IF(C11=3,IF(AND($K$9=1,F11="Urlaub"),$H$9/5,IF($K$9=2,IF(AND(A11<15,F11="Urlaub"),$I$9/5,IF(AND($K$9=3,A11<15,F11="Urlaub"),$H$9/5,IF(AND($K$9=3,A11>14,F11="Urlaub"),$I$9/5))))),IF(C11=4,IF(AND(F11="Urlaub",$K$9=1),SUMIFS($U$4:$U$8,$S$4:$S$8,B11),IF(AND(F11="Urlaub",$K$9=2,A11>14),SUMIFS($U$12:$U$16,$S$12:$S$16,B11),IF(AND(F11="Urlaub",$K$9=3,A11<15),SUMIFS($U$4:$U$8,$S$4:$S$8,B11),IF(AND(F11="Urlaub",$K$9=3,A11>14),SUMIFS($U$12:$U$16,$S$12:$S$16,B11),0)))))))*60) -> 0 | O11: =IF(OR($O$3="",$N$3="",N11=""),"",IF($O$9-SUM($N10:N$11)-N11<0,TEXT(-(($O$9-SUM($N10:N$11)-N11)/24),"-[hh]:mm"),TEXT(($O$9-SUM($N10:N$11)-N11)/24,"[hh]:mm"))) ->  | Q11: =IF(AND(D11="",E11=""),"",IF(((HOUR(E11)*60+MINUTE(E11))-(HOUR(D11)*60+MINUTE(D11)))>360,TEXT(((((HOUR(E11)*60+MINUTE(E11))-(HOUR(D11)*60+MINUTE(D11)))-30)/60)/24,"[h]:mm"),TEXT((((HOUR(E11)*60+MINUTE(E11))-(HOUR(D11)*60+MINUTE(D11)))/60)/24,"[h]:mm"))) -> 
A12: =IF(OR(A11="",$D$4=""),"",IF(A11+1<=$C$6,A11+1,"")) ->  | C12: =IF(OR($K$9=0,AND($K$9=2,A12<=14)),1,IF(IF(ISNA(INDEX(X!$W$7:$W$20,MATCH(DATE($D$4,$C$4,A12),X!$AC$7:$AC$20,0))),1,2)=2,2,IF(OR(B12="Sa",B12="So"),2,IF($K$9=1,SUMIFS($R$4:$R$8,$S$4:$S$8,B12),IF(AND($K$9=2,A12<15),SUMIFS($R$4:$R$8,$S$4:$S$8,B12),IF(AND($K$9=2,A12>14),SUMIFS($R$12:$R$16,$S$12:$S$16,B12),IF(AND($K$9=3,A12>14),SUMIFS($R$12:$R$16,$S$12:$S$16,B12),IF(AND($K$9=3,A12<15),SUMIFS($R$4:$R$8,$S$4:$S$8,B12),1)))))))) -> 1 | I12: =IF($K$9>0,IF(SUM($K$11:$K12,$I$6)<0,TEXT(-(SUM($K$11:K12,$I$6)/60)/24,"-[h]:mm"),TEXT((SUM($K$11:K12,$I$6)/60)/24,"[h]:mm")),"") ->  | K12: =IF(F12="",IF(L12<0,L12+IF(G12=" ",0,IF(((HOUR(E12)*60+MINUTE(E12))-(HOUR(D12)*60+MINUTE(D12)))>360,(HOUR(E12)*60+MINUTE(E12))-(HOUR(D12)*60+MINUTE(D12))-30,(HOUR(E12)*60+MINUTE(E12))-(HOUR(D12)*60+MINUTE(D12)))),IF(Q12="","",(Q12*60)*24)),"") ->  | L12: =IF(OR(F12="krank",F12="Urlaub",C12=1,C12=2),0,IF($K$9=1,IF(SUM($U$4:$U$8)=0,$H$9/5,INDEX($S$4:$U$8,MATCH(B12,$S$4:$S$8,0),3)),IF($K$9=2,IF(AND(A12>14,SUM($U$12:$U$16)=0),$I$9/5,INDEX($S$12:$U$16,MATCH(B12,$S$12:$S$16,0),3)),IF($K$9=3,IF(A12<15,IF(SUM($U$4:$U$8)=0,$H$9/5,INDEX($S$4:$U$8,MATCH(B12,$S$4:$S$8,0),3)),IF(SUM($U$12:$U$16)=0,$I$9/5,INDEX($S$12:$U$16,MATCH(B12,$S$12:$S$16,0),3)))))))*-60 -> 0 | M12: 0 | O12: =IF(OR($O$3="",$N$3="",N12=""),"",IF($O$9-SUM($N$11:N11)-N12<0,TEXT(-(($O$9-SUM($N$11:N11)-N12)/24),"-[hh]:mm"),TEXT(($O$9-SUM($N$11:N11)-N12)/24,"[hh]:mm"))) ->  | R12: =IF($K$9=0,1,IF($K$9=1,R4,IF(AND($K$9=3,OR(SUM($U$12:$U$16)=0,$U$1="nein")),3,IF(AND($U$1="",SUM($U$12:$U$16)>0,U12>=1,OR($K$9=3,$K$9=2)),4,1)))) -> 1 | S12: Mo | U12: =IF(AND(I9=0,H9=0),0,IF(OR($K$9=0,INDIRECT("'"&TEXT(DATE(D4,$C$4-1,1),"MMM")&"'!$U$1")="nein",$U$1="nein"),0,IF(T12>0,T12,INDEX(Uebersicht!$BF$3:$BJ$14,$C$4,MATCH(S12,Uebersicht!$BF$2:$BJ$2,0))))) -> 0
A13: =IF(OR(A12="",$D$4=""),"",IF(A12+1<=$C$6,A12+1,"")) ->  | C13: =IF(OR($K$9=0,AND($K$9=2,A13<=14)),1,IF(IF(ISNA(INDEX(X!$W$7:$W$20,MATCH(DATE($D$4,$C$4,A13),X!$AC$7:$AC$20,0))),1,2)=2,2,IF(OR(B13="Sa",B13="So"),2,IF($K$9=1,SUMIFS($R$4:$R$8,$S$4:$S$8,B13),IF(AND($K$9=2,A13<15),SUMIFS($R$4:$R$8,$S$4:$S$8,B13),IF(AND($K$9=2,A13>14),SUMIFS($R$12:$R$16,$S$12:$S$16,B13),IF(AND($K$9=3,A13>14),SUMIFS($R$12:$R$16,$S$12:$S$16,B13),IF(AND($K$9=3,A13<15),SUMIFS($R$4:$R$8,$S$4:$S$8,B13),1)))))))) -> 1 | I13: =IF($K$9>0,IF(SUM($K$11:$K13,$I$6)<0,TEXT(-(SUM($K$11:K13,$I$6)/60)/24,"-[h]:mm"),TEXT((SUM($K$11:K13,$I$6)/60)/24,"[h]:mm")),"") ->  | L13: 0 | M13: 0 | O13: =IF(OR($O$3="",$N$3="",N13=""),"",IF($O$9-SUM($N$11:N12)-N13<0,TEXT(-(($O$9-SUM($N$11:N12)-N13)/24),"-[hh]:mm"),TEXT(($O$9-SUM($N$11:N12)-N13)/24,"[hh]:mm"))) ->  | R13: =IF($K$9=0,1,IF($K$9=1,R5,IF(AND($K$9=3,OR(SUM($U$12:$U$16)=0,$U$1="nein")),3,IF(AND($U$1="",SUM($U$12:$U$16)>0,U13>=1,OR($K$9=3,$K$9=2)),4,1)))) -> 1 | S13: Di | U13: =IF(OR($K$9=0,INDIRECT("'"&TEXT(DATE(D5,$C$4-1,1),"MMM")&"'!$U$1")="nein",$U$1="nein"),0,IF(T13>0,T13,INDEX(Uebersicht!$BF$3:$BJ$14,$C$4,MATCH(S13,Uebersicht!$BF$2:$BJ$2,0)))) -> 0
C14: =IF(OR($K$9=0,AND($K$9=2,A14<=14)),1,IF(IF(ISNA(INDEX(X!$W$7:$W$20,MATCH(DATE($D$4,$C$4,A14),X!$AC$7:$AC$20,0))),1,2)=2,2,IF(OR(B14="Sa",B14="So"),2,IF($K$9=1,SUMIFS($R$4:$R$8,$S$4:$S$8,B14),IF(AND($K$9=2,A14<15),SUMIFS($R$4:$R$8,$S$4:$S$8,B14),IF(AND($K$9=2,A14>14),SUMIFS($R$12:$R$16,$S$12:$S$16,B14),IF(AND($K$9=3,A14>14),SUMIFS($R$12:$R$16,$S$12:$S$16,B14),IF(AND($K$9=3,A14<15),SUMIFS($R$4:$R$8,$S$4:$S$8,B14),1)))))))) -> 1 | I14: =IF($K$9>0,IF(SUM($K$11:$K14,$I$6)<0,TEXT(-(SUM($K$11:K14,$I$6)/60)/24,"-[h]:mm"),TEXT((SUM($K$11:K14,$I$6)/60)/24,"[h]:mm")),"") ->  | L14: 0 | M14: 0 | O14: =IF(OR($O$3="",$N$3="",N14=""),"",IF($O$9-SUM($N$11:N13)-N14<0,TEXT(-(($O$9-SUM($N$11:N13)-N14)/24),"-[hh]:mm"),TEXT(($O$9-SUM($N$11:N13)-N14)/24,"[hh]:mm"))) ->  | R14: =IF($K$9=0,1,IF($K$9=1,R6,IF(AND($K$9=3,OR(SUM($U$12:$U$16)=0,$U$1="nein")),3,IF(AND($U$1="",SUM($U$12:$U$16)>0,U14>=1,OR($K$9=3,$K$9=2)),4,1)))) -> 1 | S14: Mi | U14: =IF(OR($K$9=0,INDIRECT("'"&TEXT(DATE(D6,$C$4-1,1),"MMM")&"'!$U$1")="nein",$U$1="nein"),0,IF(T14>0,T14,INDEX(Uebersicht!$BF$3:$BJ$14,$C$4,MATCH(S14,Uebersicht!$BF$2:$BJ$2,0)))) -> 0
C15: =IF(OR($K$9=0,AND($K$9=2,A15<=14)),1,IF(IF(ISNA(INDEX(X!$W$7:$W$20,MATCH(DATE($D$4,$C$4,A15),X!$AC$7:$AC$20,0))),1,2)=2,2,IF(OR(B15="Sa",B15="So"),2,IF($K$9=1,SUMIFS($R$4:$R$8,$S$4:$S$8,B15),IF(AND($K$9=2,A15<15),SUMIFS($R$4:$R$8,$S$4:$S$8,B15),IF(AND($K$9=2,A15>14),SUMIFS($R$12:$R$16,$S$12:$S$16,B15),IF(AND($K$9=3,A15>14),SUMIFS($R$12:$R$16,$S$12:$S$16,B15),IF(AND($K$9=3,A15<15),SUMIFS($R$4:$R$8,$S$4:$S$8,B15),1)))))))) -> 1 | I15: =IF($K$9>0,IF(SUM($K$11:$K15,$I$6)<0,TEXT(-(SUM($K$11:K15,$I$6)/60)/24,"-[h]:mm"),TEXT((SUM($K$11:K15,$I$6)/60)/24,"[h]:mm")),"") ->  | L15: 0 | M15: 0 | O15: =IF(OR($O$3="",$N$3="",N15=""),"",IF($O$9-SUM($N$11:N14)-N15<0,TEXT(-(($O$9-SUM($N$11:N14)-N15)/24),"-[hh]:mm"),TEXT(($O$9-SUM($N$11:N14)-N15)/24,"[hh]:mm"))) ->  | R15: =IF($K$9=0,1,IF($K$9=1,R7,IF(AND($K$9=3,OR(SUM($U$12:$U$16)=0,$U$1="nein")),3,IF(AND($U$1="",SUM($U$12:$U$16)>0,U15>=1,OR($K$9=3,$K$9=2)),4,1)))) -> 1 | S15: Do | U15: =IF(OR($K$9=0,INDIRECT("'"&TEXT(DATE(D7,$C$4-1,1),"MMM")&"'!$U$1")="nein",$U$1="nein"),0,IF(T15>0,T15,INDEX(Uebersicht!$BF$3:$BJ$14,$C$4,MATCH(S15,Uebersicht!$BF$2:$BJ$2,0)))) -> 0
C16: =IF(OR($K$9=0,AND($K$9=2,A16<=14)),1,IF(IF(ISNA(INDEX(X!$W$7:$W$20,MATCH(DATE($D$4,$C$4,A16),X!$AC$7:$AC$20,0))),1,2)=2,2,IF(OR(B16="Sa",B16="So"),2,IF($K$9=1,SUMIFS($R$4:$R$8,$S$4:$S$8,B16),IF(AND($K$9=2,A16<15),SUMIFS($R$4:$R$8,$S$4:$S$8,B16),IF(AND($K$9=2,A16>14),SUMIFS($R$12:$R$16,$S$12:$S$16,B16),IF(AND($K$9=3,A16>14),SUMIFS($R$12:$R$16,$S$12:$S$16,B16),IF(AND($K$9=3,A16<15),SUMIFS($R$4:$R$8,$S$4:$S$8,B16),1)))))))) -> 1 | I16: =IF($K$9>0,IF(SUM($K$11:$K16,$I$6)<0,TEXT(-(SUM($K$11:K16,$I$6)/60)/24,"-[h]:mm"),TEXT((SUM($K$11:K16,$I$6)/60)/24,"[h]:mm")),"") ->  | L16: 0 | M16: 0 | O16: =IF(OR($O$3="",$N$3="",N16=""),"",IF($O$9-SUM($N$11:N15)-N16<0,TEXT(-(($O$9-SUM($N$11:N15)-N16)/24),"-[hh]:mm"),TEXT(($O$9-SUM($N$11:N15)-N16)/24,"[hh]:mm"))) ->  | R16: =IF($K$9=0,1,IF($K$9=1,R8,IF(AND($K$9=3,OR(SUM($U$12:$U$16)=0,$U$1="nein")),3,IF(AND($U$1="",SUM($U$12:$U$16)>0,U16>=1,OR($K$9=3,$K$9=2)),4,1)))) -> 1 | S16: Fr | U16: =IF(OR($K$9=0,INDIRECT("'"&TEXT(DATE(D8,$C$4-1,1),"MMM")&"'!$U$1")="nein",$U$1="nein"),0,IF(T16>0,T16,INDEX(Uebersicht!$BF$3:$BJ$14,$C$4,MATCH(S16,Uebersicht!$BF$2:$BJ$2,0)))) -> 0
C17: =IF(OR($K$9=0,AND($K$9=2,A17<=14)),1,IF(IF(ISNA(INDEX(X!$W$7:$W$20,MATCH(DATE($D$4,$C$4,A17),X!$AC$7:$AC$20,0))),1,2)=2,2,IF(OR(B17="Sa",B17="So"),2,IF($K$9=1,SUMIFS($R$4:$R$8,$S$4:$S$8,B17),IF(AND($K$9=2,A17<15),SUMIFS($R$4:$R$8,$S$4:$S$8,B17),IF(AND($K$9=2,A17>14),SUMIFS($R$12:$R$16,$S$12:$S$16,B17),IF(AND($K$9=3,A17>14),SUMIFS($R$12:$R$16,$S$12:$S$16,B17),IF(AND($K$9=3,A17<15),SUMIFS($R$4:$R$8,$S$4:$S$8,B17),1)))))))) -> 1 | I17: =IF($K$9>0,IF(SUM($K$11:$K17,$I$6)<0,TEXT(-(SUM($K$11:K17,$I$6)/60)/24,"-[h]:mm"),TEXT((SUM($K$11:K17,$I$6)/60)/24,"[h]:mm")),"") ->  | L17: 0 | M17: 0 | O17: =IF(OR($O$3="",$N$3="",N17=""),"",IF($O$9-SUM($N$11:N16)-N17<0,TEXT(-(($O$9-SUM($N$11:N16)-N17)/24),"-[hh]:mm"),TEXT(($O$9-SUM($N$11:N16)-N17)/24,"[hh]:mm"))) ->  | S17: =IF(I9=0,"",IF(SUM(U12:U16)>I9,"zu viel!",IF(SUM(U12:U16)<I9,"zu wenig!",""))) ->  | U17: =IF(OR(U9="nein",SUM(U12:U16)=0),"ja",IF(OR(SUM(Uebersicht!C43:C47)>0,SUM(T12:T16)>0,SUM(U12:U16)>0),"nein","ja")) -> ja
C18: =IF(OR($K$9=0,AND($K$9=2,A18<=14)),1,IF(IF(ISNA(INDEX(X!$W$7:$W$20,MATCH(DATE($D$4,$C$4,A18),X!$AC$7:$AC$20,0))),1,2)=2,2,IF(OR(B18="Sa",B18="So"),2,IF($K$9=1,SUMIFS($R$4:$R$8,$S$4:$S$8,B18),IF(AND($K$9=2,A18<15),SUMIFS($R$4:$R$8,$S$4:$S$8,B18),IF(AND($K$9=2,A18>14),SUMIFS($R$12:$R$16,$S$12:$S$16,B18),IF(AND($K$9=3,A18>14),SUMIFS($R$12:$R$16,$S$12:$S$16,B18),IF(AND($K$9=3,A18<15),SUMIFS($R$4:$R$8,$S$4:$S$8,B18),1)))))))) -> 1 | I18: =IF($K$9>0,IF(SUM($K$11:$K18,$I$6)<0,TEXT(-(SUM($K$11:K18,$I$6)/60)/24,"-[h]:mm"),TEXT((SUM($K$11:K18,$I$6)/60)/24,"[h]:mm")),"") ->  | L18: 0 | M18: 0 | O18: =IF(OR($O$3="",$N$3="",N18=""),"",IF($O$9-SUM($N$11:N17)-N18<0,TEXT(-(($O$9-SUM($N$11:N17)-N18)/24),"-[hh]:mm"),TEXT(($O$9-SUM($N$11:N17)-N18)/24,"[hh]:mm"))) -> 
C19: =IF(OR($K$9=0,AND($K$9=2,A19<=14)),1,IF(IF(ISNA(INDEX(X!$W$7:$W$20,MATCH(DATE($D$4,$C$4,A19),X!$AC$7:$AC$20,0))),1,2)=2,2,IF(OR(B19="Sa",B19="So"),2,IF($K$9=1,SUMIFS($R$4:$R$8,$S$4:$S$8,B19),IF(AND($K$9=2,A19<15),SUMIFS($R$4:$R$8,$S$4:$S$8,B19),IF(AND($K$9=2,A19>14),SUMIFS($R$12:$R$16,$S$12:$S$16,B19),IF(AND($K$9=3,A19>14),SUMIFS($R$12:$R$16,$S$12:$S$16,B19),IF(AND($K$9=3,A19<15),SUMIFS($R$4:$R$8,$S$4:$S$8,B19),1)))))))) -> 1 | I19: =IF($K$9>0,IF(SUM($K$11:$K19,$I$6)<0,TEXT(-(SUM($K$11:K19,$I$6)/60)/24,"-[h]:mm"),TEXT((SUM($K$11:K19,$I$6)/60)/24,"[h]:mm")),"") ->  | L19: 0 | M19: 0 | O19: =IF(OR($O$3="",$N$3="",N19=""),"",IF($O$9-SUM($N$11:N18)-N19<0,TEXT(-(($O$9-SUM($N$11:N18)-N19)/24),"-[hh]:mm"),TEXT(($O$9-SUM($N$11:N18)-N19)/24,"[hh]:mm"))) -> 
C20: =IF(OR($K$9=0,AND($K$9=2,A20<=14)),1,IF(IF(ISNA(INDEX(X!$W$7:$W$20,MATCH(DATE($D$4,$C$4,A20),X!$AC$7:$AC$20,0))),1,2)=2,2,IF(OR(B20="Sa",B20="So"),2,IF($K$9=1,SUMIFS($R$4:$R$8,$S$4:$S$8,B20),IF(AND($K$9=2,A20<15),SUMIFS($R$4:$R$8,$S$4:$S$8,B20),IF(AND($K$9=2,A20>14),SUMIFS($R$12:$R$16,$S$12:$S$16,B20),IF(AND($K$9=3,A20>14),SUMIFS($R$12:$R$16,$S$12:$S$16,B20),IF(AND($K$9=3,A20<15),SUMIFS($R$4:$R$8,$S$4:$S$8,B20),1)))))))) -> 1 | I20: =IF($K$9>0,IF(SUM($K$11:$K20,$I$6)<0,TEXT(-(SUM($K$11:K20,$I$6)/60)/24,"-[h]:mm"),TEXT((SUM($K$11:K20,$I$6)/60)/24,"[h]:mm")),"") ->  | L20: 0 | M20: 0 | O20: =IF(OR($O$3="",$N$3="",N20=""),"",IF($O$9-SUM($N$11:N19)-N20<0,TEXT(-(($O$9-SUM($N$11:N19)-N20)/24),"-[hh]:mm"),TEXT(($O$9-SUM($N$11:N19)-N20)/24,"[hh]:mm"))) -> 
C21: =IF(OR($K$9=0,AND($K$9=2,A21<=14)),1,IF(IF(ISNA(INDEX(X!$W$7:$W$20,MATCH(DATE($D$4,$C$4,A21),X!$AC$7:$AC$20,0))),1,2)=2,2,IF(OR(B21="Sa",B21="So"),2,IF($K$9=1,SUMIFS($R$4:$R$8,$S$4:$S$8,B21),IF(AND($K$9=2,A21<15),SUMIFS($R$4:$R$8,$S$4:$S$8,B21),IF(AND($K$9=2,A21>14),SUMIFS($R$12:$R$16,$S$12:$S$16,B21),IF(AND($K$9=3,A21>14),SUMIFS($R$12:$R$16,$S$12:$S$16,B21),IF(AND($K$9=3,A21<15),SUMIFS($R$4:$R$8,$S$4:$S$8,B21),1)))))))) -> 1 | I21: =IF($K$9>0,IF(SUM($K$11:$K21,$I$6)<0,TEXT(-(SUM($K$11:K21,$I$6)/60)/24,"-[h]:mm"),TEXT((SUM($K$11:K21,$I$6)/60)/24,"[h]:mm")),"") ->  | L21: 0 | M21: 0 | O21: =IF(OR($O$3="",$N$3="",N21=""),"",IF($O$9-SUM($N$11:N20)-N21<0,TEXT(-(($O$9-SUM($N$11:N20)-N21)/24),"-[hh]:mm"),TEXT(($O$9-SUM($N$11:N20)-N21)/24,"[hh]:mm"))) -> 
C22: =IF(OR($K$9=0,AND($K$9=2,A22<=14)),1,IF(IF(ISNA(INDEX(X!$W$7:$W$20,MATCH(DATE($D$4,$C$4,A22),X!$AC$7:$AC$20,0))),1,2)=2,2,IF(OR(B22="Sa",B22="So"),2,IF($K$9=1,SUMIFS($R$4:$R$8,$S$4:$S$8,B22),IF(AND($K$9=2,A22<15),SUMIFS($R$4:$R$8,$S$4:$S$8,B22),IF(AND($K$9=2,A22>14),SUMIFS($R$12:$R$16,$S$12:$S$16,B22),IF(AND($K$9=3,A22>14),SUMIFS($R$12:$R$16,$S$12:$S$16,B22),IF(AND($K$9=3,A22<15),SUMIFS($R$4:$R$8,$S$4:$S$8,B22),1)))))))) -> 1 | I22: =IF($K$9>0,IF(SUM($K$11:$K22,$I$6)<0,TEXT(-(SUM($K$11:K22,$I$6)/60)/24,"-[h]:mm"),TEXT((SUM($K$11:K22,$I$6)/60)/24,"[h]:mm")),"") ->  | L22: 0 | M22: 0 | O22: =IF(OR($O$3="",$N$3="",N22=""),"",IF($O$9-SUM($N$11:N21)-N22<0,TEXT(-(($O$9-SUM($N$11:N21)-N22)/24),"-[hh]:mm"),TEXT(($O$9-SUM($N$11:N21)-N22)/24,"[hh]:mm"))) -> 
C23: =IF(OR($K$9=0,AND($K$9=2,A23<=14)),1,IF(IF(ISNA(INDEX(X!$W$7:$W$20,MATCH(DATE($D$4,$C$4,A23),X!$AC$7:$AC$20,0))),1,2)=2,2,IF(OR(B23="Sa",B23="So"),2,IF($K$9=1,SUMIFS($R$4:$R$8,$S$4:$S$8,B23),IF(AND($K$9=2,A23<15),SUMIFS($R$4:$R$8,$S$4:$S$8,B23),IF(AND($K$9=2,A23>14),SUMIFS($R$12:$R$16,$S$12:$S$16,B23),IF(AND($K$9=3,A23>14),SUMIFS($R$12:$R$16,$S$12:$S$16,B23),IF(AND($K$9=3,A23<15),SUMIFS($R$4:$R$8,$S$4:$S$8,B23),1)))))))) -> 1 | I23: =IF($K$9>0,IF(SUM($K$11:$K23,$I$6)<0,TEXT(-(SUM($K$11:K23,$I$6)/60)/24,"-[h]:mm"),TEXT((SUM($K$11:K23,$I$6)/60)/24,"[h]:mm")),"") ->  | L23: 0 | M23: 0 | O23: =IF(OR($O$3="",$N$3="",N23=""),"",IF($O$9-SUM($N$11:N22)-N23<0,TEXT(-(($O$9-SUM($N$11:N22)-N23)/24),"-[hh]:mm"),TEXT(($O$9-SUM($N$11:N22)-N23)/24,"[hh]:mm"))) -> 
C24: =IF(OR($K$9=0,AND($K$9=2,A24<=14)),1,IF(IF(ISNA(INDEX(X!$W$7:$W$20,MATCH(DATE($D$4,$C$4,A24),X!$AC$7:$AC$20,0))),1,2)=2,2,IF(OR(B24="Sa",B24="So"),2,IF($K$9=1,SUMIFS($R$4:$R$8,$S$4:$S$8,B24),IF(AND($K$9=2,A24<15),SUMIFS($R$4:$R$8,$S$4:$S$8,B24),IF(AND($K$9=2,A24>14),SUMIFS($R$12:$R$16,$S$12:$S$16,B24),IF(AND($K$9=3,A24>14),SUMIFS($R$12:$R$16,$S$12:$S$16,B24),IF(AND($K$9=3,A24<15),SUMIFS($R$4:$R$8,$S$4:$S$8,B24),1)))))))) -> 1 | I24: =IF($K$9>0,IF(SUM($K$11:$K24,$I$6)<0,TEXT(-(SUM($K$11:K24,$I$6)/60)/24,"-[h]:mm"),TEXT((SUM($K$11:K24,$I$6)/60)/24,"[h]:mm")),"") ->  | L24: 0 | M24: 0 | O24: =IF(OR($O$3="",$N$3="",N24=""),"",IF($O$9-SUM($N$11:N23)-N24<0,TEXT(-(($O$9-SUM($N$11:N23)-N24)/24),"-[hh]:mm"),TEXT(($O$9-SUM($N$11:N23)-N24)/24,"[hh]:mm"))) -> 
C25: =IF(OR($K$9=0,AND($K$9=2,A25<=14)),1,IF(IF(ISNA(INDEX(X!$W$7:$W$20,MATCH(DATE($D$4,$C$4,A25),X!$AC$7:$AC$20,0))),1,2)=2,2,IF(OR(B25="Sa",B25="So"),2,IF($K$9=1,SUMIFS($R$4:$R$8,$S$4:$S$8,B25),IF(AND($K$9=2,A25<15),SUMIFS($R$4:$R$8,$S$4:$S$8,B25),IF(AND($K$9=2,A25>14),SUMIFS($R$12:$R$16,$S$12:$S$16,B25),IF(AND($K$9=3,A25>14),SUMIFS($R$12:$R$16,$S$12:$S$16,B25),IF(AND($K$9=3,A25<15),SUMIFS($R$4:$R$8,$S$4:$S$8,B25),1)))))))) -> 1 | I25: =IF($K$9>0,IF(SUM($K$11:$K25,$I$6)<0,TEXT(-(SUM($K$11:K25,$I$6)/60)/24,"-[h]:mm"),TEXT((SUM($K$11:K25,$I$6)/60)/24,"[h]:mm")),"") ->  | L25: 0 | M25: 0 | O25: =IF(OR($O$3="",$N$3="",N25=""),"",IF($O$9-SUM($N$11:N24)-N25<0,TEXT(-(($O$9-SUM($N$11:N24)-N25)/24),"-[hh]:mm"),TEXT(($O$9-SUM($N$11:N24)-N25)/24,"[hh]:mm"))) -> 
C26: =IF(OR($K$9=0,AND($K$9=2,A26<=14)),1,IF(IF(ISNA(INDEX(X!$W$7:$W$20,MATCH(DATE($D$4,$C$4,A26),X!$AC$7:$AC$20,0))),1,2)=2,2,IF(OR(B26="Sa",B26="So"),2,IF($K$9=1,SUMIFS($R$4:$R$8,$S$4:$S$8,B26),IF(AND($K$9=2,A26<15),SUMIFS($R$4:$R$8,$S$4:$S$8,B26),IF(AND($K$9=2,A26>14),SUMIFS($R$12:$R$16,$S$12:$S$16,B26),IF(AND($K$9=3,A26>14),SUMIFS($R$12:$R$16,$S$12:$S$16,B26),IF(AND($K$9=3,A26<15),SUMIFS($R$4:$R$8,$S$4:$S$8,B26),1)))))))) -> 1 | I26: =IF($K$9>0,IF(SUM($K$11:$K26,$I$6)<0,TEXT(-(SUM($K$11:K26,$I$6)/60)/24,"-[h]:mm"),TEXT((SUM($K$11:K26,$I$6)/60)/24,"[h]:mm")),"") ->  | L26: 0 | M26: 0 | O26: =IF(OR($O$3="",$N$3="",N26=""),"",IF($O$9-SUM($N$11:N25)-N26<0,TEXT(-(($O$9-SUM($N$11:N25)-N26)/24),"-[hh]:mm"),TEXT(($O$9-SUM($N$11:N25)-N26)/24,"[hh]:mm"))) -> 
C27: =IF(OR($K$9=0,AND($K$9=2,A27<=14)),1,IF(IF(ISNA(INDEX(X!$W$7:$W$20,MATCH(DATE($D$4,$C$4,A27),X!$AC$7:$AC$20,0))),1,2)=2,2,IF(OR(B27="Sa",B27="So"),2,IF($K$9=1,SUMIFS($R$4:$R$8,$S$4:$S$8,B27),IF(AND($K$9=2,A27<15),SUMIFS($R$4:$R$8,$S$4:$S$8,B27),IF(AND($K$9=2,A27>14),SUMIFS($R$12:$R$16,$S$12:$S$16,B27),IF(AND($K$9=3,A27>14),SUMIFS($R$12:$R$16,$S$12:$S$16,B27),IF(AND($K$9=3,A27<15),SUMIFS($R$4:$R$8,$S$4:$S$8,B27),1)))))))) -> 1 | I27: =IF($K$9>0,IF(SUM($K$11:$K27,$I$6)<0,TEXT(-(SUM($K$11:K27,$I$6)/60)/24,"-[h]:mm"),TEXT((SUM($K$11:K27,$I$6)/60)/24,"[h]:mm")),"") ->  | L27: 0 | M27: 0 | O27: =IF(OR($O$3="",$N$3="",N27=""),"",IF($O$9-SUM($N$11:N26)-N27<0,TEXT(-(($O$9-SUM($N$11:N26)-N27)/24),"-[hh]:mm"),TEXT(($O$9-SUM($N$11:N26)-N27)/24,"[hh]:mm"))) -> 
C28: =IF(OR($K$9=0,AND($K$9=2,A28<=14)),1,IF(IF(ISNA(INDEX(X!$W$7:$W$20,MATCH(DATE($D$4,$C$4,A28),X!$AC$7:$AC$20,0))),1,2)=2,2,IF(OR(B28="Sa",B28="So"),2,IF($K$9=1,SUMIFS($R$4:$R$8,$S$4:$S$8,B28),IF(AND($K$9=2,A28<15),SUMIFS($R$4:$R$8,$S$4:$S$8,B28),IF(AND($K$9=2,A28>14),SUMIFS($R$12:$R$16,$S$12:$S$16,B28),IF(AND($K$9=3,A28>14),SUMIFS($R$12:$R$16,$S$12:$S$16,B28),IF(AND($K$9=3,A28<15),SUMIFS($R$4:$R$8,$S$4:$S$8,B28),1)))))))) -> 1 | I28: =IF($K$9>0,IF(SUM($K$11:$K28,$I$6)<0,TEXT(-(SUM($K$11:K28,$I$6)/60)/24,"-[h]:mm"),TEXT((SUM($K$11:K28,$I$6)/60)/24,"[h]:mm")),"") ->  | L28: 0 | M28: 0 | O28: =IF(OR($O$3="",$N$3="",N28=""),"",IF($O$9-SUM($N$11:N27)-N28<0,TEXT(-(($O$9-SUM($N$11:N27)-N28)/24),"-[hh]:mm"),TEXT(($O$9-SUM($N$11:N27)-N28)/24,"[hh]:mm"))) -> 
C29: =IF(OR($K$9=0,AND($K$9=2,A29<=14)),1,IF(IF(ISNA(INDEX(X!$W$7:$W$20,MATCH(DATE($D$4,$C$4,A29),X!$AC$7:$AC$20,0))),1,2)=2,2,IF(OR(B29="Sa",B29="So"),2,IF($K$9=1,SUMIFS($R$4:$R$8,$S$4:$S$8,B29),IF(AND($K$9=2,A29<15),SUMIFS($R$4:$R$8,$S$4:$S$8,B29),IF(AND($K$9=2,A29>14),SUMIFS($R$12:$R$16,$S$12:$S$16,B29),IF(AND($K$9=3,A29>14),SUMIFS($R$12:$R$16,$S$12:$S$16,B29),IF(AND($K$9=3,A29<15),SUMIFS($R$4:$R$8,$S$4:$S$8,B29),1)))))))) -> 1 | I29: =IF($K$9>0,IF(SUM($K$11:$K29,$I$6)<0,TEXT(-(SUM($K$11:K29,$I$6)/60)/24,"-[h]:mm"),TEXT((SUM($K$11:K29,$I$6)/60)/24,"[h]:mm")),"") ->  | L29: 0 | M29: 0 | O29: =IF(OR($O$3="",$N$3="",N29=""),"",IF($O$9-SUM($N$11:N28)-N29<0,TEXT(-(($O$9-SUM($N$11:N28)-N29)/24),"-[hh]:mm"),TEXT(($O$9-SUM($N$11:N28)-N29)/24,"[hh]:mm"))) -> 
C30: =IF(OR($K$9=0,AND($K$9=2,A30<=14)),1,IF(IF(ISNA(INDEX(X!$W$7:$W$20,MATCH(DATE($D$4,$C$4,A30),X!$AC$7:$AC$20,0))),1,2)=2,2,IF(OR(B30="Sa",B30="So"),2,IF($K$9=1,SUMIFS($R$4:$R$8,$S$4:$S$8,B30),IF(AND($K$9=2,A30<15),SUMIFS($R$4:$R$8,$S$4:$S$8,B30),IF(AND($K$9=2,A30>14),SUMIFS($R$12:$R$16,$S$12:$S$16,B30),IF(AND($K$9=3,A30>14),SUMIFS($R$12:$R$16,$S$12:$S$16,B30),IF(AND($K$9=3,A30<15),SUMIFS($R$4:$R$8,$S$4:$S$8,B30),1)))))))) -> 1 | I30: =IF($K$9>0,IF(SUM($K$11:$K30,$I$6)<0,TEXT(-(SUM($K$11:K30,$I$6)/60)/24,"-[h]:mm"),TEXT((SUM($K$11:K30,$I$6)/60)/24,"[h]:mm")),"") ->  | L30: 0 | M30: 0 | O30: =IF(OR($O$3="",$N$3="",N30=""),"",IF($O$9-SUM($N$11:N29)-N30<0,TEXT(-(($O$9-SUM($N$11:N29)-N30)/24),"-[hh]:mm"),TEXT(($O$9-SUM($N$11:N29)-N30)/24,"[hh]:mm"))) -> 
C31: =IF(OR($K$9=0,AND($K$9=2,A31<=14)),1,IF(IF(ISNA(INDEX(X!$W$7:$W$20,MATCH(DATE($D$4,$C$4,A31),X!$AC$7:$AC$20,0))),1,2)=2,2,IF(OR(B31="Sa",B31="So"),2,IF($K$9=1,SUMIFS($R$4:$R$8,$S$4:$S$8,B31),IF(AND($K$9=2,A31<15),SUMIFS($R$4:$R$8,$S$4:$S$8,B31),IF(AND($K$9=2,A31>14),SUMIFS($R$12:$R$16,$S$12:$S$16,B31),IF(AND($K$9=3,A31>14),SUMIFS($R$12:$R$16,$S$12:$S$16,B31),IF(AND($K$9=3,A31<15),SUMIFS($R$4:$R$8,$S$4:$S$8,B31),1)))))))) -> 1 | I31: =IF($K$9>0,IF(SUM($K$11:$K31,$I$6)<0,TEXT(-(SUM($K$11:K31,$I$6)/60)/24,"-[h]:mm"),TEXT((SUM($K$11:K31,$I$6)/60)/24,"[h]:mm")),"") ->  | L31: 0 | M31: 0 | O31: =IF(OR($O$3="",$N$3="",N31=""),"",IF($O$9-SUM($N$11:N30)-N31<0,TEXT(-(($O$9-SUM($N$11:N30)-N31)/24),"-[hh]:mm"),TEXT(($O$9-SUM($N$11:N30)-N31)/24,"[hh]:mm"))) -> 
C32: =IF(OR($K$9=0,AND($K$9=2,A32<=14)),1,IF(IF(ISNA(INDEX(X!$W$7:$W$20,MATCH(DATE($D$4,$C$4,A32),X!$AC$7:$AC$20,0))),1,2)=2,2,IF(OR(B32="Sa",B32="So"),2,IF($K$9=1,SUMIFS($R$4:$R$8,$S$4:$S$8,B32),IF(AND($K$9=2,A32<15),SUMIFS($R$4:$R$8,$S$4:$S$8,B32),IF(AND($K$9=2,A32>14),SUMIFS($R$12:$R$16,$S$12:$S$16,B32),IF(AND($K$9=3,A32>14),SUMIFS($R$12:$R$16,$S$12:$S$16,B32),IF(AND($K$9=3,A32<15),SUMIFS($R$4:$R$8,$S$4:$S$8,B32),1)))))))) -> 1 | I32: =IF($K$9>0,IF(SUM($K$11:$K32,$I$6)<0,TEXT(-(SUM($K$11:K32,$I$6)/60)/24,"-[h]:mm"),TEXT((SUM($K$11:K32,$I$6)/60)/24,"[h]:mm")),"") ->  | L32: 0 | M32: 0 | O32: =IF(OR($O$3="",$N$3="",N32=""),"",IF($O$9-SUM($N$11:N31)-N32<0,TEXT(-(($O$9-SUM($N$11:N31)-N32)/24),"-[hh]:mm"),TEXT(($O$9-SUM($N$11:N31)-N32)/24,"[hh]:mm"))) -> 
C33: =IF(OR($K$9=0,AND($K$9=2,A33<=14)),1,IF(IF(ISNA(INDEX(X!$W$7:$W$20,MATCH(DATE($D$4,$C$4,A33),X!$AC$7:$AC$20,0))),1,2)=2,2,IF(OR(B33="Sa",B33="So"),2,IF($K$9=1,SUMIFS($R$4:$R$8,$S$4:$S$8,B33),IF(AND($K$9=2,A33<15),SUMIFS($R$4:$R$8,$S$4:$S$8,B33),IF(AND($K$9=2,A33>14),SUMIFS($R$12:$R$16,$S$12:$S$16,B33),IF(AND($K$9=3,A33>14),SUMIFS($R$12:$R$16,$S$12:$S$16,B33),IF(AND($K$9=3,A33<15),SUMIFS($R$4:$R$8,$S$4:$S$8,B33),1)))))))) -> 1 | I33: =IF($K$9>0,IF(SUM($K$11:$K33,$I$6)<0,TEXT(-(SUM($K$11:K33,$I$6)/60)/24,"-[h]:mm"),TEXT((SUM($K$11:K33,$I$6)/60)/24,"[h]:mm")),"") ->  | L33: 0 | M33: 0 | O33: =IF(OR($O$3="",$N$3="",N33=""),"",IF($O$9-SUM($N$11:N32)-N33<0,TEXT(-(($O$9-SUM($N$11:N32)-N33)/24),"-[hh]:mm"),TEXT(($O$9-SUM($N$11:N32)-N33)/24,"[hh]:mm"))) -> 
C34: =IF(OR($K$9=0,AND($K$9=2,A34<=14)),1,IF(IF(ISNA(INDEX(X!$W$7:$W$20,MATCH(DATE($D$4,$C$4,A34),X!$AC$7:$AC$20,0))),1,2)=2,2,IF(OR(B34="Sa",B34="So"),2,IF($K$9=1,SUMIFS($R$4:$R$8,$S$4:$S$8,B34),IF(AND($K$9=2,A34<15),SUMIFS($R$4:$R$8,$S$4:$S$8,B34),IF(AND($K$9=2,A34>14),SUMIFS($R$12:$R$16,$S$12:$S$16,B34),IF(AND($K$9=3,A34>14),SUMIFS($R$12:$R$16,$S$12:$S$16,B34),IF(AND($K$9=3,A34<15),SUMIFS($R$4:$R$8,$S$4:$S$8,B34),1)))))))) -> 1 | I34: =IF($K$9>0,IF(SUM($K$11:$K34,$I$6)<0,TEXT(-(SUM($K$11:K34,$I$6)/60)/24,"-[h]:mm"),TEXT((SUM($K$11:K34,$I$6)/60)/24,"[h]:mm")),"") ->  | L34: 0 | M34: 0 | O34: =IF(OR($O$3="",$N$3="",N34=""),"",IF($O$9-SUM($N$11:N33)-N34<0,TEXT(-(($O$9-SUM($N$11:N33)-N34)/24),"-[hh]:mm"),TEXT(($O$9-SUM($N$11:N33)-N34)/24,"[hh]:mm"))) -> 
C35: =IF(OR($K$9=0,AND($K$9=2,A35<=14)),1,IF(IF(ISNA(INDEX(X!$W$7:$W$20,MATCH(DATE($D$4,$C$4,A35),X!$AC$7:$AC$20,0))),1,2)=2,2,IF(OR(B35="Sa",B35="So"),2,IF($K$9=1,SUMIFS($R$4:$R$8,$S$4:$S$8,B35),IF(AND($K$9=2,A35<15),SUMIFS($R$4:$R$8,$S$4:$S$8,B35),IF(AND($K$9=2,A35>14),SUMIFS($R$12:$R$16,$S$12:$S$16,B35),IF(AND($K$9=3,A35>14),SUMIFS($R$12:$R$16,$S$12:$S$16,B35),IF(AND($K$9=3,A35<15),SUMIFS($R$4:$R$8,$S$4:$S$8,B35),1)))))))) -> 1 | I35: =IF($K$9>0,IF(SUM($K$11:$K35,$I$6)<0,TEXT(-(SUM($K$11:K35,$I$6)/60)/24,"-[h]:mm"),TEXT((SUM($K$11:K35,$I$6)/60)/24,"[h]:mm")),"") ->  | L35: 0 | M35: 0 | O35: =IF(OR($O$3="",$N$3="",N35=""),"",IF($O$9-SUM($N$11:N34)-N35<0,TEXT(-(($O$9-SUM($N$11:N34)-N35)/24),"-[hh]:mm"),TEXT(($O$9-SUM($N$11:N34)-N35)/24,"[hh]:mm"))) -> 
C36: =IF(OR($K$9=0,AND($K$9=2,A36<=14)),1,IF(IF(ISNA(INDEX(X!$W$7:$W$20,MATCH(DATE($D$4,$C$4,A36),X!$AC$7:$AC$20,0))),1,2)=2,2,IF(OR(B36="Sa",B36="So"),2,IF($K$9=1,SUMIFS($R$4:$R$8,$S$4:$S$8,B36),IF(AND($K$9=2,A36<15),SUMIFS($R$4:$R$8,$S$4:$S$8,B36),IF(AND($K$9=2,A36>14),SUMIFS($R$12:$R$16,$S$12:$S$16,B36),IF(AND($K$9=3,A36>14),SUMIFS($R$12:$R$16,$S$12:$S$16,B36),IF(AND($K$9=3,A36<15),SUMIFS($R$4:$R$8,$S$4:$S$8,B36),1)))))))) -> 1 | I36: =IF($K$9>0,IF(SUM($K$11:$K36,$I$6)<0,TEXT(-(SUM($K$11:K36,$I$6)/60)/24,"-[h]:mm"),TEXT((SUM($K$11:K36,$I$6)/60)/24,"[h]:mm")),"") ->  | L36: 0 | M36: 0 | O36: =IF(OR($O$3="",$N$3="",N36=""),"",IF($O$9-SUM($N$11:N35)-N36<0,TEXT(-(($O$9-SUM($N$11:N35)-N36)/24),"-[hh]:mm"),TEXT(($O$9-SUM($N$11:N35)-N36)/24,"[hh]:mm"))) -> 
C37: =IF(OR($K$9=0,AND($K$9=2,A37<=14)),1,IF(IF(ISNA(INDEX(X!$W$7:$W$20,MATCH(DATE($D$4,$C$4,A37),X!$AC$7:$AC$20,0))),1,2)=2,2,IF(OR(B37="Sa",B37="So"),2,IF($K$9=1,SUMIFS($R$4:$R$8,$S$4:$S$8,B37),IF(AND($K$9=2,A37<15),SUMIFS($R$4:$R$8,$S$4:$S$8,B37),IF(AND($K$9=2,A37>14),SUMIFS($R$12:$R$16,$S$12:$S$16,B37),IF(AND($K$9=3,A37>14),SUMIFS($R$12:$R$16,$S$12:$S$16,B37),IF(AND($K$9=3,A37<15),SUMIFS($R$4:$R$8,$S$4:$S$8,B37),1)))))))) -> 1 | I37: =IF($K$9>0,IF(SUM($K$11:$K37,$I$6)<0,TEXT(-(SUM($K$11:K37,$I$6)/60)/24,"-[h]:mm"),TEXT((SUM($K$11:K37,$I$6)/60)/24,"[h]:mm")),"") ->  | L37: 0 | M37: 0 | O37: =IF(OR($O$3="",$N$3="",N37=""),"",IF($O$9-SUM($N$11:N36)-N37<0,TEXT(-(($O$9-SUM($N$11:N36)-N37)/24),"-[hh]:mm"),TEXT(($O$9-SUM($N$11:N36)-N37)/24,"[hh]:mm"))) -> 
C38: =IF(OR($K$9=0,AND($K$9=2,A38<=14)),1,IF(IF(ISNA(INDEX(X!$W$7:$W$20,MATCH(DATE($D$4,$C$4,A38),X!$AC$7:$AC$20,0))),1,2)=2,2,IF(OR(B38="Sa",B38="So"),2,IF($K$9=1,SUMIFS($R$4:$R$8,$S$4:$S$8,B38),IF(AND($K$9=2,A38<15),SUMIFS($R$4:$R$8,$S$4:$S$8,B38),IF(AND($K$9=2,A38>14),SUMIFS($R$12:$R$16,$S$12:$S$16,B38),IF(AND($K$9=3,A38>14),SUMIFS($R$12:$R$16,$S$12:$S$16,B38),IF(AND($K$9=3,A38<15),SUMIFS($R$4:$R$8,$S$4:$S$8,B38),1)))))))) -> 1 | I38: =IF($K$9>0,IF(SUM($K$11:$K38,$I$6)<0,TEXT(-(SUM($K$11:K38,$I$6)/60)/24,"-[h]:mm"),TEXT((SUM($K$11:K38,$I$6)/60)/24,"[h]:mm")),"") ->  | L38: 0 | M38: 0 | O38: =IF(OR($O$3="",$N$3="",N38=""),"",IF($O$9-SUM($N$11:N37)-N38<0,TEXT(-(($O$9-SUM($N$11:N37)-N38)/24),"-[hh]:mm"),TEXT(($O$9-SUM($N$11:N37)-N38)/24,"[hh]:mm"))) -> 
B39: =IF(OR(A39="",$D$4=""),"",TEXT(DATE($D$4,$C$4,A39),"ttt")) ->  | C39: =IF(OR($K$9=0,AND($K$9=2,A39<=14)),1,IF(IF(ISNA(INDEX(X!$W$7:$W$20,MATCH(DATE($D$4,$C$4,A39),X!$AC$7:$AC$20,0))),1,2)=2,2,IF(OR(B39="Sa",B39="So"),2,IF($K$9=1,SUMIFS($R$4:$R$8,$S$4:$S$8,B39),IF(AND($K$9=2,A39<15),SUMIFS($R$4:$R$8,$S$4:$S$8,B39),IF(AND($K$9=2,A39>14),SUMIFS($R$12:$R$16,$S$12:$S$16,B39),IF(AND($K$9=3,A39>14),SUMIFS($R$12:$R$16,$S$12:$S$16,B39),IF(AND($K$9=3,A39<15),SUMIFS($R$4:$R$8,$S$4:$S$8,B39),1)))))))) -> 1 | I39: =IF($K$9>0,IF(SUM($K$11:$K39,$I$6)<0,TEXT(-(SUM($K$11:K39,$I$6)/60)/24,"-[h]:mm"),TEXT((SUM($K$11:K39,$I$6)/60)/24,"[h]:mm")),"") ->  | L39: 0 | M39: 0 | O39: =IF(OR($O$3="",$N$3="",N39=""),"",IF($O$9-SUM($N$11:N38)-N39<0,TEXT(-(($O$9-SUM($N$11:N38)-N39)/24),"-[hh]:mm"),TEXT(($O$9-SUM($N$11:N38)-N39)/24,"[hh]:mm"))) -> 
B40: =IF(OR(A40="",$D$4=""),"",TEXT(DATE($D$4,$C$4,A40),"ttt")) ->  | C40: =IF(OR($K$9=0,AND($K$9=2,A40<=14)),1,IF(IF(ISNA(INDEX(X!$W$7:$W$20,MATCH(DATE($D$4,$C$4,A40),X!$AC$7:$AC$20,0))),1,2)=2,2,IF(OR(B40="Sa",B40="So"),2,IF($K$9=1,SUMIFS($R$4:$R$8,$S$4:$S$8,B40),IF(AND($K$9=2,A40<15),SUMIFS($R$4:$R$8,$S$4:$S$8,B40),IF(AND($K$9=2,A40>14),SUMIFS($R$12:$R$16,$S$12:$S$16,B40),IF(AND($K$9=3,A40>14),SUMIFS($R$12:$R$16,$S$12:$S$16,B40),IF(AND($K$9=3,A40<15),SUMIFS($R$4:$R$8,$S$4:$S$8,B40),1)))))))) -> 1 | I40: =IF($K$9>0,IF(SUM($K$11:$K40,$I$6)<0,TEXT(-(SUM($K$11:K40,$I$6)/60)/24,"-[h]:mm"),TEXT((SUM($K$11:K40,$I$6)/60)/24,"[h]:mm")),"") ->  | L40: 0 | M40: 0 | O40: =IF(OR($O$3="",$N$3="",N40=""),"",IF($O$9-SUM($N$11:N39)-N40<0,TEXT(-(($O$9-SUM($N$11:N39)-N40)/24),"-[hh]:mm"),TEXT(($O$9-SUM($N$11:N39)-N40)/24,"[hh]:mm"))) -> 
C41: =IF(OR($K$9=0,AND($K$9=2,A41<=14)),1,IF(IF(ISNA(INDEX(X!$W$7:$W$20,MATCH(DATE($D$4,$C$4,A41),X!$AC$7:$AC$20,0))),1,2)=2,2,IF(OR(B41="Sa",B41="So"),2,IF($K$9=1,SUMIFS($R$4:$R$8,$S$4:$S$8,B41),IF(AND($K$9=2,A41<15),SUMIFS($R$4:$R$8,$S$4:$S$8,B41),IF(AND($K$9=2,A41>14),SUMIFS($R$12:$R$16,$S$12:$S$16,B41),IF(AND($K$9=3,A41>14),SUMIFS($R$12:$R$16,$S$12:$S$16,B41),IF(AND($K$9=3,A41<15),SUMIFS($R$4:$R$8,$S$4:$S$8,B41),1)))))))) -> 1 | I41: =IF($K$9>0,IF(SUM($K$11:$K41,$I$6)<0,TEXT(-(SUM($K$11:K41,$I$6)/60)/24,"-[h]:mm"),TEXT((SUM($K$11:K41,$I$6)/60)/24,"[h]:mm")),"") ->  | L41: 0 | M41: 0 | O41: =IF(OR($O$3="",$N$3="",N41=""),"",IF($O$9-SUM($N$11:N40)-N41<0,TEXT(-(($O$9-SUM($N$11:N40)-N41)/24),"-[hh]:mm"),TEXT(($O$9-SUM($N$11:N40)-N41)/24,"[hh]:mm"))) -> 
G42: =L42+K42 -> 0 | H42: =K42 -> 0 | K42: =SUM(K11:K41) -> 0 | L42: =-SUM(L11:L41) -> 0 | M42: =M41 -> 0 | N42: =SUM(N11:N41)*60 -> 0 | Q42: =IF((G42/60)<0,TEXT(-((G42/60)/24),"-[hh]:mm"),TEXT((G42/60)/24,"[hh]:mm")) -> 00:00
A43: =IF(G4="","","Ergebnis") ->  | G43: =IF(G4="",0,IF(((G42-N42)/60)<0,TEXT(-(((G42-N42)/60)/24),"-[hh]:mm"),TEXT(((G42-N42)/60)/24,"[hh]:mm"))) -> 0 | H43: =IF(G4=0,"",IF(H42<0,TEXT(-((H42/60)/24),"-[hh]:mm"),IF((H42/60)>24,TEXT((((H42/60)-24)/24)+(24/24),"[hh]:mm"),(H42/60)/24))) -> 0 | I43: =IF($K$9>0,IF(SUM(I6,K43)<0,TEXT(-(SUM(I6,K43)/60)/24,"-[h]:mm"),TEXT((SUM(I6,K43)/60)/24,"[h]:mm")),"") ->  | K43: =IF(L42<>L43,G42-L43,K42) -> 0 | L43: =IF(AND(K9=1,SUM(U4:U8)<>H9),((H9/5)*COUNTIFS(C11:C41,"<>"&2,F11:F41,""))*60,IF(AND(K9=2,SUM(U12:U16)<>I9),((I9/5)*COUNTIFS(C11:C41,"<>"&2,F11:F41,""))*60,IF(AND(K9=3,OR(SUM(U4:U8)<>H9,SUM(U12:U16)<>I9)),SUM(IF(SUM(U4:U8)<>H9,((H9/5)*COUNTIFS(C11:C41,"<>"&2,A11:A41,"<"&15,F11:F41,""))*60,-SUMIFS(L11:L41,A11:A41,"<"&15,F11:F41,"")),IF(SUM(U12:U16)<>I9,((I9/5)*COUNTIFS(C11:C41,"<>"&2,A11:A41,">"&14,F11:F41,""))*60,-SUMIFS(L11:L41,A11:A41,">"&14,F11:F41,""))),-SUM(L11:L41)))) -> 0 | N43: =IF(N42<0,TEXT(-((N42/60)/24),"-[hh]:mm"),TEXT((N42/60)/24,"[hh]:mm")) -> 00:00 | O43: =IF(O9-SUM(N11:N41)<0,TEXT(-(O9-SUM(N11:N41))/24,"-[h]:mm"),TEXT((O9-SUM(N11:N41))/24,"[h]:mm")) ->  | Q43: =Q42 -> 00:00
A44: =IF(G4="","","Saldo / Übertrag:") ->  | I44: =I43 ->  | J44: =IF(K42<>K43,"automatische Nachberechnung der Sollarbeitszeit, da wöchentlicher Stundenumfang nicht eingehalten wurde.","") ->  | K44: =K43+I6 -> 0 | L44: Übertrag
A46: =IF(I46="","","Korrektur der Stunden") ->  | I46: =IF(K9>0,IF(K42-K43<>0,IF(K43-K42<0,TEXT(-((K43-K42)/60)/24,"-[h]:mm"),TEXT(((K43-K42)/60)/24,"[h]:mm")),""),"") -> 
A57: =D4 ->  | B57: =C4 -> 4 | C57: =Uebersicht!A4 -> 0 | D57: =Uebersicht!B4 -> 0 | E57: =L43 -> 0 | F57: =K42 -> 0 | G57: =K43 -> 0 | H57: =M10 -> 0 | I57: =M42 -> 0

Sheet Mai
A1: Zeiterfassungsbogen für studentische Hilfskräfte | International Office | V1: "nein" auswählen, wenn keine festen Tage mehr gelten sollen!
A2: =IF(Uebersicht!A4="","",CONCATENATE(Uebersicht!B4," ",Uebersicht!A4)) -> 
N3: =INDEX(Uebersicht!AO5:AQ28,MATCH(C4,Uebersicht!AO5:AO28,0),3) -> 0 | O3: =INDEX(Uebersicht!AO5:AQ28,MATCH(C4+0.5,Uebersicht!AO5:AO28,0),3) -> 0 | S3: Tag | T3: h
A4: =IF(D4="","",TEXT(DATE(D4,C4,1),"MMM")) ->  | C4: 5 | D4: =Uebersicht!I1 ->  | G4: =IF(INDEX(Uebersicht!AO31:AQ42,MATCH(C4,Uebersicht!AO31:AO43,0),2)=0,"",INDEX(Uebersicht!AO31:AQ42,MATCH(C4,Uebersicht!AO31:AO43,0),2)) ->  | N4: =INDEX(Uebersicht!AO31:AQ42,MATCH(C4,Uebersicht!AO31:AO43,0),3) -> 0 | R4: =IF(OR($K$9=2,$K$9=0),1,IF(AND(OR($K$9=1,$K$9=3),OR(SUM($U$4:$U$8)=0,$U$1="nein")),3,IF(AND($U$1="",SUM($U$4:$U$8)>0,U4>=1,OR($K$9=3,$K$9=1)),4,1))) -> 1 | S4: Mo | U4: =IF(AND(H9=0,I9=0),0,IF(OR($K$9=0,INDIRECT("'"&TEXT(DATE(D4,$C$4-1,1),"MMM")&"'!$U$1")="nein",$U$1="nein"),0,IF(T4>0,T4,INDEX(Uebersicht!$BA$3:$BE$14,$C$4,MATCH(S4,Uebersicht!$BA$2:$BE$2,0))))) -> 0
R5: =IF(OR($K$9=2,$K$9=0),1,IF(AND(OR($K$9=1,$K$9=3),OR(SUM($U$4:$U$8)=0,$U$1="nein")),3,IF(AND($U$1="",SUM($U$4:$U$8)>0,U5>=1,OR($K$9=3,$K$9=1)),4,1))) -> 1 | S5: Di | U5: =IF(OR($K$9=0,INDIRECT("'"&TEXT(DATE(D5,$C$4-1,1),"MMM")&"'!$U$1")="nein",$U$1="nein"),0,IF(T5>0,T5,INDEX(Uebersicht!$BA$3:$BE$14,$C$4,MATCH(S5,Uebersicht!$BA$2:$BE$2,0)))) -> 0
C6: =DAY(DATE(D4,C4+1,1)-1) ->  | H6: =IF(N4=0,"","Arbeitsgebiet 1") ->  | I6: =IF(AND(I9=0,H9=0),0,IF(C4-1=0,Uebersicht!G4,INDIRECT("'"&TEXT(DATE(D4,C4-1,1),"MMM")&"'!K44"))) -> 0 | K6: nein | N6: =IF(N4="","","Arbeitsgebiet 2") -> Arbeitsgebiet 2 | R6: =IF(OR($K$9=2,$K$9=0),1,IF(AND(OR($K$9=1,$K$9=3),OR(SUM($U$4:$U$8)=0,$U$1="nein")),3,IF(AND($U$1="",SUM($U$4:$U$8)>0,U6>=1,OR($K$9=3,$K$9=1)),4,1))) -> 1 | S6: Mi | U6: =IF(OR($K$9=0,INDIRECT("'"&TEXT(DATE(D6,$C$4-1,1),"MMM")&"'!$U$1")="nein",$U$1="nein"),0,IF(T6>0,T6,INDEX(Uebersicht!$BA$3:$BE$14,$C$4,MATCH(S6,Uebersicht!$BA$2:$BE$2,0)))) -> 0
A7: =IF(AND(H9>0,I9=0),CONCATENATE(H9," Wochenarbeitszeit (h)"),IF(AND(H9=0,I9>0),CONCATENATE(I9," Wochenarbeitszeit (h)"),IF(AND(H9>0,I9>0,H9<>I9),CONCATENATE(H9," h, ab 15. ",TEXT(DATE(D4,C4,1),"MMMM")," ",I9,"h"),""))) ->  | F7: =IF(G4="","",IF(M42/60>0,TEXT((M42/60)/24,"[h]:mm"),0)) ->  | G7: =IF(F7="","","Urlaubsrest") ->  | I7: =IF(AND(YEAR(TODAY())=D4,MONTH(TODAY())>=C4,K9>0),IF(OR(I6=0,I6=""),0,IF(I6<0,TEXT(-(I6/60)/24,"-[h]:mm"),TEXT((I6/60)/24,"[h]:mm"))),"") ->  | J7: =IF(I7="","",CONCATENATE("h Übertrag aus ",IF(C6=1,"Vorjahr","Vormonat"))) ->  | K7: Urlaub | N7: =IF(AND(N3>0,O3=0),CONCATENATE(N3," Stunden - Anteil pro Woche"),IF(AND(N3=0,O3>0),CONCATENATE(O3," Stunden - Anteil pro Woche"),IF(AND(N3>0,O3>0,O3<>N3),CONCATENATE(N3," h, ab 15. ",TEXT(DATE(D4,C4,1),"MMMM")," ",O3,"h"),IF(N3=O3,CONCATENATE(N3," Stunden - Anteil pro Woche"),"")))) -> 0 Stunden - Anteil pro Woche | R7: =IF(OR($K$9=2,$K$9=0),1,IF(AND(OR($K$9=1,$K$9=3),OR(SUM($U$4:$U$8)=0,$U$1="nein")),3,IF(AND($U$1="",SUM($U$4:$U$8)>0,U7>=1,OR($K$9=3,$K$9=1)),4,1))) -> 1 | S7: Do | U7: =IF(OR($K$9=0,INDIRECT("'"&TEXT(DATE(D7,$C$4-1,1),"MMM")&"'!$U$1")="nein",$U$1="nein"),0,IF(T7>0,T7,INDEX(Uebersicht!$BA$3:$BE$14,$C$4,MATCH(S7,Uebersicht!$BA$2:$BE$2,0)))) -> 0
K8: Krank | R8: =IF(OR($K$9=2,$K$9=0),1,IF(AND(OR($K$9=1,$K$9=3),OR(SUM($U$4:$U$8)=0,$U$1="nein")),3,IF(AND($U$1="",SUM($U$4:$U$8)>0,U8>=1,OR($K$9=3,$K$9=1)),4,1))) -> 1 | S8: Fr | U8: =IF(OR($K$9=0,INDIRECT("'"&TEXT(DATE(D8,$C$4-1,1),"MMM")&"'!$U$1")="nein",$U$1="nein"),0,IF(T8>0,T8,INDEX(Uebersicht!$BA$3:$BE$14,$C$4,MATCH(S8,Uebersicht!$BA$2:$BE$2,0)))) -> 0
H9: =INDEX(Uebersicht!AU3:AW14,C4,2) -> 0 | I9: =IF(INDEX(Uebersicht!AU3:AW14,C4,3)=H9,0,INDEX(Uebersicht!AU3:AW14,C4,3)) -> 0 | K9: =IF(AND(H9>0,I9=0),1,IF(AND(H9=0,I9>0),2,IF(AND(H9=0,I9=0),0,IF(H9<>I9,3,"")))) -> 0 | O9: =IF(OR(N3>0,O3>0),IF(OR(K9=1,K9=2),(IF(K9=1,N3,IF(K9=2,O2,0))/5)*NETWORKDAYS(IF(K9=1,DATE(D4,C4,1),IF(K9=2,DATE(D4,C4,15),0)),IF(OR(K9=1,K9=2),DATE(D4,C4,MAX(A11:A41)),0),COUNTIFS(C11:C41,"<>"&2)),IF(K9=3,SUM(IF(N3>0,(N3/5)*NETWORKDAYS(DATE(D4,C4,1),DATE(D4,C4,14),2),0),IF(O3>0,(O3/5)*NETWORKDAYS(DATE(D4,C4,15),DATE(D4,C4,MAX(A11:A41)),2),0)),0)),"") ->  | S9: =IF(SUM(U4:U8)=0,"",IF(SUM(U4:U8)>H9,"zu viel!",IF(SUM(U4:U8)<H9,"zu wenig!",""))) ->  | U9: =IF(OR(U1="nein",SUM(U4:U8)=0),"ja",IF(OR(SUM(Uebersicht!C36:C40)>0,SUM(T4:T8)>0,SUM(U4:U8)>0),"nein","ja")) -> ja
A10: Tag | D10: Beginn | E10: Ende | F10: Urlaub Krank | G10: Stunden | H10: Mehr/ Minder | I10: Saldo summiert | J10: Bemerkungen | K10: Differenz | L10: Soll | M10: =IF(AND(I9=0,H9=0),0,IF(C4-1=0,IF(Uebersicht!E8="",0,Uebersicht!E8*60),INDIRECT("'"&TEXT(DATE(D4,C4-1,1),"MMM")&"'!M42"))) -> 0 | N10: Stunden | O10: Rest | P10: Bemerkungen | Q10: Gesamt | S10: Änderung im laufenden Monat
A11: 1 | B11: =IF(OR(A11="",$D$4=""),"",TEXT(DATE($D$4,$C$4,A11),"ttt")) ->  | C11: =IF(OR($K$9=0,AND($K$9=2,A11<=14)),1,IF(IF(ISNA(INDEX(X!$W$7:$W$20,MATCH(DATE($D$4,$C$4,A11),X!$AC$7:$AC$20,0))),1,2)=2,2,IF(OR(B11="Sa",B11="So"),2,IF($K$9=1,SUMIFS($R$4:$R$8,$S$4:$S$8,B11),IF(AND($K$9=2,A11<15),SUMIFS($R$4:$R$8,$S$4:$S$8,B11),IF(AND($K$9=2,A11>14),SUMIFS($R$12:$R$16,$S$12:$S$16,B11),IF(AND($K$9=3,A11>14),SUMIFS($R$12:$R$16,$S$12:$S$16,B11),IF(AND($K$9=3,A11<15),SUMIFS($R$4:$R$8,$S$4:$S$8,B11),1)))))))) -> 1 | G11: =IF(AND(D11="",E11=""),"",IF(N11="",IF(((HOUR(E11)*60+MINUTE(E11))-(HOUR(D11)*60+MINUTE(D11)))>360,TEXT(((((HOUR(E11)*60+MINUTE(E11))-(HOUR(D11)*60+MINUTE(D11)))-30)/60)/24,"[h]:mm"),TEXT((((HOUR(E11)*60+MINUTE(E11))-(HOUR(D11)*60+MINUTE(D11)))/60)/24,"[h]:mm")),IF((((HOUR(E11)*60+MINUTE(E11))-(HOUR(D11)*60+MINUTE(D11)))-N11)>360,TEXT(((((((HOUR(E11)*60+MINUTE(E11))-(HOUR(D11)*60+MINUTE(D11)))-30))/60)-N11)/24,"[h]:mm"),TEXT(((((HOUR(E11)*60+MINUTE(E11))-(HOUR(D11)*60+MINUTE(D11)))/60)-N11)/24,"[h]:mm")))) ->  | H11: =IF(K11="","",IF(TODAY()<=DATE($D$4,$C$4,A11),0,IF(K11>0,TEXT((K11/60)/24,"[h]:mm"),TEXT(-(K11/60)/24,"-[h]:mm")))) ->  | I11: =IF($K$9>0,IF(SUM($K$11:$K11,I6)<0,TEXT(-(SUM($K$11:K11,I6)/60)/24,"-[h]:mm"),TEXT((SUM($K$11:K11,I6)/60)/24,"[h]:mm")),"") ->  | K11: =IF(F11="",IF(L11<0,L11+IF(G11=" ",0,IF(((HOUR(E11)*60+MINUTE(E11))-(HOUR(D11)*60+MINUTE(D11)))>360,(HOUR(E11)*60+MINUTE(E11))-(HOUR(D11)*60+MINUTE(D11))-30,(HOUR(E11)*60+MINUTE(E11))-(HOUR(D11)*60+MINUTE(D11)))),IF(Q11="","",(Q11*60)*24)),"") ->  | L11: =IF(OR(F11="krank",F11="Urlaub",C11=1,C11=2),0,IF($K$9=1,IF(SUM($U$4:$U$8)=0,$H$9/5,INDEX($S$4:$U$8,MATCH(B11,$S$4:$S$8,0),3)),IF($K$9=2,IF(AND(A11>14,SUM($U$12:$U$16)=0),$I$9/5,INDEX($S$12:$U$16,MATCH(B11,$S$12:$S$16,0),3)),IF($K$9=3,IF(A11<15,IF(SUM($U$4:$U$8)=0,$H$9/5,INDEX($S$4:$U$8,MATCH(B11,$S$4:$S$8,0),3))),IF(A11>14,IF(SUM($U$12:$U$16)=0,$I$9/5,INDEX($S$12:$U$16,MATCH(B11,$S$12:$S$16,0),3))))))*-60) -> 0 | M11: =M10-(IF(OR(C11=1,C11=2),0,IF(C11=3,IF(AND($K$9=1,F11="Urlaub"),$H$9/5,IF($K$9=2,IF(AND(A11<15,F11="Urlaub"),$I$9/5,IF(AND($K$9=3,A11<15,F11="Urlaub"),$H$9/5,IF(AND($K$9=3,A11>14,F11="Urlaub"),$I$9/5))))),IF(C11=4,IF(AND(F11="Urlaub",$K$9=1),SUMIFS($U$4:$U$8,$S$4:$S$8,B11),IF(AND(F11="Urlaub",$K$9=2,A11>14),SUMIFS($U$12:$U$16,$S$12:$S$16,B11),IF(AND(F11="Urlaub",$K$9=3,A11<15),SUMIFS($U$4:$U$8,$S$4:$S$8,B11),IF(AND(F11="Urlaub",$K$9=3,A11>14),SUMIFS($U$12:$U$16,$S$12:$S$16,B11),0)))))))*60) -> 0 | O11: =IF(OR($O$3="",$N$3="",N11=""),"",IF($O$9-SUM($N10:N$11)-N11<0,TEXT(-(($O$9-SUM($N10:N$11)-N11)/24),"-[hh]:mm"),TEXT(($O$9-SUM($N10:N$11)-N11)/24,"[hh]:mm"))) ->  | Q11: =IF(AND(D11="",E11=""),"",IF(((HOUR(E11)*60+MINUTE(E11))-(HOUR(D11)*60+MINUTE(D11)))>360,TEXT(((((HOUR(E11)*60+MINUTE(E11))-(HOUR(D11)*60+MINUTE(D11)))-30)/60)/24,"[h]:mm"),TEXT((((HOUR(E11)*60+MINUTE(E11))-(HOUR(D11)*60+MINUTE(D11)))/60)/24,"[h]:mm"))) -> 
A12: =IF(OR(A11="",$D$4=""),"",IF(A11+1<=$C$6,A11+1,"")) ->  | C12: =IF(OR($K$9=0,AND($K$9=2,A12<=14)),1,IF(IF(ISNA(INDEX(X!$W$7:$W$20,MATCH(DATE($D$4,$C$4,A12),X!$AC$7:$AC$20,0))),1,2)=2,2,IF(OR(B12="Sa",B12="So"),2,IF($K$9=1,SUMIFS($R$4:$R$8,$S$4:$S$8,B12),IF(AND($K$9=2,A12<15),SUMIFS($R$4:$R$8,$S$4:$S$8,B12),IF(AND($K$9=2,A12>14),SUMIFS($R$12:$R$16,$S$12:$S$16,B12),IF(AND($K$9=3,A12>14),SUMIFS($R$12:$R$16,$S$12:$S$16,B12),IF(AND($K$9=3,A12<15),SUMIFS($R$4:$R$8,$S$4:$S$8,B12),1)))))))) -> 1 | I12: =IF($K$9>0,IF(SUM($K$11:$K12,$I$6)<0,TEXT(-(SUM($K$11:K12,$I$6)/60)/24,"-[h]:mm"),TEXT((SUM($K$11:K12,$I$6)/60)/24,"[h]:mm")),"") ->  | K12: =IF(F12="",IF(L12<0,L12+IF(G12=" ",0,IF(((HOUR(E12)*60+MINUTE(E12))-(HOUR(D12)*60+MINUTE(D12)))>360,(HOUR(E12)*60+MINUTE(E12))-(HOUR(D12)*60+MINUTE(D12))-30,(HOUR(E12)*60+MINUTE(E12))-(HOUR(D12)*60+MINUTE(D12)))),IF(Q12="","",(Q12*60)*24)),"") ->  | L12: =IF(OR(F12="krank",F12="Urlaub",C12=1,C12=2),0,IF($K$9=1,IF(SUM($U$4:$U$8)=0,$H$9/5,INDEX($S$4:$U$8,MATCH(B12,$S$4:$S$8,0),3)),IF($K$9=2,IF(AND(A12>14,SUM($U$12:$U$16)=0),$I$9/5,INDEX($S$12:$U$16,MATCH(B12,$S$12:$S$16,0),3)),IF($K$9=3,IF(A12<15,IF(SUM($U$4:$U$8)=0,$H$9/5,INDEX($S$4:$U$8,MATCH(B12,$S$4:$S$8,0),3)),IF(SUM($U$12:$U$16)=0,$I$9/5,INDEX($S$12:$U$16,MATCH(B12,$S$12:$S$16,0),3)))))))*-60 -> 0 | M12: 0 | O12: =IF(OR($O$3="",$N$3="",N12=""),"",IF($O$9-SUM($N$11:N11)-N12<0,TEXT(-(($O$9-SUM($N$11:N11)-N12)/24),"-[hh]:mm"),TEXT(($O$9-SUM($N$11:N11)-N12)/24,"[hh]:mm"))) ->  | R12: =IF($K$9=0,1,IF($K$9=1,R4,IF(AND($K$9=3,OR(SUM($U$12:$U$16)=0,$U$1="nein")),3,IF(AND($U$1="",SUM($U$12:$U$16)>0,U12>=1,OR($K$9=3,$K$9=2)),4,1)))) -> 1 | S12: Mo | U12: =IF(AND(I9=0,H9=0),0,IF(OR($K$9=0,INDIRECT("'"&TEXT(DATE(D4,$C$4-1,1),"MMM")&"'!$U$1")="nein",$U$1="nein"),0,IF(T12>0,T12,INDEX(Uebersicht!$BF$3:$BJ$14,$C$4,MATCH(S12,Uebersicht!$BF$2:$BJ$2,0))))) -> 0
A13: =IF(OR(A12="",$D$4=""),"",IF(A12+1<=$C$6,A12+1,"")) ->  | C13: =IF(OR($K$9=0,AND($K$9=2,A13<=14)),1,IF(IF(ISNA(INDEX(X!$W$7:$W$20,MATCH(DATE($D$4,$C$4,A13),X!$AC$7:$AC$20,0))),1,2)=2,2,IF(OR(B13="Sa",B13="So"),2,IF($K$9=1,SUMIFS($R$4:$R$8,$S$4:$S$8,B13),IF(AND($K$9=2,A13<15),SUMIFS($R$4:$R$8,$S$4:$S$8,B13),IF(AND($K$9=2,A13>14),SUMIFS($R$12:$R$16,$S$12:$S$16,B13),IF(AND($K$9=3,A13>14),SUMIFS($R$12:$R$16,$S$12:$S$16,B13),IF(AND($K$9=3,A13<15),SUMIFS($R$4:$R$8,$S$4:$S$8,B13),1)))))))) -> 1 | I13: =IF($K$9>0,IF(SUM($K$11:$K13,$I$6)<0,TEXT(-(SUM($K$11:K13,$I$6)/60)/24,"-[h]:mm"),TEXT((SUM($K$11:K13,$I$6)/60)/24,"[h]:mm")),"") ->  | L13: 0 | M13: 0 | O13: =IF(OR($O$3="",$N$3="",N13=""),"",IF($O$9-SUM($N$11:N12)-N13<0,TEXT(-(($O$9-SUM($N$11:N12)-N13)/24),"-[hh]:mm"),TEXT(($O$9-SUM($N$11:N12)-N13)/24,"[hh]:mm"))) ->  | R13: =IF($K$9=0,1,IF($K$9=1,R5,IF(AND($K$9=3,OR(SUM($U$12:$U$16)=0,$U$1="nein")),3,IF(AND($U$1="",SUM($U$12:$U$16)>0,U13>=1,OR($K$9=3,$K$9=2)),4,1)))) -> 1 | S13: Di | U13: =IF(OR($K$9=0,INDIRECT("'"&TEXT(DATE(D5,$C$4-1,1),"MMM")&"'!$U$1")="nein",$U$1="nein"),0,IF(T13>0,T13,INDEX(Uebersicht!$BF$3:$BJ$14,$C$4,MATCH(S13,Uebersicht!$BF$2:$BJ$2,0)))) -> 0
C14: =IF(OR($K$9=0,AND($K$9=2,A14<=14)),1,IF(IF(ISNA(INDEX(X!$W$7:$W$20,MATCH(DATE($D$4,$C$4,A14),X!$AC$7:$AC$20,0))),1,2)=2,2,IF(OR(B14="Sa",B14="So"),2,IF($K$9=1,SUMIFS($R$4:$R$8,$S$4:$S$8,B14),IF(AND($K$9=2,A14<15),SUMIFS($R$4:$R$8,$S$4:$S$8,B14),IF(AND($K$9=2,A14>14),SUMIFS($R$12:$R$16,$S$12:$S$16,B14),IF(AND($K$9=3,A14>14),SUMIFS($R$12:$R$16,$S$12:$S$16,B14),IF(AND($K$9=3,A14<15),SUMIFS($R$4:$R$8,$S$4:$S$8,B14),1)))))))) -> 1 | I14: =IF($K$9>0,IF(SUM($K$11:$K14,$I$6)<0,TEXT(-(SUM($K$11:K14,$I$6)/60)/24,"-[h]:mm"),TEXT((SUM($K$11:K14,$I$6)/60)/24,"[h]:mm")),"") ->  | L14: 0 | M14: 0 | O14: =IF(OR($O$3="",$N$3="",N14=""),"",IF($O$9-SUM($N$11:N13)-N14<0,TEXT(-(($O$9-SUM($N$11:N13)-N14)/24),"-[hh]:mm"),TEXT(($O$9-SUM($N$11:N13)-N14)/24,"[hh]:mm"))) ->  | R14: =IF($K$9=0,1,IF($K$9=1,R6,IF(AND($K$9=3,OR(SUM($U$12:$U$16)=0,$U$1="nein")),3,IF(AND($U$1="",SUM($U$12:$U$16)>0,U14>=1,OR($K$9=3,$K$9=2)),4,1)))) -> 1 | S14: Mi | U14: =IF(OR($K$9=0,INDIRECT("'"&TEXT(DATE(D6,$C$4-1,1),"MMM")&"'!$U$1")="nein",$U$1="nein"),0,IF(T14>0,T14,INDEX(Uebersicht!$BF$3:$BJ$14,$C$4,MATCH(S14,Uebersicht!$BF$2:$BJ$2,0)))) -> 0
C15: =IF(OR($K$9=0,AND($K$9=2,A15<=14)),1,IF(IF(ISNA(INDEX(X!$W$7:$W$20,MATCH(DATE($D$4,$C$4,A15),X!$AC$7:$AC$20,0))),1,2)=2,2,IF(OR(B15="Sa",B15="So"),2,IF($K$9=1,SUMIFS($R$4:$R$8,$S$4:$S$8,B15),IF(AND($K$9=2,A15<15),SUMIFS($R$4:$R$8,$S$4:$S$8,B15),IF(AND($K$9=2,A15>14),SUMIFS($R$12:$R$16,$S$12:$S$16,B15),IF(AND($K$9=3,A15>14),SUMIFS($R$12:$R$16,$S$12:$S$16,B15),IF(AND($K$9=3,A15<15),SUMIFS($R$4:$R$8,$S$4:$S$8,B15),1)))))))) -> 1 | I15: =IF($K$9>0,IF(SUM($K$11:$K15,$I$6)<0,TEXT(-(SUM($K$11:K15,$I$6)/60)/24,"-[h]:mm"),TEXT((SUM($K$11:K15,$I$6)/60)/24,"[h]:mm")),"") ->  | L15: 0 | M15: 0 | O15: =IF(OR($O$3="",$N$3="",N15=""),"",IF($O$9-SUM($N$11:N14)-N15<0,TEXT(-(($O$9-SUM($N$11:N14)-N15)/24),"-[hh]:mm"),TEXT(($O$9-SUM($N$11:N14)-N15)/24,"[hh]:mm"))) ->  | R15: =IF($K$9=0,1,IF($K$9=1,R7,IF(AND($K$9=3,OR(SUM($U$12:$U$16)=0,$U$1="nein")),3,IF(AND($U$1="",SUM($U$12:$U$16)>0,U15>=1,OR($K$9=3,$K$9=2)),4,1)))) -> 1 | S15: Do | U15: =IF(OR($K$9=0,INDIRECT("'"&TEXT(DATE(D7,$C$4-1,1),"MMM")&"'!$U$1")="nein",$U$1="nein"),0,IF(T15>0,T15,INDEX(Uebersicht!$BF$3:$BJ$14,$C$4,MATCH(S15,Uebersicht!$BF$2:$BJ$2,0)))) -> 0
C16: =IF(OR($K$9=0,AND($K$9=2,A16<=14)),1,IF(IF(ISNA(INDEX(X!$W$7:$W$20,MATCH(DATE($D$4,$C$4,A16),X!$AC$7:$AC$20,0))),1,2)=2,2,IF(OR(B16="Sa",B16="So"),2,IF($K$9=1,SUMIFS($R$4:$R$8,$S$4:$S$8,B16),IF(AND($K$9=2,A16<15),SUMIFS($R$4:$R$8,$S$4:$S$8,B16),IF(AND($K$9=2,A16>14),SUMIFS($R$12:$R$16,$S$12:$S$16,B16),IF(AND($K$9=3,A16>14),SUMIFS($R$12:$R$16,$S$12:$S$16,B16),IF(AND($K$9=3,A16<15),SUMIFS($R$4:$R$8,$S$4:$S$8,B16),1)))))))) -> 1 | I16: =IF($K$9>0,IF(SUM($K$11:$K16,$I$6)<0,TEXT(-(SUM($K$11:K16,$I$6)/60)/24,"-[h]:mm"),TEXT((SUM($K$11:K16,$I$6)/60)/24,"[h]:mm")),"") ->  | L16: 0 | M16: 0 | O16: =IF(OR($O$3="",$N$3="",N16=""),"",IF($O$9-SUM($N$11:N15)-N16<0,TEXT(-(($O$9-SUM($N$11:N15)-N16)/24),"-[hh]:mm"),TEXT(($O$9-SUM($N$11:N15)-N16)/24,"[hh]:mm"))) ->  | R16: =IF($K$9=0,1,IF($K$9=1,R8,IF(AND($K$9=3,OR(SUM($U$12:$U$16)=0,$U$1="nein")),3,IF(AND($U$1="",SUM($U$12:$U$16)>0,U16>=1,OR($K$9=3,$K$9=2)),4,1)))) -> 1 | S16: Fr | U16: =IF(OR($K$9=0,INDIRECT("'"&TEXT(DATE(D8,$C$4-1,1),"MMM")&"'!$U$1")="nein",$U$1="nein"),0,IF(T16>0,T16,INDEX(Uebersicht!$BF$3:$BJ$14,$C$4,MATCH(S16,Uebersicht!$BF$2:$BJ$2,0)))) -> 0
C17: =IF(OR($K$9=0,AND($K$9=2,A17<=14)),1,IF(IF(ISNA(INDEX(X!$W$7:$W$20,MATCH(DATE($D$4,$C$4,A17),X!$AC$7:$AC$20,0))),1,2)=2,2,IF(OR(B17="Sa",B17="So"),2,IF($K$9=1,SUMIFS($R$4:$R$8,$S$4:$S$8,B17),IF(AND($K$9=2,A17<15),SUMIFS($R$4:$R$8,$S$4:$S$8,B17),IF(AND($K$9=2,A17>14),SUMIFS($R$12:$R$16,$S$12:$S$16,B17),IF(AND($K$9=3,A17>14),SUMIFS($R$12:$R$16,$S$12:$S$16,B17),IF(AND($K$9=3,A17<15),SUMIFS($R$4:$R$8,$S$4:$S$8,B17),1)))))))) -> 1 | I17: =IF($K$9>0,IF(SUM($K$11:$K17,$I$6)<0,TEXT(-(SUM($K$11:K17,$I$6)/60)/24,"-[h]:mm"),TEXT((SUM($K$11:K17,$I$6)/60)/24,"[h]:mm")),"") ->  | L17: 0 | M17: 0 | O17: =IF(OR($O$3="",$N$3="",N17=""),"",IF($O$9-SUM($N$11:N16)-N17<0,TEXT(-(($O$9-SUM($N$11:N16)-N17)/24),"-[hh]:mm"),TEXT(($O$9-SUM($N$11:N16)-N17)/24,"[hh]:mm"))) ->  | S17: =IF(I9=0,"",IF(SUM(U12:U16)>I9,"zu viel!",IF(SUM(U12:U16)<I9,"zu wenig!",""))) ->  | U17: =IF(OR(U9="nein",SUM(U12:U16)=0),"ja",IF(OR(SUM(Uebersicht!C43:C47)>0,SUM(T12:T16)>0,SUM(U12:U16)>0),"nein","ja")) -> ja
C18: =IF(OR($K$9=0,AND($K$9=2,A18<=14)),1,IF(IF(ISNA(INDEX(X!$W$7:$W$20,MATCH(DATE($D$4,$C$4,A18),X!$AC$7:$AC$20,0))),1,2)=2,2,IF(OR(B18="Sa",B18="So"),2,IF($K$9=1,SUMIFS($R$4:$R$8,$S$4:$S$8,B18),IF(AND($K$9=2,A18<15),SUMIFS($R$4:$R$8,$S$4:$S$8,B18),IF(AND($K$9=2,A18>14),SUMIFS($R$12:$R$16,$S$12:$S$16,B18),IF(AND($K$9=3,A18>14),SUMIFS($R$12:$R$16,$S$12:$S$16,B18),IF(AND($K$9=3,A18<15),SUMIFS($R$4:$R$8,$S$4:$S$8,B18),1)))))))) -> 1 | I18: =IF($K$9>0,IF(SUM($K$11:$K18,$I$6)<0,TEXT(-(SUM($K$11:K18,$I$6)/60)/24,"-[h]:mm"),TEXT((SUM($K$11:K18,$I$6)/60)/24,"[h]:mm")),"") ->  | L18: 0 | M18: 0 | O18: =IF(OR($O$3="",$N$3="",N18=""),"",IF($O$9-SUM($N$11:N17)-N18<0,TEXT(-(($O$9-SUM($N$11:N17)-N18)/24),"-[hh]:mm"),TEXT(($O$9-SUM($N$11:N17)-N18)/24,"[hh]:mm"))) -> 
C19: =IF(OR($K$9=0,AND($K$9=2,A19<=14)),1,IF(IF(ISNA(INDEX(X!$W$7:$W$20,MATCH(DATE($D$4,$C$4,A19),X!$AC$7:$AC$20,0))),1,2)=2,2,IF(OR(B19="Sa",B19="So"),2,IF($K$9=1,SUMIFS($R$4:$R$8,$S$4:$S$8,B19),IF(AND($K$9=2,A19<15),SUMIFS($R$4:$R$8,$S$4:$S$8,B19),IF(AND($K$9=2,A19>14),SUMIFS($R$12:$R$16,$S$12:$S$16,B19),IF(AND($K$9=3,A19>14),SUMIFS($R$12:$R$16,$S$12:$S$16,B19),IF(AND($K$9=3,A19<15),SUMIFS($R$4:$R$8,$S$4:$S$8,B19),1)))))))) -> 1 | I19: =IF($K$9>0,IF(SUM($K$11:$K19,$I$6)<0,TEXT(-(SUM($K$11:K19,$I$6)/60)/24,"-[h]:mm"),TEXT((SUM($K$11:K19,$I$6)/60)/24,"[h]:mm")),"") ->  | L19: 0 | M19: 0 | O19: =IF(OR($O$3="",$N$3="",N19=""),"",IF($O$9-SUM($N$11:N18)-N19<0,TEXT(-(($O$9-SUM($N$11:N18)-N19)/24),"-[hh]:mm"),TEXT(($O$9-SUM($N$11:N18)-N19)/24,"[hh]:mm"))) -> 
C20: =IF(OR($K$9=0,AND($K$9=2,A20<=14)),1,IF(IF(ISNA(INDEX(X!$W$7:$W$20,MATCH(DATE($D$4,$C$4,A20),X!$AC$7:$AC$20,0))),1,2)=2,2,IF(OR(B20="Sa",B20="So"),2,IF($K$9=1,SUMIFS($R$4:$R$8,$S$4:$S$8,B20),IF(AND($K$9=2,A20<15),SUMIFS($R$4:$R$8,$S$4:$S$8,B20),IF(AND($K$9=2,A20>14),SUMIFS($R$12:$R$16,$S$12:$S$16,B20),IF(AND($K$9=3,A20>14),SUMIFS($R$12:$R$16,$S$12:$S$16,B20),IF(AND($K$9=3,A20<15),SUMIFS($R$4:$R$8,$S$4:$S$8,B20),1)))))))) -> 1 | I20: =IF($K$9>0,IF(SUM($K$11:$K20,$I$6)<0,TEXT(-(SUM($K$11:K20,$I$6)/60)/24,"-[h]:mm"),TEXT((SUM($K$11:K20,$I$6)/60)/24,"[h]:mm")),"") ->  | L20: 0 | M20: 0 | O20: =IF(OR($O$3="",$N$3="",N20=""),"",IF($O$9-SUM($N$11:N19)-N20<0,TEXT(-(($O$9-SUM($N$11:N19)-N20)/24),"-[hh]:mm"),TEXT(($O$9-SUM($N$11:N19)-N20)/24,"[hh]:mm"))) -> 
C21: =IF(OR($K$9=0,AND($K$9=2,A21<=14)),1,IF(IF(ISNA(INDEX(X!$W$7:$W$20,MATCH(DATE($D$4,$C$4,A21),X!$AC$7:$AC$20,0))),1,2)=2,2,IF(OR(B21="Sa",B21="So"),2,IF($K$9=1,SUMIFS($R$4:$R$8,$S$4:$S$8,B21),IF(AND($K$9=2,A21<15),SUMIFS($R$4:$R$8,$S$4:$S$8,B21),IF(AND($K$9=2,A21>14),SUMIFS($R$12:$R$16,$S$12:$S$16,B21),IF(AND($K$9=3,A21>14),SUMIFS($R$12:$R$16,$S$12:$S$16,B21),IF(AND($K$9=3,A21<15),SUMIFS($R$4:$R$8,$S$4:$S$8,B21),1)))))))) -> 1 | I21: =IF($K$9>0,IF(SUM($K$11:$K21,$I$6)<0,TEXT(-(SUM($K$11:K21,$I$6)/60)/24,"-[h]:mm"),TEXT((SUM($K$11:K21,$I$6)/60)/24,"[h]:mm")),"") ->  | L21: 0 | M21: 0 | O21: =IF(OR($O$3="",$N$3="",N21=""),"",IF($O$9-SUM($N$11:N20)-N21<0,TEXT(-(($O$9-SUM($N$11:N20)-N21)/24),"-[hh]:mm"),TEXT(($O$9-SUM($N$11:N20)-N21)/24,"[hh]:mm"))) -> 
C22: =IF(OR($K$9=0,AND($K$9=2,A22<=14)),1,IF(IF(ISNA(INDEX(X!$W$7:$W$20,MATCH(DATE($D$4,$C$4,A22),X!$AC$7:$AC$20,0))),1,2)=2,2,IF(OR(B22="Sa",B22="So"),2,IF($K$9=1,SUMIFS($R$4:$R$8,$S$4:$S$8,B22),IF(AND($K$9=2,A22<15),SUMIFS($R$4:$R$8,$S$4:$S$8,B22),IF(AND($K$9=2,A22>14),SUMIFS($R$12:$R$16,$S$12:$S$16,B22),IF(AND($K$9=3,A22>14),SUMIFS($R$12:$R$16,$S$12:$S$16,B22),IF(AND($K$9=3,A22<15),SUMIFS($R$4:$R$8,$S$4:$S$8,B22),1)))))))) -> 1 | I22: =IF($K$9>0,IF(SUM($K$11:$K22,$I$6)<0,TEXT(-(SUM($K$11:K22,$I$6)/60)/24,"-[h]:mm"),TEXT((SUM($K$11:K22,$I$6)/60)/24,"[h]:mm")),"") ->  | L22: 0 | M22: 0 | O22: =IF(OR($O$3="",$N$3="",N22=""),"",IF($O$9-SUM($N$11:N21)-N22<0,TEXT(-(($O$9-SUM($N$11:N21)-N22)/24),"-[hh]:mm"),TEXT(($O$9-SUM($N$11:N21)-N22)/24,"[hh]:mm"))) -> 
C23: =IF(OR($K$9=0,AND($K$9=2,A23<=14)),1,IF(IF(ISNA(INDEX(X!$W$7:$W$20,MATCH(DATE($D$4,$C$4,A23),X!$AC$7:$AC$20,0))),1,2)=2,2,IF(OR(B23="Sa",B23="So"),2,IF($K$9=1,SUMIFS($R$4:$R$8,$S$4:$S$8,B23),IF(AND($K$9=2,A23<15),SUMIFS($R$4:$R$8,$S$4:$S$8,B23),IF(AND($K$9=2,A23>14),SUMIFS($R$12:$R$16,$S$12:$S$16,B23),IF(AND($K$9=3,A23>14),SUMIFS($R$12:$R$16,$S$12:$S$16,B23),IF(AND($K$9=3,A23<15),SUMIFS($R$4:$R$8,$S$4:$S$8,B23),1)))))))) -> 1 | I23: =IF($K$9>0,IF(SUM($K$11:$K23,$I$6)<0,TEXT(-(SUM($K$11:K23,$I$6)/60)/24,"-[h]:mm"),TEXT((SUM($K$11:K23,$I$6)/60)/24,"[h]:mm")),"") ->  | L23: 0 | M23: 0 | O23: =IF(OR($O$3="",$N$3="",N23=""),"",IF($O$9-SUM($N$11:N22)-N23<0,TEXT(-(($O$9-SUM($N$11:N22)-N23)/24),"-[hh]:mm"),TEXT(($O$9-SUM($N$11:N22)-N23)/24,"[hh]:mm"))) -> 
C24: =IF(OR($K$9=0,AND($K$9=2,A24<=14)),1,IF(IF(ISNA(INDEX(X!$W$7:$W$20,MATCH(DATE($D$4,$C$4,A24),X!$AC$7:$AC$20,0))),1,2)=2,2,IF(OR(B24="Sa",B24="So"),2,IF($K$9=1,SUMIFS($R$4:$R$8,$S$4:$S$8,B24),IF(AND($K$9=2,A24<15),SUMIFS($R$4:$R$8,$S$4:$S$8,B24),IF(AND($K$9=2,A24>14),SUMIFS($R$12:$R$16,$S$12:$S$16,B24),IF(AND($K$9=3,A24>14),SUMIFS($R$12:$R$16,$S$12:$S$16,B24),IF(AND($K$9=3,A24<15),SUMIFS($R$4:$R$8,$S$4:$S$8,B24),1)))))))) -> 1 | I24: =IF($K$9>0,IF(SUM($K$11:$K24,$I$6)<0,TEXT(-(SUM($K$11:K24,$I$6)/60)/24,"-[h]:mm"),TEXT((SUM($K$11:K24,$I$6)/60)/24,"[h]:mm")),"") ->  | L24: 0 | M24: 0 | O24: =IF(OR($O$3="",$N$3="",N24=""),"",IF($O$9-SUM($N$11:N23)-N24<0,TEXT(-(($O$9-SUM($N$11:N23)-N24)/24),"-[hh]:mm"),TEXT(($O$9-SUM($N$11:N23)-N24)/24,"[hh]:mm"))) -> 
C25: =IF(OR($K$9=0,AND($K$9=2,A25<=14)),1,IF(IF(ISNA(INDEX(X!$W$7:$W$20,MATCH(DATE($D$4,$C$4,A25),X!$AC$7:$AC$20,0))),1,2)=2,2,IF(OR(B25="Sa",B25="So"),2,IF($K$9=1,SUMIFS($R$4:$R$8,$S$4:$S$8,B25),IF(AND($K$9=2,A25<15),SUMIFS($R$4:$R$8,$S$4:$S$8,B25),IF(AND($K$9=2,A25>14),SUMIFS($R$12:$R$16,$S$12:$S$16,B25),IF(AND($K$9=3,A25>14),SUMIFS($R$12:$R$16,$S$12:$S$16,B25),IF(AND($K$9=3,A25<15),SUMIFS($R$4:$R$8,$S$4:$S$8,B25),1)))))))) -> 1 | I25: =IF($K$9>0,IF(SUM($K$11:$K25,$I$6)<0,TEXT(-(SUM($K$11:K25,$I$6)/60)/24,"-[h]:mm"),TEXT((SUM($K$11:K25,$I$6)/60)/24,"[h]:mm")),"") ->  | L25: 0 | M25: 0 | O25: =IF(OR($O$3="",$N$3="",N25=""),"",IF($O$9-SUM($N$11:N24)-N25<0,TEXT(-(($O$9-SUM($N$11:N24)-N25)/24),"-[hh]:mm"),TEXT(($O$9-SUM($N$11:N24)-N25)/24,"[hh]:mm"))) -> 
C26: =IF(OR($K$9=0,AND($K$9=2,A26<=14)),1,IF(IF(ISNA(INDEX(X!$W$7:$W$20,MATCH(DATE($D$4,$C$4,A26),X!$AC$7:$AC$20,0))),1,2)=2,2,IF(OR(B26="Sa",B26="So"),2,IF($K$9=1,SUMIFS($R$4:$R$8,$S$4:$S$8,B26),IF(AND($K$9=2,A26<15),SUMIFS($R$4:$R$8,$S$4:$S$8,B26),IF(AND($K$9=2,A26>14),SUMIFS($R$12:$R$16,$S$12:$S$16,B26),IF(AND($K$9=3,A26>14),SUMIFS($R$12:$R$16,$S$12:$S$16,B26),IF(AND($K$9=3,A26<15),SUMIFS($R$4:$R$8,$S$4:$S$8,B26),1)))))))) -> 1 | I26: =IF($K$9>0,IF(SUM($K$11:$K26,$I$6)<0,TEXT(-(SUM($K$11:K26,$I$6)/60)/24,"-[h]:mm"),TEXT((SUM($K$11:K26,$I$6)/60)/24,"[h]:mm")),"") ->  | L26: 0 | M26: 0 | O26: =IF(OR($O$3="",$N$3="",N26=""),"",IF($O$9-SUM($N$11:N25)-N26<0,TEXT(-(($O$9-SUM($N$11:N25)-N26)/24),"-[hh]:mm"),TEXT(($O$9-SUM($N$11:N25)-N26)/24,"[hh]:mm"))) -> 
C27: =IF(OR($K$9=0,AND($K$9=2,A27<=14)),1,IF(IF(ISNA(INDEX(X!$W$7:$W$20,MATCH(DATE($D$4,$C$4,A27),X!$AC$7:$AC$20,0))),1,2)=2,2,IF(OR(B27="Sa",B27="So"),2,IF($K$9=1,SUMIFS($R$4:$R$8,$S$4:$S$8,B27),IF(AND($K$9=2,A27<15),SUMIFS($R$4:$R$8,$S$4:$S$8,B27),IF(AND($K$9=2,A27>14),SUMIFS($R$12:$R$16,$S$12:$S$16,B27),IF(AND($K$9=3,A27>14),SUMIFS($R$12:$R$16,$S$12:$S$16,B27),IF(AND($K$9=3,A27<15),SUMIFS($R$4:$R$8,$S$4:$S$8,B27),1)))))))) -> 1 | I27: =IF($K$9>0,IF(SUM($K$11:$K27,$I$6)<0,TEXT(-(SUM($K$11:K27,$I$6)/60)/24,"-[h]:mm"),TEXT((SUM($K$11:K27,$I$6)/60)/24,"[h]:mm")),"") ->  | L27: 0 | M27: 0 | O27: =IF(OR($O$3="",$N$3="",N27=""),"",IF($O$9-SUM($N$11:N26)-N27<0,TEXT(-(($O$9-SUM($N$11:N26)-N27)/24),"-[hh]:mm"),TEXT(($O$9-SUM($N$11:N26)-N27)/24,"[hh]:mm"))) -> 
C28: =IF(OR($K$9=0,AND($K$9=2,A28<=14)),1,IF(IF(ISNA(INDEX(X!$W$7:$W$20,MATCH(DATE($D$4,$C$4,A28),X!$AC$7:$AC$20,0))),1,2)=2,2,IF(OR(B28="Sa",B28="So"),2,IF($K$9=1,SUMIFS($R$4:$R$8,$S$4:$S$8,B28),IF(AND($K$9=2,A28<15),SUMIFS($R$4:$R$8,$S$4:$S$8,B28),IF(AND($K$9=2,A28>14),SUMIFS($R$12:$R$16,$S$12:$S$16,B28),IF(AND($K$9=3,A28>14),SUMIFS($R$12:$R$16,$S$12:$S$16,B28),IF(AND($K$9=3,A28<15),SUMIFS($R$4:$R$8,$S$4:$S$8,B28),1)))))))) -> 1 | I28: =IF($K$9>0,IF(SUM($K$11:$K28,$I$6)<0,TEXT(-(SUM($K$11:K28,$I$6)/60)/24,"-[h]:mm"),TEXT((SUM($K$11:K28,$I$6)/60)/24,"[h]:mm")),"") ->  | L28: 0 | M28: 0 | O28: =IF(OR($O$3="",$N$3="",N28=""),"",IF($O$9-SUM($N$11:N27)-N28<0,TEXT(-(($O$9-SUM($N$11:N27)-N28)/24),"-[hh]:mm"),TEXT(($O$9-SUM($N$11:N27)-N28)/24,"[hh]:mm"))) -> 
C29: =IF(OR($K$9=0,AND($K$9=2,A29<=14)),1,IF(IF(ISNA(INDEX(X!$W$7:$W$20,MATCH(DATE($D$4,$C$4,A29),X!$AC$7:$AC$20,0))),1,2)=2,2,IF(OR(B29="Sa",B29="So"),2,IF($K$9=1,SUMIFS($R$4:$R$8,$S$4:$S$8,B29),IF(AND($K$9=2,A29<15),SUMIFS($R$4:$R$8,$S$4:$S$8,B29),IF(AND($K$9=2,A29>14),SUMIFS($R$12:$R$16,$S$12:$S$16,B29),IF(AND($K$9=3,A29>14),SUMIFS($R$12:$R$16,$S$12:$S$16,B29),IF(AND($K$9=3,A29<15),SUMIFS($R$4:$R$8,$S$4:$S$8,B29),1)))))))) -> 1 | I29: =IF($K$9>0,IF(SUM($K$11:$K29,$I$6)<0,TEXT(-(SUM($K$11:K29,$I$6)/60)/24,"-[h]:mm"),TEXT((SUM($K$11:K29,$I$6)/60)/24,"[h]:mm")),"") ->  | L29: 0 | M29: 0 | O29: =IF(OR($O$3="",$N$3="",N29=""),"",IF($O$9-SUM($N$11:N28)-N29<0,TEXT(-(($O$9-SUM($N$11:N28)-N29)/24),"-[hh]:mm"),TEXT(($O$9-SUM($N$11:N28)-N29)/24,"[hh]:mm"))) -> 
C30: =IF(OR($K$9=0,AND($K$9=2,A30<=14)),1,IF(IF(ISNA(INDEX(X!$W$7:$W$20,MATCH(DATE($D$4,$C$4,A30),X!$AC$7:$AC$20,0))),1,2)=2,2,IF(OR(B30="Sa",B30="So"),2,IF($K$9=1,SUMIFS($R$4:$R$8,$S$4:$S$8,B30),IF(AND($K$9=2,A30<15),SUMIFS($R$4:$R$8,$S$4:$S$8,B30),IF(AND($K$9=2,A30>14),SUMIFS($R$12:$R$16,$S$12:$S$16,B30),IF(AND($K$9=3,A30>14),SUMIFS($R$12:$R$16,$S$12:$S$16,B30),IF(AND($K$9=3,A30<15),SUMIFS($R$4:$R$8,$S$4:$S$8,B30),1)))))))) -> 1 | I30: =IF($K$9>0,IF(SUM($K$11:$K30,$I$6)<0,TEXT(-(SUM($K$11:K30,$I$6)/60)/24,"-[h]:mm"),TEXT((SUM($K$11:K30,$I$6)/60)/24,"[h]:mm")),"") ->  | L30: 0 | M30: 0 | O30: =IF(OR($O$3="",$N$3="",N30=""),"",IF($O$9-SUM($N$11:N29)-N30<0,TEXT(-(($O$9-SUM($N$11:N29)-N30)/24),"-[hh]:mm"),TEXT(($O$9-SUM($N$11:N29)-N30)/24,"[hh]:mm"))) -> 
C31: =IF(OR($K$9=0,AND($K$9=2,A31<=14)),1,IF(IF(ISNA(INDEX(X!$W$7:$W$20,MATCH(DATE($D$4,$C$4,A31),X!$AC$7:$AC$20,0))),1,2)=2,2,IF(OR(B31="Sa",B31="So"),2,IF($K$9=1,SUMIFS($R$4:$R$8,$S$4:$S$8,B31),IF(AND($K$9=2,A31<15),SUMIFS($R$4:$R$8,$S$4:$S$8,B31),IF(AND($K$9=2,A31>14),SUMIFS($R$12:$R$16,$S$12:$S$16,B31),IF(AND($K$9=3,A31>14),SUMIFS($R$12:$R$16,$S$12:$S$16,B31),IF(AND($K$9=3,A31<15),SUMIFS($R$4:$R$8,$S$4:$S$8,B31),1)))))))) -> 1 | I31: =IF($K$9>0,IF(SUM($K$11:$K31,$I$6)<0,TEXT(-(SUM($K$11:K31,$I$6)/60)/24,"-[h]:mm"),TEXT((SUM($K$11:K31,$I$6)/60)/24,"[h]:mm")),"") ->  | L31: 0 | M31: 0 | O31: =IF(OR($O$3="",$N$3="",N31=""),"",IF($O$9-SUM($N$11:N30)-N31<0,TEXT(-(($O$9-SUM($N$11:N30)-N31)/24),"-[hh]:mm"),TEXT(($O$9-SUM($N$11:N30)-N31)/24,"[hh]:mm"))) -> 
C32: =IF(OR($K$9=0,AND($K$9=2,A32<=14)),1,IF(IF(ISNA(INDEX(X!$W$7:$W$20,MATCH(DATE($D$4,$C$4,A32),X!$AC$7:$AC$20,0))),1,2)=2,2,IF(OR(B32="Sa",B32="So"),2,IF($K$9=1,SUMIFS($R$4:$R$8,$S$4:$S$8,B32),IF(AND($K$9=2,A32<15),SUMIFS($R$4:$R$8,$S$4:$S$8,B32),IF(AND($K$9=2,A32>14),SUMIFS($R$12:$R$16,$S$12:$S$16,B32),IF(AND($K$9=3,A32>14),SUMIFS($R$12:$R$16,$S$12:$S$16,B32),IF(AND($K$9=3,A32<15),SUMIFS($R$4:$R$8,$S$4:$S$8,B32),1)))))))) -> 1 | I32: =IF($K$9>0,IF(SUM($K$11:$K32,$I$6)<0,TEXT(-(SUM($K$11:K32,$I$6)/60)/24,"-[h]:mm"),TEXT((SUM($K$11:K32,$I$6)/60)/24,"[h]:mm")),"") ->  | L32: 0 | M32: 0 | O32: =IF(OR($O$3="",$N$3="",N32=""),"",IF($O$9-SUM($N$11:N31)-N32<0,TEXT(-(($O$9-SUM($N$11:N31)-N32)/24),"-[hh]:mm"),TEXT(($O$9-SUM($N$11:N31)-N32)/24,"[hh]:mm"))) -> 
C33: =IF(OR($K$9=0,AND($K$9=2,A33<=14)),1,IF(IF(ISNA(INDEX(X!$W$7:$W$20,MATCH(DATE($D$4,$C$4,A33),X!$AC$7:$AC$20,0))),1,2)=2,2,IF(OR(B33="Sa",B33="So"),2,IF($K$9=1,SUMIFS($R$4:$R$8,$S$4:$S$8,B33),IF(AND($K$9=2,A33<15),SUMIFS($R$4:$R$8,$S$4:$S$8,B33),IF(AND($K$9=2,A33>14),SUMIFS($R$12:$R$16,$S$12:$S$16,B33),IF(AND($K$9=3,A33>14),SUMIFS($R$12:$R$16,$S$12:$S$16,B33),IF(AND($K$9=3,A33<15),SUMIFS($R$4:$R$8,$S$4:$S$8,B33),1)))))))) -> 1 | I33: =IF($K$9>0,IF(SUM($K$11:$K33,$I$6)<0,TEXT(-(SUM($K$11:K33,$I$6)/60)/24,"-[h]:mm"),TEXT((SUM($K$11:K33,$I$6)/60)/24,"[h]:mm")),"") ->  | L33: 0 | M33: 0 | O33: =IF(OR($O$3="",$N$3="",N33=""),"",IF($O$9-SUM($N$11:N32)-N33<0,TEXT(-(($O$9-SUM($N$11:N32)-N33)/24),"-[hh]:mm"),TEXT(($O$9-SUM($N$11:N32)-N33)/24,"[hh]:mm"))) -> 
C34: =IF(OR($K$9=0,AND($K$9=2,A34<=14)),1,IF(IF(ISNA(INDEX(X!$W$7:$W$20,MATCH(DATE($D$4,$C$4,A34),X!$AC$7:$AC$20,0))),1,2)=2,2,IF(OR(B34="Sa",B34="So"),2,IF($K$9=1,SUMIFS($R$4:$R$8,$S$4:$S$8,B34),IF(AND($K$9=2,A34<15),SUMIFS($R$4:$R$8,$S$4:$S$8,B34),IF(AND($K$9=2,A34>14),SUMIFS($R$12:$R$16,$S$12:$S$16,B34),IF(AND($K$9=3,A34>14),SUMIFS($R$12:$R$16,$S$12:$S$16,B34),IF(AND($K$9=3,A34<15),SUMIFS($R$4:$R$8,$S$4:$S$8,B34),1)))))))) -> 1 | I34: =IF($K$9>0,IF(SUM($K$11:$K34,$I$6)<0,TEXT(-(SUM($K$11:K34,$I$6)/60)/24,"-[h]:mm"),TEXT((SUM($K$11:K34,$I$6)/60)/24,"[h]:mm")),"") ->  | L34: 0 | M34: 0 | O34: =IF(OR($O$3="",$N$3="",N34=""),"",IF($O$9-SUM($N$11:N33)-N34<0,TEXT(-(($O$9-SUM($N$11:N33)-N34)/24),"-[hh]:mm"),TEXT(($O$9-SUM($N$11:N33)-N34)/24,"[hh]:mm"))) -> 
C35: =IF(OR($K$9=0,AND($K$9=2,A35<=14)),1,IF(IF(ISNA(INDEX(X!$W$7:$W$20,MATCH(DATE($D$4,$C$4,A35),X!$AC$7:$AC$20,0))),1,2)=2,2,IF(OR(B35="Sa",B35="So"),2,IF($K$9=1,SUMIFS($R$4:$R$8,$S$4:$S$8,B35),IF(AND($K$9=2,A35<15),SUMIFS($R$4:$R$8,$S$4:$S$8,B35),IF(AND($K$9=2,A35>14),SUMIFS($R$12:$R$16,$S$12:$S$16,B35),IF(AND($K$9=3,A35>14),SUMIFS($R$12:$R$16,$S$12:$S$16,B35),IF(AND($K$9=3,A35<15),SUMIFS($R$4:$R$8,$S$4:$S$8,B35),1)))))))) -> 1 | I35: =IF($K$9>0,IF(SUM($K$11:$K35,$I$6)<0,TEXT(-(SUM($K$11:K35,$I$6)/60)/24,"-[h]:mm"),TEXT((SUM($K$11:K35,$I$6)/60)/24,"[h]:mm")),"") ->  | L35: 0 | M35: 0 | O35: =IF(OR($O$3="",$N$3="",N35=""),"",IF($O$9-SUM($N$11:N34)-N35<0,TEXT(-(($O$9-SUM($N$11:N34)-N35)/24),"-[hh]:mm"),TEXT(($O$9-SUM($N$11:N34)-N35)/24,"[hh]:mm"))) -> 
C36: =IF(OR($K$9=0,AND($K$9=2,A36<=14)),1,IF(IF(ISNA(INDEX(X!$W$7:$W$20,MATCH(DATE($D$4,$C$4,A36),X!$AC$7:$AC$20,0))),1,2)=2,2,IF(OR(B36="Sa",B36="So"),2,IF($K$9=1,SUMIFS($R$4:$R$8,$S$4:$S$8,B36),IF(AND($K$9=2,A36<15),SUMIFS($R$4:$R$8,$S$4:$S$8,B36),IF(AND($K$9=2,A36>14),SUMIFS($R$12:$R$16,$S$12:$S$16,B36),IF(AND($K$9=3,A36>14),SUMIFS($R$12:$R$16,$S$12:$S$16,B36),IF(AND($K$9=3,A36<15),SUMIFS($R$4:$R$8,$S$4:$S$8,B36),1)))))))) -> 1 | I36: =IF($K$9>0,IF(SUM($K$11:$K36,$I$6)<0,TEXT(-(SUM($K$11:K36,$I$6)/60)/24,"-[h]:mm"),TEXT((SUM($K$11:K36,$I$6)/60)/24,"[h]:mm")),"") ->  | L36: 0 | M36: 0 | O36: =IF(OR($O$3="",$N$3="",N36=""),"",IF($O$9-SUM($N$11:N35)-N36<0,TEXT(-(($O$9-SUM($N$11:N35)-N36)/24),"-[hh]:mm"),TEXT(($O$9-SUM($N$11:N35)-N36)/24,"[hh]:mm"))) -> 
C37: =IF(OR($K$9=0,AND($K$9=2,A37<=14)),1,IF(IF(ISNA(INDEX(X!$W$7:$W$20,MATCH(DATE($D$4,$C$4,A37),X!$AC$7:$AC$20,0))),1,2)=2,2,IF(OR(B37="Sa",B37="So"),2,IF($K$9=1,SUMIFS($R$4:$R$8,$S$4:$S$8,B37),IF(AND($K$9=2,A37<15),SUMIFS($R$4:$R$8,$S$4:$S$8,B37),IF(AND($K$9=2,A37>14),SUMIFS($R$12:$R$16,$S$12:$S$16,B37),IF(AND($K$9=3,A37>14),SUMIFS($R$12:$R$16,$S$12:$S$16,B37),IF(AND($K$9=3,A37<15),SUMIFS($R$4:$R$8,$S$4:$S$8,B37),1)))))))) -> 1 | I37: =IF($K$9>0,IF(SUM($K$11:$K37,$I$6)<0,TEXT(-(SUM($K$11:K37,$I$6)/60)/24,"-[h]:mm"),TEXT((SUM($K$11:K37,$I$6)/60)/24,"[h]:mm")),"") ->  | L37: 0 | M37: 0 | O37: =IF(OR($O$3="",$N$3="",N37=""),"",IF($O$9-SUM($N$11:N36)-N37<0,TEXT(-(($O$9-SUM($N$11:N36)-N37)/24),"-[hh]:mm"),TEXT(($O$9-SUM($N$11:N36)-N37)/24,"[hh]:mm"))) -> 
C38: =IF(OR($K$9=0,AND($K$9=2,A38<=14)),1,IF(IF(ISNA(INDEX(X!$W$7:$W$20,MATCH(DATE($D$4,$C$4,A38),X!$AC$7:$AC$20,0))),1,2)=2,2,IF(OR(B38="Sa",B38="So"),2,IF($K$9=1,SUMIFS($R$4:$R$8,$S$4:$S$8,B38),IF(AND($K$9=2,A38<15),SUMIFS($R$4:$R$8,$S$4:$S$8,B38),IF(AND($K$9=2,A38>14),SUMIFS($R$12:$R$16,$S$12:$S$16,B38),IF(AND($K$9=3,A38>14),SUMIFS($R$12:$R$16,$S$12:$S$16,B38),IF(AND($K$9=3,A38<15),SUMIFS($R$4:$R$8,$S$4:$S$8,B38),1)))))))) -> 1 | I38: =IF($K$9>0,IF(SUM($K$11:$K38,$I$6)<0,TEXT(-(SUM($K$11:K38,$I$6)/60)/24,"-[h]:mm"),TEXT((SUM($K$11:K38,$I$6)/60)/24,"[h]:mm")),"") ->  | L38: 0 | M38: 0 | O38: =IF(OR($O$3="",$N$3="",N38=""),"",IF($O$9-SUM($N$11:N37)-N38<0,TEXT(-(($O$9-SUM($N$11:N37)-N38)/24),"-[hh]:mm"),TEXT(($O$9-SUM($N$11:N37)-N38)/24,"[hh]:mm"))) -> 
B39: =IF(OR(A39="",$D$4=""),"",TEXT(DATE($D$4,$C$4,A39),"ttt")) ->  | C39: =IF(OR($K$9=0,AND($K$9=2,A39<=14)),1,IF(IF(ISNA(INDEX(X!$W$7:$W$20,MATCH(DATE($D$4,$C$4,A39),X!$AC$7:$AC$20,0))),1,2)=2,2,IF(OR(B39="Sa",B39="So"),2,IF($K$9=1,SUMIFS($R$4:$R$8,$S$4:$S$8,B39),IF(AND($K$9=2,A39<15),SUMIFS($R$4:$R$8,$S$4:$S$8,B39),IF(AND($K$9=2,A39>14),SUMIFS($R$12:$R$16,$S$12:$S$16,B39),IF(AND($K$9=3,A39>14),SUMIFS($R$12:$R$16,$S$12:$S$16,B39),IF(AND($K$9=3,A39<15),SUMIFS($R$4:$R$8,$S$4:$S$8,B39),1)))))))) -> 1 | I39: =IF($K$9>0,IF(SUM($K$11:$K39,$I$6)<0,TEXT(-(SUM($K$11:K39,$I$6)/60)/24,"-[h]:mm"),TEXT((SUM($K$11:K39,$I$6)/60)/24,"[h]:mm")),"") ->  | L39: 0 | M39: 0 | O39: =IF(OR($O$3="",$N$3="",N39=""),"",IF($O$9-SUM($N$11:N38)-N39<0,TEXT(-(($O$9-SUM($N$11:N38)-N39)/24),"-[hh]:mm"),TEXT(($O$9-SUM($N$11:N38)-N39)/24,"[hh]:mm"))) -> 
B40: =IF(OR(A40="",$D$4=""),"",TEXT(DATE($D$4,$C$4,A40),"ttt")) ->  | C40: =IF(OR($K$9=0,AND($K$9=2,A40<=14)),1,IF(IF(ISNA(INDEX(X!$W$7:$W$20,MATCH(DATE($D$4,$C$4,A40),X!$AC$7:$AC$20,0))),1,2)=2,2,IF(OR(B40="Sa",B40="So"),2,IF($K$9=1,SUMIFS($R$4:$R$8,$S$4:$S$8,B40),IF(AND($K$9=2,A40<15),SUMIFS($R$4:$R$8,$S$4:$S$8,B40),IF(AND($K$9=2,A40>14),SUMIFS($R$12:$R$16,$S$12:$S$16,B40),IF(AND($K$9=3,A40>14),SUMIFS($R$12:$R$16,$S$12:$S$16,B40),IF(AND($K$9=3,A40<15),SUMIFS($R$4:$R$8,$S$4:$S$8,B40),1)))))))) -> 1 | I40: =IF($K$9>0,IF(SUM($K$11:$K40,$I$6)<0,TEXT(-(SUM($K$11:K40,$I$6)/60)/24,"-[h]:mm"),TEXT((SUM($K$11:K40,$I$6)/60)/24,"[h]:mm")),"") ->  | L40: 0 | M40: 0 | O40: =IF(OR($O$3="",$N$3="",N40=""),"",IF($O$9-SUM($N$11:N39)-N40<0,TEXT(-(($O$9-SUM($N$11:N39)-N40)/24),"-[hh]:mm"),TEXT(($O$9-SUM($N$11:N39)-N40)/24,"[hh]:mm"))) -> 
C41: =IF(OR($K$9=0,AND($K$9=2,A41<=14)),1,IF(IF(ISNA(INDEX(X!$W$7:$W$20,MATCH(DATE($D$4,$C$4,A41),X!$AC$7:$AC$20,0))),1,2)=2,2,IF(OR(B41="Sa",B41="So"),2,IF($K$9=1,SUMIFS($R$4:$R$8,$S$4:$S$8,B41),IF(AND($K$9=2,A41<15),SUMIFS($R$4:$R$8,$S$4:$S$8,B41),IF(AND($K$9=2,A41>14),SUMIFS($R$12:$R$16,$S$12:$S$16,B41),IF(AND($K$9=3,A41>14),SUMIFS($R$12:$R$16,$S$12:$S$16,B41),IF(AND($K$9=3,A41<15),SUMIFS($R$4:$R$8,$S$4:$S$8,B41),1)))))))) -> 1 | I41: =IF($K$9>0,IF(SUM($K$11:$K41,$I$6)<0,TEXT(-(SUM($K$11:K41,$I$6)/60)/24,"-[h]:mm"),TEXT((SUM($K$11:K41,$I$6)/60)/24,"[h]:mm")),"") ->  | L41: 0 | M41: 0 | O41: =IF(OR($O$3="",$N$3="",N41=""),"",IF($O$9-SUM($N$11:N40)-N41<0,TEXT(-(($O$9-SUM($N$11:N40)-N41)/24),"-[hh]:mm"),TEXT(($O$9-SUM($N$11:N40)-N41)/24,"[hh]:mm"))) -> 
G42: =L42+K42 -> 0 | H42: =K42 -> 0 | K42: =SUM(K11:K41) -> 0 | L42: =-SUM(L11:L41) -> 0 | M42: =M41 -> 0 | N42: =SUM(N11:N41)*60 -> 0 | Q42: =IF((G42/60)<0,TEXT(-((G42/60)/24),"-[hh]:mm"),TEXT((G42/60)/24,"[hh]:mm")) -> 00:00
A43: =IF(G4="","","Ergebnis") ->  | G43: =IF(G4="",0,IF(((G42-N42)/60)<0,TEXT(-(((G42-N42)/60)/24),"-[hh]:mm"),TEXT(((G42-N42)/60)/24,"[hh]:mm"))) -> 0 | H43: =IF(G4=0,"",IF(H42<0,TEXT(-((H42/60)/24),"-[hh]:mm"),IF((H42/60)>24,TEXT((((H42/60)-24)/24)+(24/24),"[hh]:mm"),(H42/60)/24))) -> 0 | I43: =IF($K$9>0,IF(SUM(I6,K43)<0,TEXT(-(SUM(I6,K43)/60)/24,"-[h]:mm"),TEXT((SUM(I6,K43)/60)/24,"[h]:mm")),"") ->  | K43: =IF(L42<>L43,G42-L43,K42) -> 0 | L43: =IF(AND(K9=1,SUM(U4:U8)<>H9),((H9/5)*COUNTIFS(C11:C41,"<>"&2,F11:F41,""))*60,IF(AND(K9=2,SUM(U12:U16)<>I9),((I9/5)*COUNTIFS(C11:C41,"<>"&2,F11:F41,""))*60,IF(AND(K9=3,OR(SUM(U4:U8)<>H9,SUM(U12:U16)<>I9)),SUM(IF(SUM(U4:U8)<>H9,((H9/5)*COUNTIFS(C11:C41,"<>"&2,A11:A41,"<"&15,F11:F41,""))*60,-SUMIFS(L11:L41,A11:A41,"<"&15,F11:F41,"")),IF(SUM(U12:U16)<>I9,((I9/5)*COUNTIFS(C11:C41,"<>"&2,A11:A41,">"&14,F11:F41,""))*60,-SUMIFS(L11:L41,A11:A41,">"&14,F11:F41,""))),-SUM(L11:L41)))) -> 0 | N43: =IF(N42<0,TEXT(-((N42/60)/24),"-[hh]:mm"),TEXT((N42/60)/24,"[hh]:mm")) -> 00:00 | O43: =IF(O9-SUM(N11:N41)<0,TEXT(-(O9-SUM(N11:N41))/24,"-[h]:mm"),TEXT((O9-SUM(N11:N41))/24,"[h]:mm")) ->  | Q43: =Q42 -> 00:00
A44: =IF(G4="","","Saldo / Übertrag:") ->  | I44: =I43 ->  | J44: =IF(K42<>K43,"automatische Nachberechnung der Sollarbeitszeit, da wöchentlicher Stundenumfang nicht eingehalten wurde.","") ->  | K44: =K43+I6 -> 0 | L44: Übertrag
A46: =IF(I46="","","Korrektur der Stunden") ->  | I46: =IF(K9>0,IF(K42-K43<>0,IF(K43-K42<0,TEXT(-((K43-K42)/60)/24,"-[h]:mm"),TEXT(((K43-K42)/60)/24,"[h]:mm")),""),"") -> 
A57: =D4 ->  | B57: =C4 -> 5 | C57: =Uebersicht!A4 -> 0 | D57: =Uebersicht!B4 -> 0 | E57: =L43 -> 0 | F57: =K42 -> 0 | G57: =K43 -> 0 | H57: =M10 -> 0 | I57: =M42 -> 0

Sheet Jun
A1: Zeiterfassungsbogen für studentische Hilfskräfte | International Office | V1: "nein" auswählen, wenn keine festen Tage mehr gelten sollen!
A2: =IF(Uebersicht!A4="","",CONCATENATE(Uebersicht!B4," ",Uebersicht!A4)) -> 
N3: =INDEX(Uebersicht!AO5:AQ28,MATCH(C4,Uebersicht!AO5:AO28,0),3) -> 0 | O3: =INDEX(Uebersicht!AO5:AQ28,MATCH(C4+0.5,Uebersicht!AO5:AO28,0),3) -> 0 | S3: Tag | T3: h
A4: =IF(D4="","",TEXT(DATE(D4,C4,1),"MMM")) ->  | C4: 6 | D4: =Uebersicht!I1 ->  | G4: =IF(INDEX(Uebersicht!AO31:AQ42,MATCH(C4,Uebersicht!AO31:AO43,0),2)=0,"",INDEX(Uebersicht!AO31:AQ42,MATCH(C4,Uebersicht!AO31:AO43,0),2)) ->  | N4: =INDEX(Uebersicht!AO31:AQ42,MATCH(C4,Uebersicht!AO31:AO43,0),3) -> 0 | R4: =IF(OR($K$9=2,$K$9=0),1,IF(AND(OR($K$9=1,$K$9=3),OR(SUM($U$4:$U$8)=0,$U$1="nein")),3,IF(AND($U$1="",SUM($U$4:$U$8)>0,U4>=1,OR($K$9=3,$K$9=1)),4,1))) -> 1 | S4: Mo | U4: =IF(AND(H9=0,I9=0),0,IF(OR($K$9=0,INDIRECT("'"&TEXT(DATE(D4,$C$4-1,1),"MMM")&"'!$U$1")="nein",$U$1="nein"),0,IF(T4>0,T4,INDEX(Uebersicht!$BA$3:$BE$14,$C$4,MATCH(S4,Uebersicht!$BA$2:$BE$2,0))))) -> 0
R5: =IF(OR($K$9=2,$K$9=0),1,IF(AND(OR($K$9=1,$K$9=3),OR(SUM($U$4:$U$8)=0,$U$1="nein")),3,IF(AND($U$1="",SUM($U$4:$U$8)>0,U5>=1,OR($K$9=3,$K$9=1)),4,1))) -> 1 | S5: Di | U5: =IF(OR($K$9=0,INDIRECT("'"&TEXT(DATE(D5,$C$4-1,1),"MMM")&"'!$U$1")="nein",$U$1="nein"),0,IF(T5>0,T5,INDEX(Uebersicht!$BA$3:$BE$14,$C$4,MATCH(S5,Uebersicht!$BA$2:$BE$2,0)))) -> 0
C6: =DAY(DATE(D4,C4+1,1)-1) ->  | H6: =IF(N4=0,"","Arbeitsgebiet 1") ->  | I6: =IF(AND(I9=0,H9=0),0,IF(C4-1=0,Uebersicht!G4,INDIRECT("'"&TEXT(DATE(D4,C4-1,1),"MMM")&"'!K44"))) -> 0 | K6: nein | N6: =IF(N4="","","Arbeitsgebiet 2") -> Arbeitsgebiet 2 | R6: =IF(OR($K$9=2,$K$9=0),1,IF(AND(OR($K$9=1,$K$9=3),OR(SUM($U$4:$U$8)=0,$U$1="nein")),3,IF(AND($U$1="",SUM($U$4:$U$8)>0,U6>=1,OR($K$9=3,$K$9=1)),4,1))) -> 1 | S6: Mi | U6: =IF(OR($K$9=0,INDIRECT("'"&TEXT(DATE(D6,$C$4-1,1),"MMM")&"'!$U$1")="nein",$U$1="nein"),0,IF(T6>0,T6,INDEX(Uebersicht!$BA$3:$BE$14,$C$4,MATCH(S6,Uebersicht!$BA$2:$BE$2,0)))) -> 0
A7: =IF(AND(H9>0,I9=0),CONCATENATE(H9," Wochenarbeitszeit (h)"),IF(AND(H9=0,I9>0),CONCATENATE(I9," Wochenarbeitszeit (h)"),IF(AND(H9>0,I9>0,H9<>I9),CONCATENATE(H9," h, ab 15. ",TEXT(DATE(D4,C4,1),"MMMM")," ",I9,"h"),""))) ->  | F7: =IF(G4="","",IF(M42/60>0,TEXT((M42/60)/24,"[h]:mm"),0)) ->  | G7: =IF(F7="","","Urlaubsrest") ->  | I7: =IF(AND(YEAR(TODAY())=D4,MONTH(TODAY())>=C4,K9>0),IF(OR(I6=0,I6=""),0,IF(I6<0,TEXT(-(I6/60)/24,"-[h]:mm"),TEXT((I6/60)/24,"[h]:mm"))),"") ->  | J7: =IF(I7="","",CONCATENATE("h Übertrag aus ",IF(C6=1,"Vorjahr","Vormonat"))) ->  | K7: Urlaub | N7: =IF(AND(N3>0,O3=0),CONCATENATE(N3," Stunden - Anteil pro Woche"),IF(AND(N3=0,O3>0),CONCATENATE(O3," Stunden - Anteil pro Woche"),IF(AND(N3>0,O3>0,O3<>N3),CONCATENATE(N3," h, ab 15. ",TEXT(DATE(D4,C4,1),"MMMM")," ",O3,"h"),IF(N3=O3,CONCATENATE(N3," Stunden - Anteil pro Woche"),"")))) -> 0 Stunden - Anteil pro Woche | R7: =IF(OR($K$9=2,$K$9=0),1,IF(AND(OR($K$9=1,$K$9=3),OR(SUM($U$4:$U$8)=0,$U$1="nein")),3,IF(AND($U$1="",SUM($U$4:$U$8)>0,U7>=1,OR($K$9=3,$K$9=1)),4,1))) -> 1 | S7: Do | U7: =IF(OR($K$9=0,INDIRECT("'"&TEXT(DATE(D7,$C$4-1,1),"MMM")&"'!$U$1")="nein",$U$1="nein"),0,IF(T7>0,T7,INDEX(Uebersicht!$BA$3:$BE$14,$C$4,MATCH(S7,Uebersicht!$BA$2:$BE$2,0)))) -> 0
K8: Krank | R8: =IF(OR($K$9=2,$K$9=0),1,IF(AND(OR($K$9=1,$K$9=3),OR(SUM($U$4:$U$8)=0,$U$1="nein")),3,IF(AND($U$1="",SUM($U$4:$U$8)>0,U8>=1,OR($K$9=3,$K$9=1)),4,1))) -> 1 | S8: Fr | U8: =IF(OR($K$9=0,INDIRECT("'"&TEXT(DATE(D8,$C$4-1,1),"MMM")&"'!$U$1")="nein",$U$1="nein"),0,IF(T8>0,T8,INDEX(Uebersicht!$BA$3:$BE$14,$C$4,MATCH(S8,Uebersicht!$BA$2:$BE$2,0)))) -> 0
H9: =INDEX(Uebersicht!AU3:AW14,C4,2) -> 0 | I9: =IF(INDEX(Uebersicht!AU3:AW14,C4,3)=H9,0,INDEX(Uebersicht!AU3:AW14,C4,3)) -> 0 | K9: =IF(AND(H9>0,I9=0),1,IF(AND(H9=0,I9>0),2,IF(AND(H9=0,I9=0),0,IF(H9<>I9,3,"")))) -> 0 | O9: =IF(OR(N3>0,O3>0),IF(OR(K9=1,K9=2),(IF(K9=1,N3,IF(K9=2,O2,0))/5)*NETWORKDAYS(IF(K9=1,DATE(D4,C4,1),IF(K9=2,DATE(D4,C4,15),0)),IF(OR(K9=1,K9=2),DATE(D4,C4,MAX(A11:A41)),0),COUNTIFS(C11:C41,"<>"&2)),IF(K9=3,SUM(IF(N3>0,(N3/5)*NETWORKDAYS(DATE(D4,C4,1),DATE(D4,C4,14),2),0),IF(O3>0,(O3/5)*NETWORKDAYS(DATE(D4,C4,15),DATE(D4,C4,MAX(A11:A41)),2),0)),0)),"") ->  | S9: =IF(SUM(U4:U8)=0,"",IF(SUM(U4:U8)>H9,"zu viel!",IF(SUM(U4:U8)<H9,"zu wenig!",""))) ->  | U9: =IF(OR(U1="nein",SUM(U4:U8)=0),"ja",IF(OR(SUM(Uebersicht!C36:C40)>0,SUM(T4:T8)>0,SUM(U4:U8)>0),"nein","ja")) -> ja
A10: Tag | D10: Beginn | E10: Ende | F10: Urlaub Krank | G10: Stunden | H10: Mehr/ Minder | I10: Saldo summiert | J10: Bemerkungen | K10: Differenz | L10: Soll | M10: =IF(AND(I9=0,H9=0),0,IF(C4-1=0,IF(Uebersicht!E8="",0,Uebersicht!E8*60),INDIRECT("'"&TEXT(DATE(D4,C4-1,1),"MMM")&"'!M42"))) -> 0 | N10: Stunden | O10: Rest | P10: Bemerkungen | Q10: Gesamt | S10: Änderung im laufenden Monat
A11: 1 | B11: =IF(OR(A11="",$D$4=""),"",TEXT(DATE($D$4,$C$4,A11),"ttt")) ->  | C11: =IF(OR($K$9=0,AND($K$9=2,A11<=14)),1,IF(IF(ISNA(INDEX(X!$W$7:$W$20,MATCH(DATE($D$4,$C$4,A11),X!$AC$7:$AC$20,0))),1,2)=2,2,IF(OR(B11="Sa",B11="So"),2,IF($K$9=1,SUMIFS($R$4:$R$8,$S$4:$S$8,B11),IF(AND($K$9=2,A11<15),SUMIFS($R$4:$R$8,$S$4:$S$8,B11),IF(AND($K$9=2,A11>14),SUMIFS($R$12:$R$16,$S$12:$S$16,B11),IF(AND($K$9=3,A11>14),SUMIFS($R$12:$R$16,$S$12:$S$16,B11),IF(AND($K$9=3,A11<15),SUMIFS($R$4:$R$8,$S$4:$S$8,B11),1)))))))) -> 1 | G11: =IF(AND(D11="",E11=""),"",IF(N11="",IF(((HOUR(E11)*60+MINUTE(E11))-(HOUR(D11)*60+MINUTE(D11)))>360,TEXT(((((HOUR(E11)*60+MINUTE(E11))-(HOUR(D11)*60+MINUTE(D11)))-30)/60)/24,"[h]:mm"),TEXT((((HOUR(E11)*60+MINUTE(E11))-(HOUR(D11)*60+MINUTE(D11)))/60)/24,"[h]:mm")),IF((((HOUR(E11)*60+MINUTE(E11))-(HOUR(D11)*60+MINUTE(D11)))-N11)>360,TEXT(((((((HOUR(E11)*60+MINUTE(E11))-(HOUR(D11)*60+MINUTE(D11)))-30))/60)-N11)/24,"[h]:mm"),TEXT(((((HOUR(E11)*60+MINUTE(E11))-(HOUR(D11)*60+MINUTE(D11)))/60)-N11)/24,"[h]:mm")))) ->  | H11: =IF(K11="","",IF(TODAY()<=DATE($D$4,$C$4,A11),0,IF(K11>0,TEXT((K11/60)/24,"[h]:mm"),TEXT(-(K11/60)/24,"-[h]:mm")))) ->  | I11: =IF($K$9>0,IF(SUM($K$11:$K11,I6)<0,TEXT(-(SUM($K$11:K11,I6)/60)/24,"-[h]:mm"),TEXT((SUM($K$11:K11,I6)/60)/24,"[h]:mm")),"") ->  | K11: =IF(F11="",IF(L11<0,L11+IF(G11=" ",0,IF(((HOUR(E11)*60+MINUTE(E11))-(HOUR(D11)*60+MINUTE(D11)))>360,(HOUR(E11)*60+MINUTE(E11))-(HOUR(D11)*60+MINUTE(D11))-30,(HOUR(E11)*60+MINUTE(E11))-(HOUR(D11)*60+MINUTE(D11)))),IF(Q11="","",(Q11*60)*24)),"") ->  | L11: =IF(OR(F11="krank",F11="Urlaub",C11=1,C11=2),0,IF($K$9=1,IF(SUM($U$4:$U$8)=0,$H$9/5,INDEX($S$4:$U$8,MATCH(B11,$S$4:$S$8,0),3)),IF($K$9=2,IF(AND(A11>14,SUM($U$12:$U$16)=0),$I$9/5,INDEX($S$12:$U$16,MATCH(B11,$S$12:$S$16,0),3)),IF($K$9=3,IF(A11<15,IF(SUM($U$4:$U$8)=0,$H$9/5,INDEX($S$4:$U$8,MATCH(B11,$S$4:$S$8,0),3))),IF(A11>14,IF(SUM($U$12:$U$16)=0,$I$9/5,INDEX($S$12:$U$16,MATCH(B11,$S$12:$S$16,0),3))))))*-60) -> 0 | M11: =M10-(IF(OR(C11=1,C11=2),0,IF(C11=3,IF(AND($K$9=1,F11="Urlaub"),$H$9/5,IF($K$9=2,IF(AND(A11<15,F11="Urlaub"),$I$9/5,IF(AND($K$9=3,A11<15,F11="Urlaub"),$H$9/5,IF(AND($K$9=3,A11>14,F11="Urlaub"),$I$9/5))))),IF(C11=4,IF(AND(F11="Urlaub",$K$9=1),SUMIFS($U$4:$U$8,$S$4:$S$8,B11),IF(AND(F11="Urlaub",$K$9=2,A11>14),SUMIFS($U$12:$U$16,$S$12:$S$16,B11),IF(AND(F11="Urlaub",$K$9=3,A11<15),SUMIFS($U$4:$U$8,$S$4:$S$8,B11),IF(AND(F11="Urlaub",$K$9=3,A11>14),SUMIFS($U$12:$U$16,$S$12:$S$16,B11),0)))))))*60) -> 0 | O11: =IF(OR($O$3="",$N$3="",N11=""),"",IF($O$9-SUM($N10:N$11)-N11<0,TEXT(-(($O$9-SUM($N10:N$11)-N11)/24),"-[hh]:mm"),TEXT(($O$9-SUM($N10:N$11)-N11)/24,"[hh]:mm"))) ->  | Q11: =IF(AND(D11="",E11=""),"",IF(((HOUR(E11)*60+MINUTE(E11))-(HOUR(D11)*60+MINUTE(D11)))>360,TEXT(((((HOUR(E11)*60+MINUTE(E11))-(HOUR(D11)*60+MINUTE(D11)))-30)/60)/24,"[h]:mm"),TEXT((((HOUR(E11)*60+MINUTE(E11))-(HOUR(D11)*60+MINUTE(D11)))/60)/24,"[h]:mm"))) -> 
A12: =IF(OR(A11="",$D$4=""),"",IF(A11+1<=$C$6,A11+1,"")) ->  | C12: =IF(OR($K$9=0,AND($K$9=2,A12<=14)),1,IF(IF(ISNA(INDEX(X!$W$7:$W$20,MATCH(DATE($D$4,$C$4,A12),X!$AC$7:$AC$20,0))),1,2)=2,2,IF(OR(B12="Sa",B12="So"),2,IF($K$9=1,SUMIFS($R$4:$R$8,$S$4:$S$8,B12),IF(AND($K$9=2,A12<15),SUMIFS($R$4:$R$8,$S$4:$S$8,B12),IF(AND($K$9=2,A12>14),SUMIFS($R$12:$R$16,$S$12:$S$16,B12),IF(AND($K$9=3,A12>14),SUMIFS($R$12:$R$16,$S$12:$S$16,B12),IF(AND($K$9=3,A12<15),SUMIFS($R$4:$R$8,$S$4:$S$8,B12),1)))))))) -> 1 | I12: =IF($K$9>0,IF(SUM($K$11:$K12,$I$6)<0,TEXT(-(SUM($K$11:K12,$I$6)/60)/24,"-[h]:mm"),TEXT((SUM($K$11:K12,$I$6)/60)/24,"[h]:mm")),"") ->  | K12: =IF(F12="",IF(L12<0,L12+IF(G12=" ",0,IF(((HOUR(E12)*60+MINUTE(E12))-(HOUR(D12)*60+MINUTE(D12)))>360,(HOUR(E12)*60+MINUTE(E12))-(HOUR(D12)*60+MINUTE(D12))-30,(HOUR(E12)*60+MINUTE(E12))-(HOUR(D12)*60+MINUTE(D12)))),IF(Q12="","",(Q12*60)*24)),"") ->  | L12: =IF(OR(F12="krank",F12="Urlaub",C12=1,C12=2),0,IF($K$9=1,IF(SUM($U$4:$U$8)=0,$H$9/5,INDEX($S$4:$U$8,MATCH(B12,$S$4:$S$8,0),3)),IF($K$9=2,IF(AND(A12>14,SUM($U$12:$U$16)=0),$I$9/5,INDEX($S$12:$U$16,MATCH(B12,$S$12:$S$16,0),3)),IF($K$9=3,IF(A12<15,IF(SUM($U$4:$U$8)=0,$H$9/5,INDEX($S$4:$U$8,MATCH(B12,$S$4:$S$8,0),3)),IF(SUM($U$12:$U$16)=0,$I$9/5,INDEX($S$12:$U$16,MATCH(B12,$S$12:$S$16,0),3)))))))*-60 -> 0 | M12: 0 | O12: =IF(OR($O$3="",$N$3="",N12=""),"",IF($O$9-SUM($N$11:N11)-N12<0,TEXT(-(($O$9-SUM($N$11:N11)-N12)/24),"-[hh]:mm"),TEXT(($O$9-SUM($N$11:N11)-N12)/24,"[hh]:mm"))) ->  | R12: =IF($K$9=0,1,IF($K$9=1,R4,IF(AND($K$9=3,OR(SUM($U$12:$U$16)=0,$U$1="nein")),3,IF(AND($U$1="",SUM($U$12:$U$16)>0,U12>=1,OR($K$9=3,$K$9=2)),4,1)))) -> 1 | S12: Mo | U12: =IF(AND(I9=0,H9=0),0,IF(OR($K$9=0,INDIRECT("'"&TEXT(DATE(D4,$C$4-1,1),"MMM")&"'!$U$1")="nein",$U$1="nein"),0,IF(T12>0,T12,INDEX(Uebersicht!$BF$3:$BJ$14,$C$4,MATCH(S12,Uebersicht!$BF$2:$BJ$2,0))))) -> 0
A13: =IF(OR(A12="",$D$4=""),"",IF(A12+1<=$C$6,A12+1,"")) ->  | C13: =IF(OR($K$9=0,AND($K$9=2,A13<=14)),1,IF(IF(ISNA(INDEX(X!$W$7:$W$20,MATCH(DATE($D$4,$C$4,A13),X!$AC$7:$AC$20,0))),1,2)=2,2,IF(OR(B13="Sa",B13="So"),2,IF($K$9=1,SUMIFS($R$4:$R$8,$S$4:$S$8,B13),IF(AND($K$9=2,A13<15),SUMIFS($R$4:$R$8,$S$4:$S$8,B13),IF(AND($K$9=2,A13>14),SUMIFS($R$12:$R$16,$S$12:$S$16,B13),IF(AND($K$9=3,A13>14),SUMIFS($R$12:$R$16,$S$12:$S$16,B13),IF(AND($K$9=3,A13<15),SUMIFS($R$4:$R$8,$S$4:$S$8,B13),1)))))))) -> 1 | I13: =IF($K$9>0,IF(SUM($K$11:$K13,$I$6)<0,TEXT(-(SUM($K$11:K13,$I$6)/60)/24,"-[h]:mm"),TEXT((SUM($K$11:K13,$I$6)/60)/24,"[h]:mm")),"") ->  | L13: 0 | M13: 0 | O13: =IF(OR($O$3="",$N$3="",N13=""),"",IF($O$9-SUM($N$11:N12)-N13<0,TEXT(-(($O$9-SUM($N$11:N12)-N13)/24),"-[hh]:mm"),TEXT(($O$9-SUM($N$11:N12)-N13)/24,"[hh]:mm"))) ->  | R13: =IF($K$9=0,1,IF($K$9=1,R5,IF(AND($K$9=3,OR(SUM($U$12:$U$16)=0,$U$1="nein")),3,IF(AND($U$1="",SUM($U$12:$U$16)>0,U13>=1,OR($K$9=3,$K$9=2)),4,1)))) -> 1 | S13: Di | U13: =IF(OR($K$9=0,INDIRECT("'"&TEXT(DATE(D5,$C$4-1,1),"MMM")&"'!$U$1")="nein",$U$1="nein"),0,IF(T13>0,T13,INDEX(Uebersicht!$BF$3:$BJ$14,$C$4,MATCH(S13,Uebersicht!$BF$2:$BJ$2,0)))) -> 0
C14: =IF(OR($K$9=0,AND($K$9=2,A14<=14)),1,IF(IF(ISNA(INDEX(X!$W$7:$W$20,MATCH(DATE($D$4,$C$4,A14),X!$AC$7:$AC$20,0))),1,2)=2,2,IF(OR(B14="Sa",B14="So"),2,IF($K$9=1,SUMIFS($R$4:$R$8,$S$4:$S$8,B14),IF(AND($K$9=2,A14<15),SUMIFS($R$4:$R$8,$S$4:$S$8,B14),IF(AND($K$9=2,A14>14),SUMIFS($R$12:$R$16,$S$12:$S$16,B14),IF(AND($K$9=3,A14>14),SUMIFS($R$12:$R$16,$S$12:$S$16,B14),IF(AND($K$9=3,A14<15),SUMIFS($R$4:$R$8,$S$4:$S$8,B14),1)))))))) -> 1 | I14: =IF($K$9>0,IF(SUM($K$11:$K14,$I$6)<0,TEXT(-(SUM($K$11:K14,$I$6)/60)/24,"-[h]:mm"),TEXT((SUM($K$11:K14,$I$6)/60)/24,"[h]:mm")),"") ->  | L14: 0 | M14: 0 | O14: =IF(OR($O$3="",$N$3="",N14=""),"",IF($O$9-SUM($N$11:N13)-N14<0,TEXT(-(($O$9-SUM($N$11:N13)-N14)/24),"-[hh]:mm"),TEXT(($O$9-SUM($N$11:N13)-N14)/24,"[hh]:mm"))) ->  | R14: =IF($K$9=0,1,IF($K$9=1,R6,IF(AND($K$9=3,OR(SUM($U$12:$U$16)=0,$U$1="nein")),3,IF(AND($U$1="",SUM($U$12:$U$16)>0,U14>=1,OR($K$9=3,$K$9=2)),4,1)))) -> 1 | S14: Mi | U14: =IF(OR($K$9=0,INDIRECT("'"&TEXT(DATE(D6,$C$4-1,1),"MMM")&"'!$U$1")="nein",$U$1="nein"),0,IF(T14>0,T14,INDEX(Uebersicht!$BF$3:$BJ$14,$C$4,MATCH(S14,Uebersicht!$BF$2:$BJ$2,0)))) -> 0
C15: =IF(OR($K$9=0,AND($K$9=2,A15<=14)),1,IF(IF(ISNA(INDEX(X!$W$7:$W$20,MATCH(DATE($D$4,$C$4,A15),X!$AC$7:$AC$20,0))),1,2)=2,2,IF(OR(B15="Sa",B15="So"),2,IF($K$9=1,SUMIFS($R$4:$R$8,$S$4:$S$8,B15),IF(AND($K$9=2,A15<15),SUMIFS($R$4:$R$8,$S$4:$S$8,B15),IF(AND($K$9=2,A15>14),SUMIFS($R$12:$R$16,$S$12:$S$16,B15),IF(AND($K$9=3,A15>14),SUMIFS($R$12:$R$16,$S$12:$S$16,B15),IF(AND($K$9=3,A15<15),SUMIFS($R$4:$R$8,$S$4:$S$8,B15),1)))))))) -> 1 | I15: =IF($K$9>0,IF(SUM($K$11:$K15,$I$6)<0,TEXT(-(SUM($K$11:K15,$I$6)/60)/24,"-[h]:mm"),TEXT((SUM($K$11:K15,$I$6)/60)/24,"[h]:mm")),"") ->  | L15: 0 | M15: 0 | O15: =IF(OR($O$3="",$N$3="",N15=""),"",IF($O$9-SUM($N$11:N14)-N15<0,TEXT(-(($O$9-SUM($N$11:N14)-N15)/24),"-[hh]:mm"),TEXT(($O$9-SUM($N$11:N14)-N15)/24,"[hh]:mm"))) ->  | R15: =IF($K$9=0,1,IF($K$9=1,R7,IF(AND($K$9=3,OR(SUM($U$12:$U$16)=0,$U$1="nein")),3,IF(AND($U$1="",SUM($U$12:$U$16)>0,U15>=1,OR($K$9=3,$K$9=2)),4,1)))) -> 1 | S15: Do | U15: =IF(OR($K$9=0,INDIRECT("'"&TEXT(DATE(D7,$C$4-1,1),"MMM")&"'!$U$1")="nein",$U$1="nein"),0,IF(T15>0,T15,INDEX(Uebersicht!$BF$3:$BJ$14,$C$4,MATCH(S15,Uebersicht!$BF$2:$BJ$2,0)))) -> 0
C16: =IF(OR($K$9=0,AND($K$9=2,A16<=14)),1,IF(IF(ISNA(INDEX(X!$W$7:$W$20,MATCH(DATE($D$4,$C$4,A16),X!$AC$7:$AC$20,0))),1,2)=2,2,IF(OR(B16="Sa",B16="So"),2,IF($K$9=1,SUMIFS($R$4:$R$8,$S$4:$S$8,B16),IF(AND($K$9=2,A16<15),SUMIFS($R$4:$R$8,$S$4:$S$8,B16),IF(AND($K$9=2,A16>14),SUMIFS($R$12:$R$16,$S$12:$S$16,B16),IF(AND($K$9=3,A16>14),SUMIFS($R$12:$R$16,$S$12:$S$16,B16),IF(AND($K$9=3,A16<15),SUMIFS($R$4:$R$8,$S$4:$S$8,B16),1)))))))) -> 1 | I16: =IF($K$9>0,IF(SUM($K$11:$K16,$I$6)<0,TEXT(-(SUM($K$11:K16,$I$6)/60)/24,"-[h]:mm"),TEXT((SUM($K$11:K16,$I$6)/60)/24,"[h]:mm")),"") ->  | L16: 0 | M16: 0 | O16: =IF(OR($O$3="",$N$3="",N16=""),"",IF($O$9-SUM($N$11:N15)-N16<0,TEXT(-(($O$9-SUM($N$11:N15)-N16)/24),"-[hh]:mm"),TEXT(($O$9-SUM($N$11:N15)-N16)/24,"[hh]:mm"))) ->  | R16: =IF($K$9=0,1,IF($K$9=1,R8,IF(AND($K$9=3,OR(SUM($U$12:$U$16)=0,$U$1="nein")),3,IF(AND($U$1="",SUM($U$12:$U$16)>0,U16>=1,OR($K$9=3,$K$9=2)),4,1)))) -> 1 | S16: Fr | U16: =IF(OR($K$9=0,INDIRECT("'"&TEXT(DATE(D8,$C$4-1,1),"MMM")&"'!$U$1")="nein",$U$1="nein"),0,IF(T16>0,T16,INDEX(Uebersicht!$BF$3:$BJ$14,$C$4,MATCH(S16,Uebersicht!$BF$2:$BJ$2,0)))) -> 0
C17: =IF(OR($K$9=0,AND($K$9=2,A17<=14)),1,IF(IF(ISNA(INDEX(X!$W$7:$W$20,MATCH(DATE($D$4,$C$4,A17),X!$AC$7:$AC$20,0))),1,2)=2,2,IF(OR(B17="Sa",B17="So"),2,IF($K$9=1,SUMIFS($R$4:$R$8,$S$4:$S$8,B17),IF(AND($K$9=2,A17<15),SUMIFS($R$4:$R$8,$S$4:$S$8,B17),IF(AND($K$9=2,A17>14),SUMIFS($R$12:$R$16,$S$12:$S$16,B17),IF(AND($K$9=3,A17>14),SUMIFS($R$12:$R$16,$S$12:$S$16,B17),IF(AND($K$9=3,A17<15),SUMIFS($R$4:$R$8,$S$4:$S$8,B17),1)))))))) -> 1 | I17: =IF($K$9>0,IF(SUM($K$11:$K17,$I$6)<0,TEXT(-(SUM($K$11:K17,$I$6)/60)/24,"-[h]:mm"),TEXT((SUM($K$11:K17,$I$6)/60)/24,"[h]:mm")),"") ->  | L17: 0 | M17: 0 | O17: =IF(OR($O$3="",$N$3="",N17=""),"",IF($O$9-SUM($N$11:N16)-N17<0,TEXT(-(($O$9-SUM($N$11:N16)-N17)/24),"-[hh]:mm"),TEXT(($O$9-SUM($N$11:N16)-N17)/24,"[hh]:mm"))) ->  | S17: =IF(I9=0,"",IF(SUM(U12:U16)>I9,"zu viel!",IF(SUM(U12:U16)<I9,"zu wenig!",""))) ->  | U17: =IF(OR(U9="nein",SUM(U12:U16)=0),"ja",IF(OR(SUM(Uebersicht!C43:C47)>0,SUM(T12:T16)>0,SUM(U12:U16)>0),"nein","ja")) -> ja
C18: =IF(OR($K$9=0,AND($K$9=2,A18<=14)),1,IF(IF(ISNA(INDEX(X!$W$7:$W$20,MATCH(DATE($D$4,$C$4,A18),X!$AC$7:$AC$20,0))),1,2)=2,2,IF(OR(B18="Sa",B18="So"),2,IF($K$9=1,SUMIFS($R$4:$R$8,$S$4:$S$8,B18),IF(AND($K$9=2,A18<15),SUMIFS($R$4:$R$8,$S$4:$S$8,B18),IF(AND($K$9=2,A18>14),SUMIFS($R$12:$R$16,$S$12:$S$16,B18),IF(AND($K$9=3,A18>14),SUMIFS($R$12:$R$16,$S$12:$S$16,B18),IF(AND($K$9=3,A18<15),SUMIFS($R$4:$R$8,$S$4:$S$8,B18),1)))))))) -> 1 | I18: =IF($K$9>0,IF(SUM($K$11:$K18,$I$6)<0,TEXT(-(SUM($K$11:K18,$I$6)/60)/24,"-[h]:mm"),TEXT((SUM($K$11:K18,$I$6)/60)/24,"[h]:mm")),"") ->  | L18: 0 | M18: 0 | O18: =IF(OR($O$3="",$N$3="",N18=""),"",IF($O$9-SUM($N$11:N17)-N18<0,TEXT(-(($O$9-SUM($N$11:N17)-N18)/24),"-[hh]:mm"),TEXT(($O$9-SUM($N$11:N17)-N18)/24,"[hh]:mm"))) -> 
C19: =IF(OR($K$9=0,AND($K$9=2,A19<=14)),1,IF(IF(ISNA(INDEX(X!$W$7:$W$20,MATCH(DATE($D$4,$C$4,A19),X!$AC$7:$AC$20,0))),1,2)=2,2,IF(OR(B19="Sa",B19="So"),2,IF($K$9=1,SUMIFS($R$4:$R$8,$S$4:$S$8,B19),IF(AND($K$9=2,A19<15),SUMIFS($R$4:$R$8,$S$4:$S$8,B19),IF(AND($K$9=2,A19>14),SUMIFS($R$12:$R$16,$S$12:$S$16,B19),IF(AND($K$9=3,A19>14),SUMIFS($R$12:$R$16,$S$12:$S$16,B19),IF(AND($K$9=3,A19<15),SUMIFS($R$4:$R$8,$S$4:$S$8,B19),1)))))))) -> 1 | I19: =IF($K$9>0,IF(SUM($K$11:$K19,$I$6)<0,TEXT(-(SUM($K$11:K19,$I$6)/60)/24,"-[h]:mm"),TEXT((SUM($K$11:K19,$I$6)/60)/24,"[h]:mm")),"") ->  | L19: 0 | M19: 0 | O19: =IF(OR($O$3="",$N$3="",N19=""),"",IF($O$9-SUM($N$11:N18)-N19<0,TEXT(-(($O$9-SUM($N$11:N18)-N19)/24),"-[hh]:mm"),TEXT(($O$9-SUM($N$11:N18)-N19)/24,"[hh]:mm"))) -> 
C20: =IF(OR($K$9=0,AND($K$9=2,A20<=14)),1,IF(IF(ISNA(INDEX(X!$W$7:$W$20,MATCH(DATE($D$4,$C$4,A20),X!$AC$7:$AC$20,0))),1,2)=2,2,IF(OR(B20="Sa",B20="So"),2,IF($K$9=1,SUMIFS($R$4:$R$8,$S$4:$S$8,B20),IF(AND($K$9=2,A20<15),SUMIFS($R$4:$R$8,$S$4:$S$8,B20),IF(AND($K$9=2,A20>14),SUMIFS($R$12:$R$16,$S$12:$S$16,B20),IF(AND($K$9=3,A20>14),SUMIFS($R$12:$R$16,$S$12:$S$16,B20),IF(AND($K$9=3,A20<15),SUMIFS($R$4:$R$8,$S$4:$S$8,B20),1)))))))) -> 1 | I20: =IF($K$9>0,IF(SUM($K$11:$K20,$I$6)<0,TEXT(-(SUM($K$11:K20,$I$6)/60)/24,"-[h]:mm"),TEXT((SUM($K$11:K20,$I$6)/60)/24,"[h]:mm")),"") ->  | L20: 0 | M20: 0 | O20: =IF(OR($O$3="",$N$3="",N20=""),"",IF($O$9-SUM($N$11:N19)-N20<0,TEXT(-(($O$9-SUM($N$11:N19)-N20)/24),"-[hh]:mm"),TEXT(($O$9-SUM($N$11:N19)-N20)/24,"[hh]:mm"))) -> 
C21: =IF(OR($K$9=0,AND($K$9=2,A21<=14)),1,IF(IF(ISNA(INDEX(X!$W$7:$W$20,MATCH(DATE($D$4,$C$4,A21),X!$AC$7:$AC$20,0))),1,2)=2,2,IF(OR(B21="Sa",B21="So"),2,IF($K$9=1,SUMIFS($R$4:$R$8,$S$4:$S$8,B21),IF(AND($K$9=2,A21<15),SUMIFS($R$4:$R$8,$S$4:$S$8,B21),IF(AND($K$9=2,A21>14),SUMIFS($R$12:$R$16,$S$12:$S$16,B21),IF(AND($K$9=3,A21>14),SUMIFS($R$12:$R$16,$S$12:$S$16,B21),IF(AND($K$9=3,A21<15),SUMIFS($R$4:$R$8,$S$4:$S$8,B21),1)))))))) -> 1 | I21: =IF($K$9>0,IF(SUM($K$11:$K21,$I$6)<0,TEXT(-(SUM($K$11:K21,$I$6)/60)/24,"-[h]:mm"),TEXT((SUM($K$11:K21,$I$6)/60)/24,"[h]:mm")),"") ->  | L21: 0 | M21: 0 | O21: =IF(OR($O$3="",$N$3="",N21=""),"",IF($O$9-SUM($N$11:N20)-N21<0,TEXT(-(($O$9-SUM($N$11:N20)-N21)/24),"-[hh]:mm"),TEXT(($O$9-SUM($N$11:N20)-N21)/24,"[hh]:mm"))) -> 
C22: =IF(OR($K$9=0,AND($K$9=2,A22<=14)),1,IF(IF(ISNA(INDEX(X!$W$7:$W$20,MATCH(DATE($D$4,$C$4,A22),X!$AC$7:$AC$20,0))),1,2)=2,2,IF(OR(B22="Sa",B22="So"),2,IF($K$9=1,SUMIFS($R$4:$R$8,$S$4:$S$8,B22),IF(AND($K$9=2,A22<15),SUMIFS($R$4:$R$8,$S$4:$S$8,B22),IF(AND($K$9=2,A22>14),SUMIFS($R$12:$R$16,$S$12:$S$16,B22),IF(AND($K$9=3,A22>14),SUMIFS($R$12:$R$16,$S$12:$S$16,B22),IF(AND($K$9=3,A22<15),SUMIFS($R$4:$R$8,$S$4:$S$8,B22),1)))))))) -> 1 | I22: =IF($K$9>0,IF(SUM($K$11:$K22,$I$6)<0,TEXT(-(SUM($K$11:K22,$I$6)/60)/24,"-[h]:mm"),TEXT((SUM($K$11:K22,$I$6)/60)/24,"[h]:mm")),"") ->  | L22: 0 | M22: 0 | O22: =IF(OR($O$3="",$N$3="",N22=""),"",IF($O$9-SUM($N$11:N21)-N22<0,TEXT(-(($O$9-SUM($N$11:N21)-N22)/24),"-[hh]:mm"),TEXT(($O$9-SUM($N$11:N21)-N22)/24,"[hh]:mm"))) -> 
C23: =IF(OR($K$9=0,AND($K$9=2,A23<=14)),1,IF(IF(ISNA(INDEX(X!$W$7:$W$20,MATCH(DATE($D$4,$C$4,A23),X!$AC$7:$AC$20,0))),1,2)=2,2,IF(OR(B23="Sa",B23="So"),2,IF($K$9=1,SUMIFS($R$4:$R$8,$S$4:$S$8,B23),IF(AND($K$9=2,A23<15),SUMIFS($R$4:$R$8,$S$4:$S$8,B23),IF(AND($K$9=2,A23>14),SUMIFS($R$12:$R$16,$S$12:$S$16,B23),IF(AND($K$9=3,A23>14),SUMIFS($R$12:$R$16,$S$12:$S$16,B23),IF(AND($K$9=3,A23<15),SUMIFS($R$4:$R$8,$S$4:$S$8,B23),1)))))))) -> 1 | I23: =IF($K$9>0,IF(SUM($K$11:$K23,$I$6)<0,TEXT(-(SUM($K$11:K23,$I$6)/60)/24,"-[h]:mm"),TEXT((SUM($K$11:K23,$I$6)/60)/24,"[h]:mm")),"") ->  | L23: 0 | M23: 0 | O23: =IF(OR($O$3="",$N$3="",N23=""),"",IF($O$9-SUM($N$11:N22)-N23<0,TEXT(-(($O$9-SUM($N$11:N22)-N23)/24),"-[hh]:mm"),TEXT(($O$9-SUM($N$11:N22)-N23)/24,"[hh]:mm"))) -> 
C24: =IF(OR($K$9=0,AND($K$9=2,A24<=14)),1,IF(IF(ISNA(INDEX(X!$W$7:$W$20,MATCH(DATE($D$4,$C$4,A24),X!$AC$7:$AC$20,0))),1,2)=2,2,IF(OR(B24="Sa",B24="So"),2,IF($K$9=1,SUMIFS($R$4:$R$8,$S$4:$S$8,B24),IF(AND($K$9=2,A24<15),SUMIFS($R$4:$R$8,$S$4:$S$8,B24),IF(AND($K$9=2,A24>14),SUMIFS($R$12:$R$16,$S$12:$S$16,B24),IF(AND($K$9=3,A24>14),SUMIFS($R$12:$R$16,$S$12:$S$16,B24),IF(AND($K$9=3,A24<15),SUMIFS($R$4:$R$8,$S$4:$S$8,B24),1)))))))) -> 1 | I24: =IF($K$9>0,IF(SUM($K$11:$K24,$I$6)<0,TEXT(-(SUM($K$11:K24,$I$6)/60)/24,"-[h]:mm"),TEXT((SUM($K$11:K24,$I$6)/60)/24,"[h]:mm")),"") ->  | L24: 0 | M24: 0 | O24: =IF(OR($O$3="",$N$3="",N24=""),"",IF($O$9-SUM($N$11:N23)-N24<0,TEXT(-(($O$9-SUM($N$11:N23)-N24)/24),"-[hh]:mm"),TEXT(($O$9-SUM($N$11:N23)-N24)/24,"[hh]:mm"))) -> 
C25: =IF(OR($K$9=0,AND($K$9=2,A25<=14)),1,IF(IF(ISNA(INDEX(X!$W$7:$W$20,MATCH(DATE($D$4,$C$4,A25),X!$AC$7:$AC$20,0))),1,2)=2,2,IF(OR(B25="Sa",B25="So"),2,IF($K$9=1,SUMIFS($R$4:$R$8,$S$4:$S$8,B25),IF(AND($K$9=2,A25<15),SUMIFS($R$4:$R$8,$S$4:$S$8,B25),IF(AND($K$9=2,A25>14),SUMIFS($R$12:$R$16,$S$12:$S$16,B25),IF(AND($K$9=3,A25>14),SUMIFS($R$12:$R$16,$S$12:$S$16,B25),IF(AND($K$9=3,A25<15),SUMIFS($R$4:$R$8,$S$4:$S$8,B25),1)))))))) -> 1 | I25: =IF($K$9>0,IF(SUM($K$11:$K25,$I$6)<0,TEXT(-(SUM($K$11:K25,$I$6)/60)/24,"-[h]:mm"),TEXT((SUM($K$11:K25,$I$6)/60)/24,"[h]:mm")),"") ->  | L25: 0 | M25: 0 | O25: =IF(OR($O$3="",$N$3="",N25=""),"",IF($O$9-SUM($N$11:N24)-N25<0,TEXT(-(($O$9-SUM($N$11:N24)-N25)/24),"-[hh]:mm"),TEXT(($O$9-SUM($N$11:N24)-N25)/24,"[hh]:mm"))) -> 
C26: =IF(OR($K$9=0,AND($K$9=2,A26<=14)),1,IF(IF(ISNA(INDEX(X!$W$7:$W$20,MATCH(DATE($D$4,$C$4,A26),X!$AC$7:$AC$20,0))),1,2)=2,2,IF(OR(B26="Sa",B26="So"),2,IF($K$9=1,SUMIFS($R$4:$R$8,$S$4:$S$8,B26),IF(AND($K$9=2,A26<15),SUMIFS($R$4:$R$8,$S$4:$S$8,B26),IF(AND($K$9=2,A26>14),SUMIFS($R$12:$R$16,$S$12:$S$16,B26),IF(AND($K$9=3,A26>14),SUMIFS($R$12:$R$16,$S$12:$S$16,B26),IF(AND($K$9=3,A26<15),SUMIFS($R$4:$R$8,$S$4:$S$8,B26),1)))))))) -> 1 | I26: =IF($K$9>0,IF(SUM($K$11:$K26,$I$6)<0,TEXT(-(SUM($K$11:K26,$I$6)/60)/24,"-[h]:mm"),TEXT((SUM($K$11:K26,$I$6)/60)/24,"[h]:mm")),"") ->  | L26: 0 | M26: 0 | O26: =IF(OR($O$3="",$N$3="",N26=""),"",IF($O$9-SUM($N$11:N25)-N26<0,TEXT(-(($O$9-SUM($N$11:N25)-N26)/24),"-[hh]:mm"),TEXT(($O$9-SUM($N$11:N25)-N26)/24,"[hh]:mm"))) -> 
C27: =IF(OR($K$9=0,AND($K$9=2,A27<=14)),1,IF(IF(ISNA(INDEX(X!$W$7:$W$20,MATCH(DATE($D$4,$C$4,A27),X!$AC$7:$AC$20,0))),1,2)=2,2,IF(OR(B27="Sa",B27="So"),2,IF($K$9=1,SUMIFS($R$4:$R$8,$S$4:$S$8,B27),IF(AND($K$9=2,A27<15),SUMIFS($R$4:$R$8,$S$4:$S$8,B27),IF(AND($K$9=2,A27>14),SUMIFS($R$12:$R$16,$S$12:$S$16,B27),IF(AND($K$9=3,A27>14),SUMIFS($R$12:$R$16,$S$12:$S$16,B27),IF(AND($K$9=3,A27<15),SUMIFS($R$4:$R$8,$S$4:$S$8,B27),1)))))))) -> 1 | I27: =IF($K$9>0,IF(SUM($K$11:$K27,$I$6)<0,TEXT(-(SUM($K$11:K27,$I$6)/60)/24,"-[h]:mm"),TEXT((SUM($K$11:K27,$I$6)/60)/24,"[h]:mm")),"") ->  | L27: 0 | M27: 0 | O27: =IF(OR($O$3="",$N$3="",N27=""),"",IF($O$9-SUM($N$11:N26)-N27<0,TEXT(-(($O$9-SUM($N$11:N26)-N27)/24),"-[hh]:mm"),TEXT(($O$9-SUM($N$11:N26)-N27)/24,"[hh]:mm"))) -> 
C28: =IF(OR($K$9=0,AND($K$9=2,A28<=14)),1,IF(IF(ISNA(INDEX(X!$W$7:$W$20,MATCH(DATE($D$4,$C$4,A28),X!$AC$7:$AC$20,0))),1,2)=2,2,IF(OR(B28="Sa",B28="So"),2,IF($K$9=1,SUMIFS($R$4:$R$8,$S$4:$S$8,B28),IF(AND($K$9=2,A28<15),SUMIFS($R$4:$R$8,$S$4:$S$8,B28),IF(AND($K$9=2,A28>14),SUMIFS($R$12:$R$16,$S$12:$S$16,B28),IF(AND($K$9=3,A28>14),SUMIFS($R$12:$R$16,$S$12:$S$16,B28),IF(AND($K$9=3,A28<15),SUMIFS($R$4:$R$8,$S$4:$S$8,B28),1)))))))) -> 1 | I28: =IF($K$9>0,IF(SUM($K$11:$K28,$I$6)<0,TEXT(-(SUM($K$11:K28,$I$6)/60)/24,"-[h]:mm"),TEXT((SUM($K$11:K28,$I$6)/60)/24,"[h]:mm")),"") ->  | L28: 0 | M28: 0 | O28: =IF(OR($O$3="",$N$3="",N28=""),"",IF($O$9-SUM($N$11:N27)-N28<0,TEXT(-(($O$9-SUM($N$11:N27)-N28)/24),"-[hh]:mm"),TEXT(($O$9-SUM($N$11:N27)-N28)/24,"[hh]:mm"))) -> 
C29: =IF(OR($K$9=0,AND($K$9=2,A29<=14)),1,IF(IF(ISNA(INDEX(X!$W$7:$W$20,MATCH(DATE($D$4,$C$4,A29),X!$AC$7:$AC$20,0))),1,2)=2,2,IF(OR(B29="Sa",B29="So"),2,IF($K$9=1,SUMIFS($R$4:$R$8,$S$4:$S$8,B29),IF(AND($K$9=2,A29<15),SUMIFS($R$4:$R$8,$S$4:$S$8,B29),IF(AND($K$9=2,A29>14),SUMIFS($R$12:$R$16,$S$12:$S$16,B29),IF(AND($K$9=3,A29>14),SUMIFS($R$12:$R$16,$S$12:$S$16,B29),IF(AND($K$9=3,A29<15),SUMIFS($R$4:$R$8,$S$4:$S$8,B29),1)))))))) -> 1 | I29: =IF($K$9>0,IF(SUM($K$11:$K29,$I$6)<0,TEXT(-(SUM($K$11:K29,$I$6)/60)/24,"-[h]:mm"),TEXT((SUM($K$11:K29,$I$6)/60)/24,"[h]:mm")),"") ->  | L29: 0 | M29: 0 | O29: =IF(OR($O$3="",$N$3="",N29=""),"",IF($O$9-SUM($N$11:N28)-N29<0,TEXT(-(($O$9-SUM($N$11:N28)-N29)/24),"-[hh]:mm"),TEXT(($O$9-SUM($N$11:N28)-N29)/24,"[hh]:mm"))) -> 
C30: =IF(OR($K$9=0,AND($K$9=2,A30<=14)),1,IF(IF(ISNA(INDEX(X!$W$7:$W$20,MATCH(DATE($D$4,$C$4,A30),X!$AC$7:$AC$20,0))),1,2)=2,2,IF(OR(B30="Sa",B30="So"),2,IF($K$9=1,SUMIFS($R$4:$R$8,$S$4:$S$8,B30),IF(AND($K$9=2,A30<15),SUMIFS($R$4:$R$8,$S$4:$S$8,B30),IF(AND($K$9=2,A30>14),SUMIFS($R$12:$R$16,$S$12:$S$16,B30),IF(AND($K$9=3,A30>14),SUMIFS($R$12:$R$16,$S$12:$S$16,B30),IF(AND($K$9=3,A30<15),SUMIFS($R$4:$R$8,$S$4:$S$8,B30),1)))))))) -> 1 | I30: =IF($K$9>0,IF(SUM($K$11:$K30,$I$6)<0,TEXT(-(SUM($K$11:K30,$I$6)/60)/24,"-[h]:mm"),TEXT((SUM($K$11:K30,$I$6)/60)/24,"[h]:mm")),"") ->  | L30: 0 | M30: 0 | O30: =IF(OR($O$3="",$N$3="",N30=""),"",IF($O$9-SUM($N$11:N29)-N30<0,TEXT(-(($O$9-SUM($N$11:N29)-N30)/24),"-[hh]:mm"),TEXT(($O$9-SUM($N$11:N29)-N30)/24,"[hh]:mm"))) -> 
C31: =IF(OR($K$9=0,AND($K$9=2,A31<=14)),1,IF(IF(ISNA(INDEX(X!$W$7:$W$20,MATCH(DATE($D$4,$C$4,A31),X!$AC$7:$AC$20,0))),1,2)=2,2,IF(OR(B31="Sa",B31="So"),2,IF($K$9=1,SUMIFS($R$4:$R$8,$S$4:$S$8,B31),IF(AND($K$9=2,A31<15),SUMIFS($R$4:$R$8,$S$4:$S$8,B31),IF(AND($K$9=2,A31>14),SUMIFS($R$12:$R$16,$S$12:$S$16,B31),IF(AND($K$9=3,A31>14),SUMIFS($R$12:$R$16,$S$12:$S$16,B31),IF(AND($K$9=3,A31<15),SUMIFS($R$4:$R$8,$S$4:$S$8,B31),1)))))))) -> 1 | I31: =IF($K$9>0,IF(SUM($K$11:$K31,$I$6)<0,TEXT(-(SUM($K$11:K31,$I$6)/60)/24,"-[h]:mm"),TEXT((SUM($K$11:K31,$I$6)/60)/24,"[h]:mm")),"") ->  | L31: 0 | M31: 0 | O31: =IF(OR($O$3="",$N$3="",N31=""),"",IF($O$9-SUM($N$11:N30)-N31<0,TEXT(-(($O$9-SUM($N$11:N30)-N31)/24),"-[hh]:mm"),TEXT(($O$9-SUM($N$11:N30)-N31)/24,"[hh]:mm"))) -> 
C32: =IF(OR($K$9=0,AND($K$9=2,A32<=14)),1,IF(IF(ISNA(INDEX(X!$W$7:$W$20,MATCH(DATE($D$4,$C$4,A32),X!$AC$7:$AC$20,0))),1,2)=2,2,IF(OR(B32="Sa",B32="So"),2,IF($K$9=1,SUMIFS($R$4:$R$8,$S$4:$S$8,B32),IF(AND($K$9=2,A32<15),SUMIFS($R$4:$R$8,$S$4:$S$8,B32),IF(AND($K$9=2,A32>14),SUMIFS($R$12:$R$16,$S$12:$S$16,B32),IF(AND($K$9=3,A32>14),SUMIFS($R$12:$R$16,$S$12:$S$16,B32),IF(AND($K$9=3,A32<15),SUMIFS($R$4:$R$8,$S$4:$S$8,B32),1)))))))) -> 1 | I32: =IF($K$9>0,IF(SUM($K$11:$K32,$I$6)<0,TEXT(-(SUM($K$11:K32,$I$6)/60)/24,"-[h]:mm"),TEXT((SUM($K$11:K32,$I$6)/60)/24,"[h]:mm")),"") ->  | L32: 0 | M32: 0 | O32: =IF(OR($O$3="",$N$3="",N32=""),"",IF($O$9-SUM($N$11:N31)-N32<0,TEXT(-(($O$9-SUM($N$11:N31)-N32)/24),"-[hh]:mm"),TEXT(($O$9-SUM($N$11:N31)-N32)/24,"[hh]:mm"))) -> 
C33: =IF(OR($K$9=0,AND($K$9=2,A33<=14)),1,IF(IF(ISNA(INDEX(X!$W$7:$W$20,MATCH(DATE($D$4,$C$4,A33),X!$AC$7:$AC$20,0))),1,2)=2,2,IF(OR(B33="Sa",B33="So"),2,IF($K$9=1,SUMIFS($R$4:$R$8,$S$4:$S$8,B33),IF(AND($K$9=2,A33<15),SUMIFS($R$4:$R$8,$S$4:$S$8,B33),IF(AND($K$9=2,A33>14),SUMIFS($R$12:$R$16,$S$12:$S$16,B33),IF(AND($K$9=3,A33>14),SUMIFS($R$12:$R$16,$S$12:$S$16,B33),IF(AND($K$9=3,A33<15),SUMIFS($R$4:$R$8,$S$4:$S$8,B33),1)))))))) -> 1 | I33: =IF($K$9>0,IF(SUM($K$11:$K33,$I$6)<0,TEXT(-(SUM($K$11:K33,$I$6)/60)/24,"-[h]:mm"),TEXT((SUM($K$11:K33,$I$6)/60)/24,"[h]:mm")),"") ->  | L33: 0 | M33: 0 | O33: =IF(OR($O$3="",$N$3="",N33=""),"",IF($O$9-SUM($N$11:N32)-N33<0,TEXT(-(($O$9-SUM($N$11:N32)-N33)/24),"-[hh]:mm"),TEXT(($O$9-SUM($N$11:N32)-N33)/24,"[hh]:mm"))) -> 
C34: =IF(OR($K$9=0,AND($K$9=2,A34<=14)),1,IF(IF(ISNA(INDEX(X!$W$7:$W$20,MATCH(DATE($D$4,$C$4,A34),X!$AC$7:$AC$20,0))),1,2)=2,2,IF(OR(B34="Sa",B34="So"),2,IF($K$9=1,SUMIFS($R$4:$R$8,$S$4:$S$8,B34),IF(AND($K$9=2,A34<15),SUMIFS($R$4:$R$8,$S$4:$S$8,B34),IF(AND($K$9=2,A34>14),SUMIFS($R$12:$R$16,$S$12:$S$16,B34),IF(AND($K$9=3,A34>14),SUMIFS($R$12:$R$16,$S$12:$S$16,B34),IF(AND($K$9=3,A34<15),SUMIFS($R$4:$R$8,$S$4:$S$8,B34),1)))))))) -> 1 | I34: =IF($K$9>0,IF(SUM($K$11:$K34,$I$6)<0,TEXT(-(SUM($K$11:K34,$I$6)/60)/24,"-[h]:mm"),TEXT((SUM($K$11:K34,$I$6)/60)/24,"[h]:mm")),"") ->  | L34: 0 | M34: 0 | O34: =IF(OR($O$3="",$N$3="",N34=""),"",IF($O$9-SUM($N$11:N33)-N34<0,TEXT(-(($O$9-SUM($N$11:N33)-N34)/24),"-[hh]:mm"),TEXT(($O$9-SUM($N$11:N33)-N34)/24,"[hh]:mm"))) -> 
C35: =IF(OR($K$9=0,AND($K$9=2,A35<=14)),1,IF(IF(ISNA(INDEX(X!$W$7:$W$20,MATCH(DATE($D$4,$C$4,A35),X!$AC$7:$AC$20,0))),1,2)=2,2,IF(OR(B35="Sa",B35="So"),2,IF($K$9=1,SUMIFS($R$4:$R$8,$S$4:$S$8,B35),IF(AND($K$9=2,A35<15),SUMIFS($R$4:$R$8,$S$4:$S$8,B35),IF(AND($K$9=2,A35>14),SUMIFS($R$12:$R$16,$S$12:$S$16,B35),IF(AND($K$9=3,A35>14),SUMIFS($R$12:$R$16,$S$12:$S$16,B35),IF(AND($K$9=3,A35<15),SUMIFS($R$4:$R$8,$S$4:$S$8,B35),1)))))))) -> 1 | I35: =IF($K$9>0,IF(SUM($K$11:$K35,$I$6)<0,TEXT(-(SUM($K$11:K35,$I$6)/60)/24,"-[h]:mm"),TEXT((SUM($K$11:K35,$I$6)/60)/24,"[h]:mm")),"") ->  | L35: 0 | M35: 0 | O35: =IF(OR($O$3="",$N$3="",N35=""),"",IF($O$9-SUM($N$11:N34)-N35<0,TEXT(-(($O$9-SUM($N$11:N34)-N35)/24),"-[hh]:mm"),TEXT(($O$9-SUM($N$11:N34)-N35)/24,"[hh]:mm"))) -> 
C36: =IF(OR($K$9=0,AND($K$9=2,A36<=14)),1,IF(IF(ISNA(INDEX(X!$W$7:$W$20,MATCH(DATE($D$4,$C$4,A36),X!$AC$7:$AC$20,0))),1,2)=2,2,IF(OR(B36="Sa",B36="So"),2,IF($K$9=1,SUMIFS($R$4:$R$8,$S$4:$S$8,B36),IF(AND($K$9=2,A36<15),SUMIFS($R$4:$R$8,$S$4:$S$8,B36),IF(AND($K$9=2,A36>14),SUMIFS($R$12:$R$16,$S$12:$S$16,B36),IF(AND($K$9=3,A36>14),SUMIFS($R$12:$R$16,$S$12:$S$16,B36),IF(AND($K$9=3,A36<15),SUMIFS($R$4:$R$8,$S$4:$S$8,B36),1)))))))) -> 1 | I36: =IF($K$9>0,IF(SUM($K$11:$K36,$I$6)<0,TEXT(-(SUM($K$11:K36,$I$6)/60)/24,"-[h]:mm"),TEXT((SUM($K$11:K36,$I$6)/60)/24,"[h]:mm")),"") ->  | L36: 0 | M36: 0 | O36: =IF(OR($O$3="",$N$3="",N36=""),"",IF($O$9-SUM($N$11:N35)-N36<0,TEXT(-(($O$9-SUM($N$11:N35)-N36)/24),"-[hh]:mm"),TEXT(($O$9-SUM($N$11:N35)-N36)/24,"[hh]:mm"))) -> 
C37: =IF(OR($K$9=0,AND($K$9=2,A37<=14)),1,IF(IF(ISNA(INDEX(X!$W$7:$W$20,MATCH(DATE($D$4,$C$4,A37),X!$AC$7:$AC$20,0))),1,2)=2,2,IF(OR(B37="Sa",B37="So"),2,IF($K$9=1,SUMIFS($R$4:$R$8,$S$4:$S$8,B37),IF(AND($K$9=2,A37<15),SUMIFS($R$4:$R$8,$S$4:$S$8,B37),IF(AND($K$9=2,A37>14),SUMIFS($R$12:$R$16,$S$12:$S$16,B37),IF(AND($K$9=3,A37>14),SUMIFS($R$12:$R$16,$S$12:$S$16,B37),IF(AND($K$9=3,A37<15),SUMIFS($R$4:$R$8,$S$4:$S$8,B37),1)))))))) -> 1 | I37: =IF($K$9>0,IF(SUM($K$11:$K37,$I$6)<0,TEXT(-(SUM($K$11:K37,$I$6)/60)/24,"-[h]:mm"),TEXT((SUM($K$11:K37,$I$6)/60)/24,"[h]:mm")),"") ->  | L37: 0 | M37: 0 | O37: =IF(OR($O$3="",$N$3="",N37=""),"",IF($O$9-SUM($N$11:N36)-N37<0,TEXT(-(($O$9-SUM($N$11:N36)-N37)/24),"-[hh]:mm"),TEXT(($O$9-SUM($N$11:N36)-N37)/24,"[hh]:mm"))) -> 
C38: =IF(OR($K$9=0,AND($K$9=2,A38<=14)),1,IF(IF(ISNA(INDEX(X!$W$7:$W$20,MATCH(DATE($D$4,$C$4,A38),X!$AC$7:$AC$20,0))),1,2)=2,2,IF(OR(B38="Sa",B38="So"),2,IF($K$9=1,SUMIFS($R$4:$R$8,$S$4:$S$8,B38),IF(AND($K$9=2,A38<15),SUMIFS($R$4:$R$8,$S$4:$S$8,B38),IF(AND($K$9=2,A38>14),SUMIFS($R$12:$R$16,$S$12:$S$16,B38),IF(AND($K$9=3,A38>14),SUMIFS($R$12:$R$16,$S$12:$S$16,B38),IF(AND($K$9=3,A38<15),SUMIFS($R$4:$R$8,$S$4:$S$8,B38),1)))))))) -> 1 | I38: =IF($K$9>0,IF(SUM($K$11:$K38,$I$6)<0,TEXT(-(SUM($K$11:K38,$I$6)/60)/24,"-[h]:mm"),TEXT((SUM($K$11:K38,$I$6)/60)/24,"[h]:mm")),"") ->  | L38: 0 | M38: 0 | O38: =IF(OR($O$3="",$N$3="",N38=""),"",IF($O$9-SUM($N$11:N37)-N38<0,TEXT(-(($O$9-SUM($N$11:N37)-N38)/24),"-[hh]:mm"),TEXT(($O$9-SUM($N$11:N37)-N38)/24,"[hh]:mm"))) -> 
B39: =IF(OR(A39="",$D$4=""),"",TEXT(DATE($D$4,$C$4,A39),"ttt")) ->  | C39: =IF(OR($K$9=0,AND($K$9=2,A39<=14)),1,IF(IF(ISNA(INDEX(X!$W$7:$W$20,MATCH(DATE($D$4,$C$4,A39),X!$AC$7:$AC$20,0))),1,2)=2,2,IF(OR(B39="Sa",B39="So"),2,IF($K$9=1,SUMIFS($R$4:$R$8,$S$4:$S$8,B39),IF(AND($K$9=2,A39<15),SUMIFS($R$4:$R$8,$S$4:$S$8,B39),IF(AND($K$9=2,A39>14),SUMIFS($R$12:$R$16,$S$12:$S$16,B39),IF(AND($K$9=3,A39>14),SUMIFS($R$12:$R$16,$S$12:$S$16,B39),IF(AND($K$9=3,A39<15),SUMIFS($R$4:$R$8,$S$4:$S$8,B39),1)))))))) -> 1 | I39: =IF($K$9>0,IF(SUM($K$11:$K39,$I$6)<0,TEXT(-(SUM($K$11:K39,$I$6)/60)/24,"-[h]:mm"),TEXT((SUM($K$11:K39,$I$6)/60)/24,"[h]:mm")),"") ->  | L39: 0 | M39: 0 | O39: =IF(OR($O$3="",$N$3="",N39=""),"",IF($O$9-SUM($N$11:N38)-N39<0,TEXT(-(($O$9-SUM($N$11:N38)-N39)/24),"-[hh]:mm"),TEXT(($O$9-SUM($N$11:N38)-N39)/24,"[hh]:mm"))) -> 
B40: =IF(OR(A40="",$D$4=""),"",TEXT(DATE($D$4,$C$4,A40),"ttt")) ->  | C40: =IF(OR($K$9=0,AND($K$9=2,A40<=14)),1,IF(IF(ISNA(INDEX(X!$W$7:$W$20,MATCH(DATE($D$4,$C$4,A40),X!$AC$7:$AC$20,0))),1,2)=2,2,IF(OR(B40="Sa",B40="So"),2,IF($K$9=1,SUMIFS($R$4:$R$8,$S$4:$S$8,B40),IF(AND($K$9=2,A40<15),SUMIFS($R$4:$R$8,$S$4:$S$8,B40),IF(AND($K$9=2,A40>14),SUMIFS($R$12:$R$16,$S$12:$S$16,B40),IF(AND($K$9=3,A40>14),SUMIFS($R$12:$R$16,$S$12:$S$16,B40),IF(AND($K$9=3,A40<15),SUMIFS($R$4:$R$8,$S$4:$S$8,B40),1)))))))) -> 1 | I40: =IF($K$9>0,IF(SUM($K$11:$K40,$I$6)<0,TEXT(-(SUM($K$11:K40,$I$6)/60)/24,"-[h]:mm"),TEXT((SUM($K$11:K40,$I$6)/60)/24,"[h]:mm")),"") ->  | L40: 0 | M40: 0 | O40: =IF(OR($O$3="",$N$3="",N40=""),"",IF($O$9-SUM($N$11:N39)-N40<0,TEXT(-(($O$9-SUM($N$11:N39)-N40)/24),"-[hh]:mm"),TEXT(($O$9-SUM($N$11:N39)-N40)/24,"[hh]:mm"))) -> 
C41: =IF(OR($K$9=0,AND($K$9=2,A41<=14)),1,IF(IF(ISNA(INDEX(X!$W$7:$W$20,MATCH(DATE($D$4,$C$4,A41),X!$AC$7:$AC$20,0))),1,2)=2,2,IF(OR(B41="Sa",B41="So"),2,IF($K$9=1,SUMIFS($R$4:$R$8,$S$4:$S$8,B41),IF(AND($K$9=2,A41<15),SUMIFS($R$4:$R$8,$S$4:$S$8,B41),IF(AND($K$9=2,A41>14),SUMIFS($R$12:$R$16,$S$12:$S$16,B41),IF(AND($K$9=3,A41>14),SUMIFS($R$12:$R$16,$S$12:$S$16,B41),IF(AND($K$9=3,A41<15),SUMIFS($R$4:$R$8,$S$4:$S$8,B41),1)))))))) -> 1 | I41: =IF($K$9>0,IF(SUM($K$11:$K41,$I$6)<0,TEXT(-(SUM($K$11:K41,$I$6)/60)/24,"-[h]:mm"),TEXT((SUM($K$11:K41,$I$6)/60)/24,"[h]:mm")),"") ->  | L41: 0 | M41: 0 | O41: =IF(OR($O$3="",$N$3="",N41=""),"",IF($O$9-SUM($N$11:N40)-N41<0,TEXT(-(($O$9-SUM($N$11:N40)-N41)/24),"-[hh]:mm"),TEXT(($O$9-SUM($N$11:N40)-N41)/24,"[hh]:mm"))) -> 
G42: =L42+K42 -> 0 | H42: =K42 -> 0 | K42: =SUM(K11:K41) -> 0 | L42: =-SUM(L11:L41) -> 0 | M42: =M41 -> 0 | N42: =SUM(N11:N41)*60 -> 0 | Q42: =IF((G42/60)<0,TEXT(-((G42/60)/24),"-[hh]:mm"),TEXT((G42/60)/24,"[hh]:mm")) -> 00:00
A43: =IF(G4="","","Ergebnis") ->  | G43: =IF(G4="",0,IF(((G42-N42)/60)<0,TEXT(-(((G42-N42)/60)/24),"-[hh]:mm"),TEXT(((G42-N42)/60)/24,"[hh]:mm"))) -> 0 | H43: =IF(G4=0,"",IF(H42<0,TEXT(-((H42/60)/24),"-[hh]:mm"),IF((H42/60)>24,TEXT((((H42/60)-24)/24)+(24/24),"[hh]:mm"),(H42/60)/24))) -> 0 | I43: =IF($K$9>0,IF(SUM(I6,K43)<0,TEXT(-(SUM(I6,K43)/60)/24,"-[h]:mm"),TEXT((SUM(I6,K43)/60)/24,"[h]:mm")),"") ->  | K43: =IF(L42<>L43,G42-L43,K42) -> 0 | L43: =IF(AND(K9=1,SUM(U4:U8)<>H9),((H9/5)*COUNTIFS(C11:C41,"<>"&2,F11:F41,""))*60,IF(AND(K9=2,SUM(U12:U16)<>I9),((I9/5)*COUNTIFS(C11:C41,"<>"&2,F11:F41,""))*60,IF(AND(K9=3,OR(SUM(U4:U8)<>H9,SUM(U12:U16)<>I9)),SUM(IF(SUM(U4:U8)<>H9,((H9/5)*COUNTIFS(C11:C41,"<>"&2,A11:A41,"<"&15,F11:F41,""))*60,-SUMIFS(L11:L41,A11:A41,"<"&15,F11:F41,"")),IF(SUM(U12:U16)<>I9,((I9/5)*COUNTIFS(C11:C41,"<>"&2,A11:A41,">"&14,F11:F41,""))*60,-SUMIFS(L11:L41,A11:A41,">"&14,F11:F41,""))),-SUM(L11:L41)))) -> 0 | N43: =IF(N42<0,TEXT(-((N42/60)/24),"-[hh]:mm"),TEXT((N42/60)/24,"[hh]:mm")) -> 00:00 | O43: =IF(O9-SUM(N11:N41)<0,TEXT(-(O9-SUM(N11:N41))/24,"-[h]:mm"),TEXT((O9-SUM(N11:N41))/24,"[h]:mm")) ->  | Q43: =Q42 -> 00:00
A44: =IF(G4="","","Saldo / Übertrag:") ->  | I44: =I43 ->  | J44: =IF(K42<>K43,"automatische Nachberechnung der Sollarbeitszeit, da wöchentlicher Stundenumfang nicht eingehalten wurde.","") ->  | K44: =K43+I6 -> 0 | L44: Übertrag
A46: =IF(I46="","","Korrektur der Stunden") ->  | I46: =IF(K9>0,IF(K42-K43<>0,IF(K43-K42<0,TEXT(-((K43-K42)/60)/24,"-[h]:mm"),TEXT(((K43-K42)/60)/24,"[h]:mm")),""),"") -> 
A57: =D4 ->  | B57: =C4 -> 6 | C57: =Uebersicht!A4 -> 0 | D57: =Uebersicht!B4 -> 0 | E57: =L43 -> 0 | F57: =K42 -> 0 | G57: =K43 -> 0 | H57: =M10 -> 0 | I57: =M42 -> 0

Sheet Jul
A1: Zeiterfassungsbogen für studentische Hilfskräfte | International Office | V1: "nein" auswählen, wenn keine festen Tage mehr gelten sollen!
A2: =IF(Uebersicht!A4="","",CONCATENATE(Uebersicht!B4," ",Uebersicht!A4)) -> 
N3: =INDEX(Uebersicht!AO5:AQ28,MATCH(C4,Uebersicht!AO5:AO28,0),3) -> 0 | O3: =INDEX(Uebersicht!AO5:AQ28,MATCH(C4+0.5,Uebersicht!AO5:AO28,0),3) -> 0 | S3: Tag | T3: h
A4: =IF(D4="","",TEXT(DATE(D4,C4,1),"MMM")) ->  | C4: 7 | D4: =Uebersicht!I1 ->  | G4: =IF(INDEX(Uebersicht!AO31:AQ42,MATCH(C4,Uebersicht!AO31:AO43,0),2)=0,"",INDEX(Uebersicht!AO31:AQ42,MATCH(C4,Uebersicht!AO31:AO43,0),2)) ->  | N4: =INDEX(Uebersicht!AO31:AQ42,MATCH(C4,Uebersicht!AO31:AO43,0),3) -> 0 | R4: =IF(OR($K$9=2,$K$9=0),1,IF(AND(OR($K$9=1,$K$9=3),OR(SUM($U$4:$U$8)=0,$U$1="nein")),3,IF(AND($U$1="",SUM($U$4:$U$8)>0,U4>=1,OR($K$9=3,$K$9=1)),4,1))) -> 1 | S4: Mo | U4: =IF(AND(H9=0,I9=0),0,IF(OR($K$9=0,INDIRECT("'"&TEXT(DATE(D4,$C$4-1,1),"MMM")&"'!$U$1")="nein",$U$1="nein"),0,IF(T4>0,T4,INDEX(Uebersicht!$BA$3:$BE$14,$C$4,MATCH(S4,Uebersicht!$BA$2:$BE$2,0))))) -> 0
R5: =IF(OR($K$9=2,$K$9=0),1,IF(AND(OR($K$9=1,$K$9=3),OR(SUM($U$4:$U$8)=0,$U$1="nein")),3,IF(AND($U$1="",SUM($U$4:$U$8)>0,U5>=1,OR($K$9=3,$K$9=1)),4,1))) -> 1 | S5: Di | U5: =IF(OR($K$9=0,INDIRECT("'"&TEXT(DATE(D5,$C$4-1,1),"MMM")&"'!$U$1")="nein",$U$1="nein"),0,IF(T5>0,T5,INDEX(Uebersicht!$BA$3:$BE$14,$C$4,MATCH(S5,Uebersicht!$BA$2:$BE$2,0)))) -> 0
C6: =DAY(DATE(D4,C4+1,1)-1) ->  | H6: =IF(N4=0,"","Arbeitsgebiet 1") ->  | I6: =IF(AND(I9=0,H9=0),0,IF(C4-1=0,Uebersicht!G4,INDIRECT("'"&TEXT(DATE(D4,C4-1,1),"MMM")&"'!K44"))) -> 0 | K6: nein | N6: =IF(N4="","","Arbeitsgebiet 2") -> Arbeitsgebiet 2 | R6: =IF(OR($K$9=2,$K$9=0),1,IF(AND(OR($K$9=1,$K$9=3),OR(SUM($U$4:$U$8)=0,$U$1="nein")),3,IF(AND($U$1="",SUM($U$4:$U$8)>0,U6>=1,OR($K$9=3,$K$9=1)),4,1))) -> 1 | S6: Mi | U6: =IF(OR($K$9=0,INDIRECT("'"&TEXT(DATE(D6,$C$4-1,1),"MMM")&"'!$U$1")="nein",$U$1="nein"),0,IF(T6>0,T6,INDEX(Uebersicht!$BA$3:$BE$14,$C$4,MATCH(S6,Uebersicht!$BA$2:$BE$2,0)))) -> 0
A7: =IF(AND(H9>0,I9=0),CONCATENATE(H9," Wochenarbeitszeit (h)"),IF(AND(H9=0,I9>0),CONCATENATE(I9," Wochenarbeitszeit (h)"),IF(AND(H9>0,I9>0,H9<>I9),CONCATENATE(H9," h, ab 15. ",TEXT(DATE(D4,C4,1),"MMMM")," ",I9,"h"),""))) ->  | F7: =IF(G4="","",IF(M42/60>0,TEXT((M42/60)/24,"[h]:mm"),0)) ->  | G7: =IF(F7="","","Urlaubsrest") ->  | I7: =IF(AND(YEAR(TODAY())=D4,MONTH(TODAY())>=C4,K9>0),IF(OR(I6=0,I6=""),0,IF(I6<0,TEXT(-(I6/60)/24,"-[h]:mm"),TEXT((I6/60)/24,"[h]:mm"))),"") ->  | J7: =IF(I7="","",CONCATENATE("h Übertrag aus ",IF(C6=1,"Vorjahr","Vormonat"))) ->  | K7: Urlaub | N7: =IF(AND(N3>0,O3=0),CONCATENATE(N3," Stunden - Anteil pro Woche"),IF(AND(N3=0,O3>0),CONCATENATE(O3," Stunden - Anteil pro Woche"),IF(AND(N3>0,O3>0,O3<>N3),CONCATENATE(N3," h, ab 15. ",TEXT(DATE(D4,C4,1),"MMMM")," ",O3,"h"),IF(N3=O3,CONCATENATE(N3," Stunden - Anteil pro Woche"),"")))) -> 0 Stunden - Anteil pro Woche | R7: =IF(OR($K$9=2,$K$9=0),1,IF(AND(OR($K$9=1,$K$9=3),OR(SUM($U$4:$U$8)=0,$U$1="nein")),3,IF(AND($U$1="",SUM($U$4:$U$8)>0,U7>=1,OR($K$9=3,$K$9=1)),4,1))) -> 1 | S7: Do | U7: =IF(OR($K$9=0,INDIRECT("'"&TEXT(DATE(D7,$C$4-1,1),"MMM")&"'!$U$1")="nein",$U$1="nein"),0,IF(T7>0,T7,INDEX(Uebersicht!$BA$3:$BE$14,$C$4,MATCH(S7,Uebersicht!$BA$2:$BE$2,0)))) -> 0
K8: Krank | R8: =IF(OR($K$9=2,$K$9=0),1,IF(AND(OR($K$9=1,$K$9=3),OR(SUM($U$4:$U$8)=0,$U$1="nein")),3,IF(AND($U$1="",SUM($U$4:$U$8)>0,U8>=1,OR($K$9=3,$K$9=1)),4,1))) -> 1 | S8: Fr | U8: =IF(OR($K$9=0,INDIRECT("'"&TEXT(DATE(D8,$C$4-1,1),"MMM")&"'!$U$1")="nein",$U$1="nein"),0,IF(T8>0,T8,INDEX(Uebersicht!$BA$3:$BE$14,$C$4,MATCH(S8,Uebersicht!$BA$2:$BE$2,0)))) -> 0
H9: =INDEX(Uebersicht!AU3:AW14,C4,2) -> 0 | I9: =IF(INDEX(Uebersicht!AU3:AW14,C4,3)=H9,0,INDEX(Uebersicht!AU3:AW14,C4,3)) -> 0 | K9: =IF(AND(H9>0,I9=0),1,IF(AND(H9=0,I9>0),2,IF(AND(H9=0,I9=0),0,IF(H9<>I9,3,"")))) -> 0 | O9: =IF(OR(N3>0,O3>0),IF(OR(K9=1,K9=2),(IF(K9=1,N3,IF(K9=2,O2,0))/5)*NETWORKDAYS(IF(K9=1,DATE(D4,C4,1),IF(K9=2,DATE(D4,C4,15),0)),IF(OR(K9=1,K9=2),DATE(D4,C4,MAX(A11:A41)),0),COUNTIFS(C11:C41,"<>"&2)),IF(K9=3,SUM(IF(N3>0,(N3/5)*NETWORKDAYS(DATE(D4,C4,1),DATE(D4,C4,14),2),0),IF(O3>0,(O3/5)*NETWORKDAYS(DATE(D4,C4,15),DATE(D4,C4,MAX(A11:A41)),2),0)),0)),"") ->  | S9: =IF(SUM(U4:U8)=0,"",IF(SUM(U4:U8)>H9,"zu viel!",IF(SUM(U4:U8)<H9,"zu wenig!",""))) ->  | U9: =IF(OR(U1="nein",SUM(U4:U8)=0),"ja",IF(OR(SUM(Uebersicht!C36:C40)>0,SUM(T4:T8)>0,SUM(U4:U8)>0),"nein","ja")) -> ja
A10: Tag | D10: Beginn | E10: Ende | F10: Urlaub Krank | G10: Stunden | H10: Mehr/ Minder | I10: Saldo summiert | J10: Bemerkungen | K10: Differenz | L10: Soll | M10: =IF(AND(I9=0,H9=0),0,IF(C4-1=0,IF(Uebersicht!E8="",0,Uebersicht!E8*60),INDIRECT("'"&TEXT(DATE(D4,C4-1,1),"MMM")&"'!M42"))) -> 0 | N10: Stunden | O10: Rest | P10: Bemerkungen | Q10: Gesamt | S10: Änderung im laufenden Monat
A11: 1 | B11: =IF(OR(A11="",$D$4=""),"",TEXT(DATE($D$4,$C$4,A11),"ttt")) ->  | C11: =IF(OR($K$9=0,AND($K$9=2,A11<=14)),1,IF(IF(ISNA(INDEX(X!$W$7:$W$20,MATCH(DATE($D$4,$C$4,A11),X!$AC$7:$AC$20,0))),1,2)=2,2,IF(OR(B11="Sa",B11="So"),2,IF($K$9=1,SUMIFS($R$4:$R$8,$S$4:$S$8,B11),IF(AND($K$9=2,A11<15),SUMIFS($R$4:$R$8,$S$4:$S$8,B11),IF(AND($K$9=2,A11>14),SUMIFS($R$12:$R$16,$S$12:$S$16,B11),IF(AND($K$9=3,A11>14),SUMIFS($R$12:$R$16,$S$12:$S$16,B11),IF(AND($K$9=3,A11<15),SUMIFS($R$4:$R$8,$S$4:$S$8,B11),1)))))))) -> 1 | G11: =IF(AND(D11="",E11=""),"",IF(N11="",IF(((HOUR(E11)*60+MINUTE(E11))-(HOUR(D11)*60+MINUTE(D11)))>360,TEXT(((((HOUR(E11)*60+MINUTE(E11))-(HOUR(D11)*60+MINUTE(D11)))-30)/60)/24,"[h]:mm"),TEXT((((HOUR(E11)*60+MINUTE(E11))-(HOUR(D11)*60+MINUTE(D11)))/60)/24,"[h]:mm")),IF((((HOUR(E11)*60+MINUTE(E11))-(HOUR(D11)*60+MINUTE(D11)))-N11)>360,TEXT(((((((HOUR(E11)*60+MINUTE(E11))-(HOUR(D11)*60+MINUTE(D11)))-30))/60)-N11)/24,"[h]:mm"),TEXT(((((HOUR(E11)*60+MINUTE(E11))-(HOUR(D11)*60+MINUTE(D11)))/60)-N11)/24,"[h]:mm")))) ->  | H11: =IF(K11="","",IF(TODAY()<=DATE($D$4,$C$4,A11),0,IF(K11>0,TEXT((K11/60)/24,"[h]:mm"),TEXT(-(K11/60)/24,"-[h]:mm")))) ->  | I11: =IF($K$9>0,IF(SUM($K$11:$K11,I6)<0,TEXT(-(SUM($K$11:K11,I6)/60)/24,"-[h]:mm"),TEXT((SUM($K$11:K11,I6)/60)/24,"[h]:mm")),"") ->  | K11: =IF(F11="",IF(L11<0,L11+IF(G11=" ",0,IF(((HOUR(E11)*60+MINUTE(E11))-(HOUR(D11)*60+MINUTE(D11)))>360,(HOUR(E11)*60+MINUTE(E11))-(HOUR(D11)*60+MINUTE(D11))-30,(HOUR(E11)*60+MINUTE(E11))-(HOUR(D11)*60+MINUTE(D11)))),IF(Q11="","",(Q11*60)*24)),"") ->  | L11: =IF(OR(F11="krank",F11="Urlaub",C11=1,C11=2),0,IF($K$9=1,IF(SUM($U$4:$U$8)=0,$H$9/5,INDEX($S$4:$U$8,MATCH(B11,$S$4:$S$8,0),3)),IF($K$9=2,IF(AND(A11>14,SUM($U$12:$U$16)=0),$I$9/5,INDEX($S$12:$U$16,MATCH(B11,$S$12:$S$16,0),3)),IF($K$9=3,IF(A11<15,IF(SUM($U$4:$U$8)=0,$H$9/5,INDEX($S$4:$U$8,MATCH(B11,$S$4:$S$8,0),3))),IF(A11>14,IF(SUM($U$12:$U$16)=0,$I$9/5,INDEX($S$12:$U$16,MATCH(B11,$S$12:$S$16,0),3))))))*-60) -> 0 | M11: =M10-(IF(OR(C11=1,C11=2),0,IF(C11=3,IF(AND($K$9=1,F11="Urlaub"),$H$9/5,IF($K$9=2,IF(AND(A11<15,F11="Urlaub"),$I$9/5,IF(AND($K$9=3,A11<15,F11="Urlaub"),$H$9/5,IF(AND($K$9=3,A11>14,F11="Urlaub"),$I$9/5))))),IF(C11=4,IF(AND(F11="Urlaub",$K$9=1),SUMIFS($U$4:$U$8,$S$4:$S$8,B11),IF(AND(F11="Urlaub",$K$9=2,A11>14),SUMIFS($U$12:$U$16,$S$12:$S$16,B11),IF(AND(F11="Urlaub",$K$9=3,A11<15),SUMIFS($U$4:$U$8,$S$4:$S$8,B11),IF(AND(F11="Urlaub",$K$9=3,A11>14),SUMIFS($U$12:$U$16,$S$12:$S$16,B11),0)))))))*60) -> 0 | O11: =IF(OR($O$3="",$N$3="",N11=""),"",IF($O$9-SUM($N10:N$11)-N11<0,TEXT(-(($O$9-SUM($N10:N$11)-N11)/24),"-[hh]:mm"),TEXT(($O$9-SUM($N10:N$11)-N11)/24,"[hh]:mm"))) ->  | Q11: =IF(AND(D11="",E11=""),"",IF(((HOUR(E11)*60+MINUTE(E11))-(HOUR(D11)*60+MINUTE(D11)))>360,TEXT(((((HOUR(E11)*60+MINUTE(E11))-(HOUR(D11)*60+MINUTE(D11)))-30)/60)/24,"[h]:mm"),TEXT((((HOUR(E11)*60+MINUTE(E11))-(HOUR(D11)*60+MINUTE(D11)))/60)/24,"[h]:mm"))) -> 
A12: =IF(OR(A11="",$D$4=""),"",IF(A11+1<=$C$6,A11+1,"")) ->  | C12: =IF(OR($K$9=0,AND($K$9=2,A12<=14)),1,IF(IF(ISNA(INDEX(X!$W$7:$W$20,MATCH(DATE($D$4,$C$4,A12),X!$AC$7:$AC$20,0))),1,2)=2,2,IF(OR(B12="Sa",B12="So"),2,IF($K$9=1,SUMIFS($R$4:$R$8,$S$4:$S$8,B12),IF(AND($K$9=2,A12<15),SUMIFS($R$4:$R$8,$S$4:$S$8,B12),IF(AND($K$9=2,A12>14),SUMIFS($R$12:$R$16,$S$12:$S$16,B12),IF(AND($K$9=3,A12>14),SUMIFS($R$12:$R$16,$S$12:$S$16,B12),IF(AND($K$9=3,A12<15),SUMIFS($R$4:$R$8,$S$4:$S$8,B12),1)))))))) -> 1 | I12: =IF($K$9>0,IF(SUM($K$11:$K12,$I$6)<0,TEXT(-(SUM($K$11:K12,$I$6)/60)/24,"-[h]:mm"),TEXT((SUM($K$11:K12,$I$6)/60)/24,"[h]:mm")),"") ->  | K12: =IF(F12="",IF(L12<0,L12+IF(G12=" ",0,IF(((HOUR(E12)*60+MINUTE(E12))-(HOUR(D12)*60+MINUTE(D12)))>360,(HOUR(E12)*60+MINUTE(E12))-(HOUR(D12)*60+MINUTE(D12))-30,(HOUR(E12)*60+MINUTE(E12))-(HOUR(D12)*60+MINUTE(D12)))),IF(Q12="","",(Q12*60)*24)),"") ->  | L12: =IF(OR(F12="krank",F12="Urlaub",C12=1,C12=2),0,IF($K$9=1,IF(SUM($U$4:$U$8)=0,$H$9/5,INDEX($S$4:$U$8,MATCH(B12,$S$4:$S$8,0),3)),IF($K$9=2,IF(AND(A12>14,SUM($U$12:$U$16)=0),$I$9/5,INDEX($S$12:$U$16,MATCH(B12,$S$12:$S$16,0),3)),IF($K$9=3,IF(A12<15,IF(SUM($U$4:$U$8)=0,$H$9/5,INDEX($S$4:$U$8,MATCH(B12,$S$4:$S$8,0),3)),IF(SUM($U$12:$U$16)=0,$I$9/5,INDEX($S$12:$U$16,MATCH(B12,$S$12:$S$16,0),3)))))))*-60 -> 0 | M12: 0 | O12: =IF(OR($O$3="",$N$3="",N12=""),"",IF($O$9-SUM($N$11:N11)-N12<0,TEXT(-(($O$9-SUM($N$11:N11)-N12)/24),"-[hh]:mm"),TEXT(($O$9-SUM($N$11:N11)-N12)/24,"[hh]:mm"))) ->  | R12: =IF($K$9=0,1,IF($K$9=1,R4,IF(AND($K$9=3,OR(SUM($U$12:$U$16)=0,$U$1="nein")),3,IF(AND($U$1="",SUM($U$12:$U$16)>0,U12>=1,OR($K$9=3,$K$9=2)),4,1)))) -> 1 | S12: Mo | U12: =IF(AND(I9=0,H9=0),0,IF(OR($K$9=0,INDIRECT("'"&TEXT(DATE(D4,$C$4-1,1),"MMM")&"'!$U$1")="nein",$U$1="nein"),0,IF(T12>0,T12,INDEX(Uebersicht!$BF$3:$BJ$14,$C$4,MATCH(S12,Uebersicht!$BF$2:$BJ$2,0))))) -> 0
A13: =IF(OR(A12="",$D$4=""),"",IF(A12+1<=$C$6,A12+1,"")) ->  | C13: =IF(OR($K$9=0,AND($K$9=2,A13<=14)),1,IF(IF(ISNA(INDEX(X!$W$7:$W$20,MATCH(DATE($D$4,$C$4,A13),X!$AC$7:$AC$20,0))),1,2)=2,2,IF(OR(B13="Sa",B13="So"),2,IF($K$9=1,SUMIFS($R$4:$R$8,$S$4:$S$8,B13),IF(AND($K$9=2,A13<15),SUMIFS($R$4:$R$8,$S$4:$S$8,B13),IF(AND($K$9=2,A13>14),SUMIFS($R$12:$R$16,$S$12:$S$16,B13),IF(AND($K$9=3,A13>14),SUMIFS($R$12:$R$16,$S$12:$S$16,B13),IF(AND($K$9=3,A13<15),SUMIFS($R$4:$R$8,$S$4:$S$8,B13),1)))))))) -> 1 | I13: =IF($K$9>0,IF(SUM($K$11:$K13,$I$6)<0,TEXT(-(SUM($K$11:K13,$I$6)/60)/24,"-[h]:mm"),TEXT((SUM($K$11:K13,$I$6)/60)/24,"[h]:mm")),"") ->  | L13: 0 | M13: 0 | O13: =IF(OR($O$3="",$N$3="",N13=""),"",IF($O$9-SUM($N$11:N12)-N13<0,TEXT(-(($O$9-SUM($N$11:N12)-N13)/24),"-[hh]:mm"),TEXT(($O$9-SUM($N$11:N12)-N13)/24,"[hh]:mm"))) ->  | R13: =IF($K$9=0,1,IF($K$9=1,R5,IF(AND($K$9=3,OR(SUM($U$12:$U$16)=0,$U$1="nein")),3,IF(AND($U$1="",SUM($U$12:$U$16)>0,U13>=1,OR($K$9=3,$K$9=2)),4,1)))) -> 1 | S13: Di | U13: =IF(OR($K$9=0,INDIRECT("'"&TEXT(DATE(D5,$C$4-1,1),"MMM")&"'!$U$1")="nein",$U$1="nein"),0,IF(T13>0,T13,INDEX(Uebersicht!$BF$3:$BJ$14,$C$4,MATCH(S13,Uebersicht!$BF$2:$BJ$2,0)))) -> 0
C14: =IF(OR($K$9=0,AND($K$9=2,A14<=14)),1,IF(IF(ISNA(INDEX(X!$W$7:$W$20,MATCH(DATE($D$4,$C$4,A14),X!$AC$7:$AC$20,0))),1,2)=2,2,IF(OR(B14="Sa",B14="So"),2,IF($K$9=1,SUMIFS($R$4:$R$8,$S$4:$S$8,B14),IF(AND($K$9=2,A14<15),SUMIFS($R$4:$R$8,$S$4:$S$8,B14),IF(AND($K$9=2,A14>14),SUMIFS($R$12:$R$16,$S$12:$S$16,B14),IF(AND($K$9=3,A14>14),SUMIFS($R$12:$R$16,$S$12:$S$16,B14),IF(AND($K$9=3,A14<15),SUMIFS($R$4:$R$8,$S$4:$S$8,B14),1)))))))) -> 1 | I14: =IF($K$9>0,IF(SUM($K$11:$K14,$I$6)<0,TEXT(-(SUM($K$11:K14,$I$6)/60)/24,"-[h]:mm"),TEXT((SUM($K$11:K14,$I$6)/60)/24,"[h]:mm")),"") ->  | L14: 0 | M14: 0 | O14: =IF(OR($O$3="",$N$3="",N14=""),"",IF($O$9-SUM($N$11:N13)-N14<0,TEXT(-(($O$9-SUM($N$11:N13)-N14)/24),"-[hh]:mm"),TEXT(($O$9-SUM($N$11:N13)-N14)/24,"[hh]:mm"))) ->  | R14: =IF($K$9=0,1,IF($K$9=1,R6,IF(AND($K$9=3,OR(SUM($U$12:$U$16)=0,$U$1="nein")),3,IF(AND($U$1="",SUM($U$12:$U$16)>0,U14>=1,OR($K$9=3,$K$9=2)),4,1)))) -> 1 | S14: Mi | U14: =IF(OR($K$9=0,INDIRECT("'"&TEXT(DATE(D6,$C$4-1,1),"MMM")&"'!$U$1")="nein",$U$1="nein"),0,IF(T14>0,T14,INDEX(Uebersicht!$BF$3:$BJ$14,$C$4,MATCH(S14,Uebersicht!$BF$2:$BJ$2,0)))) -> 0
C15: =IF(OR($K$9=0,AND($K$9=2,A15<=14)),1,IF(IF(ISNA(INDEX(X!$W$7:$W$20,MATCH(DATE($D$4,$C$4,A15),X!$AC$7:$AC$20,0))),1,2)=2,2,IF(OR(B15="Sa",B15="So"),2,IF($K$9=1,SUMIFS($R$4:$R$8,$S$4:$S$8,B15),IF(AND($K$9=2,A15<15),SUMIFS($R$4:$R$8,$S$4:$S$8,B15),IF(AND($K$9=2,A15>14),SUMIFS($R$12:$R$16,$S$12:$S$16,B15),IF(AND($K$9=3,A15>14),SUMIFS($R$12:$R$16,$S$12:$S$16,B15),IF(AND($K$9=3,A15<15),SUMIFS($R$4:$R$8,$S$4:$S$8,B15),1)))))))) -> 1 | I15: =IF($K$9>0,IF(SUM($K$11:$K15,$I$6)<0,TEXT(-(SUM($K$11:K15,$I$6)/60)/24,"-[h]:mm"),TEXT((SUM($K$11:K15,$I$6)/60)/24,"[h]:mm")),"") ->  | L15: 0 | M15: 0 | O15: =IF(OR($O$3="",$N$3="",N15=""),"",IF($O$9-SUM($N$11:N14)-N15<0,TEXT(-(($O$9-SUM($N$11:N14)-N15)/24),"-[hh]:mm"),TEXT(($O$9-SUM($N$11:N14)-N15)/24,"[hh]:mm"))) ->  | R15: =IF($K$9=0,1,IF($K$9=1,R7,IF(AND($K$9=3,OR(SUM($U$12:$U$16)=0,$U$1="nein")),3,IF(AND($U$1="",SUM($U$12:$U$16)>0,U15>=1,OR($K$9=3,$K$9=2)),4,1)))) -> 1 | S15: Do | U15: =IF(OR($K$9=0,INDIRECT("'"&TEXT(DATE(D7,$C$4-1,1),"MMM")&"'!$U$1")="nein",$U$1="nein"),0,IF(T15>0,T15,INDEX(Uebersicht!$BF$3:$BJ$14,$C$4,MATCH(S15,Uebersicht!$BF$2:$BJ$2,0)))) -> 0
C16: =IF(OR($K$9=0,AND($K$9=2,A16<=14)),1,IF(IF(ISNA(INDEX(X!$W$7:$W$20,MATCH(DATE($D$4,$C$4,A16),X!$AC$7:$AC$20,0))),1,2)=2,2,IF(OR(B16="Sa",B16="So"),2,IF($K$9=1,SUMIFS($R$4:$R$8,$S$4:$S$8,B16),IF(AND($K$9=2,A16<15),SUMIFS($R$4:$R$8,$S$4:$S$8,B16),IF(AND($K$9=2,A16>14),SUMIFS($R$12:$R$16,$S$12:$S$16,B16),IF(AND($K$9=3,A16>14),SUMIFS($R$12:$R$16,$S$12:$S$16,B16),IF(AND($K$9=3,A16<15),SUMIFS($R$4:$R$8,$S$4:$S$8,B16),1)))))))) -> 1 | I16: =IF($K$9>0,IF(SUM($K$11:$K16,$I$6)<0,TEXT(-(SUM($K$11:K16,$I$6)/60)/24,"-[h]:mm"),TEXT((SUM($K$11:K16,$I$6)/60)/24,"[h]:mm")),"") ->  | L16: 0 | M16: 0 | O16: =IF(OR($O$3="",$N$3="",N16=""),"",IF($O$9-SUM($N$11:N15)-N16<0,TEXT(-(($O$9-SUM($N$11:N15)-N16)/24),"-[hh]:mm"),TEXT(($O$9-SUM($N$11:N15)-N16)/24,"[hh]:mm"))) ->  | R16: =IF($K$9=0,1,IF($K$9=1,R8,IF(AND($K$9=3,OR(SUM($U$12:$U$16)=0,$U$1="nein")),3,IF(AND($U$1="",SUM($U$12:$U$16)>0,U16>=1,OR($K$9=3,$K$9=2)),4,1)))) -> 1 | S16: Fr | U16: =IF(OR($K$9=0,INDIRECT("'"&TEXT(DATE(D8,$C$4-1,1),"MMM")&"'!$U$1")="nein",$U$1="nein"),0,IF(T16>0,T16,INDEX(Uebersicht!$BF$3:$BJ$14,$C$4,MATCH(S16,Uebersicht!$BF$2:$BJ$2,0)))) -> 0
C17: =IF(OR($K$9=0,AND($K$9=2,A17<=14)),1,IF(IF(ISNA(INDEX(X!$W$7:$W$20,MATCH(DATE($D$4,$C$4,A17),X!$AC$7:$AC$20,0))),1,2)=2,2,IF(OR(B17="Sa",B17="So"),2,IF($K$9=1,SUMIFS($R$4:$R$8,$S$4:$S$8,B17),IF(AND($K$9=2,A17<15),SUMIFS($R$4:$R$8,$S$4:$S$8,B17),IF(AND($K$9=2,A17>14),SUMIFS($R$12:$R$16,$S$12:$S$16,B17),IF(AND($K$9=3,A17>14),SUMIFS($R$12:$R$16,$S$12:$S$16,B17),IF(AND($K$9=3,A17<15),SUMIFS($R$4:$R$8,$S$4:$S$8,B17),1)))))))) -> 1 | I17: =IF($K$9>0,IF(SUM($K$11:$K17,$I$6)<0,TEXT(-(SUM($K$11:K17,$I$6)/60)/24,"-[h]:mm"),TEXT((SUM($K$11:K17,$I$6)/60)/24,"[h]:mm")),"") ->  | L17: 0 | M17: 0 | O17: =IF(OR($O$3="",$N$3="",N17=""),"",IF($O$9-SUM($N$11:N16)-N17<0,TEXT(-(($O$9-SUM($N$11:N16)-N17)/24),"-[hh]:mm"),TEXT(($O$9-SUM($N$11:N16)-N17)/24,"[hh]:mm"))) ->  | S17: =IF(I9=0,"",IF(SUM(U12:U16)>I9,"zu viel!",IF(SUM(U12:U16)<I9,"zu wenig!",""))) ->  | U17: =IF(OR(U9="nein",SUM(U12:U16)=0),"ja",IF(OR(SUM(Uebersicht!C43:C47)>0,SUM(T12:T16)>0,SUM(U12:U16)>0),"nein","ja")) -> ja
C18: =IF(OR($K$9=0,AND($K$9=2,A18<=14)),1,IF(IF(ISNA(INDEX(X!$W$7:$W$20,MATCH(DATE($D$4,$C$4,A18),X!$AC$7:$AC$20,0))),1,2)=2,2,IF(OR(B18="Sa",B18="So"),2,IF($K$9=1,SUMIFS($R$4:$R$8,$S$4:$S$8,B18),IF(AND($K$9=2,A18<15),SUMIFS($R$4:$R$8,$S$4:$S$8,B18),IF(AND($K$9=2,A18>14),SUMIFS($R$12:$R$16,$S$12:$S$16,B18),IF(AND($K$9=3,A18>14),SUMIFS($R$12:$R$16,$S$12:$S$16,B18),IF(AND($K$9=3,A18<15),SUMIFS($R$4:$R$8,$S$4:$S$8,B18),1)))))))) -> 1 | I18: =IF($K$9>0,IF(SUM($K$11:$K18,$I$6)<0,TEXT(-(SUM($K$11:K18,$I$6)/60)/24,"-[h]:mm"),TEXT((SUM($K$11:K18,$I$6)/60)/24,"[h]:mm")),"") ->  | L18: 0 | M18: 0 | O18: =IF(OR($O$3="",$N$3="",N18=""),"",IF($O$9-SUM($N$11:N17)-N18<0,TEXT(-(($O$9-SUM($N$11:N17)-N18)/24),"-[hh]:mm"),TEXT(($O$9-SUM($N$11:N17)-N18)/24,"[hh]:mm"))) -> 
C19: =IF(OR($K$9=0,AND($K$9=2,A19<=14)),1,IF(IF(ISNA(INDEX(X!$W$7:$W$20,MATCH(DATE($D$4,$C$4,A19),X!$AC$7:$AC$20,0))),1,2)=2,2,IF(OR(B19="Sa",B19="So"),2,IF($K$9=1,SUMIFS($R$4:$R$8,$S$4:$S$8,B19),IF(AND($K$9=2,A19<15),SUMIFS($R$4:$R$8,$S$4:$S$8,B19),IF(AND($K$9=2,A19>14),SUMIFS($R$12:$R$16,$S$12:$S$16,B19),IF(AND($K$9=3,A19>14),SUMIFS($R$12:$R$16,$S$12:$S$16,B19),IF(AND($K$9=3,A19<15),SUMIFS($R$4:$R$8,$S$4:$S$8,B19),1)))))))) -> 1 | I19: =IF($K$9>0,IF(SUM($K$11:$K19,$I$6)<0,TEXT(-(SUM($K$11:K19,$I$6)/60)/24,"-[h]:mm"),TEXT((SUM($K$11:K19,$I$6)/60)/24,"[h]:mm")),"") ->  | L19: 0 | M19: 0 | O19: =IF(OR($O$3="",$N$3="",N19=""),"",IF($O$9-SUM($N$11:N18)-N19<0,TEXT(-(($O$9-SUM($N$11:N18)-N19)/24),"-[hh]:mm"),TEXT(($O$9-SUM($N$11:N18)-N19)/24,"[hh]:mm"))) -> 
C20: =IF(OR($K$9=0,AND($K$9=2,A20<=14)),1,IF(IF(ISNA(INDEX(X!$W$7:$W$20,MATCH(DATE($D$4,$C$4,A20),X!$AC$7:$AC$20,0))),1,2)=2,2,IF(OR(B20="Sa",B20="So"),2,IF($K$9=1,SUMIFS($R$4:$R$8,$S$4:$S$8,B20),IF(AND($K$9=2,A20<15),SUMIFS($R$4:$R$8,$S$4:$S$8,B20),IF(AND($K$9=2,A20>14),SUMIFS($R$12:$R$16,$S$12:$S$16,B20),IF(AND($K$9=3,A20>14),SUMIFS($R$12:$R$16,$S$12:$S$16,B20),IF(AND($K$9=3,A20<15),SUMIFS($R$4:$R$8,$S$4:$S$8,B20),1)))))))) -> 1 | I20: =IF($K$9>0,IF(SUM($K$11:$K20,$I$6)<0,TEXT(-(SUM($K$11:K20,$I$6)/60)/24,"-[h]:mm"),TEXT((SUM($K$11:K20,$I$6)/60)/24,"[h]:mm")),"") ->  | L20: 0 | M20: 0 | O20: =IF(OR($O$3="",$N$3="",N20=""),"",IF($O$9-SUM($N$11:N19)-N20<0,TEXT(-(($O$9-SUM($N$11:N19)-N20)/24),"-[hh]:mm"),TEXT(($O$9-SUM($N$11:N19)-N20)/24,"[hh]:mm"))) -> 
C21: =IF(OR($K$9=0,AND($K$9=2,A21<=14)),1,IF(IF(ISNA(INDEX(X!$W$7:$W$20,MATCH(DATE($D$4,$C$4,A21),X!$AC$7:$AC$20,0))),1,2)=2,2,IF(OR(B21="Sa",B21="So"),2,IF($K$9=1,SUMIFS($R$4:$R$8,$S$4:$S$8,B21),IF(AND($K$9=2,A21<15),SUMIFS($R$4:$R$8,$S$4:$S$8,B21),IF(AND($K$9=2,A21>14),SUMIFS($R$12:$R$16,$S$12:$S$16,B21),IF(AND($K$9=3,A21>14),SUMIFS($R$12:$R$16,$S$12:$S$16,B21),IF(AND($K$9=3,A21<15),SUMIFS($R$4:$R$8,$S$4:$S$8,B21),1)))))))) -> 1 | I21: =IF($K$9>0,IF(SUM($K$11:$K21,$I$6)<0,TEXT(-(SUM($K$11:K21,$I$6)/60)/24,"-[h]:mm"),TEXT((SUM($K$11:K21,$I$6)/60)/24,"[h]:mm")),"") ->  | L21: 0 | M21: 0 | O21: =IF(OR($O$3="",$N$3="",N21=""),"",IF($O$9-SUM($N$11:N20)-N21<0,TEXT(-(($O$9-SUM($N$11:N20)-N21)/24),"-[hh]:mm"),TEXT(($O$9-SUM($N$11:N20)-N21)/24,"[hh]:mm"))) -> 
C22: =IF(OR($K$9=0,AND($K$9=2,A22<=14)),1,IF(IF(ISNA(INDEX(X!$W$7:$W$20,MATCH(DATE($D$4,$C$4,A22),X!$AC$7:$AC$20,0))),1,2)=2,2,IF(OR(B22="Sa",B22="So"),2,IF($K$9=1,SUMIFS($R$4:$R$8,$S$4:$S$8,B22),IF(AND($K$9=2,A22<15),SUMIFS($R$4:$R$8,$S$4:$S$8,B22),IF(AND($K$9=2,A22>14),SUMIFS($R$12:$R$16,$S$12:$S$16,B22),IF(AND($K$9=3,A22>14),SUMIFS($R$12:$R$16,$S$12:$S$16,B22),IF(AND($K$9=3,A22<15),SUMIFS($R$4:$R$8,$S$4:$S$8,B22),1)))))))) -> 1 | I22: =IF($K$9>0,IF(SUM($K$11:$K22,$I$6)<0,TEXT(-(SUM($K$11:K22,$I$6)/60)/24,"-[h]:mm"),TEXT((SUM($K$11:K22,$I$6)/60)/24,"[h]:mm")),"") ->  | L22: 0 | M22: 0 | O22: =IF(OR($O$3="",$N$3="",N22=""),"",IF($O$9-SUM($N$11:N21)-N22<0,TEXT(-(($O$9-SUM($N$11:N21)-N22)/24),"-[hh]:mm"),TEXT(($O$9-SUM($N$11:N21)-N22)/24,"[hh]:mm"))) -> 
C23: =IF(OR($K$9=0,AND($K$9=2,A23<=14)),1,IF(IF(ISNA(INDEX(X!$W$7:$W$20,MATCH(DATE($D$4,$C$4,A23),X!$AC$7:$AC$20,0))),1,2)=2,2,IF(OR(B23="Sa",B23="So"),2,IF($K$9=1,SUMIFS($R$4:$R$8,$S$4:$S$8,B23),IF(AND($K$9=2,A23<15),SUMIFS($R$4:$R$8,$S$4:$S$8,B23),IF(AND($K$9=2,A23>14),SUMIFS($R$12:$R$16,$S$12:$S$16,B23),IF(AND($K$9=3,A23>14),SUMIFS($R$12:$R$16,$S$12:$S$16,B23),IF(AND($K$9=3,A23<15),SUMIFS($R$4:$R$8,$S$4:$S$8,B23),1)))))))) -> 1 | I23: =IF($K$9>0,IF(SUM($K$11:$K23,$I$6)<0,TEXT(-(SUM($K$11:K23,$I$6)/60)/24,"-[h]:mm"),TEXT((SUM($K$11:K23,$I$6)/60)/24,"[h]:mm")),"") ->  | L23: 0 | M23: 0 | O23: =IF(OR($O$3="",$N$3="",N23=""),"",IF($O$9-SUM($N$11:N22)-N23<0,TEXT(-(($O$9-SUM($N$11:N22)-N23)/24),"-[hh]:mm"),TEXT(($O$9-SUM($N$11:N22)-N23)/24,"[hh]:mm"))) -> 
C24: =IF(OR($K$9=0,AND($K$9=2,A24<=14)),1,IF(IF(ISNA(INDEX(X!$W$7:$W$20,MATCH(DATE($D$4,$C$4,A24),X!$AC$7:$AC$20,0))),1,2)=2,2,IF(OR(B24="Sa",B24="So"),2,IF($K$9=1,SUMIFS($R$4:$R$8,$S$4:$S$8,B24),IF(AND($K$9=2,A24<15),SUMIFS($R$4:$R$8,$S$4:$S$8,B24),IF(AND($K$9=2,A24>14),SUMIFS($R$12:$R$16,$S$12:$S$16,B24),IF(AND($K$9=3,A24>14),SUMIFS($R$12:$R$16,$S$12:$S$16,B24),IF(AND($K$9=3,A24<15),SUMIFS($R$4:$R$8,$S$4:$S$8,B24),1)))))))) -> 1 | I24: =IF($K$9>0,IF(SUM($K$11:$K24,$I$6)<0,TEXT(-(SUM($K$11:K24,$I$6)/60)/24,"-[h]:mm"),TEXT((SUM($K$11:K24,$I$6)/60)/24,"[h]:mm")),"") ->  | L24: 0 | M24: 0 | O24: =IF(OR($O$3="",$N$3="",N24=""),"",IF($O$9-SUM($N$11:N23)-N24<0,TEXT(-(($O$9-SUM($N$11:N23)-N24)/24),"-[hh]:mm"),TEXT(($O$9-SUM($N$11:N23)-N24)/24,"[hh]:mm"))) -> 
C25: =IF(OR($K$9=0,AND($K$9=2,A25<=14)),1,IF(IF(ISNA(INDEX(X!$W$7:$W$20,MATCH(DATE($D$4,$C$4,A25),X!$AC$7:$AC$20,0))),1,2)=2,2,IF(OR(B25="Sa",B25="So"),2,IF($K$9=1,SUMIFS($R$4:$R$8,$S$4:$S$8,B25),IF(AND($K$9=2,A25<15),SUMIFS($R$4:$R$8,$S$4:$S$8,B25),IF(AND($K$9=2,A25>14),SUMIFS($R$12:$R$16,$S$12:$S$16,B25),IF(AND($K$9=3,A25>14),SUMIFS($R$12:$R$16,$S$12:$S$16,B25),IF(AND($K$9=3,A25<15),SUMIFS($R$4:$R$8,$S$4:$S$8,B25),1)))))))) -> 1 | I25: =IF($K$9>0,IF(SUM($K$11:$K25,$I$6)<0,TEXT(-(SUM($K$11:K25,$I$6)/60)/24,"-[h]:mm"),TEXT((SUM($K$11:K25,$I$6)/60)/24,"[h]:mm")),"") ->  | L25: 0 | M25: 0 | O25: =IF(OR($O$3="",$N$3="",N25=""),"",IF($O$9-SUM($N$11:N24)-N25<0,TEXT(-(($O$9-SUM($N$11:N24)-N25)/24),"-[hh]:mm"),TEXT(($O$9-SUM($N$11:N24)-N25)/24,"[hh]:mm"))) -> 
C26: =IF(OR($K$9=0,AND($K$9=2,A26<=14)),1,IF(IF(ISNA(INDEX(X!$W$7:$W$20,MATCH(DATE($D$4,$C$4,A26),X!$AC$7:$AC$20,0))),1,2)=2,2,IF(OR(B26="Sa",B26="So"),2,IF($K$9=1,SUMIFS($R$4:$R$8,$S$4:$S$8,B26),IF(AND($K$9=2,A26<15),SUMIFS($R$4:$R$8,$S$4:$S$8,B26),IF(AND($K$9=2,A26>14),SUMIFS($R$12:$R$16,$S$12:$S$16,B26),IF(AND($K$9=3,A26>14),SUMIFS($R$12:$R$16,$S$12:$S$16,B26),IF(AND($K$9=3,A26<15),SUMIFS($R$4:$R$8,$S$4:$S$8,B26),1)))))))) -> 1 | I26: =IF($K$9>0,IF(SUM($K$11:$K26,$I$6)<0,TEXT(-(SUM($K$11:K26,$I$6)/60)/24,"-[h]:mm"),TEXT((SUM($K$11:K26,$I$6)/60)/24,"[h]:mm")),"") ->  | L26: 0 | M26: 0 | O26: =IF(OR($O$3="",$N$3="",N26=""),"",IF($O$9-SUM($N$11:N25)-N26<0,TEXT(-(($O$9-SUM($N$11:N25)-N26)/24),"-[hh]:mm"),TEXT(($O$9-SUM($N$11:N25)-N26)/24,"[hh]:mm"))) -> 
C27: =IF(OR($K$9=0,AND($K$9=2,A27<=14)),1,IF(IF(ISNA(INDEX(X!$W$7:$W$20,MATCH(DATE($D$4,$C$4,A27),X!$AC$7:$AC$20,0))),1,2)=2,2,IF(OR(B27="Sa",B27="So"),2,IF($K$9=1,SUMIFS($R$4:$R$8,$S$4:$S$8,B27),IF(AND($K$9=2,A27<15),SUMIFS($R$4:$R$8,$S$4:$S$8,B27),IF(AND($K$9=2,A27>14),SUMIFS($R$12:$R$16,$S$12:$S$16,B27),IF(AND($K$9=3,A27>14),SUMIFS($R$12:$R$16,$S$12:$S$16,B27),IF(AND($K$9=3,A27<15),SUMIFS($R$4:$R$8,$S$4:$S$8,B27),1)))))))) -> 1 | I27: =IF($K$9>0,IF(SUM($K$11:$K27,$I$6)<0,TEXT(-(SUM($K$11:K27,$I$6)/60)/24,"-[h]:mm"),TEXT((SUM($K$11:K27,$I$6)/60)/24,"[h]:mm")),"") ->  | L27: 0 | M27: 0 | O27: =IF(OR($O$3="",$N$3="",N27=""),"",IF($O$9-SUM($N$11:N26)-N27<0,TEXT(-(($O$9-SUM($N$11:N26)-N27)/24),"-[hh]:mm"),TEXT(($O$9-SUM($N$11:N26)-N27)/24,"[hh]:mm"))) -> 
C28: =IF(OR($K$9=0,AND($K$9=2,A28<=14)),1,IF(IF(ISNA(INDEX(X!$W$7:$W$20,MATCH(DATE($D$4,$C$4,A28),X!$AC$7:$AC$20,0))),1,2)=2,2,IF(OR(B28="Sa",B28="So"),2,IF($K$9=1,SUMIFS($R$4:$R$8,$S$4:$S$8,B28),IF(AND($K$9=2,A28<15),SUMIFS($R$4:$R$8,$S$4:$S$8,B28),IF(AND($K$9=2,A28>14),SUMIFS($R$12:$R$16,$S$12:$S$16,B28),IF(AND($K$9=3,A28>14),SUMIFS($R$12:$R$16,$S$12:$S$16,B28),IF(AND($K$9=3,A28<15),SUMIFS($R$4:$R$8,$S$4:$S$8,B28),1)))))))) -> 1 | I28: =IF($K$9>0,IF(SUM($K$11:$K28,$I$6)<0,TEXT(-(SUM($K$11:K28,$I$6)/60)/24,"-[h]:mm"),TEXT((SUM($K$11:K28,$I$6)/60)/24,"[h]:mm")),"") ->  | L28: 0 | M28: 0 | O28: =IF(OR($O$3="",$N$3="",N28=""),"",IF($O$9-SUM($N$11:N27)-N28<0,TEXT(-(($O$9-SUM($N$11:N27)-N28)/24),"-[hh]:mm"),TEXT(($O$9-SUM($N$11:N27)-N28)/24,"[hh]:mm"))) -> 
C29: =IF(OR($K$9=0,AND($K$9=2,A29<=14)),1,IF(IF(ISNA(INDEX(X!$W$7:$W$20,MATCH(DATE($D$4,$C$4,A29),X!$AC$7:$AC$20,0))),1,2)=2,2,IF(OR(B29="Sa",B29="So"),2,IF($K$9=1,SUMIFS($R$4:$R$8,$S$4:$S$8,B29),IF(AND($K$9=2,A29<15),SUMIFS($R$4:$R$8,$S$4:$S$8,B29),IF(AND($K$9=2,A29>14),SUMIFS($R$12:$R$16,$S$12:$S$16,B29),IF(AND($K$9=3,A29>14),SUMIFS($R$12:$R$16,$S$12:$S$16,B29),IF(AND($K$9=3,A29<15),SUMIFS($R$4:$R$8,$S$4:$S$8,B29),1)))))))) -> 1 | I29: =IF($K$9>0,IF(SUM($K$11:$K29,$I$6)<0,TEXT(-(SUM($K$11:K29,$I$6)/60)/24,"-[h]:mm"),TEXT((SUM($K$11:K29,$I$6)/60)/24,"[h]:mm")),"") ->  | L29: 0 | M29: 0 | O29: =IF(OR($O$3="",$N$3="",N29=""),"",IF($O$9-SUM($N$11:N28)-N29<0,TEXT(-(($O$9-SUM($N$11:N28)-N29)/24),"-[hh]:mm"),TEXT(($O$9-SUM($N$11:N28)-N29)/24,"[hh]:mm"))) -> 
C30: =IF(OR($K$9=0,AND($K$9=2,A30<=14)),1,IF(IF(ISNA(INDEX(X!$W$7:$W$20,MATCH(DATE($D$4,$C$4,A30),X!$AC$7:$AC$20,0))),1,2)=2,2,IF(OR(B30="Sa",B30="So"),2,IF($K$9=1,SUMIFS($R$4:$R$8,$S$4:$S$8,B30),IF(AND($K$9=2,A30<15),SUMIFS($R$4:$R$8,$S$4:$S$8,B30),IF(AND($K$9=2,A30>14),SUMIFS($R$12:$R$16,$S$12:$S$16,B30),IF(AND($K$9=3,A30>14),SUMIFS($R$12:$R$16,$S$12:$S$16,B30),IF(AND($K$9=3,A30<15),SUMIFS($R$4:$R$8,$S$4:$S$8,B30),1)))))))) -> 1 | I30: =IF($K$9>0,IF(SUM($K$11:$K30,$I$6)<0,TEXT(-(SUM($K$11:K30,$I$6)/60)/24,"-[h]:mm"),TEXT((SUM($K$11:K30,$I$6)/60)/24,"[h]:mm")),"") ->  | L30: 0 | M30: 0 | O30: =IF(OR($O$3="",$N$3="",N30=""),"",IF($O$9-SUM($N$11:N29)-N30<0,TEXT(-(($O$9-SUM($N$11:N29)-N30)/24),"-[hh]:mm"),TEXT(($O$9-SUM($N$11:N29)-N30)/24,"[hh]:mm"))) -> 
C31: =IF(OR($K$9=0,AND($K$9=2,A31<=14)),1,IF(IF(ISNA(INDEX(X!$W$7:$W$20,MATCH(DATE($D$4,$C$4,A31),X!$AC$7:$AC$20,0))),1,2)=2,2,IF(OR(B31="Sa",B31="So"),2,IF($K$9=1,SUMIFS($R$4:$R$8,$S$4:$S$8,B31),IF(AND($K$9=2,A31<15),SUMIFS($R$4:$R$8,$S$4:$S$8,B31),IF(AND($K$9=2,A31>14),SUMIFS($R$12:$R$16,$S$12:$S$16,B31),IF(AND($K$9=3,A31>14),SUMIFS($R$12:$R$16,$S$12:$S$16,B31),IF(AND($K$9=3,A31<15),SUMIFS($R$4:$R$8,$S$4:$S$8,B31),1)))))))) -> 1 | I31: =IF($K$9>0,IF(SUM($K$11:$K31,$I$6)<0,TEXT(-(SUM($K$11:K31,$I$6)/60)/24,"-[h]:mm"),TEXT((SUM($K$11:K31,$I$6)/60)/24,"[h]:mm")),"") ->  | L31: 0 | M31: 0 | O31: =IF(OR($O$3="",$N$3="",N31=""),"",IF($O$9-SUM($N$11:N30)-N31<0,TEXT(-(($O$9-SUM($N$11:N30)-N31)/24),"-[hh]:mm"),TEXT(($O$9-SUM($N$11:N30)-N31)/24,"[hh]:mm"))) -> 
C32: =IF(OR($K$9=0,AND($K$9=2,A32<=14)),1,IF(IF(ISNA(INDEX(X!$W$7:$W$20,MATCH(DATE($D$4,$C$4,A32),X!$AC$7:$AC$20,0))),1,2)=2,2,IF(OR(B32="Sa",B32="So"),2,IF($K$9=1,SUMIFS($R$4:$R$8,$S$4:$S$8,B32),IF(AND($K$9=2,A32<15),SUMIFS($R$4:$R$8,$S$4:$S$8,B32),IF(AND($K$9=2,A32>14),SUMIFS($R$12:$R$16,$S$12:$S$16,B32),IF(AND($K$9=3,A32>14),SUMIFS($R$12:$R$16,$S$12:$S$16,B32),IF(AND($K$9=3,A32<15),SUMIFS($R$4:$R$8,$S$4:$S$8,B32),1)))))))) -> 1 | I32: =IF($K$9>0,IF(SUM($K$11:$K32,$I$6)<0,TEXT(-(SUM($K$11:K32,$I$6)/60)/24,"-[h]:mm"),TEXT((SUM($K$11:K32,$I$6)/60)/24,"[h]:mm")),"") ->  | L32: 0 | M32: 0 | O32: =IF(OR($O$3="",$N$3="",N32=""),"",IF($O$9-SUM($N$11:N31)-N32<0,TEXT(-(($O$9-SUM($N$11:N31)-N32)/24),"-[hh]:mm"),TEXT(($O$9-SUM($N$11:N31)-N32)/24,"[hh]:mm"))) -> 
